Workbook

Sheet Help
A1: This spreadsheet is designed to score high school cross country meets.
A3: Version 3.0, written by Steve O'Hara and Charlie Sanchez, Oct 6, 2007
A4: Email contacts: steve@oharasteve.com and sanchezc@gmail.com
A5: Our Website: http://www.oharasteve.com/rrcc/index.html
A7: Notes:
A8: 1 | B8: Please fill in all cells that are yellow in color. All white cells are locked and should not be edited. Blue cells are supposed to be hidden.
A9: =A8+1 -> 2 | B9: There is no password needed to unprotect each worksheet. But please use caution when making changes. There are many hidden rows and columns.
A10: 3 | B10: Times should be entered as "1523" for 15 minutes and 23 seconds. The spreadsheet automatically inserts the colon (:)
A11: 4 | B11: The green colored tabs are for data entry at the meet, while the orange tabs can be filled out in advance.
A12: 5 | B12: Note that a single Race may have more than one Division. For example, Freshman boys and girls might run in the same race.
A13: 6 | B13: Note that a single school may run more than one team; for example, if there are 20 JV runners, they may field JVA and JVB teams.
A14: 7 | B14: There are some fairly complicated Excel formulas used. Please be careful.

Sheet Main
A1: Meet: | B1: McNeil Cross Country Invitational
A2: Location: | B2: Old Settler's Park
A3: Date: | B3: 2015-10-03
A4: Website: | B4: http://www.oharasteven.com/rrcc/mcneil_2015/index.html
A5: Photo website: | D5: Write html status:
A6: Email: | B6: steve@oharasteve.com | D6: DONE
A7: Bibs: | B7: FALSE
A9: Schools: | B9: =MAX(Teams!A:A) -> 44
A10: Races: | B10: =MAX(Races!A:A) -> 2
A12: Times errors: | B12: =SUM(Times!1:1) -> 0
A13: Bib errors: | B13: =IF(Bibs,SUM(Bibs!1:1),0) -> 0
A14: Roster errors: | B14: =SUM(Roster!G:G) -> 0
A15: Total errors: | B15: =SUM(B12:B14) -> 0

Sheet Races
A1: Race # | B1: Race | C1: Division | D1: Description | E1: Distance | F1: Miles | G1: Min Grade | H1: Max Grade
A2: =IF(B2="",0,IF(ISNA(MATCH(B2,B$1:B1,0)),MAX(A$1:A1)+1,0)) -> 1 | B2: JHG | C2: JHG | D2: Middle School Girls | E2: 3200 Meters | F2: 2 | G2: 7 | H2: 8
A3: =IF(B3="",0,IF(ISNA(MATCH(B3,B$1:B2,0)),MAX(A$1:A2)+1,0)) -> 2 | B3: JHB | C3: JHB | D3: Middle School Boys | E3: 3200 Meters | F3: 2 | G3: 7 | H3: 8
A4: =IF(B4="",0,IF(ISNA(MATCH(B4,B$1:B3,0)),MAX(A$1:A3)+1,0)) -> 0
A5: =IF(B5="",0,IF(ISNA(MATCH(B5,B$1:B4,0)),MAX(A$1:A4)+1,0)) -> 0
A6: =IF(B6="",0,IF(ISNA(MATCH(B6,B$1:B5,0)),MAX(A$1:A5)+1,0)) -> 0
A7: =IF(B7="",0,IF(ISNA(MATCH(B7,B$1:B6,0)),MAX(A$1:A6)+1,0)) -> 0
A8: =IF(B8="",0,IF(ISNA(MATCH(B8,B$1:B7,0)),MAX(A$1:A7)+1,0)) -> 0
A9: =IF(B9="",0,IF(ISNA(MATCH(B9,B$1:B8,0)),MAX(A$1:A8)+1,0)) -> 0
A10: =IF(B10="",0,IF(ISNA(MATCH(B10,B$1:B9,0)),MAX(A$1:A9)+1,0)) -> 0
A11: =IF(B11="",0,IF(ISNA(MATCH(B11,B$1:B10,0)),MAX(A$1:A10)+1,0)) -> 0
A12: =IF(B12="",0,IF(ISNA(MATCH(B12,B$1:B11,0)),MAX(A$1:A11)+1,0)) -> 0
A13: =IF(B13="",0,IF(ISNA(MATCH(B13,B$1:B12,0)),MAX(A$1:A12)+1,0)) -> 0
A14: =IF(B14="",0,IF(ISNA(MATCH(B14,B$1:B13,0)),MAX(A$1:A13)+1,0)) -> 0
A15: =IF(B15="",0,IF(ISNA(MATCH(B15,B$1:B14,0)),MAX(A$1:A14)+1,0)) -> 0
A16: =IF(B16="",0,IF(ISNA(MATCH(B16,B$1:B15,0)),MAX(A$1:A15)+1,0)) -> 0
A17: =IF(B17="",0,IF(ISNA(MATCH(B17,B$1:B16,0)),MAX(A$1:A16)+1,0)) -> 0
A18: =IF(B18="",0,IF(ISNA(MATCH(B18,B$1:B17,0)),MAX(A$1:A17)+1,0)) -> 0
A19: =IF(B19="",0,IF(ISNA(MATCH(B19,B$1:B18,0)),MAX(A$1:A18)+1,0)) -> 0
A20: =IF(B20="",0,IF(ISNA(MATCH(B20,B$1:B19,0)),MAX(A$1:A19)+1,0)) -> 0
A21: =IF(B21="",0,IF(ISNA(MATCH(B21,B$1:B20,0)),MAX(A$1:A20)+1,0)) -> 0
A22: =IF(B22="",0,IF(ISNA(MATCH(B22,B$1:B21,0)),MAX(A$1:A21)+1,0)) -> 0
A23: =IF(B23="",0,IF(ISNA(MATCH(B23,B$1:B22,0)),MAX(A$1:A22)+1,0)) -> 0
A24: =IF(B24="",0,IF(ISNA(MATCH(B24,B$1:B23,0)),MAX(A$1:A23)+1,0)) -> 0
A25: =IF(B25="",0,IF(ISNA(MATCH(B25,B$1:B24,0)),MAX(A$1:A24)+1,0)) -> 0
A26: =IF(B26="",0,IF(ISNA(MATCH(B26,B$1:B25,0)),MAX(A$1:A25)+1,0)) -> 0

Sheet Teams
A1: School # | B1: School | C1: Team Name | D1: Abbr | E1: Coach | F1: Coach2 | G1: School Web Site | H1: XC Team Web Site
A2: =IF(B2="",0,IF(ISNA(MATCH(B2,B$1:B1,0)),MAX(A$1:A1)+1,0)) -> 1 | B2: Ann Richards | C2: Ann Richards | D2: AR
A3: =IF(B3="",0,IF(ISNA(MATCH(B3,B$1:B2,0)),MAX(A$1:A2)+1,0)) -> 2 | B3: Ace Academy | C3: Ace Academy | D3: ACE
A4: =IF(B4="",0,IF(ISNA(MATCH(B4,B$1:B3,0)),MAX(A$1:A3)+1,0)) -> 3 | B4: Benold Middle School | C4: Benold Middle School | D4: BEN
A5: =IF(B5="",0,IF(ISNA(MATCH(B5,B$1:B4,0)),MAX(A$1:A4)+1,0)) -> 4 | B5: Brentwood | C5: Brentwood | D5: BRE
A6: =IF(B6="",0,IF(ISNA(MATCH(B6,B$1:B5,0)),MAX(A$1:A5)+1,0)) -> 5 | B6: Canyon Vista | C6: Canyon Vista | D6: CAN | E6: Amber McKinley | F6: Jacki Govea | G6: http://canyonvista.roundrockisd.org | H6: https://sites.google.com/a/roundrockisd.org/coach-mckinley-s-page/cross-country
A7: =IF(B7="",0,IF(ISNA(MATCH(B7,B$1:B6,0)),MAX(A$1:A6)+1,0)) -> 6 | B7: Cele Middle School | C7: Cele Middle School | D7: CEL
A8: =IF(B8="",0,IF(ISNA(MATCH(B8,B$1:B7,0)),MAX(A$1:A7)+1,0)) -> 7 | B8: Chisholm Trail | C8: Chisholm Trail | D8: CT | E8: Leah Perez | G8: http://chisholmtrail.roundrockisd.org | H8: https://sites.google.com/a/roundrockisd.org/mrs-perez/cc-information
A9: =IF(B9="",0,IF(ISNA(MATCH(B9,B$1:B8,0)),MAX(A$1:A8)+1,0)) -> 8 | B9: Central Texas Christian | C9: Central Texas Christian | D9: CTC
A10: =IF(B10="",0,IF(ISNA(MATCH(B10,B$1:B9,0)),MAX(A$1:A9)+1,0)) -> 9 | B10: Cedar Valley | C10: Cedar Valley | D10: CV | E10: Alison Slay | F10: Veronica Ryan | G10: http://cedarvalley.roundrockisd.org
A11: =IF(B11="",0,IF(ISNA(MATCH(B11,B$1:B10,0)),MAX(A$1:A10)+1,0)) -> 10 | B11: Deerpark Middle School | C11: Deerpark Middle School | D11: DEE | E11: Ashley Young | G11: http://deerpark.roundrockisd.org
A12: =IF(B12="",0,IF(ISNA(MATCH(B12,B$1:B11,0)),MAX(A$1:A11)+1,0)) -> 11 | B12: Founders Classical | C12: Founders Classical | D12: FC
A13: =IF(B13="",0,IF(ISNA(MATCH(B13,B$1:B12,0)),MAX(A$1:A12)+1,0)) -> 12 | B13: Forbes | C13: Forbes | D13: FOR
A14: =IF(B14="",0,IF(ISNA(MATCH(B14,B$1:B13,0)),MAX(A$1:A13)+1,0)) -> 13 | B14: Gateway College Prep | C14: Gateway College Prep | D14: GCP
A15: =IF(B15="",0,IF(ISNA(MATCH(B15,B$1:B14,0)),MAX(A$1:A14)+1,0)) -> 14 | B15: Grace Academy | C15: Grace Academy | D15: GRA
A16: =IF(B16="",0,IF(ISNA(MATCH(B16,B$1:B15,0)),MAX(A$1:A15)+1,0)) -> 15 | B16: Hill Country Christian | C16: Hill Country Christian | D16: HC
A17: =IF(B17="",0,IF(ISNA(MATCH(B17,B$1:B16,0)),MAX(A$1:A16)+1,0)) -> 16 | B17: Hernandez Middle School | C17: Hernandez Middle School | D17: HER | E17: Coach Huffman | G17: http://hernandez.roundrockisd.org | H17: http://ladybulldogathletics.weebly.com/
A18: =IF(B18="",0,IF(ISNA(MATCH(B18,B$1:B17,0)),MAX(A$1:A17)+1,0)) -> 17 | B18: Holy Family | C18: Holy Family | D18: HF
A19: =IF(B19="",0,IF(ISNA(MATCH(B19,B$1:B18,0)),MAX(A$1:A18)+1,0)) -> 18 | B19: Hopewell | C19: Hopewell | D19: HOP | E19: Monica Baldini | G19: http://hopewell.roundrockisd.org
A20: =IF(B20="",0,IF(ISNA(MATCH(B20,B$1:B19,0)),MAX(A$1:A19)+1,0)) -> 19 | B20: Hyde Park | C20: Hyde Park | D20: HP
A21: =IF(B21="",0,IF(ISNA(MATCH(B21,B$1:B20,0)),MAX(A$1:A20)+1,0)) -> 20 | B21: Incarnate Word | C21: Incarnate Word | D21: IW
A22: =IF(B22="",0,IF(ISNA(MATCH(B22,B$1:B21,0)),MAX(A$1:A21)+1,0)) -> 21 | B22: Jarrel | C22: Jarrel | D22: JAR
A23: =IF(B23="",0,IF(ISNA(MATCH(B23,B$1:B22,0)),MAX(A$1:A22)+1,0)) -> 22 | B23: Kealing | C23: Kealing | D23: KEA
A24: =IF(B24="",0,IF(ISNA(MATCH(B24,B$1:B23,0)),MAX(A$1:A23)+1,0)) -> 23 | B24: Longview Spring Hill | C24: Longview Spring Hill | D24: LSH
A25: =IF(B25="",0,IF(ISNA(MATCH(B25,B$1:B24,0)),MAX(A$1:A24)+1,0)) -> 24 | B25: Lago Vista | C25: Lago Vista | D25: LV
A26: =IF(B26="",0,IF(ISNA(MATCH(B26,B$1:B25,0)),MAX(A$1:A25)+1,0)) -> 25 | B26: Hamilton | C26: Hamilton | D26: MAN
A27: =IF(B27="",0,IF(ISNA(MATCH(B27,B$1:B26,0)),MAX(A$1:A26)+1,0)) -> 26 | B27: Meridian | C27: Meridian | D27: MER
A28: =IF(B28="",0,IF(ISNA(MATCH(B28,B$1:B27,0)),MAX(A$1:A27)+1,0)) -> 27 | B28: Middle Groves | C28: Middle Groves | D28: MG
A29: =IF(B29="",0,IF(ISNA(MATCH(B29,B$1:B28,0)),MAX(A$1:A28)+1,0)) -> 28 | B29: No Team Assigned | C29: No Team Assigned | D29: NT
A30: =IF(B30="",0,IF(ISNA(MATCH(B30,B$1:B29,0)),MAX(A$1:A29)+1,0)) -> 29 | B30: O. Henry Middle School | C30: O. Henry Middle School | D30: OH
A31: =IF(B31="",0,IF(ISNA(MATCH(B31,B$1:B30,0)),MAX(A$1:A30)+1,0)) -> 30 | B31: Regents | C31: Regents | D31: REG
A32: =IF(B32="",0,IF(ISNA(MATCH(B32,B$1:B31,0)),MAX(A$1:A31)+1,0)) -> 31 | B32: Ridgeview Middle School | C32: Ridgeview Middle School | D32: RID | E32: Eileen Sanchez | G32: http://ridgeview.roundrockisd.org
A33: =IF(B33="",0,IF(ISNA(MATCH(B33,B$1:B32,0)),MAX(A$1:A32)+1,0)) -> 32 | B33: Round Rock Christian | C33: Round Rock Christian | D33: RRC
A34: =IF(B34="",0,IF(ISNA(MATCH(B34,B$1:B33,0)),MAX(A$1:A33)+1,0)) -> 33 | B34: Seashore Middle Academy | C34: Seashore Middle Academy | D34: SEA
A35: =IF(B35="",0,IF(ISNA(MATCH(B35,B$1:B34,0)),MAX(A$1:A34)+1,0)) -> 34 | B35: Sonora | C35: Sonora | D35: SON
A36: =IF(B36="",0,IF(ISNA(MATCH(B36,B$1:B35,0)),MAX(A$1:A35)+1,0)) -> 35 | B36: San Saba Middle School | C36: San Saba Middle School | D36: SS
A37: =IF(B37="",0,IF(ISNA(MATCH(B37,B$1:B36,0)),MAX(A$1:A36)+1,0)) -> 36 | B37: St. Anthony Middle School | C37: St. Anthony Middle School | D37: STA
A38: =IF(B38="",0,IF(ISNA(MATCH(B38,B$1:B37,0)),MAX(A$1:A37)+1,0)) -> 37 | B38: St. George Episcopal | C38: St. George Episcopal | D38: STG
A39: =IF(B39="",0,IF(ISNA(MATCH(B39,B$1:B38,0)),MAX(A$1:A38)+1,0)) -> 38 | B39: St. Ignatius | C39: St. Ignatius | D39: STI
A40: =IF(B40="",0,IF(ISNA(MATCH(B40,B$1:B39,0)),MAX(A$1:A39)+1,0)) -> 39 | B40: St. Luke Catholic | C40: St. Luke Catholic | D40: STL
A41: =IF(B41="",0,IF(ISNA(MATCH(B41,B$1:B40,0)),MAX(A$1:A40)+1,0)) -> 40 | B41: St. Theresa | C41: St. Theresa | D41: STT
A42: =IF(B42="",0,IF(ISNA(MATCH(B42,B$1:B41,0)),MAX(A$1:A41)+1,0)) -> 41 | B42: Summit Christian Academy | C42: Summit Christian Academy | D42: SUM
A43: =IF(B43="",0,IF(ISNA(MATCH(B43,B$1:B42,0)),MAX(A$1:A42)+1,0)) -> 42 | B43: Thrall | C43: Thrall | D43: THR
A44: =IF(B44="",0,IF(ISNA(MATCH(B44,B$1:B43,0)),MAX(A$1:A43)+1,0)) -> 43 | B44: Tippit Middle School | C44: Tippit Middle School | D44: TIP
A45: =IF(B45="",0,IF(ISNA(MATCH(B45,B$1:B44,0)),MAX(A$1:A44)+1,0)) -> 44 | B45: Walsh Middle School | C45: Walsh Middle School | D45: WAS | E45: Telfer | F45: Gutierrez | G45: http://walsh.roundrockisd.org
A46: =IF(B46="",0,IF(ISNA(MATCH(B46,B$1:B45,0)),MAX(A$1:A45)+1,0)) -> 0
A47: =IF(B47="",0,IF(ISNA(MATCH(B47,B$1:B46,0)),MAX(A$1:A46)+1,0)) -> 0
A48: =IF(B48="",0,IF(ISNA(MATCH(B48,B$1:B47,0)),MAX(A$1:A47)+1,0)) -> 0
A49: =IF(B49="",0,IF(ISNA(MATCH(B49,B$1:B48,0)),MAX(A$1:A48)+1,0)) -> 0
A50: =IF(B50="",0,IF(ISNA(MATCH(B50,B$1:B49,0)),MAX(A$1:A49)+1,0)) -> 0
A51: =IF(B51="",0,IF(ISNA(MATCH(B51,B$1:B50,0)),MAX(A$1:A50)+1,0)) -> 0
A52: =IF(B52="",0,IF(ISNA(MATCH(B52,B$1:B51,0)),MAX(A$1:A51)+1,0)) -> 0
A53: =IF(B53="",0,IF(ISNA(MATCH(B53,B$1:B52,0)),MAX(A$1:A52)+1,0)) -> 0
A54: =IF(B54="",0,IF(ISNA(MATCH(B54,B$1:B53,0)),MAX(A$1:A53)+1,0)) -> 0
A55: =IF(B55="",0,IF(ISNA(MATCH(B55,B$1:B54,0)),MAX(A$1:A54)+1,0)) -> 0
A56: =IF(B56="",0,IF(ISNA(MATCH(B56,B$1:B55,0)),MAX(A$1:A55)+1,0)) -> 0
A57: =IF(B57="",0,IF(ISNA(MATCH(B57,B$1:B56,0)),MAX(A$1:A56)+1,0)) -> 0
A58: =IF(B58="",0,IF(ISNA(MATCH(B58,B$1:B57,0)),MAX(A$1:A57)+1,0)) -> 0
A59: =IF(B59="",0,IF(ISNA(MATCH(B59,B$1:B58,0)),MAX(A$1:A58)+1,0)) -> 0
A60: =IF(B60="",0,IF(ISNA(MATCH(B60,B$1:B59,0)),MAX(A$1:A59)+1,0)) -> 0
A61: =IF(B61="",0,IF(ISNA(MATCH(B61,B$1:B60,0)),MAX(A$1:A60)+1,0)) -> 0

Sheet Roster
A1: Bib | B1: Non-Bib Finish | C1: Name | D1: Team | E1: Grade | F1: Division | G1: =IF(SUM(G2:G1502)>0,"Error","All ok") -> All ok | H1: Time | I1: Pace | J1: Team Place | K1: Place | L1: Points | M1: Division Number | N1: Race | O1: Bibs Column | P1: Bib Place | Q1: Net Place | R1: Place Code | S1: Place Index | T1: Place Start | U1: Time Column | V1: Distance | W1: Seconds per mile | X1: Team Number | Y1: Team Code | Z1: School Number | AA1: Sort Code | AB1: Sort Index | AC1: Team Start | AD1: Team Size | AE1: Grade OK? | AF1: Score Counts | AG1: Score Code | AH1: Score Index | AI1: Score Start
B2: 258 | C2: Aidan Sanders | D2: Ace Academy | F2: JHB | G2: =IF(AND(AE2,Q2>0),IF(ISNA(MATCH(AA2,$AA$1:$AA1,0)),0,1),"") -> 0 | H2: =IF(U2="","",OFFSET(Times!$A$1,Q2,U2)) -> 3023 | I2: =IF(W2="","",100*TRUNC(W2/60)+MOD(W2,60)) -> 1511.5 | J2: =IF(AND(AE2,Q2>0),AB2-AC2,"") -> 4 | K2: =IF(Q2>0,S2-T2,"") -> 243 | L2: =IF(AF2,AH2-AI2,IF(Q2>0,"X","")) -> X | M2: =MATCH(F2,Races!$C:$C,0)-1 -> 2 | N2: =OFFSET(Races!$A$1,M2,1) -> JHB | O2: =IF(Bibs,MATCH(N2,Bibs!$1:$1,0),"") ->  | P2: =IF(Bibs,MATCH(A2,OFFSET(Bibs!$A$1,1,O2-1,1500,1),0),"") ->  | Q2: =IF(Bibs,P2,B2) -> 258 | R2: =IF(Q2,10000*M2+Q2,"") -> 20258 | S2: =IF(Q2>0,RANK(R2,R:R,1),"") -> 446 | T2: =IF(Q2>0,COUNTIF(R:R,"<"&(10000*M2)),"") -> 203 | U2: =IF(Q2>0,MATCH(N2,Times!$1:$1,0)-1,"") -> 2 | V2: =OFFSET(Races!$F$1,M2,0) -> 2 | W2: =IF(AND(NOT(ISNA(U2)),Q2>0),(60*TRUNC(H2/100)+MOD(H2,100))/V2,"") -> 911.5 | X2: =MATCH(D2,Teams!$C:$C,0)-1 -> 2 | Y2: =IF(AND(AE2,Q2>0),100*M2+X2,"") -> 202 | Z2: =MATCH(OFFSET(Teams!$C$1,X2,-1),Teams!B:B,0)-1 -> 2 | AA2: =IF(AND(Q2>0,AE2),10000*Y2+Q2,"") -> 2020258 | AB2: =IF(AND(AE2,Q2>0),RANK(AA2,AA:AA,1),"") -> 207 | AC2: =COUNTIF(AA:AA,"<"&(10000*Y2)) -> 203 | AD2: =IF(AND(AE2,Q2>0),COUNTIF(Y:Y,"="&Y2),"") -> 4 | AE2: =IF(E2>0,AND(E2>=OFFSET(Races!$G$1,M2,0),E2<=OFFSET(Races!$H$1,M2,0)),TRUE) -> TRUE | AF2: =AND(AE2,AD2>=5,J2<=7) -> FALSE | AG2: =IF(AF2,10000*M2+Q2,"") ->  | AH2: =IF(AF2,RANK(AG2,AG:AG,1),"") ->  | AI2: =IF(AF2,COUNTIF(AG:AG,"<"&(10000*M2)),"") -> 
B3: 196 | C3: Alea Strong | D3: Ace Academy | F3: JHB | G3: =IF(AND(AE3,Q3>0),IF(ISNA(MATCH(AA3,$AA$1:$AA2,0)),0,1),"") -> 0 | H3: =IF(U3="","",OFFSET(Times!$A$1,Q3,U3)) -> 1622 | I3: 811 | J3: 1 | K3: 187 | L3: X | M3: =MATCH(F3,Races!$C:$C,0)-1 -> 2 | N3: =OFFSET(Races!$A$1,M3,1) -> JHB | O3: =IF(Bibs,MATCH(N3,Bibs!$1:$1,0),"") ->  | P3: =IF(Bibs,MATCH(A3,OFFSET(Bibs!$A$1,1,O3-1,1500,1),0),"") ->  | Q3: =IF(Bibs,P3,B3) -> 196 | R3: =IF(Q3,10000*M3+Q3,"") -> 20196 | S3: =IF(Q3>0,RANK(R3,R:R,1),"") -> 390 | T3: =IF(Q3>0,COUNTIF(R:R,"<"&(10000*M3)),"") -> 203 | U3: =IF(Q3>0,MATCH(N3,Times!$1:$1,0)-1,"") -> 2 | V3: =OFFSET(Races!$F$1,M3,0) -> 2 | W3: 491 | X3: =MATCH(D3,Teams!$C:$C,0)-1 -> 2 | Y3: 202 | Z3: =MATCH(OFFSET(Teams!$C$1,X3,-1),Teams!B:B,0)-1 -> 2 | AA3: 2020196 | AB3: 204 | AC3: 203 | AD3: 4 | AE3: =IF(E3>0,AND(E3>=OFFSET(Races!$G$1,M3,0),E3<=OFFSET(Races!$H$1,M3,0)),TRUE) -> TRUE | AF3: FALSE | AH3: =IF(AF3,RANK(AG3,AG:AG,1),"") -> 
B4: 240 | C4: David Cos | D4: Ace Academy | F4: JHB | G4: =IF(AND(AE4,Q4>0),IF(ISNA(MATCH(AA4,$AA$1:$AA3,0)),0,1),"") -> 0 | H4: =IF(U4="","",OFFSET(Times!$A$1,Q4,U4)) -> 2108 | I4: 1034 | J4: 3 | K4: 226 | L4: X | M4: =MATCH(F4,Races!$C:$C,0)-1 -> 2 | N4: =OFFSET(Races!$A$1,M4,1) -> JHB | O4: =IF(Bibs,MATCH(N4,Bibs!$1:$1,0),"") ->  | P4: =IF(Bibs,MATCH(A4,OFFSET(Bibs!$A$1,1,O4-1,1500,1),0),"") ->  | Q4: 240 | R4: 20240 | S4: 429 | T4: 203 | U4: =IF(Q4>0,MATCH(N4,Times!$1:$1,0)-1,"") -> 2 | V4: =OFFSET(Races!$F$1,M4,0) -> 2 | W4: 634 | X4: =MATCH(D4,Teams!$C:$C,0)-1 -> 2 | Y4: 202 | Z4: =MATCH(OFFSET(Teams!$C$1,X4,-1),Teams!B:B,0)-1 -> 2 | AA4: 2020240 | AB4: 206 | AC4: 203 | AD4: 4 | AE4: =IF(E4>0,AND(E4>=OFFSET(Races!$G$1,M4,0),E4<=OFFSET(Races!$H$1,M4,0)),TRUE) -> TRUE | AF4: FALSE
B5: 221 | C5: Matthew Renic | D5: Ace Academy | F5: JHB | G5: =IF(AND(AE5,Q5>0),IF(ISNA(MATCH(AA5,$AA$1:$AA4,0)),0,1),"") -> 0 | H5: =IF(U5="","",OFFSET(Times!$A$1,Q5,U5)) -> 1724 | I5: 842 | J5: 2 | K5: 208 | L5: X | M5: =MATCH(F5,Races!$C:$C,0)-1 -> 2 | N5: =OFFSET(Races!$A$1,M5,1) -> JHB | O5: =IF(Bibs,MATCH(N5,Bibs!$1:$1,0),"") ->  | P5: =IF(Bibs,MATCH(A5,OFFSET(Bibs!$A$1,1,O5-1,1500,1),0),"") ->  | Q5: 221 | R5: 20221 | S5: 411 | T5: 203 | U5: =IF(Q5>0,MATCH(N5,Times!$1:$1,0)-1,"") -> 2 | V5: =OFFSET(Races!$F$1,M5,0) -> 2 | W5: 522 | X5: =MATCH(D5,Teams!$C:$C,0)-1 -> 2 | Y5: 202 | Z5: =MATCH(OFFSET(Teams!$C$1,X5,-1),Teams!B:B,0)-1 -> 2 | AA5: 2020221 | AB5: 205 | AC5: 203 | AD5: 4 | AE5: =IF(E5>0,AND(E5>=OFFSET(Races!$G$1,M5,0),E5<=OFFSET(Races!$H$1,M5,0)),TRUE) -> TRUE | AF5: FALSE
B6: 223 | C6: Abby Tokurman | D6: Ace Academy | F6: JHG | G6: =IF(AND(AE6,Q6>0),IF(ISNA(MATCH(AA6,$AA$1:$AA5,0)),0,1),"") -> 0 | H6: =IF(U6="","",OFFSET(Times!$A$1,Q6,U6)) -> 2058 | I6: 1029 | J6: 3 | K6: 196 | L6: X | M6: =MATCH(F6,Races!$C:$C,0)-1 -> 1 | N6: =OFFSET(Races!$A$1,M6,1) -> JHG | O6: =IF(Bibs,MATCH(N6,Bibs!$1:$1,0),"") ->  | P6: =IF(Bibs,MATCH(A6,OFFSET(Bibs!$A$1,1,O6-1,1500,1),0),"") ->  | Q6: 223 | R6: 10223 | S6: 196 | T6: 0 | U6: =IF(Q6>0,MATCH(N6,Times!$1:$1,0)-1,"") -> 0 | V6: =OFFSET(Races!$F$1,M6,0) -> 2 | W6: 629 | X6: =MATCH(D6,Teams!$C:$C,0)-1 -> 2 | Y6: 102 | Z6: =MATCH(OFFSET(Teams!$C$1,X6,-1),Teams!B:B,0)-1 -> 2 | AA6: 1020223 | AB6: 8 | AC6: 5 | AD6: 4 | AE6: =IF(E6>0,AND(E6>=OFFSET(Races!$G$1,M6,0),E6<=OFFSET(Races!$H$1,M6,0)),TRUE) -> TRUE | AF6: FALSE
B7: 199 | C7: Alyssa Viddies | D7: Ace Academy | F7: JHG | G7: =IF(AND(AE7,Q7>0),IF(ISNA(MATCH(AA7,$AA$1:$AA6,0)),0,1),"") -> 0 | H7: =IF(U7="","",OFFSET(Times!$A$1,Q7,U7)) -> 1836 | I7: 918 | J7: 2 | K7: 177 | L7: X | M7: =MATCH(F7,Races!$C:$C,0)-1 -> 1 | N7: =OFFSET(Races!$A$1,M7,1) -> JHG | O7: =IF(Bibs,MATCH(N7,Bibs!$1:$1,0),"") ->  | P7: =IF(Bibs,MATCH(A7,OFFSET(Bibs!$A$1,1,O7-1,1500,1),0),"") ->  | Q7: 199 | R7: 10199 | S7: 177 | T7: 0 | U7: =IF(Q7>0,MATCH(N7,Times!$1:$1,0)-1,"") -> 0 | V7: =OFFSET(Races!$F$1,M7,0) -> 2 | W7: 558 | X7: =MATCH(D7,Teams!$C:$C,0)-1 -> 2 | Y7: 102 | Z7: =MATCH(OFFSET(Teams!$C$1,X7,-1),Teams!B:B,0)-1 -> 2 | AA7: 1020199 | AB7: 7 | AC7: 5 | AD7: 4 | AE7: =IF(E7>0,AND(E7>=OFFSET(Races!$G$1,M7,0),E7<=OFFSET(Races!$H$1,M7,0)),TRUE) -> TRUE | AF7: FALSE
B8: 236 | C8: Belle Sanders | D8: Ace Academy | F8: JHG | G8: =IF(AND(AE8,Q8>0),IF(ISNA(MATCH(AA8,$AA$1:$AA7,0)),0,1),"") -> 0 | H8: =IF(U8="","",OFFSET(Times!$A$1,Q8,U8)) -> 2344 | I8: 1152 | J8: 4 | K8: 203 | L8: X | M8: =MATCH(F8,Races!$C:$C,0)-1 -> 1 | N8: =OFFSET(Races!$A$1,M8,1) -> JHG | O8: =IF(Bibs,MATCH(N8,Bibs!$1:$1,0),"") ->  | P8: =IF(Bibs,MATCH(A8,OFFSET(Bibs!$A$1,1,O8-1,1500,1),0),"") ->  | Q8: 236 | R8: 10236 | S8: 203 | T8: 0 | U8: =IF(Q8>0,MATCH(N8,Times!$1:$1,0)-1,"") -> 0 | V8: =OFFSET(Races!$F$1,M8,0) -> 2 | W8: 712 | X8: =MATCH(D8,Teams!$C:$C,0)-1 -> 2 | Y8: 102 | Z8: =MATCH(OFFSET(Teams!$C$1,X8,-1),Teams!B:B,0)-1 -> 2 | AA8: 1020236 | AB8: 9 | AC8: 5 | AD8: 4 | AE8: =IF(E8>0,AND(E8>=OFFSET(Races!$G$1,M8,0),E8<=OFFSET(Races!$H$1,M8,0)),TRUE) -> TRUE | AF8: FALSE
B9: 198 | C9: Caroline Cot | D9: Ace Academy | F9: JHG | G9: =IF(AND(AE9,Q9>0),IF(ISNA(MATCH(AA9,$AA$1:$AA8,0)),0,1),"") -> 0 | H9: =IF(U9="","",OFFSET(Times!$A$1,Q9,U9)) -> 1827 | I9: 913.5 | J9: 1 | K9: 176 | L9: X | M9: =MATCH(F9,Races!$C:$C,0)-1 -> 1 | N9: =OFFSET(Races!$A$1,M9,1) -> JHG | O9: =IF(Bibs,MATCH(N9,Bibs!$1:$1,0),"") ->  | P9: =IF(Bibs,MATCH(A9,OFFSET(Bibs!$A$1,1,O9-1,1500,1),0),"") ->  | Q9: 198 | R9: 10198 | S9: 176 | T9: 0 | U9: =IF(Q9>0,MATCH(N9,Times!$1:$1,0)-1,"") -> 0 | V9: =OFFSET(Races!$F$1,M9,0) -> 2 | W9: 553.5 | X9: =MATCH(D9,Teams!$C:$C,0)-1 -> 2 | Y9: 102 | Z9: =MATCH(OFFSET(Teams!$C$1,X9,-1),Teams!B:B,0)-1 -> 2 | AA9: 1020198 | AB9: 6 | AC9: 5 | AD9: 4 | AE9: =IF(E9>0,AND(E9>=OFFSET(Races!$G$1,M9,0),E9<=OFFSET(Races!$H$1,M9,0)),TRUE) -> TRUE | AF9: FALSE
B10: 89 | C10: Alexandra Lopez | D10: Ann Richards | F10: JHG | G10: =IF(AND(AE10,Q10>0),IF(ISNA(MATCH(AA10,$AA$1:$AA9,0)),0,1),"") -> 0 | H10: =IF(U10="","",OFFSET(Times!$A$1,Q10,U10)) -> 1513 | I10: 736.5 | J10: 4 | K10: 81 | L10: 60 | M10: =MATCH(F10,Races!$C:$C,0)-1 -> 1 | N10: =OFFSET(Races!$A$1,M10,1) -> JHG | O10: =IF(Bibs,MATCH(N10,Bibs!$1:$1,0),"") ->  | P10: =IF(Bibs,MATCH(A10,OFFSET(Bibs!$A$1,1,O10-1,1500,1),0),"") ->  | Q10: 89 | R10: 10089 | S10: 81 | T10: 0 | U10: =IF(Q10>0,MATCH(N10,Times!$1:$1,0)-1,"") -> 0 | V10: =OFFSET(Races!$F$1,M10,0) -> 2 | W10: 456.5 | X10: =MATCH(D10,Teams!$C:$C,0)-1 -> 1 | Y10: 101 | Z10: =MATCH(OFFSET(Teams!$C$1,X10,-1),Teams!B:B,0)-1 -> 1 | AA10: 1010089 | AB10: 4 | AC10: 0 | AD10: 5 | AE10: =IF(E10>0,AND(E10>=OFFSET(Races!$G$1,M10,0),E10<=OFFSET(Races!$H$1,M10,0)),TRUE) -> TRUE | AF10: TRUE | AG10: 10089 | AH10: 60 | AI10: 0
B11: 46 | C11: Anne Katvia | D11: Ann Richards | F11: JHG | G11: =IF(AND(AE11,Q11>0),IF(ISNA(MATCH(AA11,$AA$1:$AA10,0)),0,1),"") -> 0 | H11: =IF(U11="","",OFFSET(Times!$A$1,Q11,U11)) -> 1417 | I11: 708.5 | J11: 3 | K11: 43 | L11: 33 | M11: =MATCH(F11,Races!$C:$C,0)-1 -> 1 | N11: =OFFSET(Races!$A$1,M11,1) -> JHG | O11: =IF(Bibs,MATCH(N11,Bibs!$1:$1,0),"") ->  | P11: =IF(Bibs,MATCH(A11,OFFSET(Bibs!$A$1,1,O11-1,1500,1),0),"") ->  | Q11: 46 | R11: 10046 | S11: 43 | T11: 0 | U11: =IF(Q11>0,MATCH(N11,Times!$1:$1,0)-1,"") -> 0 | V11: =OFFSET(Races!$F$1,M11,0) -> 2 | W11: 428.5 | X11: =MATCH(D11,Teams!$C:$C,0)-1 -> 1 | Y11: 101 | Z11: =MATCH(OFFSET(Teams!$C$1,X11,-1),Teams!B:B,0)-1 -> 1 | AA11: 1010046 | AB11: 3 | AC11: 0 | AD11: 5 | AE11: =IF(E11>0,AND(E11>=OFFSET(Races!$G$1,M11,0),E11<=OFFSET(Races!$H$1,M11,0)),TRUE) -> TRUE | AF11: TRUE | AG11: 10046 | AH11: 33 | AI11: 0
B12: 24 | C12: Ariel Wilson | D12: Ann Richards | F12: JHG | G12: =IF(AND(AE12,Q12>0),IF(ISNA(MATCH(AA12,$AA$1:$AA11,0)),0,1),"") -> 0 | H12: =IF(U12="","",OFFSET(Times!$A$1,Q12,U12)) -> 1348 | I12: 654 | J12: 2 | K12: 21 | L12: 17 | M12: =MATCH(F12,Races!$C:$C,0)-1 -> 1 | N12: =OFFSET(Races!$A$1,M12,1) -> JHG | O12: =IF(Bibs,MATCH(N12,Bibs!$1:$1,0),"") ->  | P12: =IF(Bibs,MATCH(A12,OFFSET(Bibs!$A$1,1,O12-1,1500,1),0),"") ->  | Q12: 24 | R12: 10024 | S12: 21 | T12: 0 | U12: =IF(Q12>0,MATCH(N12,Times!$1:$1,0)-1,"") -> 0 | V12: =OFFSET(Races!$F$1,M12,0) -> 2 | W12: 414 | X12: =MATCH(D12,Teams!$C:$C,0)-1 -> 1 | Y12: 101 | Z12: =MATCH(OFFSET(Teams!$C$1,X12,-1),Teams!B:B,0)-1 -> 1 | AA12: 1010024 | AB12: 2 | AC12: 0 | AD12: 5 | AE12: =IF(E12>0,AND(E12>=OFFSET(Races!$G$1,M12,0),E12<=OFFSET(Races!$H$1,M12,0)),TRUE) -> TRUE | AF12: TRUE | AG12: 10024 | AH12: 17 | AI12: 0
B13: 103 | C13: Olivia Hruby | D13: Ann Richards | F13: JHG | G13: =IF(AND(AE13,Q13>0),IF(ISNA(MATCH(AA13,$AA$1:$AA12,0)),0,1),"") -> 0 | H13: =IF(U13="","",OFFSET(Times!$A$1,Q13,U13)) -> 1530 | I13: 745 | J13: 5 | K13: 93 | L13: 67 | M13: =MATCH(F13,Races!$C:$C,0)-1 -> 1 | N13: =OFFSET(Races!$A$1,M13,1) -> JHG | O13: =IF(Bibs,MATCH(N13,Bibs!$1:$1,0),"") ->  | P13: =IF(Bibs,MATCH(A13,OFFSET(Bibs!$A$1,1,O13-1,1500,1),0),"") ->  | Q13: 103 | R13: 10103 | S13: 93 | T13: 0 | U13: =IF(Q13>0,MATCH(N13,Times!$1:$1,0)-1,"") -> 0 | V13: =OFFSET(Races!$F$1,M13,0) -> 2 | W13: 465 | X13: =MATCH(D13,Teams!$C:$C,0)-1 -> 1 | Y13: 101 | Z13: =MATCH(OFFSET(Teams!$C$1,X13,-1),Teams!B:B,0)-1 -> 1 | AA13: 1010103 | AB13: 5 | AC13: 0 | AD13: 5 | AE13: =IF(E13>0,AND(E13>=OFFSET(Races!$G$1,M13,0),E13<=OFFSET(Races!$H$1,M13,0)),TRUE) -> TRUE | AF13: TRUE | AG13: 10103 | AH13: 67 | AI13: 0
B14: 18 | C14: Sophie Moore | D14: Ann Richards | F14: JHG | G14: =IF(AND(AE14,Q14>0),IF(ISNA(MATCH(AA14,$AA$1:$AA13,0)),0,1),"") -> 0 | H14: =IF(U14="","",OFFSET(Times!$A$1,Q14,U14)) -> 1339 | I14: 649.5 | J14: 1 | K14: 15 | L14: 11 | M14: =MATCH(F14,Races!$C:$C,0)-1 -> 1 | N14: =OFFSET(Races!$A$1,M14,1) -> JHG | O14: =IF(Bibs,MATCH(N14,Bibs!$1:$1,0),"") ->  | P14: =IF(Bibs,MATCH(A14,OFFSET(Bibs!$A$1,1,O14-1,1500,1),0),"") ->  | Q14: 18 | R14: 10018 | S14: 15 | T14: 0 | U14: =IF(Q14>0,MATCH(N14,Times!$1:$1,0)-1,"") -> 0 | V14: =OFFSET(Races!$F$1,M14,0) -> 2 | W14: 409.5 | X14: =MATCH(D14,Teams!$C:$C,0)-1 -> 1 | Y14: 101 | Z14: =MATCH(OFFSET(Teams!$C$1,X14,-1),Teams!B:B,0)-1 -> 1 | AA14: 1010018 | AB14: 1 | AC14: 0 | AD14: 5 | AE14: =IF(E14>0,AND(E14>=OFFSET(Races!$G$1,M14,0),E14<=OFFSET(Races!$H$1,M14,0)),TRUE) -> TRUE | AF14: TRUE | AG14: 10018 | AH14: 11 | AI14: 0
B15: 14 | C15: Blake Walker | D15: Benold Middle School | F15: JHB | G15: =IF(AND(AE15,Q15>0),IF(ISNA(MATCH(AA15,$AA$1:$AA14,0)),0,1),"") -> 0 | H15: =IF(U15="","",OFFSET(Times!$A$1,Q15,U15)) -> 1157 | I15: 558.5 | J15: 1 | K15: 14 | L15: 13 | M15: =MATCH(F15,Races!$C:$C,0)-1 -> 2 | N15: =OFFSET(Races!$A$1,M15,1) -> JHB | O15: =IF(Bibs,MATCH(N15,Bibs!$1:$1,0),"") ->  | P15: =IF(Bibs,MATCH(A15,OFFSET(Bibs!$A$1,1,O15-1,1500,1),0),"") ->  | Q15: 14 | R15: 20014 | S15: 217 | T15: 203 | U15: =IF(Q15>0,MATCH(N15,Times!$1:$1,0)-1,"") -> 2 | V15: =OFFSET(Races!$F$1,M15,0) -> 2 | W15: 358.5 | X15: =MATCH(D15,Teams!$C:$C,0)-1 -> 3 | Y15: 203 | Z15: =MATCH(OFFSET(Teams!$C$1,X15,-1),Teams!B:B,0)-1 -> 3 | AA15: 2030014 | AB15: 208 | AC15: 207 | AD15: 6 | AE15: =IF(E15>0,AND(E15>=OFFSET(Races!$G$1,M15,0),E15<=OFFSET(Races!$H$1,M15,0)),TRUE) -> TRUE | AF15: TRUE | AG15: 20014 | AH15: 129 | AI15: 116
B16: 27 | C16: Braydon Wilson | D16: Benold Middle School | F16: JHB | G16: =IF(AND(AE16,Q16>0),IF(ISNA(MATCH(AA16,$AA$1:$AA15,0)),0,1),"") -> 0 | H16: =IF(U16="","",OFFSET(Times!$A$1,Q16,U16)) -> 1218 | I16: 609 | J16: 3 | K16: 27 | L16: 24 | M16: =MATCH(F16,Races!$C:$C,0)-1 -> 2 | N16: =OFFSET(Races!$A$1,M16,1) -> JHB | O16: =IF(Bibs,MATCH(N16,Bibs!$1:$1,0),"") ->  | P16: =IF(Bibs,MATCH(A16,OFFSET(Bibs!$A$1,1,O16-1,1500,1),0),"") ->  | Q16: 27 | R16: 20027 | S16: 230 | T16: 203 | U16: =IF(Q16>0,MATCH(N16,Times!$1:$1,0)-1,"") -> 2 | V16: =OFFSET(Races!$F$1,M16,0) -> 2 | W16: 369 | X16: =MATCH(D16,Teams!$C:$C,0)-1 -> 3 | Y16: 203 | Z16: =MATCH(OFFSET(Teams!$C$1,X16,-1),Teams!B:B,0)-1 -> 3 | AA16: 2030027 | AB16: 210 | AC16: 207 | AD16: 6 | AE16: =IF(E16>0,AND(E16>=OFFSET(Races!$G$1,M16,0),E16<=OFFSET(Races!$H$1,M16,0)),TRUE) -> TRUE | AF16: TRUE | AG16: 20027 | AH16: 140 | AI16: 116
B17: 67 | C17: Dalton Kite | D17: Benold Middle School | F17: JHB | G17: =IF(AND(AE17,Q17>0),IF(ISNA(MATCH(AA17,$AA$1:$AA16,0)),0,1),"") -> 0 | H17: =IF(U17="","",OFFSET(Times!$A$1,Q17,U17)) -> 1311 | I17: 635.5 | J17: 4 | K17: 64 | L17: 57 | M17: =MATCH(F17,Races!$C:$C,0)-1 -> 2 | N17: =OFFSET(Races!$A$1,M17,1) -> JHB | O17: =IF(Bibs,MATCH(N17,Bibs!$1:$1,0),"") ->  | P17: =IF(Bibs,MATCH(A17,OFFSET(Bibs!$A$1,1,O17-1,1500,1),0),"") ->  | Q17: 67 | R17: 20067 | S17: 267 | T17: 203 | U17: =IF(Q17>0,MATCH(N17,Times!$1:$1,0)-1,"") -> 2 | V17: =OFFSET(Races!$F$1,M17,0) -> 2 | W17: 395.5 | X17: =MATCH(D17,Teams!$C:$C,0)-1 -> 3 | Y17: 203 | Z17: =MATCH(OFFSET(Teams!$C$1,X17,-1),Teams!B:B,0)-1 -> 3 | AA17: 2030067 | AB17: 211 | AC17: 207 | AD17: 6 | AE17: =IF(E17>0,AND(E17>=OFFSET(Races!$G$1,M17,0),E17<=OFFSET(Races!$H$1,M17,0)),TRUE) -> TRUE | AF17: TRUE | AG17: 20067 | AH17: 173 | AI17: 116
B18: 25 | C18: Jarrett Fontenot | D18: Benold Middle School | F18: JHB | G18: =IF(AND(AE18,Q18>0),IF(ISNA(MATCH(AA18,$AA$1:$AA17,0)),0,1),"") -> 0 | H18: =IF(U18="","",OFFSET(Times!$A$1,Q18,U18)) -> 1216 | I18: 608 | J18: 2 | K18: 25 | L18: 22 | M18: =MATCH(F18,Races!$C:$C,0)-1 -> 2 | N18: =OFFSET(Races!$A$1,M18,1) -> JHB | O18: =IF(Bibs,MATCH(N18,Bibs!$1:$1,0),"") ->  | P18: =IF(Bibs,MATCH(A18,OFFSET(Bibs!$A$1,1,O18-1,1500,1),0),"") ->  | Q18: 25 | R18: 20025 | S18: 228 | T18: 203 | U18: =IF(Q18>0,MATCH(N18,Times!$1:$1,0)-1,"") -> 2 | V18: =OFFSET(Races!$F$1,M18,0) -> 2 | W18: 368 | X18: =MATCH(D18,Teams!$C:$C,0)-1 -> 3 | Y18: 203 | Z18: =MATCH(OFFSET(Teams!$C$1,X18,-1),Teams!B:B,0)-1 -> 3 | AA18: 2030025 | AB18: 209 | AC18: 207 | AD18: 6 | AE18: =IF(E18>0,AND(E18>=OFFSET(Races!$G$1,M18,0),E18<=OFFSET(Races!$H$1,M18,0)),TRUE) -> TRUE | AF18: TRUE | AG18: 20025 | AH18: 138 | AI18: 116
B19: 77 | C19: Mason Garza | D19: Benold Middle School | F19: JHB | G19: =IF(AND(AE19,Q19>0),IF(ISNA(MATCH(AA19,$AA$1:$AA18,0)),0,1),"") -> 0 | H19: =IF(U19="","",OFFSET(Times!$A$1,Q19,U19)) -> 1319 | I19: 639.5 | J19: 5 | K19: 73 | L19: 65 | M19: =MATCH(F19,Races!$C:$C,0)-1 -> 2 | N19: =OFFSET(Races!$A$1,M19,1) -> JHB | O19: =IF(Bibs,MATCH(N19,Bibs!$1:$1,0),"") ->  | P19: =IF(Bibs,MATCH(A19,OFFSET(Bibs!$A$1,1,O19-1,1500,1),0),"") ->  | Q19: 77 | R19: 20077 | S19: 276 | T19: 203 | U19: =IF(Q19>0,MATCH(N19,Times!$1:$1,0)-1,"") -> 2 | V19: =OFFSET(Races!$F$1,M19,0) -> 2 | W19: 399.5 | X19: =MATCH(D19,Teams!$C:$C,0)-1 -> 3 | Y19: 203 | Z19: =MATCH(OFFSET(Teams!$C$1,X19,-1),Teams!B:B,0)-1 -> 3 | AA19: 2030077 | AB19: 212 | AC19: 207 | AD19: 6 | AE19: =IF(E19>0,AND(E19>=OFFSET(Races!$G$1,M19,0),E19<=OFFSET(Races!$H$1,M19,0)),TRUE) -> TRUE | AF19: TRUE | AG19: 20077 | AH19: 181 | AI19: 116
B20: 97 | C20: Nate Garza | D20: Benold Middle School | F20: JHB | G20: =IF(AND(AE20,Q20>0),IF(ISNA(MATCH(AA20,$AA$1:$AA19,0)),0,1),"") -> 0 | H20: =IF(U20="","",OFFSET(Times!$A$1,Q20,U20)) -> 1343 | I20: 651.5 | J20: 6 | K20: 93 | L20: 82 | M20: =MATCH(F20,Races!$C:$C,0)-1 -> 2 | N20: =OFFSET(Races!$A$1,M20,1) -> JHB | O20: =IF(Bibs,MATCH(N20,Bibs!$1:$1,0),"") ->  | P20: =IF(Bibs,MATCH(A20,OFFSET(Bibs!$A$1,1,O20-1,1500,1),0),"") ->  | Q20: 97 | R20: 20097 | S20: 296 | T20: 203 | U20: =IF(Q20>0,MATCH(N20,Times!$1:$1,0)-1,"") -> 2 | V20: =OFFSET(Races!$F$1,M20,0) -> 2 | W20: 411.5 | X20: =MATCH(D20,Teams!$C:$C,0)-1 -> 3 | Y20: 203 | Z20: =MATCH(OFFSET(Teams!$C$1,X20,-1),Teams!B:B,0)-1 -> 3 | AA20: 2030097 | AB20: 213 | AC20: 207 | AD20: 6 | AE20: =IF(E20>0,AND(E20>=OFFSET(Races!$G$1,M20,0),E20<=OFFSET(Races!$H$1,M20,0)),TRUE) -> TRUE | AF20: TRUE | AG20: 20097 | AH20: 198 | AI20: 116
B21: 34 | C21: Avery Hill | D21: Benold Middle School | F21: JHG | G21: =IF(AND(AE21,Q21>0),IF(ISNA(MATCH(AA21,$AA$1:$AA20,0)),0,1),"") -> 0 | H21: =IF(U21="","",OFFSET(Times!$A$1,Q21,U21)) -> 1403 | I21: 701.5 | J21: 2 | K21: 31 | L21: 26 | M21: =MATCH(F21,Races!$C:$C,0)-1 -> 1 | N21: =OFFSET(Races!$A$1,M21,1) -> JHG | O21: =IF(Bibs,MATCH(N21,Bibs!$1:$1,0),"") ->  | P21: =IF(Bibs,MATCH(A21,OFFSET(Bibs!$A$1,1,O21-1,1500,1),0),"") ->  | Q21: 34 | R21: 10034 | S21: 31 | T21: 0 | U21: =IF(Q21>0,MATCH(N21,Times!$1:$1,0)-1,"") -> 0 | V21: =OFFSET(Races!$F$1,M21,0) -> 2 | W21: 421.5 | X21: =MATCH(D21,Teams!$C:$C,0)-1 -> 3 | Y21: 103 | Z21: =MATCH(OFFSET(Teams!$C$1,X21,-1),Teams!B:B,0)-1 -> 3 | AA21: 1030034 | AB21: 11 | AC21: 9 | AD21: 6 | AE21: =IF(E21>0,AND(E21>=OFFSET(Races!$G$1,M21,0),E21<=OFFSET(Races!$H$1,M21,0)),TRUE) -> TRUE | AF21: TRUE | AG21: 10034 | AH21: 26 | AI21: 0
B22: 84 | C22: Camryn Whitman | D22: Benold Middle School | F22: JHG | G22: =IF(AND(AE22,Q22>0),IF(ISNA(MATCH(AA22,$AA$1:$AA21,0)),0,1),"") -> 0 | H22: =IF(U22="","",OFFSET(Times!$A$1,Q22,U22)) -> 1502 | I22: 731 | J22: 6 | K22: 79 | L22: 58 | M22: =MATCH(F22,Races!$C:$C,0)-1 -> 1 | N22: =OFFSET(Races!$A$1,M22,1) -> JHG | O22: =IF(Bibs,MATCH(N22,Bibs!$1:$1,0),"") ->  | P22: =IF(Bibs,MATCH(A22,OFFSET(Bibs!$A$1,1,O22-1,1500,1),0),"") ->  | Q22: 84 | R22: 10084 | S22: 79 | T22: 0 | U22: =IF(Q22>0,MATCH(N22,Times!$1:$1,0)-1,"") -> 0 | V22: =OFFSET(Races!$F$1,M22,0) -> 2 | W22: 451 | X22: =MATCH(D22,Teams!$C:$C,0)-1 -> 3 | Y22: 103 | Z22: =MATCH(OFFSET(Teams!$C$1,X22,-1),Teams!B:B,0)-1 -> 3 | AA22: 1030084 | AB22: 15 | AC22: 9 | AD22: 6 | AE22: =IF(E22>0,AND(E22>=OFFSET(Races!$G$1,M22,0),E22<=OFFSET(Races!$H$1,M22,0)),TRUE) -> TRUE | AF22: TRUE | AG22: 10084 | AH22: 58 | AI22: 0
B23: 73 | C23: Deanna Delatorre | D23: Benold Middle School | F23: JHG | G23: =IF(AND(AE23,Q23>0),IF(ISNA(MATCH(AA23,$AA$1:$AA22,0)),0,1),"") -> 0 | H23: =IF(U23="","",OFFSET(Times!$A$1,Q23,U23)) -> 1446 | I23: 723 | J23: 5 | K23: 68 | L23: 50 | M23: =MATCH(F23,Races!$C:$C,0)-1 -> 1 | N23: =OFFSET(Races!$A$1,M23,1) -> JHG | O23: =IF(Bibs,MATCH(N23,Bibs!$1:$1,0),"") ->  | P23: =IF(Bibs,MATCH(A23,OFFSET(Bibs!$A$1,1,O23-1,1500,1),0),"") ->  | Q23: 73 | R23: 10073 | S23: 68 | T23: 0 | U23: =IF(Q23>0,MATCH(N23,Times!$1:$1,0)-1,"") -> 0 | V23: =OFFSET(Races!$F$1,M23,0) -> 2 | W23: 443 | X23: =MATCH(D23,Teams!$C:$C,0)-1 -> 3 | Y23: 103 | Z23: =MATCH(OFFSET(Teams!$C$1,X23,-1),Teams!B:B,0)-1 -> 3 | AA23: 1030073 | AB23: 14 | AC23: 9 | AD23: 6 | AE23: =IF(E23>0,AND(E23>=OFFSET(Races!$G$1,M23,0),E23<=OFFSET(Races!$H$1,M23,0)),TRUE) -> TRUE | AF23: TRUE | AG23: 10073 | AH23: 50 | AI23: 0
B24: 64 | C24: Emma Helimann | D24: Benold Middle School | F24: JHG | G24: =IF(AND(AE24,Q24>0),IF(ISNA(MATCH(AA24,$AA$1:$AA23,0)),0,1),"") -> 0 | H24: =IF(U24="","",OFFSET(Times!$A$1,Q24,U24)) -> 1436 | I24: 718 | J24: 4 | K24: 60 | L24: 46 | M24: =MATCH(F24,Races!$C:$C,0)-1 -> 1 | N24: =OFFSET(Races!$A$1,M24,1) -> JHG | O24: =IF(Bibs,MATCH(N24,Bibs!$1:$1,0),"") ->  | P24: =IF(Bibs,MATCH(A24,OFFSET(Bibs!$A$1,1,O24-1,1500,1),0),"") ->  | Q24: 64 | R24: 10064 | S24: 60 | T24: 0 | U24: =IF(Q24>0,MATCH(N24,Times!$1:$1,0)-1,"") -> 0 | V24: =OFFSET(Races!$F$1,M24,0) -> 2 | W24: 438 | X24: =MATCH(D24,Teams!$C:$C,0)-1 -> 3 | Y24: 103 | Z24: =MATCH(OFFSET(Teams!$C$1,X24,-1),Teams!B:B,0)-1 -> 3 | AA24: 1030064 | AB24: 13 | AC24: 9 | AD24: 6 | AE24: =IF(E24>0,AND(E24>=OFFSET(Races!$G$1,M24,0),E24<=OFFSET(Races!$H$1,M24,0)),TRUE) -> TRUE | AF24: TRUE | AG24: 10064 | AH24: 46 | AI24: 0
B25: 19 | C25: Madeline Vega | D25: Benold Middle School | F25: JHG | G25: =IF(AND(AE25,Q25>0),IF(ISNA(MATCH(AA25,$AA$1:$AA24,0)),0,1),"") -> 0 | H25: =IF(U25="","",OFFSET(Times!$A$1,Q25,U25)) -> 1339 | I25: 649.5 | J25: 1 | K25: 16 | L25: 12 | M25: =MATCH(F25,Races!$C:$C,0)-1 -> 1 | N25: =OFFSET(Races!$A$1,M25,1) -> JHG | O25: =IF(Bibs,MATCH(N25,Bibs!$1:$1,0),"") ->  | P25: =IF(Bibs,MATCH(A25,OFFSET(Bibs!$A$1,1,O25-1,1500,1),0),"") ->  | Q25: 19 | R25: 10019 | S25: 16 | T25: 0 | U25: =IF(Q25>0,MATCH(N25,Times!$1:$1,0)-1,"") -> 0 | V25: =OFFSET(Races!$F$1,M25,0) -> 2 | W25: 409.5 | X25: =MATCH(D25,Teams!$C:$C,0)-1 -> 3 | Y25: 103 | Z25: =MATCH(OFFSET(Teams!$C$1,X25,-1),Teams!B:B,0)-1 -> 3 | AA25: 1030019 | AB25: 10 | AC25: 9 | AD25: 6 | AE25: =IF(E25>0,AND(E25>=OFFSET(Races!$G$1,M25,0),E25<=OFFSET(Races!$H$1,M25,0)),TRUE) -> TRUE | AF25: TRUE | AG25: 10019 | AH25: 12 | AI25: 0
B26: 39 | C26: Peyton Herrera | D26: Benold Middle School | F26: JHG | G26: =IF(AND(AE26,Q26>0),IF(ISNA(MATCH(AA26,$AA$1:$AA25,0)),0,1),"") -> 0 | H26: =IF(U26="","",OFFSET(Times!$A$1,Q26,U26)) -> 1409 | I26: 704.5 | J26: 3 | K26: 36 | L26: 29 | M26: =MATCH(F26,Races!$C:$C,0)-1 -> 1 | N26: =OFFSET(Races!$A$1,M26,1) -> JHG | O26: =IF(Bibs,MATCH(N26,Bibs!$1:$1,0),"") ->  | P26: =IF(Bibs,MATCH(A26,OFFSET(Bibs!$A$1,1,O26-1,1500,1),0),"") ->  | Q26: 39 | R26: 10039 | S26: 36 | T26: 0 | U26: =IF(Q26>0,MATCH(N26,Times!$1:$1,0)-1,"") -> 0 | V26: =OFFSET(Races!$F$1,M26,0) -> 2 | W26: 424.5 | X26: =MATCH(D26,Teams!$C:$C,0)-1 -> 3 | Y26: 103 | Z26: =MATCH(OFFSET(Teams!$C$1,X26,-1),Teams!B:B,0)-1 -> 3 | AA26: 1030039 | AB26: 12 | AC26: 9 | AD26: 6 | AE26: =IF(E26>0,AND(E26>=OFFSET(Races!$G$1,M26,0),E26<=OFFSET(Races!$H$1,M26,0)),TRUE) -> TRUE | AF26: TRUE | AG26: 10039 | AH26: 29 | AI26: 0
B27: 227 | C27: Caleb Riley | D27: Brentwood | F27: JHB | G27: =IF(AND(AE27,Q27>0),IF(ISNA(MATCH(AA27,$AA$1:$AA26,0)),0,1),"") -> 0 | H27: =IF(U27="","",OFFSET(Times!$A$1,Q27,U27)) -> 1751 | I27: 855.5 | J27: 7 | K27: 214 | L27: 160 | M27: =MATCH(F27,Races!$C:$C,0)-1 -> 2 | N27: =OFFSET(Races!$A$1,M27,1) -> JHB | O27: =IF(Bibs,MATCH(N27,Bibs!$1:$1,0),"") ->  | P27: =IF(Bibs,MATCH(A27,OFFSET(Bibs!$A$1,1,O27-1,1500,1),0),"") ->  | Q27: 227 | R27: 20227 | S27: 417 | T27: 203 | U27: =IF(Q27>0,MATCH(N27,Times!$1:$1,0)-1,"") -> 2 | V27: =OFFSET(Races!$F$1,M27,0) -> 2 | W27: 535.5 | X27: =MATCH(D27,Teams!$C:$C,0)-1 -> 4 | Y27: 204 | Z27: =MATCH(OFFSET(Teams!$C$1,X27,-1),Teams!B:B,0)-1 -> 4 | AA27: 2040227 | AB27: 220 | AC27: 213 | AD27: 8 | AE27: =IF(E27>0,AND(E27>=OFFSET(Races!$G$1,M27,0),E27<=OFFSET(Races!$H$1,M27,0)),TRUE) -> TRUE | AF27: TRUE | AG27: 20227 | AH27: 276 | AI27: 116
B28: 259 | C28: David Crooks | D28: Brentwood | F28: JHB | G28: =IF(AND(AE28,Q28>0),IF(ISNA(MATCH(AA28,$AA$1:$AA27,0)),0,1),"") -> 0 | H28: =IF(U28="","",OFFSET(Times!$A$1,Q28,U28)) -> 3031 | I28: 1515.5 | J28: 8 | K28: 244 | L28: X | M28: =MATCH(F28,Races!$C:$C,0)-1 -> 2 | N28: =OFFSET(Races!$A$1,M28,1) -> JHB | O28: =IF(Bibs,MATCH(N28,Bibs!$1:$1,0),"") ->  | P28: =IF(Bibs,MATCH(A28,OFFSET(Bibs!$A$1,1,O28-1,1500,1),0),"") ->  | Q28: 259 | R28: 20259 | S28: 447 | T28: 203 | U28: =IF(Q28>0,MATCH(N28,Times!$1:$1,0)-1,"") -> 2 | V28: =OFFSET(Races!$F$1,M28,0) -> 2 | W28: 915.5 | X28: =MATCH(D28,Teams!$C:$C,0)-1 -> 4 | Y28: 204 | Z28: =MATCH(OFFSET(Teams!$C$1,X28,-1),Teams!B:B,0)-1 -> 4 | AA28: 2040259 | AB28: 221 | AC28: 213 | AD28: 8 | AE28: =IF(E28>0,AND(E28>=OFFSET(Races!$G$1,M28,0),E28<=OFFSET(Races!$H$1,M28,0)),TRUE) -> TRUE | AF28: FALSE
B29: 43 | C29: Frank Guerra | D29: Brentwood | F29: JHB | G29: =IF(AND(AE29,Q29>0),IF(ISNA(MATCH(AA29,$AA$1:$AA28,0)),0,1),"") -> 0 | H29: =IF(U29="","",OFFSET(Times!$A$1,Q29,U29)) -> 1241 | I29: 620.5 | J29: 1 | K29: 43 | L29: 37 | M29: =MATCH(F29,Races!$C:$C,0)-1 -> 2 | N29: =OFFSET(Races!$A$1,M29,1) -> JHB | O29: =IF(Bibs,MATCH(N29,Bibs!$1:$1,0),"") ->  | P29: =IF(Bibs,MATCH(A29,OFFSET(Bibs!$A$1,1,O29-1,1500,1),0),"") ->  | Q29: 43 | R29: 20043 | S29: 246 | T29: 203 | U29: =IF(Q29>0,MATCH(N29,Times!$1:$1,0)-1,"") -> 2 | V29: =OFFSET(Races!$F$1,M29,0) -> 2 | W29: 380.5 | X29: =MATCH(D29,Teams!$C:$C,0)-1 -> 4 | Y29: 204 | Z29: =MATCH(OFFSET(Teams!$C$1,X29,-1),Teams!B:B,0)-1 -> 4 | AA29: 2040043 | AB29: 214 | AC29: 213 | AD29: 8 | AE29: =IF(E29>0,AND(E29>=OFFSET(Races!$G$1,M29,0),E29<=OFFSET(Races!$H$1,M29,0)),TRUE) -> TRUE | AF29: TRUE | AG29: 20043 | AH29: 153 | AI29: 116
B30: 191 | C30: Gade Young | D30: Brentwood | F30: JHB | G30: =IF(AND(AE30,Q30>0),IF(ISNA(MATCH(AA30,$AA$1:$AA29,0)),0,1),"") -> 0 | H30: =IF(U30="","",OFFSET(Times!$A$1,Q30,U30)) -> 1613 | I30: 806.5 | J30: 6 | K30: 183 | L30: 144 | M30: =MATCH(F30,Races!$C:$C,0)-1 -> 2 | N30: =OFFSET(Races!$A$1,M30,1) -> JHB | O30: =IF(Bibs,MATCH(N30,Bibs!$1:$1,0),"") ->  | P30: =IF(Bibs,MATCH(A30,OFFSET(Bibs!$A$1,1,O30-1,1500,1),0),"") ->  | Q30: 191 | R30: 20191 | S30: 386 | T30: 203 | U30: =IF(Q30>0,MATCH(N30,Times!$1:$1,0)-1,"") -> 2 | V30: =OFFSET(Races!$F$1,M30,0) -> 2 | W30: 486.5 | X30: =MATCH(D30,Teams!$C:$C,0)-1 -> 4 | Y30: 204 | Z30: =MATCH(OFFSET(Teams!$C$1,X30,-1),Teams!B:B,0)-1 -> 4 | AA30: 2040191 | AB30: 219 | AC30: 213 | AD30: 8 | AE30: =IF(E30>0,AND(E30>=OFFSET(Races!$G$1,M30,0),E30<=OFFSET(Races!$H$1,M30,0)),TRUE) -> TRUE | AF30: TRUE | AG30: 20191 | AH30: 260 | AI30: 116
B31: 134 | C31: Ismal Stanglin | D31: Brentwood | F31: JHB | G31: =IF(AND(AE31,Q31>0),IF(ISNA(MATCH(AA31,$AA$1:$AA30,0)),0,1),"") -> 0 | H31: =IF(U31="","",OFFSET(Times!$A$1,Q31,U31)) -> 1425 | I31: 712.5 | J31: 5 | K31: 130 | L31: 109 | M31: =MATCH(F31,Races!$C:$C,0)-1 -> 2 | N31: =OFFSET(Races!$A$1,M31,1) -> JHB | O31: =IF(Bibs,MATCH(N31,Bibs!$1:$1,0),"") ->  | P31: =IF(Bibs,MATCH(A31,OFFSET(Bibs!$A$1,1,O31-1,1500,1),0),"") ->  | Q31: 134 | R31: 20134 | S31: 333 | T31: 203 | U31: =IF(Q31>0,MATCH(N31,Times!$1:$1,0)-1,"") -> 2 | V31: =OFFSET(Races!$F$1,M31,0) -> 2 | W31: 432.5 | X31: =MATCH(D31,Teams!$C:$C,0)-1 -> 4 | Y31: 204 | Z31: =MATCH(OFFSET(Teams!$C$1,X31,-1),Teams!B:B,0)-1 -> 4 | AA31: 2040134 | AB31: 218 | AC31: 213 | AD31: 8 | AE31: =IF(E31>0,AND(E31>=OFFSET(Races!$G$1,M31,0),E31<=OFFSET(Races!$H$1,M31,0)),TRUE) -> TRUE | AF31: TRUE | AG31: 20134 | AH31: 225 | AI31: 116
B32: 70 | C32: Jack Leidlein | D32: Brentwood | F32: JHB | G32: =IF(AND(AE32,Q32>0),IF(ISNA(MATCH(AA32,$AA$1:$AA31,0)),0,1),"") -> 0 | H32: =IF(U32="","",OFFSET(Times!$A$1,Q32,U32)) -> 1313 | I32: 636.5 | J32: 3 | K32: 67 | L32: 60 | M32: =MATCH(F32,Races!$C:$C,0)-1 -> 2 | N32: =OFFSET(Races!$A$1,M32,1) -> JHB | O32: =IF(Bibs,MATCH(N32,Bibs!$1:$1,0),"") ->  | P32: =IF(Bibs,MATCH(A32,OFFSET(Bibs!$A$1,1,O32-1,1500,1),0),"") ->  | Q32: 70 | R32: 20070 | S32: 270 | T32: 203 | U32: =IF(Q32>0,MATCH(N32,Times!$1:$1,0)-1,"") -> 2 | V32: =OFFSET(Races!$F$1,M32,0) -> 2 | W32: 396.5 | X32: =MATCH(D32,Teams!$C:$C,0)-1 -> 4 | Y32: 204 | Z32: =MATCH(OFFSET(Teams!$C$1,X32,-1),Teams!B:B,0)-1 -> 4 | AA32: 2040070 | AB32: 216 | AC32: 213 | AD32: 8 | AE32: =IF(E32>0,AND(E32>=OFFSET(Races!$G$1,M32,0),E32<=OFFSET(Races!$H$1,M32,0)),TRUE) -> TRUE | AF32: TRUE | AG32: 20070 | AH32: 176 | AI32: 116
B33: 71 | C33: Jordan Lee | D33: Brentwood | F33: JHB | G33: =IF(AND(AE33,Q33>0),IF(ISNA(MATCH(AA33,$AA$1:$AA32,0)),0,1),"") -> 0 | H33: =IF(U33="","",OFFSET(Times!$A$1,Q33,U33)) -> 1315 | I33: 637.5 | J33: 4 | K33: 68 | L33: 61 | M33: =MATCH(F33,Races!$C:$C,0)-1 -> 2 | N33: =OFFSET(Races!$A$1,M33,1) -> JHB | O33: =IF(Bibs,MATCH(N33,Bibs!$1:$1,0),"") ->  | P33: =IF(Bibs,MATCH(A33,OFFSET(Bibs!$A$1,1,O33-1,1500,1),0),"") ->  | Q33: 71 | R33: 20071 | S33: 271 | T33: 203 | U33: =IF(Q33>0,MATCH(N33,Times!$1:$1,0)-1,"") -> 2 | V33: =OFFSET(Races!$F$1,M33,0) -> 2 | W33: 397.5 | X33: =MATCH(D33,Teams!$C:$C,0)-1 -> 4 | Y33: 204 | Z33: =MATCH(OFFSET(Teams!$C$1,X33,-1),Teams!B:B,0)-1 -> 4 | AA33: 2040071 | AB33: 217 | AC33: 213 | AD33: 8 | AE33: =IF(E33>0,AND(E33>=OFFSET(Races!$G$1,M33,0),E33<=OFFSET(Races!$H$1,M33,0)),TRUE) -> TRUE | AF33: TRUE | AG33: 20071 | AH33: 177 | AI33: 116
B34: 51 | C34: Michael Milieon-Frazier | D34: Brentwood | F34: JHB | G34: =IF(AND(AE34,Q34>0),IF(ISNA(MATCH(AA34,$AA$1:$AA33,0)),0,1),"") -> 0 | H34: =IF(U34="","",OFFSET(Times!$A$1,Q34,U34)) -> 1246 | I34: 623 | J34: 2 | K34: 49 | L34: 43 | M34: =MATCH(F34,Races!$C:$C,0)-1 -> 2 | N34: =OFFSET(Races!$A$1,M34,1) -> JHB | O34: =IF(Bibs,MATCH(N34,Bibs!$1:$1,0),"") ->  | P34: =IF(Bibs,MATCH(A34,OFFSET(Bibs!$A$1,1,O34-1,1500,1),0),"") ->  | Q34: 51 | R34: 20051 | S34: 252 | T34: 203 | U34: =IF(Q34>0,MATCH(N34,Times!$1:$1,0)-1,"") -> 2 | V34: =OFFSET(Races!$F$1,M34,0) -> 2 | W34: 383 | X34: =MATCH(D34,Teams!$C:$C,0)-1 -> 4 | Y34: 204 | Z34: =MATCH(OFFSET(Teams!$C$1,X34,-1),Teams!B:B,0)-1 -> 4 | AA34: 2040051 | AB34: 215 | AC34: 213 | AD34: 8 | AE34: =IF(E34>0,AND(E34>=OFFSET(Races!$G$1,M34,0),E34<=OFFSET(Races!$H$1,M34,0)),TRUE) -> TRUE | AF34: TRUE | AG34: 20051 | AH34: 159 | AI34: 116
B35: 156 | C35: Adric Grans | D35: Brentwood | F35: JHG | G35: =IF(AND(AE35,Q35>0),IF(ISNA(MATCH(AA35,$AA$1:$AA34,0)),0,1),"") -> 0 | H35: =IF(U35="","",OFFSET(Times!$A$1,Q35,U35)) -> 1634 | I35: 817 | J35: 5 | K35: 136 | L35: 100 | M35: =MATCH(F35,Races!$C:$C,0)-1 -> 1 | N35: =OFFSET(Races!$A$1,M35,1) -> JHG | O35: =IF(Bibs,MATCH(N35,Bibs!$1:$1,0),"") ->  | P35: =IF(Bibs,MATCH(A35,OFFSET(Bibs!$A$1,1,O35-1,1500,1),0),"") ->  | Q35: 156 | R35: 10156 | S35: 136 | T35: 0 | U35: =IF(Q35>0,MATCH(N35,Times!$1:$1,0)-1,"") -> 0 | V35: =OFFSET(Races!$F$1,M35,0) -> 2 | W35: 497 | X35: =MATCH(D35,Teams!$C:$C,0)-1 -> 4 | Y35: 104 | Z35: =MATCH(OFFSET(Teams!$C$1,X35,-1),Teams!B:B,0)-1 -> 4 | AA35: 1040156 | AB35: 20 | AC35: 15 | AD35: 7 | AE35: =IF(E35>0,AND(E35>=OFFSET(Races!$G$1,M35,0),E35<=OFFSET(Races!$H$1,M35,0)),TRUE) -> TRUE | AF35: TRUE | AG35: 10156 | AH35: 100 | AI35: 0
B36: 212 | C36: Ali Gutierrez | D36: Brentwood | F36: JHG | G36: =IF(AND(AE36,Q36>0),IF(ISNA(MATCH(AA36,$AA$1:$AA35,0)),0,1),"") -> 0 | H36: =IF(U36="","",OFFSET(Times!$A$1,Q36,U36)) -> 1923 | I36: 941.5 | J36: 7 | K36: 189 | L36: 114 | M36: =MATCH(F36,Races!$C:$C,0)-1 -> 1 | N36: =OFFSET(Races!$A$1,M36,1) -> JHG | O36: =IF(Bibs,MATCH(N36,Bibs!$1:$1,0),"") ->  | P36: =IF(Bibs,MATCH(A36,OFFSET(Bibs!$A$1,1,O36-1,1500,1),0),"") ->  | Q36: 212 | R36: 10212 | S36: 189 | T36: 0 | U36: =IF(Q36>0,MATCH(N36,Times!$1:$1,0)-1,"") -> 0 | V36: =OFFSET(Races!$F$1,M36,0) -> 2 | W36: 581.5 | X36: =MATCH(D36,Teams!$C:$C,0)-1 -> 4 | Y36: 104 | Z36: =MATCH(OFFSET(Teams!$C$1,X36,-1),Teams!B:B,0)-1 -> 4 | AA36: 1040212 | AB36: 22 | AC36: 15 | AD36: 7 | AE36: =IF(E36>0,AND(E36>=OFFSET(Races!$G$1,M36,0),E36<=OFFSET(Races!$H$1,M36,0)),TRUE) -> TRUE | AF36: TRUE | AG36: 10212 | AH36: 114 | AI36: 0
B37: 149 | C37: Alyssa McClain | D37: Brentwood | F37: JHG | G37: =IF(AND(AE37,Q37>0),IF(ISNA(MATCH(AA37,$AA$1:$AA36,0)),0,1),"") -> 0 | H37: =IF(U37="","",OFFSET(Times!$A$1,Q37,U37)) -> 1628 | I37: 814 | J37: 4 | K37: 131 | L37: 98 | M37: =MATCH(F37,Races!$C:$C,0)-1 -> 1 | N37: =OFFSET(Races!$A$1,M37,1) -> JHG | O37: =IF(Bibs,MATCH(N37,Bibs!$1:$1,0),"") ->  | P37: =IF(Bibs,MATCH(A37,OFFSET(Bibs!$A$1,1,O37-1,1500,1),0),"") ->  | Q37: 149 | R37: 10149 | S37: 131 | T37: 0 | U37: =IF(Q37>0,MATCH(N37,Times!$1:$1,0)-1,"") -> 0 | V37: =OFFSET(Races!$F$1,M37,0) -> 2 | W37: 494 | X37: =MATCH(D37,Teams!$C:$C,0)-1 -> 4 | Y37: 104 | Z37: =MATCH(OFFSET(Teams!$C$1,X37,-1),Teams!B:B,0)-1 -> 4 | AA37: 1040149 | AB37: 19 | AC37: 15 | AD37: 7 | AE37: =IF(E37>0,AND(E37>=OFFSET(Races!$G$1,M37,0),E37<=OFFSET(Races!$H$1,M37,0)),TRUE) -> TRUE | AF37: TRUE | AG37: 10149 | AH37: 98 | AI37: 0
B38: 196 | C38: Celeste Metayer | D38: Brentwood | F38: JHG | G38: =IF(AND(AE38,Q38>0),IF(ISNA(MATCH(AA38,$AA$1:$AA37,0)),0,1),"") -> 0 | H38: =IF(U38="","",OFFSET(Times!$A$1,Q38,U38)) -> 1819 | I38: 909.5 | J38: 6 | K38: 174 | L38: 109 | M38: =MATCH(F38,Races!$C:$C,0)-1 -> 1 | N38: =OFFSET(Races!$A$1,M38,1) -> JHG | O38: =IF(Bibs,MATCH(N38,Bibs!$1:$1,0),"") ->  | P38: =IF(Bibs,MATCH(A38,OFFSET(Bibs!$A$1,1,O38-1,1500,1),0),"") ->  | Q38: 196 | R38: 10196 | S38: 174 | T38: 0 | U38: =IF(Q38>0,MATCH(N38,Times!$1:$1,0)-1,"") -> 0 | V38: =OFFSET(Races!$F$1,M38,0) -> 2 | W38: 549.5 | X38: =MATCH(D38,Teams!$C:$C,0)-1 -> 4 | Y38: 104 | Z38: =MATCH(OFFSET(Teams!$C$1,X38,-1),Teams!B:B,0)-1 -> 4 | AA38: 1040196 | AB38: 21 | AC38: 15 | AD38: 7 | AE38: =IF(E38>0,AND(E38>=OFFSET(Races!$G$1,M38,0),E38<=OFFSET(Races!$H$1,M38,0)),TRUE) -> TRUE | AF38: TRUE | AG38: 10196 | AH38: 109 | AI38: 0
B39: 51 | C39: Grace Drew | D39: Brentwood | F39: JHG | G39: =IF(AND(AE39,Q39>0),IF(ISNA(MATCH(AA39,$AA$1:$AA38,0)),0,1),"") -> 0 | H39: =IF(U39="","",OFFSET(Times!$A$1,Q39,U39)) -> 1420 | I39: 710 | J39: 2 | K39: 47 | L39: 35 | M39: =MATCH(F39,Races!$C:$C,0)-1 -> 1 | N39: =OFFSET(Races!$A$1,M39,1) -> JHG | O39: =IF(Bibs,MATCH(N39,Bibs!$1:$1,0),"") ->  | P39: =IF(Bibs,MATCH(A39,OFFSET(Bibs!$A$1,1,O39-1,1500,1),0),"") ->  | Q39: 51 | R39: 10051 | S39: 47 | T39: 0 | U39: =IF(Q39>0,MATCH(N39,Times!$1:$1,0)-1,"") -> 0 | V39: =OFFSET(Races!$F$1,M39,0) -> 2 | W39: 430 | X39: =MATCH(D39,Teams!$C:$C,0)-1 -> 4 | Y39: 104 | Z39: =MATCH(OFFSET(Teams!$C$1,X39,-1),Teams!B:B,0)-1 -> 4 | AA39: 1040051 | AB39: 17 | AC39: 15 | AD39: 7 | AE39: =IF(E39>0,AND(E39>=OFFSET(Races!$G$1,M39,0),E39<=OFFSET(Races!$H$1,M39,0)),TRUE) -> TRUE | AF39: TRUE | AG39: 10051 | AH39: 35 | AI39: 0
B40: 125 | C40: Julia Glenn | D40: Brentwood | F40: JHG | G40: =IF(AND(AE40,Q40>0),IF(ISNA(MATCH(AA40,$AA$1:$AA39,0)),0,1),"") -> 0 | H40: =IF(U40="","",OFFSET(Times!$A$1,Q40,U40)) -> 1551 | I40: 755.5 | J40: 3 | K40: 113 | L40: 84 | M40: =MATCH(F40,Races!$C:$C,0)-1 -> 1 | N40: =OFFSET(Races!$A$1,M40,1) -> JHG | O40: =IF(Bibs,MATCH(N40,Bibs!$1:$1,0),"") ->  | P40: =IF(Bibs,MATCH(A40,OFFSET(Bibs!$A$1,1,O40-1,1500,1),0),"") ->  | Q40: 125 | R40: 10125 | S40: 113 | T40: 0 | U40: =IF(Q40>0,MATCH(N40,Times!$1:$1,0)-1,"") -> 0 | V40: =OFFSET(Races!$F$1,M40,0) -> 2 | W40: 475.5 | X40: =MATCH(D40,Teams!$C:$C,0)-1 -> 4 | Y40: 104 | Z40: =MATCH(OFFSET(Teams!$C$1,X40,-1),Teams!B:B,0)-1 -> 4 | AA40: 1040125 | AB40: 18 | AC40: 15 | AD40: 7 | AE40: =IF(E40>0,AND(E40>=OFFSET(Races!$G$1,M40,0),E40<=OFFSET(Races!$H$1,M40,0)),TRUE) -> TRUE | AF40: TRUE | AG40: 10125 | AH40: 84 | AI40: 0
B41: 9 | C41: Kane Rzepneiwli | D41: Brentwood | F41: JHG | G41: =IF(AND(AE41,Q41>0),IF(ISNA(MATCH(AA41,$AA$1:$AA40,0)),0,1),"") -> 0 | H41: =IF(U41="","",OFFSET(Times!$A$1,Q41,U41)) -> 1302 | I41: 631 | J41: 1 | K41: 7 | L41: 5 | M41: =MATCH(F41,Races!$C:$C,0)-1 -> 1 | N41: =OFFSET(Races!$A$1,M41,1) -> JHG | O41: =IF(Bibs,MATCH(N41,Bibs!$1:$1,0),"") ->  | P41: =IF(Bibs,MATCH(A41,OFFSET(Bibs!$A$1,1,O41-1,1500,1),0),"") ->  | Q41: 9 | R41: 10009 | S41: 7 | T41: 0 | U41: =IF(Q41>0,MATCH(N41,Times!$1:$1,0)-1,"") -> 0 | V41: =OFFSET(Races!$F$1,M41,0) -> 2 | W41: 391 | X41: =MATCH(D41,Teams!$C:$C,0)-1 -> 4 | Y41: 104 | Z41: =MATCH(OFFSET(Teams!$C$1,X41,-1),Teams!B:B,0)-1 -> 4 | AA41: 1040009 | AB41: 16 | AC41: 15 | AD41: 7 | AE41: =IF(E41>0,AND(E41>=OFFSET(Races!$G$1,M41,0),E41<=OFFSET(Races!$H$1,M41,0)),TRUE) -> TRUE | AF41: TRUE | AG41: 10009 | AH41: 5 | AI41: 0
B42: 57 | C42: Bryce Limbacher | D42: Canyon Vista | F42: JHB | G42: =IF(AND(AE42,Q42>0),IF(ISNA(MATCH(AA42,$AA$1:$AA41,0)),0,1),"") -> 0 | H42: =IF(U42="","",OFFSET(Times!$A$1,Q42,U42)) -> 1255 | I42: 627.5 | J42: 3 | K42: 55 | L42: 49 | M42: =MATCH(F42,Races!$C:$C,0)-1 -> 2 | N42: =OFFSET(Races!$A$1,M42,1) -> JHB | O42: =IF(Bibs,MATCH(N42,Bibs!$1:$1,0),"") ->  | P42: =IF(Bibs,MATCH(A42,OFFSET(Bibs!$A$1,1,O42-1,1500,1),0),"") ->  | Q42: 57 | R42: 20057 | S42: 258 | T42: 203 | U42: =IF(Q42>0,MATCH(N42,Times!$1:$1,0)-1,"") -> 2 | V42: =OFFSET(Races!$F$1,M42,0) -> 2 | W42: 387.5 | X42: =MATCH(D42,Teams!$C:$C,0)-1 -> 5 | Y42: 205 | Z42: =MATCH(OFFSET(Teams!$C$1,X42,-1),Teams!B:B,0)-1 -> 5 | AA42: 2050057 | AB42: 224 | AC42: 221 | AD42: 6 | AE42: =IF(E42>0,AND(E42>=OFFSET(Races!$G$1,M42,0),E42<=OFFSET(Races!$H$1,M42,0)),TRUE) -> TRUE | AF42: TRUE | AG42: 20057 | AH42: 165 | AI42: 116
B43: 85 | C43: Jeffrey You | D43: Canyon Vista | F43: JHB | G43: =IF(AND(AE43,Q43>0),IF(ISNA(MATCH(AA43,$AA$1:$AA42,0)),0,1),"") -> 0 | H43: =IF(U43="","",OFFSET(Times!$A$1,Q43,U43)) -> 1325 | I43: 642.5 | J43: 4 | K43: 81 | L43: 70 | M43: =MATCH(F43,Races!$C:$C,0)-1 -> 2 | N43: =OFFSET(Races!$A$1,M43,1) -> JHB | O43: =IF(Bibs,MATCH(N43,Bibs!$1:$1,0),"") ->  | P43: =IF(Bibs,MATCH(A43,OFFSET(Bibs!$A$1,1,O43-1,1500,1),0),"") ->  | Q43: 85 | R43: 20085 | S43: 284 | T43: 203 | U43: =IF(Q43>0,MATCH(N43,Times!$1:$1,0)-1,"") -> 2 | V43: =OFFSET(Races!$F$1,M43,0) -> 2 | W43: 402.5 | X43: =MATCH(D43,Teams!$C:$C,0)-1 -> 5 | Y43: 205 | Z43: =MATCH(OFFSET(Teams!$C$1,X43,-1),Teams!B:B,0)-1 -> 5 | AA43: 2050085 | AB43: 225 | AC43: 221 | AD43: 6 | AE43: =IF(E43>0,AND(E43>=OFFSET(Races!$G$1,M43,0),E43<=OFFSET(Races!$H$1,M43,0)),TRUE) -> TRUE | AF43: TRUE | AG43: 20085 | AH43: 186 | AI43: 116
B44: 156 | C44: Matt Kriz | D44: Canyon Vista | F44: JHB | G44: =IF(AND(AE44,Q44>0),IF(ISNA(MATCH(AA44,$AA$1:$AA43,0)),0,1),"") -> 0 | H44: =IF(U44="","",OFFSET(Times!$A$1,Q44,U44)) -> 1504 | I44: 732 | J44: 6 | K44: 151 | L44: 125 | M44: =MATCH(F44,Races!$C:$C,0)-1 -> 2 | N44: =OFFSET(Races!$A$1,M44,1) -> JHB | O44: =IF(Bibs,MATCH(N44,Bibs!$1:$1,0),"") ->  | P44: =IF(Bibs,MATCH(A44,OFFSET(Bibs!$A$1,1,O44-1,1500,1),0),"") ->  | Q44: 156 | R44: 20156 | S44: 354 | T44: 203 | U44: =IF(Q44>0,MATCH(N44,Times!$1:$1,0)-1,"") -> 2 | V44: =OFFSET(Races!$F$1,M44,0) -> 2 | W44: 452 | X44: =MATCH(D44,Teams!$C:$C,0)-1 -> 5 | Y44: 205 | Z44: =MATCH(OFFSET(Teams!$C$1,X44,-1),Teams!B:B,0)-1 -> 5 | AA44: 2050156 | AB44: 227 | AC44: 221 | AD44: 6 | AE44: =IF(E44>0,AND(E44>=OFFSET(Races!$G$1,M44,0),E44<=OFFSET(Races!$H$1,M44,0)),TRUE) -> TRUE | AF44: TRUE | AG44: 20156 | AH44: 241 | AI44: 116
B45: 46 | C45: Owen Ferriola | D45: Canyon Vista | F45: JHB | G45: =IF(AND(AE45,Q45>0),IF(ISNA(MATCH(AA45,$AA$1:$AA44,0)),0,1),"") -> 0 | H45: =IF(U45="","",OFFSET(Times!$A$1,Q45,U45)) -> 1242 | I45: 621 | J45: 2 | K45: 45 | L45: 39 | M45: =MATCH(F45,Races!$C:$C,0)-1 -> 2 | N45: =OFFSET(Races!$A$1,M45,1) -> JHB | O45: =IF(Bibs,MATCH(N45,Bibs!$1:$1,0),"") ->  | P45: =IF(Bibs,MATCH(A45,OFFSET(Bibs!$A$1,1,O45-1,1500,1),0),"") ->  | Q45: 46 | R45: 20046 | S45: 248 | T45: 203 | U45: =IF(Q45>0,MATCH(N45,Times!$1:$1,0)-1,"") -> 2 | V45: =OFFSET(Races!$F$1,M45,0) -> 2 | W45: 381 | X45: =MATCH(D45,Teams!$C:$C,0)-1 -> 5 | Y45: 205 | Z45: =MATCH(OFFSET(Teams!$C$1,X45,-1),Teams!B:B,0)-1 -> 5 | AA45: 2050046 | AB45: 223 | AC45: 221 | AD45: 6 | AE45: =IF(E45>0,AND(E45>=OFFSET(Races!$G$1,M45,0),E45<=OFFSET(Races!$H$1,M45,0)),TRUE) -> TRUE | AF45: TRUE | AG45: 20046 | AH45: 155 | AI45: 116
B46: 137 | C46: Orion Tian | D46: Canyon Vista | F46: JHB | G46: =IF(AND(AE46,Q46>0),IF(ISNA(MATCH(AA46,$AA$1:$AA45,0)),0,1),"") -> 0 | H46: =IF(U46="","",OFFSET(Times!$A$1,Q46,U46)) -> 1428 | I46: 714 | J46: 5 | K46: 133 | L46: 111 | M46: =MATCH(F46,Races!$C:$C,0)-1 -> 2 | N46: =OFFSET(Races!$A$1,M46,1) -> JHB | O46: =IF(Bibs,MATCH(N46,Bibs!$1:$1,0),"") ->  | P46: =IF(Bibs,MATCH(A46,OFFSET(Bibs!$A$1,1,O46-1,1500,1),0),"") ->  | Q46: 137 | R46: 20137 | S46: 336 | T46: 203 | U46: =IF(Q46>0,MATCH(N46,Times!$1:$1,0)-1,"") -> 2 | V46: =OFFSET(Races!$F$1,M46,0) -> 2 | W46: 434 | X46: =MATCH(D46,Teams!$C:$C,0)-1 -> 5 | Y46: 205 | Z46: =MATCH(OFFSET(Teams!$C$1,X46,-1),Teams!B:B,0)-1 -> 5 | AA46: 2050137 | AB46: 226 | AC46: 221 | AD46: 6 | AE46: =IF(E46>0,AND(E46>=OFFSET(Races!$G$1,M46,0),E46<=OFFSET(Races!$H$1,M46,0)),TRUE) -> TRUE | AF46: TRUE | AG46: 20137 | AH46: 227 | AI46: 116
B47: 45 | C47: Owen Reynolds | D47: Canyon Vista | F47: JHB | G47: =IF(AND(AE47,Q47>0),IF(ISNA(MATCH(AA47,$AA$1:$AA46,0)),0,1),"") -> 0 | H47: =IF(U47="","",OFFSET(Times!$A$1,Q47,U47)) -> 1241 | I47: 620.5 | J47: 1 | K47: 44 | L47: 38 | M47: =MATCH(F47,Races!$C:$C,0)-1 -> 2 | N47: =OFFSET(Races!$A$1,M47,1) -> JHB | O47: =IF(Bibs,MATCH(N47,Bibs!$1:$1,0),"") ->  | P47: =IF(Bibs,MATCH(A47,OFFSET(Bibs!$A$1,1,O47-1,1500,1),0),"") ->  | Q47: 45 | R47: 20045 | S47: 247 | T47: 203 | U47: =IF(Q47>0,MATCH(N47,Times!$1:$1,0)-1,"") -> 2 | V47: =OFFSET(Races!$F$1,M47,0) -> 2 | W47: 380.5 | X47: =MATCH(D47,Teams!$C:$C,0)-1 -> 5 | Y47: 205 | Z47: =MATCH(OFFSET(Teams!$C$1,X47,-1),Teams!B:B,0)-1 -> 5 | AA47: 2050045 | AB47: 222 | AC47: 221 | AD47: 6 | AE47: =IF(E47>0,AND(E47>=OFFSET(Races!$G$1,M47,0),E47<=OFFSET(Races!$H$1,M47,0)),TRUE) -> TRUE | AF47: TRUE | AG47: 20045 | AH47: 154 | AI47: 116
B48: 55 | C48: KK Jenkins | D48: Canyon Vista | F48: JHG | G48: =IF(AND(AE48,Q48>0),IF(ISNA(MATCH(AA48,$AA$1:$AA47,0)),0,1),"") -> 0 | H48: =IF(U48="","",OFFSET(Times!$A$1,Q48,U48)) -> 1426 | I48: 713 | J48: 1 | K48: 51 | L48: X | M48: =MATCH(F48,Races!$C:$C,0)-1 -> 1 | N48: =OFFSET(Races!$A$1,M48,1) -> JHG | O48: =IF(Bibs,MATCH(N48,Bibs!$1:$1,0),"") ->  | P48: =IF(Bibs,MATCH(A48,OFFSET(Bibs!$A$1,1,O48-1,1500,1),0),"") ->  | Q48: 55 | R48: 10055 | S48: 51 | T48: 0 | U48: =IF(Q48>0,MATCH(N48,Times!$1:$1,0)-1,"") -> 0 | V48: =OFFSET(Races!$F$1,M48,0) -> 2 | W48: 433 | X48: =MATCH(D48,Teams!$C:$C,0)-1 -> 5 | Y48: 105 | Z48: =MATCH(OFFSET(Teams!$C$1,X48,-1),Teams!B:B,0)-1 -> 5 | AA48: 1050055 | AB48: 23 | AC48: 22 | AD48: 3 | AE48: =IF(E48>0,AND(E48>=OFFSET(Races!$G$1,M48,0),E48<=OFFSET(Races!$H$1,M48,0)),TRUE) -> TRUE | AF48: FALSE
B49: 100 | C49: Lauren Tyndall | D49: Canyon Vista | F49: JHG | G49: =IF(AND(AE49,Q49>0),IF(ISNA(MATCH(AA49,$AA$1:$AA48,0)),0,1),"") -> 0 | H49: =IF(U49="","",OFFSET(Times!$A$1,Q49,U49)) -> 1523 | I49: 741.5 | J49: 3 | K49: 90 | L49: X | M49: =MATCH(F49,Races!$C:$C,0)-1 -> 1 | N49: =OFFSET(Races!$A$1,M49,1) -> JHG | O49: =IF(Bibs,MATCH(N49,Bibs!$1:$1,0),"") ->  | P49: =IF(Bibs,MATCH(A49,OFFSET(Bibs!$A$1,1,O49-1,1500,1),0),"") ->  | Q49: 100 | R49: 10100 | S49: 90 | T49: 0 | U49: =IF(Q49>0,MATCH(N49,Times!$1:$1,0)-1,"") -> 0 | V49: =OFFSET(Races!$F$1,M49,0) -> 2 | W49: 461.5 | X49: =MATCH(D49,Teams!$C:$C,0)-1 -> 5 | Y49: 105 | Z49: =MATCH(OFFSET(Teams!$C$1,X49,-1),Teams!B:B,0)-1 -> 5 | AA49: 1050100 | AB49: 25 | AC49: 22 | AD49: 3 | AE49: =IF(E49>0,AND(E49>=OFFSET(Races!$G$1,M49,0),E49<=OFFSET(Races!$H$1,M49,0)),TRUE) -> TRUE | AF49: FALSE
B50: 99 | C50: Maddie Shrull | D50: Canyon Vista | F50: JHG | G50: =IF(AND(AE50,Q50>0),IF(ISNA(MATCH(AA50,$AA$1:$AA49,0)),0,1),"") -> 0 | H50: =IF(U50="","",OFFSET(Times!$A$1,Q50,U50)) -> 1522 | I50: 741 | J50: 2 | K50: 89 | L50: X | M50: =MATCH(F50,Races!$C:$C,0)-1 -> 1 | N50: =OFFSET(Races!$A$1,M50,1) -> JHG | O50: =IF(Bibs,MATCH(N50,Bibs!$1:$1,0),"") ->  | P50: =IF(Bibs,MATCH(A50,OFFSET(Bibs!$A$1,1,O50-1,1500,1),0),"") ->  | Q50: 99 | R50: 10099 | S50: 89 | T50: 0 | U50: =IF(Q50>0,MATCH(N50,Times!$1:$1,0)-1,"") -> 0 | V50: =OFFSET(Races!$F$1,M50,0) -> 2 | W50: 461 | X50: =MATCH(D50,Teams!$C:$C,0)-1 -> 5 | Y50: 105 | Z50: =MATCH(OFFSET(Teams!$C$1,X50,-1),Teams!B:B,0)-1 -> 5 | AA50: 1050099 | AB50: 24 | AC50: 22 | AD50: 3 | AE50: =IF(E50>0,AND(E50>=OFFSET(Races!$G$1,M50,0),E50<=OFFSET(Races!$H$1,M50,0)),TRUE) -> TRUE | AF50: FALSE
B51: 230 | C51: Christian P | D51: Cedar Valley | F51: JHB | G51: =IF(AND(AE51,Q51>0),IF(ISNA(MATCH(AA51,$AA$1:$AA50,0)),0,1),"") -> 0 | H51: =IF(U51="","",OFFSET(Times!$A$1,Q51,U51)) -> 1827 | I51: 913.5 | J51: 12 | K51: 217 | L51: X | M51: =MATCH(F51,Races!$C:$C,0)-1 -> 2 | N51: =OFFSET(Races!$A$1,M51,1) -> JHB | O51: =IF(Bibs,MATCH(N51,Bibs!$1:$1,0),"") ->  | P51: =IF(Bibs,MATCH(A51,OFFSET(Bibs!$A$1,1,O51-1,1500,1),0),"") ->  | Q51: 230 | R51: 20230 | S51: 420 | T51: 203 | U51: =IF(Q51>0,MATCH(N51,Times!$1:$1,0)-1,"") -> 2 | V51: =OFFSET(Races!$F$1,M51,0) -> 2 | W51: 553.5 | X51: =MATCH(D51,Teams!$C:$C,0)-1 -> 9 | Y51: 209 | Z51: =MATCH(OFFSET(Teams!$C$1,X51,-1),Teams!B:B,0)-1 -> 9 | AA51: 2090230 | AB51: 253 | AC51: 241 | AD51: 12 | AE51: =IF(E51>0,AND(E51>=OFFSET(Races!$G$1,M51,0),E51<=OFFSET(Races!$H$1,M51,0)),TRUE) -> TRUE | AF51: FALSE
B52: 218 | C52: Cuscude D | D52: Cedar Valley | F52: JHB | G52: =IF(AND(AE52,Q52>0),IF(ISNA(MATCH(AA52,$AA$1:$AA51,0)),0,1),"") -> 0 | H52: =IF(U52="","",OFFSET(Times!$A$1,Q52,U52)) -> 1710 | I52: 835 | J52: 10 | K52: 205 | L52: X | M52: =MATCH(F52,Races!$C:$C,0)-1 -> 2 | N52: =OFFSET(Races!$A$1,M52,1) -> JHB | O52: =IF(Bibs,MATCH(N52,Bibs!$1:$1,0),"") ->  | P52: =IF(Bibs,MATCH(A52,OFFSET(Bibs!$A$1,1,O52-1,1500,1),0),"") ->  | Q52: 218 | R52: 20218 | S52: 408 | T52: 203 | U52: =IF(Q52>0,MATCH(N52,Times!$1:$1,0)-1,"") -> 2 | V52: =OFFSET(Races!$F$1,M52,0) -> 2 | W52: 515 | X52: =MATCH(D52,Teams!$C:$C,0)-1 -> 9 | Y52: 209 | Z52: =MATCH(OFFSET(Teams!$C$1,X52,-1),Teams!B:B,0)-1 -> 9 | AA52: 2090218 | AB52: 251 | AC52: 241 | AD52: 12 | AE52: =IF(E52>0,AND(E52>=OFFSET(Races!$G$1,M52,0),E52<=OFFSET(Races!$H$1,M52,0)),TRUE) -> TRUE | AF52: FALSE
B53: 166 | C53: Greg Z. | D53: Cedar Valley | F53: JHB | G53: =IF(AND(AE53,Q53>0),IF(ISNA(MATCH(AA53,$AA$1:$AA52,0)),0,1),"") -> 0 | H53: =IF(U53="","",OFFSET(Times!$A$1,Q53,U53)) -> 1525 | I53: 742.5 | J53: 5 | K53: 161 | L53: 131 | M53: =MATCH(F53,Races!$C:$C,0)-1 -> 2 | N53: =OFFSET(Races!$A$1,M53,1) -> JHB | O53: =IF(Bibs,MATCH(N53,Bibs!$1:$1,0),"") ->  | P53: =IF(Bibs,MATCH(A53,OFFSET(Bibs!$A$1,1,O53-1,1500,1),0),"") ->  | Q53: 166 | R53: 20166 | S53: 364 | T53: 203 | U53: =IF(Q53>0,MATCH(N53,Times!$1:$1,0)-1,"") -> 2 | V53: =OFFSET(Races!$F$1,M53,0) -> 2 | W53: 462.5 | X53: =MATCH(D53,Teams!$C:$C,0)-1 -> 9 | Y53: 209 | Z53: =MATCH(OFFSET(Teams!$C$1,X53,-1),Teams!B:B,0)-1 -> 9 | AA53: 2090166 | AB53: 246 | AC53: 241 | AD53: 12 | AE53: =IF(E53>0,AND(E53>=OFFSET(Races!$G$1,M53,0),E53<=OFFSET(Races!$H$1,M53,0)),TRUE) -> TRUE | AF53: TRUE | AG53: 20166 | AH53: 247 | AI53: 116
B54: 182 | C54: Jacob Cook | D54: Cedar Valley | F54: JHB | G54: =IF(AND(AE54,Q54>0),IF(ISNA(MATCH(AA54,$AA$1:$AA53,0)),0,1),"") -> 0 | H54: =IF(U54="","",OFFSET(Times!$A$1,Q54,U54)) -> 1557 | I54: 758.5 | J54: 6 | K54: 175 | L54: 139 | M54: =MATCH(F54,Races!$C:$C,0)-1 -> 2 | N54: =OFFSET(Races!$A$1,M54,1) -> JHB | O54: =IF(Bibs,MATCH(N54,Bibs!$1:$1,0),"") ->  | P54: =IF(Bibs,MATCH(A54,OFFSET(Bibs!$A$1,1,O54-1,1500,1),0),"") ->  | Q54: 182 | R54: 20182 | S54: 378 | T54: 203 | U54: =IF(Q54>0,MATCH(N54,Times!$1:$1,0)-1,"") -> 2 | V54: =OFFSET(Races!$F$1,M54,0) -> 2 | W54: 478.5 | X54: =MATCH(D54,Teams!$C:$C,0)-1 -> 9 | Y54: 209 | Z54: =MATCH(OFFSET(Teams!$C$1,X54,-1),Teams!B:B,0)-1 -> 9 | AA54: 2090182 | AB54: 247 | AC54: 241 | AD54: 12 | AE54: =IF(E54>0,AND(E54>=OFFSET(Races!$G$1,M54,0),E54<=OFFSET(Races!$H$1,M54,0)),TRUE) -> TRUE | AF54: TRUE | AG54: 20182 | AH54: 255 | AI54: 116
B55: 96 | C55: Joseph Bjarnason | D55: Cedar Valley | F55: JHB | G55: =IF(AND(AE55,Q55>0),IF(ISNA(MATCH(AA55,$AA$1:$AA54,0)),0,1),"") -> 0 | H55: =IF(U55="","",OFFSET(Times!$A$1,Q55,U55)) -> 1342 | I55: 651 | J55: 2 | K55: 92 | L55: 81 | M55: =MATCH(F55,Races!$C:$C,0)-1 -> 2 | N55: =OFFSET(Races!$A$1,M55,1) -> JHB | O55: =IF(Bibs,MATCH(N55,Bibs!$1:$1,0),"") ->  | P55: =IF(Bibs,MATCH(A55,OFFSET(Bibs!$A$1,1,O55-1,1500,1),0),"") ->  | Q55: 96 | R55: 20096 | S55: 295 | T55: 203 | U55: =IF(Q55>0,MATCH(N55,Times!$1:$1,0)-1,"") -> 2 | V55: =OFFSET(Races!$F$1,M55,0) -> 2 | W55: 411 | X55: =MATCH(D55,Teams!$C:$C,0)-1 -> 9 | Y55: 209 | Z55: =MATCH(OFFSET(Teams!$C$1,X55,-1),Teams!B:B,0)-1 -> 9 | AA55: 2090096 | AB55: 243 | AC55: 241 | AD55: 12 | AE55: =IF(E55>0,AND(E55>=OFFSET(Races!$G$1,M55,0),E55<=OFFSET(Races!$H$1,M55,0)),TRUE) -> TRUE | AF55: TRUE | AG55: 20096 | AH55: 197 | AI55: 116
B56: 204 | C56: Jake Jaworski | D56: Cedar Valley | F56: JHB | G56: =IF(AND(AE56,Q56>0),IF(ISNA(MATCH(AA56,$AA$1:$AA55,0)),0,1),"") -> 0 | H56: =IF(U56="","",OFFSET(Times!$A$1,Q56,U56)) -> 1641 | I56: 820.5 | J56: 7 | K56: 193 | L56: 151 | M56: =MATCH(F56,Races!$C:$C,0)-1 -> 2 | N56: =OFFSET(Races!$A$1,M56,1) -> JHB | O56: =IF(Bibs,MATCH(N56,Bibs!$1:$1,0),"") ->  | P56: =IF(Bibs,MATCH(A56,OFFSET(Bibs!$A$1,1,O56-1,1500,1),0),"") ->  | Q56: 204 | R56: 20204 | S56: 396 | T56: 203 | U56: =IF(Q56>0,MATCH(N56,Times!$1:$1,0)-1,"") -> 2 | V56: =OFFSET(Races!$F$1,M56,0) -> 2 | W56: 500.5 | X56: =MATCH(D56,Teams!$C:$C,0)-1 -> 9 | Y56: 209 | Z56: =MATCH(OFFSET(Teams!$C$1,X56,-1),Teams!B:B,0)-1 -> 9 | AA56: 2090204 | AB56: 248 | AC56: 241 | AD56: 12 | AE56: =IF(E56>0,AND(E56>=OFFSET(Races!$G$1,M56,0),E56<=OFFSET(Races!$H$1,M56,0)),TRUE) -> TRUE | AF56: TRUE | AG56: 20204 | AH56: 267 | AI56: 116
B57: 111 | C57: Matthew Gee | D57: Cedar Valley | F57: JHB | G57: =IF(AND(AE57,Q57>0),IF(ISNA(MATCH(AA57,$AA$1:$AA56,0)),0,1),"") -> 0 | H57: =IF(U57="","",OFFSET(Times!$A$1,Q57,U57)) -> 1353 | I57: 656.5 | J57: 3 | K57: 107 | L57: 94 | M57: =MATCH(F57,Races!$C:$C,0)-1 -> 2 | N57: =OFFSET(Races!$A$1,M57,1) -> JHB | O57: =IF(Bibs,MATCH(N57,Bibs!$1:$1,0),"") ->  | P57: =IF(Bibs,MATCH(A57,OFFSET(Bibs!$A$1,1,O57-1,1500,1),0),"") ->  | Q57: 111 | R57: 20111 | S57: 310 | T57: 203 | U57: =IF(Q57>0,MATCH(N57,Times!$1:$1,0)-1,"") -> 2 | V57: =OFFSET(Races!$F$1,M57,0) -> 2 | W57: 416.5 | X57: =MATCH(D57,Teams!$C:$C,0)-1 -> 9 | Y57: 209 | Z57: =MATCH(OFFSET(Teams!$C$1,X57,-1),Teams!B:B,0)-1 -> 9 | AA57: 2090111 | AB57: 244 | AC57: 241 | AD57: 12 | AE57: =IF(E57>0,AND(E57>=OFFSET(Races!$G$1,M57,0),E57<=OFFSET(Races!$H$1,M57,0)),TRUE) -> TRUE | AF57: TRUE | AG57: 20111 | AH57: 210 | AI57: 116
B58: 213 | C58: Matthew Chimitt | D58: Cedar Valley | F58: JHB | G58: =IF(AND(AE58,Q58>0),IF(ISNA(MATCH(AA58,$AA$1:$AA57,0)),0,1),"") -> 0 | H58: =IF(U58="","",OFFSET(Times!$A$1,Q58,U58)) -> 1651 | I58: 825.5 | J58: 9 | K58: 201 | L58: X | M58: =MATCH(F58,Races!$C:$C,0)-1 -> 2 | N58: =OFFSET(Races!$A$1,M58,1) -> JHB | O58: =IF(Bibs,MATCH(N58,Bibs!$1:$1,0),"") ->  | P58: =IF(Bibs,MATCH(A58,OFFSET(Bibs!$A$1,1,O58-1,1500,1),0),"") ->  | Q58: 213 | R58: 20213 | S58: 404 | T58: 203 | U58: =IF(Q58>0,MATCH(N58,Times!$1:$1,0)-1,"") -> 2 | V58: =OFFSET(Races!$F$1,M58,0) -> 2 | W58: 505.5 | X58: =MATCH(D58,Teams!$C:$C,0)-1 -> 9 | Y58: 209 | Z58: =MATCH(OFFSET(Teams!$C$1,X58,-1),Teams!B:B,0)-1 -> 9 | AA58: 2090213 | AB58: 250 | AC58: 241 | AD58: 12 | AE58: =IF(E58>0,AND(E58>=OFFSET(Races!$G$1,M58,0),E58<=OFFSET(Races!$H$1,M58,0)),TRUE) -> TRUE | AF58: FALSE
B59: 148 | C59: Miles Laubenstein | D59: Cedar Valley | F59: JHB | G59: =IF(AND(AE59,Q59>0),IF(ISNA(MATCH(AA59,$AA$1:$AA58,0)),0,1),"") -> 0 | H59: =IF(U59="","",OFFSET(Times!$A$1,Q59,U59)) -> 1443 | I59: 721.5 | J59: 4 | K59: 143 | L59: 119 | M59: =MATCH(F59,Races!$C:$C,0)-1 -> 2 | N59: =OFFSET(Races!$A$1,M59,1) -> JHB | O59: =IF(Bibs,MATCH(N59,Bibs!$1:$1,0),"") ->  | P59: =IF(Bibs,MATCH(A59,OFFSET(Bibs!$A$1,1,O59-1,1500,1),0),"") ->  | Q59: 148 | R59: 20148 | S59: 346 | T59: 203 | U59: =IF(Q59>0,MATCH(N59,Times!$1:$1,0)-1,"") -> 2 | V59: =OFFSET(Races!$F$1,M59,0) -> 2 | W59: 441.5 | X59: =MATCH(D59,Teams!$C:$C,0)-1 -> 9 | Y59: 209 | Z59: =MATCH(OFFSET(Teams!$C$1,X59,-1),Teams!B:B,0)-1 -> 9 | AA59: 2090148 | AB59: 245 | AC59: 241 | AD59: 12 | AE59: =IF(E59>0,AND(E59>=OFFSET(Races!$G$1,M59,0),E59<=OFFSET(Races!$H$1,M59,0)),TRUE) -> TRUE | AF59: TRUE | AG59: 20148 | AH59: 235 | AI59: 116
B60: 226 | C60: Rohan Doraiswamy | D60: Cedar Valley | F60: JHB | G60: =IF(AND(AE60,Q60>0),IF(ISNA(MATCH(AA60,$AA$1:$AA59,0)),0,1),"") -> 0 | H60: =IF(U60="","",OFFSET(Times!$A$1,Q60,U60)) -> 1735 | I60: 847.5 | J60: 11 | K60: 213 | L60: X | M60: =MATCH(F60,Races!$C:$C,0)-1 -> 2 | N60: =OFFSET(Races!$A$1,M60,1) -> JHB | O60: =IF(Bibs,MATCH(N60,Bibs!$1:$1,0),"") ->  | P60: =IF(Bibs,MATCH(A60,OFFSET(Bibs!$A$1,1,O60-1,1500,1),0),"") ->  | Q60: 226 | R60: 20226 | S60: 416 | T60: 203 | U60: =IF(Q60>0,MATCH(N60,Times!$1:$1,0)-1,"") -> 2 | V60: =OFFSET(Races!$F$1,M60,0) -> 2 | W60: 527.5 | X60: =MATCH(D60,Teams!$C:$C,0)-1 -> 9 | Y60: 209 | Z60: =MATCH(OFFSET(Teams!$C$1,X60,-1),Teams!B:B,0)-1 -> 9 | AA60: 2090226 | AB60: 252 | AC60: 241 | AD60: 12 | AE60: =IF(E60>0,AND(E60>=OFFSET(Races!$G$1,M60,0),E60<=OFFSET(Races!$H$1,M60,0)),TRUE) -> TRUE | AF60: FALSE
B61: 205 | C61: Sara G. | D61: Cedar Valley | F61: JHB | G61: =IF(AND(AE61,Q61>0),IF(ISNA(MATCH(AA61,$AA$1:$AA60,0)),0,1),"") -> 0 | H61: =IF(U61="","",OFFSET(Times!$A$1,Q61,U61)) -> 1642 | I61: 821 | J61: 8 | K61: 194 | L61: X | M61: =MATCH(F61,Races!$C:$C,0)-1 -> 2 | N61: =OFFSET(Races!$A$1,M61,1) -> JHB | O61: =IF(Bibs,MATCH(N61,Bibs!$1:$1,0),"") ->  | P61: =IF(Bibs,MATCH(A61,OFFSET(Bibs!$A$1,1,O61-1,1500,1),0),"") ->  | Q61: 205 | R61: 20205 | S61: 397 | T61: 203 | U61: =IF(Q61>0,MATCH(N61,Times!$1:$1,0)-1,"") -> 2 | V61: =OFFSET(Races!$F$1,M61,0) -> 2 | W61: 501 | X61: =MATCH(D61,Teams!$C:$C,0)-1 -> 9 | Y61: 209 | Z61: =MATCH(OFFSET(Teams!$C$1,X61,-1),Teams!B:B,0)-1 -> 9 | AA61: 2090205 | AB61: 249 | AC61: 241 | AD61: 12 | AE61: =IF(E61>0,AND(E61>=OFFSET(Races!$G$1,M61,0),E61<=OFFSET(Races!$H$1,M61,0)),TRUE) -> TRUE | AF61: FALSE
B62: 95 | C62: Spencer Phelps | D62: Cedar Valley | F62: JHB | G62: =IF(AND(AE62,Q62>0),IF(ISNA(MATCH(AA62,$AA$1:$AA61,0)),0,1),"") -> 0 | H62: =IF(U62="","",OFFSET(Times!$A$1,Q62,U62)) -> 1342 | I62: 651 | J62: 1 | K62: 91 | L62: 80 | M62: =MATCH(F62,Races!$C:$C,0)-1 -> 2 | N62: =OFFSET(Races!$A$1,M62,1) -> JHB | O62: =IF(Bibs,MATCH(N62,Bibs!$1:$1,0),"") ->  | P62: =IF(Bibs,MATCH(A62,OFFSET(Bibs!$A$1,1,O62-1,1500,1),0),"") ->  | Q62: 95 | R62: 20095 | S62: 294 | T62: 203 | U62: =IF(Q62>0,MATCH(N62,Times!$1:$1,0)-1,"") -> 2 | V62: =OFFSET(Races!$F$1,M62,0) -> 2 | W62: 411 | X62: =MATCH(D62,Teams!$C:$C,0)-1 -> 9 | Y62: 209 | Z62: =MATCH(OFFSET(Teams!$C$1,X62,-1),Teams!B:B,0)-1 -> 9 | AA62: 2090095 | AB62: 242 | AC62: 241 | AD62: 12 | AE62: =IF(E62>0,AND(E62>=OFFSET(Races!$G$1,M62,0),E62<=OFFSET(Races!$H$1,M62,0)),TRUE) -> TRUE | AF62: TRUE | AG62: 20095 | AH62: 196 | AI62: 116
B63: 144 | C63: Alaina Hart | D63: Cedar Valley | F63: JHG | G63: =IF(AND(AE63,Q63>0),IF(ISNA(MATCH(AA63,$AA$1:$AA62,0)),0,1),"") -> 0 | H63: =IF(U63="","",OFFSET(Times!$A$1,Q63,U63)) -> 1619 | I63: 809.5 | J63: 9 | K63: 129 | L63: X | M63: =MATCH(F63,Races!$C:$C,0)-1 -> 1 | N63: =OFFSET(Races!$A$1,M63,1) -> JHG | O63: =IF(Bibs,MATCH(N63,Bibs!$1:$1,0),"") ->  | P63: =IF(Bibs,MATCH(A63,OFFSET(Bibs!$A$1,1,O63-1,1500,1),0),"") ->  | Q63: 144 | R63: 10144 | S63: 129 | T63: 0 | U63: =IF(Q63>0,MATCH(N63,Times!$1:$1,0)-1,"") -> 0 | V63: =OFFSET(Races!$F$1,M63,0) -> 2 | W63: 489.5 | X63: =MATCH(D63,Teams!$C:$C,0)-1 -> 9 | Y63: 109 | Z63: =MATCH(OFFSET(Teams!$C$1,X63,-1),Teams!B:B,0)-1 -> 9 | AA63: 1090144 | AB63: 46 | AC63: 37 | AD63: 17 | AE63: =IF(E63>0,AND(E63>=OFFSET(Races!$G$1,M63,0),E63<=OFFSET(Races!$H$1,M63,0)),TRUE) -> TRUE | AF63: FALSE
B64: 138 | C64: Alanna Fresquez | D64: Cedar Valley | F64: JHG | G64: =IF(AND(AE64,Q64>0),IF(ISNA(MATCH(AA64,$AA$1:$AA63,0)),0,1),"") -> 0 | H64: =IF(U64="","",OFFSET(Times!$A$1,Q64,U64)) -> 1605 | I64: 802.5 | J64: 8 | K64: 124 | L64: X | M64: =MATCH(F64,Races!$C:$C,0)-1 -> 1 | N64: =OFFSET(Races!$A$1,M64,1) -> JHG | O64: =IF(Bibs,MATCH(N64,Bibs!$1:$1,0),"") ->  | P64: =IF(Bibs,MATCH(A64,OFFSET(Bibs!$A$1,1,O64-1,1500,1),0),"") ->  | Q64: 138 | R64: 10138 | S64: 124 | T64: 0 | U64: =IF(Q64>0,MATCH(N64,Times!$1:$1,0)-1,"") -> 0 | V64: =OFFSET(Races!$F$1,M64,0) -> 2 | W64: 482.5 | X64: =MATCH(D64,Teams!$C:$C,0)-1 -> 9 | Y64: 109 | Z64: =MATCH(OFFSET(Teams!$C$1,X64,-1),Teams!B:B,0)-1 -> 9 | AA64: 1090138 | AB64: 45 | AC64: 37 | AD64: 17 | AE64: =IF(E64>0,AND(E64>=OFFSET(Races!$G$1,M64,0),E64<=OFFSET(Races!$H$1,M64,0)),TRUE) -> TRUE | AF64: FALSE
B65: 54 | C65: Ali Grossman | D65: Cedar Valley | F65: JHG | G65: =IF(AND(AE65,Q65>0),IF(ISNA(MATCH(AA65,$AA$1:$AA64,0)),0,1),"") -> 0 | H65: =IF(U65="","",OFFSET(Times!$A$1,Q65,U65)) -> 1424 | I65: 712 | J65: 4 | K65: 50 | L65: 38 | M65: =MATCH(F65,Races!$C:$C,0)-1 -> 1 | N65: =OFFSET(Races!$A$1,M65,1) -> JHG | O65: =IF(Bibs,MATCH(N65,Bibs!$1:$1,0),"") ->  | P65: =IF(Bibs,MATCH(A65,OFFSET(Bibs!$A$1,1,O65-1,1500,1),0),"") ->  | Q65: 54 | R65: 10054 | S65: 50 | T65: 0 | U65: =IF(Q65>0,MATCH(N65,Times!$1:$1,0)-1,"") -> 0 | V65: =OFFSET(Races!$F$1,M65,0) -> 2 | W65: 432 | X65: =MATCH(D65,Teams!$C:$C,0)-1 -> 9 | Y65: 109 | Z65: =MATCH(OFFSET(Teams!$C$1,X65,-1),Teams!B:B,0)-1 -> 9 | AA65: 1090054 | AB65: 41 | AC65: 37 | AD65: 17 | AE65: =IF(E65>0,AND(E65>=OFFSET(Races!$G$1,M65,0),E65<=OFFSET(Races!$H$1,M65,0)),TRUE) -> TRUE | AF65: TRUE | AG65: 10054 | AH65: 38 | AI65: 0
B66: 127 | C66: Arianna Hasek | D66: Cedar Valley | F66: JHG | G66: =IF(AND(AE66,Q66>0),IF(ISNA(MATCH(AA66,$AA$1:$AA65,0)),0,1),"") -> 0 | H66: =IF(U66="","",OFFSET(Times!$A$1,Q66,U66)) -> 1552 | I66: =IF(W66="","",100*TRUNC(W66/60)+MOD(W66,60)) -> 756 | J66: =IF(AND(AE66,Q66>0),AB66-AC66,"") -> 6 | K66: =IF(Q66>0,S66-T66,"") -> 114 | L66: =IF(AF66,AH66-AI66,IF(Q66>0,"X","")) -> 85 | M66: =MATCH(F66,Races!$C:$C,0)-1 -> 1 | N66: =OFFSET(Races!$A$1,M66,1) -> JHG | O66: =IF(Bibs,MATCH(N66,Bibs!$1:$1,0),"") ->  | P66: =IF(Bibs,MATCH(A66,OFFSET(Bibs!$A$1,1,O66-1,1500,1),0),"") ->  | Q66: 127 | R66: 10127 | S66: 114 | T66: 0 | U66: =IF(Q66>0,MATCH(N66,Times!$1:$1,0)-1,"") -> 0 | V66: =OFFSET(Races!$F$1,M66,0) -> 2 | W66: =IF(AND(NOT(ISNA(U66)),Q66>0),(60*TRUNC(H66/100)+MOD(H66,100))/V66,"") -> 476 | X66: =MATCH(D66,Teams!$C:$C,0)-1 -> 9 | Y66: =IF(AND(AE66,Q66>0),100*M66+X66,"") -> 109 | Z66: =MATCH(OFFSET(Teams!$C$1,X66,-1),Teams!B:B,0)-1 -> 9 | AA66: =IF(AND(Q66>0,AE66),10000*Y66+Q66,"") -> 1090127 | AB66: =IF(AND(AE66,Q66>0),RANK(AA66,AA:AA,1),"") -> 43 | AC66: =COUNTIF(AA:AA,"<"&(10000*Y66)) -> 37 | AD66: =IF(AND(AE66,Q66>0),COUNTIF(Y:Y,"="&Y66),"") -> 17 | AE66: =IF(E66>0,AND(E66>=OFFSET(Races!$G$1,M66,0),E66<=OFFSET(Races!$H$1,M66,0)),TRUE) -> TRUE | AF66: =AND(AE66,AD66>=5,J66<=7) -> TRUE | AG66: =IF(AF66,10000*M66+Q66,"") -> 10127 | AH66: 85 | AI66: =IF(AF66,COUNTIF(AG:AG,"<"&(10000*M66)),"") -> 0
B67: 211 | C67: Camille | D67: Cedar Valley | F67: JHG | G67: =IF(AND(AE67,Q67>0),IF(ISNA(MATCH(AA67,$AA$1:$AA66,0)),0,1),"") -> 0 | H67: =IF(U67="","",OFFSET(Times!$A$1,Q67,U67)) -> 1917 | I67: 938.5 | J67: 17 | K67: 188 | L67: X | M67: =MATCH(F67,Races!$C:$C,0)-1 -> 1 | N67: =OFFSET(Races!$A$1,M67,1) -> JHG | O67: =IF(Bibs,MATCH(N67,Bibs!$1:$1,0),"") ->  | P67: =IF(Bibs,MATCH(A67,OFFSET(Bibs!$A$1,1,O67-1,1500,1),0),"") ->  | Q67: =IF(Bibs,P67,B67) -> 211 | R67: =IF(Q67,10000*M67+Q67,"") -> 10211 | S67: =IF(Q67>0,RANK(R67,R:R,1),"") -> 188 | T67: =IF(Q67>0,COUNTIF(R:R,"<"&(10000*M67)),"") -> 0 | U67: =IF(Q67>0,MATCH(N67,Times!$1:$1,0)-1,"") -> 0 | V67: =OFFSET(Races!$F$1,M67,0) -> 2 | W67: 578.5 | X67: =MATCH(D67,Teams!$C:$C,0)-1 -> 9 | Y67: 109 | Z67: =MATCH(OFFSET(Teams!$C$1,X67,-1),Teams!B:B,0)-1 -> 9 | AA67: 1090211 | AB67: 54 | AC67: 37 | AD67: 17 | AE67: =IF(E67>0,AND(E67>=OFFSET(Races!$G$1,M67,0),E67<=OFFSET(Races!$H$1,M67,0)),TRUE) -> TRUE | AF67: FALSE | AH67: =IF(AF67,RANK(AG67,AG:AG,1),"") -> 
B68: 26 | C68: Caroline Hanfer | D68: Cedar Valley | F68: JHG | G68: =IF(AND(AE68,Q68>0),IF(ISNA(MATCH(AA68,$AA$1:$AA67,0)),0,1),"") -> 0 | H68: =IF(U68="","",OFFSET(Times!$A$1,Q68,U68)) -> 1351 | I68: 655.5 | J68: 3 | K68: 23 | L68: 19 | M68: =MATCH(F68,Races!$C:$C,0)-1 -> 1 | N68: =OFFSET(Races!$A$1,M68,1) -> JHG | O68: =IF(Bibs,MATCH(N68,Bibs!$1:$1,0),"") ->  | P68: =IF(Bibs,MATCH(A68,OFFSET(Bibs!$A$1,1,O68-1,1500,1),0),"") ->  | Q68: 26 | R68: 10026 | S68: 23 | T68: 0 | U68: =IF(Q68>0,MATCH(N68,Times!$1:$1,0)-1,"") -> 0 | V68: =OFFSET(Races!$F$1,M68,0) -> 2 | W68: 415.5 | X68: =MATCH(D68,Teams!$C:$C,0)-1 -> 9 | Y68: 109 | Z68: =MATCH(OFFSET(Teams!$C$1,X68,-1),Teams!B:B,0)-1 -> 9 | AA68: 1090026 | AB68: 40 | AC68: 37 | AD68: 17 | AE68: =IF(E68>0,AND(E68>=OFFSET(Races!$G$1,M68,0),E68<=OFFSET(Races!$H$1,M68,0)),TRUE) -> TRUE | AF68: TRUE | AG68: 10026 | AH68: 19 | AI68: 0
B69: 183 | C69: Cassie Podnar | D69: Cedar Valley | F69: JHG | G69: =IF(AND(AE69,Q69>0),IF(ISNA(MATCH(AA69,$AA$1:$AA68,0)),0,1),"") -> 0 | H69: =IF(U69="","",OFFSET(Times!$A$1,Q69,U69)) -> 1732 | I69: 846 | J69: 12 | K69: 161 | L69: X | M69: =MATCH(F69,Races!$C:$C,0)-1 -> 1 | N69: =OFFSET(Races!$A$1,M69,1) -> JHG | O69: =IF(Bibs,MATCH(N69,Bibs!$1:$1,0),"") ->  | P69: =IF(Bibs,MATCH(A69,OFFSET(Bibs!$A$1,1,O69-1,1500,1),0),"") ->  | Q69: 183 | R69: 10183 | S69: 161 | T69: 0 | U69: =IF(Q69>0,MATCH(N69,Times!$1:$1,0)-1,"") -> 0 | V69: =OFFSET(Races!$F$1,M69,0) -> 2 | W69: 526 | X69: =MATCH(D69,Teams!$C:$C,0)-1 -> 9 | Y69: 109 | Z69: =MATCH(OFFSET(Teams!$C$1,X69,-1),Teams!B:B,0)-1 -> 9 | AA69: 1090183 | AB69: 49 | AC69: 37 | AD69: 17 | AE69: =IF(E69>0,AND(E69>=OFFSET(Races!$G$1,M69,0),E69<=OFFSET(Races!$H$1,M69,0)),TRUE) -> TRUE | AF69: FALSE
B70: 171 | C70: Harshitha Dhulipala | D70: Cedar Valley | F70: JHG | G70: =IF(AND(AE70,Q70>0),IF(ISNA(MATCH(AA70,$AA$1:$AA69,0)),0,1),"") -> 0 | H70: =IF(U70="","",OFFSET(Times!$A$1,Q70,U70)) -> 1705 | I70: 832.5 | J70: 10 | K70: 150 | L70: X | M70: =MATCH(F70,Races!$C:$C,0)-1 -> 1 | N70: =OFFSET(Races!$A$1,M70,1) -> JHG | O70: =IF(Bibs,MATCH(N70,Bibs!$1:$1,0),"") ->  | P70: =IF(Bibs,MATCH(A70,OFFSET(Bibs!$A$1,1,O70-1,1500,1),0),"") ->  | Q70: 171 | R70: 10171 | S70: 150 | T70: 0 | U70: =IF(Q70>0,MATCH(N70,Times!$1:$1,0)-1,"") -> 0 | V70: =OFFSET(Races!$F$1,M70,0) -> 2 | W70: 512.5 | X70: =MATCH(D70,Teams!$C:$C,0)-1 -> 9 | Y70: 109 | Z70: =MATCH(OFFSET(Teams!$C$1,X70,-1),Teams!B:B,0)-1 -> 9 | AA70: 1090171 | AB70: 47 | AC70: 37 | AD70: 17 | AE70: =IF(E70>0,AND(E70>=OFFSET(Races!$G$1,M70,0),E70<=OFFSET(Races!$H$1,M70,0)),TRUE) -> TRUE | AF70: FALSE
B71: 17 | C71: Isabella Trujillo | D71: Cedar Valley | F71: JHG | G71: =IF(AND(AE71,Q71>0),IF(ISNA(MATCH(AA71,$AA$1:$AA70,0)),0,1),"") -> 0 | H71: =IF(U71="","",OFFSET(Times!$A$1,Q71,U71)) -> 1338 | I71: 649 | J71: 2 | K71: 14 | L71: 10 | M71: =MATCH(F71,Races!$C:$C,0)-1 -> 1 | N71: =OFFSET(Races!$A$1,M71,1) -> JHG | O71: =IF(Bibs,MATCH(N71,Bibs!$1:$1,0),"") ->  | P71: =IF(Bibs,MATCH(A71,OFFSET(Bibs!$A$1,1,O71-1,1500,1),0),"") ->  | Q71: 17 | R71: 10017 | S71: 14 | T71: 0 | U71: =IF(Q71>0,MATCH(N71,Times!$1:$1,0)-1,"") -> 0 | V71: =OFFSET(Races!$F$1,M71,0) -> 2 | W71: 409 | X71: =MATCH(D71,Teams!$C:$C,0)-1 -> 9 | Y71: 109 | Z71: =MATCH(OFFSET(Teams!$C$1,X71,-1),Teams!B:B,0)-1 -> 9 | AA71: 1090017 | AB71: 39 | AC71: 37 | AD71: 17 | AE71: =IF(E71>0,AND(E71>=OFFSET(Races!$G$1,M71,0),E71<=OFFSET(Races!$H$1,M71,0)),TRUE) -> TRUE | AF71: TRUE | AG71: 10017 | AH71: 10 | AI71: 0
B72: 181 | C72: Kaslynn Looney | D72: Cedar Valley | F72: JHG | G72: =IF(AND(AE72,Q72>0),IF(ISNA(MATCH(AA72,$AA$1:$AA71,0)),0,1),"") -> 0 | H72: =IF(U72="","",OFFSET(Times!$A$1,Q72,U72)) -> 1729 | I72: 844.5 | J72: 11 | K72: 159 | L72: X | M72: =MATCH(F72,Races!$C:$C,0)-1 -> 1 | N72: =OFFSET(Races!$A$1,M72,1) -> JHG | O72: =IF(Bibs,MATCH(N72,Bibs!$1:$1,0),"") ->  | P72: =IF(Bibs,MATCH(A72,OFFSET(Bibs!$A$1,1,O72-1,1500,1),0),"") ->  | Q72: 181 | R72: 10181 | S72: 159 | T72: 0 | U72: =IF(Q72>0,MATCH(N72,Times!$1:$1,0)-1,"") -> 0 | V72: =OFFSET(Races!$F$1,M72,0) -> 2 | W72: 524.5 | X72: =MATCH(D72,Teams!$C:$C,0)-1 -> 9 | Y72: 109 | Z72: =MATCH(OFFSET(Teams!$C$1,X72,-1),Teams!B:B,0)-1 -> 9 | AA72: 1090181 | AB72: 48 | AC72: 37 | AD72: 17 | AE72: =IF(E72>0,AND(E72>=OFFSET(Races!$G$1,M72,0),E72<=OFFSET(Races!$H$1,M72,0)),TRUE) -> TRUE | AF72: FALSE
B73: 2 | C73: Kellis Hein | D73: Cedar Valley | F73: JHG | G73: =IF(AND(AE73,Q73>0),IF(ISNA(MATCH(AA73,$AA$1:$AA72,0)),0,1),"") -> 0 | H73: =IF(U73="","",OFFSET(Times!$A$1,Q73,U73)) -> 1200 | I73: 600 | J73: 1 | K73: 2 | L73: 1 | M73: =MATCH(F73,Races!$C:$C,0)-1 -> 1 | N73: =OFFSET(Races!$A$1,M73,1) -> JHG | O73: =IF(Bibs,MATCH(N73,Bibs!$1:$1,0),"") ->  | P73: =IF(Bibs,MATCH(A73,OFFSET(Bibs!$A$1,1,O73-1,1500,1),0),"") ->  | Q73: 2 | R73: 10002 | S73: 2 | T73: 0 | U73: =IF(Q73>0,MATCH(N73,Times!$1:$1,0)-1,"") -> 0 | V73: =OFFSET(Races!$F$1,M73,0) -> 2 | W73: 360 | X73: =MATCH(D73,Teams!$C:$C,0)-1 -> 9 | Y73: 109 | Z73: =MATCH(OFFSET(Teams!$C$1,X73,-1),Teams!B:B,0)-1 -> 9 | AA73: 1090002 | AB73: 38 | AC73: 37 | AD73: 17 | AE73: =IF(E73>0,AND(E73>=OFFSET(Races!$G$1,M73,0),E73<=OFFSET(Races!$H$1,M73,0)),TRUE) -> TRUE | AF73: TRUE | AG73: 10002 | AH73: 1 | AI73: 0
B74: 193 | C74: Krithika Gilari | D74: Cedar Valley | F74: JHG | G74: =IF(AND(AE74,Q74>0),IF(ISNA(MATCH(AA74,$AA$1:$AA73,0)),0,1),"") -> 0 | H74: =IF(U74="","",OFFSET(Times!$A$1,Q74,U74)) -> 1802 | I74: 901 | J74: 15 | K74: 171 | L74: X | M74: =MATCH(F74,Races!$C:$C,0)-1 -> 1 | N74: =OFFSET(Races!$A$1,M74,1) -> JHG | O74: =IF(Bibs,MATCH(N74,Bibs!$1:$1,0),"") ->  | P74: =IF(Bibs,MATCH(A74,OFFSET(Bibs!$A$1,1,O74-1,1500,1),0),"") ->  | Q74: 193 | R74: 10193 | S74: 171 | T74: 0 | U74: =IF(Q74>0,MATCH(N74,Times!$1:$1,0)-1,"") -> 0 | V74: =OFFSET(Races!$F$1,M74,0) -> 2 | W74: 541 | X74: =MATCH(D74,Teams!$C:$C,0)-1 -> 9 | Y74: 109 | Z74: =MATCH(OFFSET(Teams!$C$1,X74,-1),Teams!B:B,0)-1 -> 9 | AA74: 1090193 | AB74: 52 | AC74: 37 | AD74: 17 | AE74: =IF(E74>0,AND(E74>=OFFSET(Races!$G$1,M74,0),E74<=OFFSET(Races!$H$1,M74,0)),TRUE) -> TRUE | AF74: FALSE
B75: 128 | C75: Sarah Brown | D75: Cedar Valley | F75: JHG | G75: =IF(AND(AE75,Q75>0),IF(ISNA(MATCH(AA75,$AA$1:$AA74,0)),0,1),"") -> 0 | H75: =IF(U75="","",OFFSET(Times!$A$1,Q75,U75)) -> 1552 | I75: 756 | J75: 7 | K75: 115 | L75: 86 | M75: =MATCH(F75,Races!$C:$C,0)-1 -> 1 | N75: =OFFSET(Races!$A$1,M75,1) -> JHG | O75: =IF(Bibs,MATCH(N75,Bibs!$1:$1,0),"") ->  | P75: =IF(Bibs,MATCH(A75,OFFSET(Bibs!$A$1,1,O75-1,1500,1),0),"") ->  | Q75: 128 | R75: 10128 | S75: 115 | T75: 0 | U75: =IF(Q75>0,MATCH(N75,Times!$1:$1,0)-1,"") -> 0 | V75: =OFFSET(Races!$F$1,M75,0) -> 2 | W75: 476 | X75: =MATCH(D75,Teams!$C:$C,0)-1 -> 9 | Y75: 109 | Z75: =MATCH(OFFSET(Teams!$C$1,X75,-1),Teams!B:B,0)-1 -> 9 | AA75: 1090128 | AB75: 44 | AC75: 37 | AD75: 17 | AE75: =IF(E75>0,AND(E75>=OFFSET(Races!$G$1,M75,0),E75<=OFFSET(Races!$H$1,M75,0)),TRUE) -> TRUE | AF75: TRUE | AG75: 10128 | AH75: 86 | AI75: 0
B76: 188 | C76: Sonia Ballada | D76: Cedar Valley | F76: JHG | G76: =IF(AND(AE76,Q76>0),IF(ISNA(MATCH(AA76,$AA$1:$AA75,0)),0,1),"") -> 0 | H76: =IF(U76="","",OFFSET(Times!$A$1,Q76,U76)) -> 1741 | I76: 850.5 | J76: 13 | K76: 166 | L76: X | M76: =MATCH(F76,Races!$C:$C,0)-1 -> 1 | N76: =OFFSET(Races!$A$1,M76,1) -> JHG | O76: =IF(Bibs,MATCH(N76,Bibs!$1:$1,0),"") ->  | P76: =IF(Bibs,MATCH(A76,OFFSET(Bibs!$A$1,1,O76-1,1500,1),0),"") ->  | Q76: 188 | R76: 10188 | S76: 166 | T76: 0 | U76: =IF(Q76>0,MATCH(N76,Times!$1:$1,0)-1,"") -> 0 | V76: =OFFSET(Races!$F$1,M76,0) -> 2 | W76: 530.5 | X76: =MATCH(D76,Teams!$C:$C,0)-1 -> 9 | Y76: 109 | Z76: =MATCH(OFFSET(Teams!$C$1,X76,-1),Teams!B:B,0)-1 -> 9 | AA76: 1090188 | AB76: 50 | AC76: 37 | AD76: 17 | AE76: =IF(E76>0,AND(E76>=OFFSET(Races!$G$1,M76,0),E76<=OFFSET(Races!$H$1,M76,0)),TRUE) -> TRUE | AF76: FALSE
B77: 192 | C77: Sreya Granda | D77: Cedar Valley | F77: JHG | G77: =IF(AND(AE77,Q77>0),IF(ISNA(MATCH(AA77,$AA$1:$AA76,0)),0,1),"") -> 0 | H77: =IF(U77="","",OFFSET(Times!$A$1,Q77,U77)) -> 1758 | I77: 859 | J77: 14 | K77: 170 | L77: X | M77: =MATCH(F77,Races!$C:$C,0)-1 -> 1 | N77: =OFFSET(Races!$A$1,M77,1) -> JHG | O77: =IF(Bibs,MATCH(N77,Bibs!$1:$1,0),"") ->  | P77: =IF(Bibs,MATCH(A77,OFFSET(Bibs!$A$1,1,O77-1,1500,1),0),"") ->  | Q77: 192 | R77: 10192 | S77: 170 | T77: 0 | U77: =IF(Q77>0,MATCH(N77,Times!$1:$1,0)-1,"") -> 0 | V77: =OFFSET(Races!$F$1,M77,0) -> 2 | W77: 539 | X77: =MATCH(D77,Teams!$C:$C,0)-1 -> 9 | Y77: 109 | Z77: =MATCH(OFFSET(Teams!$C$1,X77,-1),Teams!B:B,0)-1 -> 9 | AA77: 1090192 | AB77: 51 | AC77: 37 | AD77: 17 | AE77: =IF(E77>0,AND(E77>=OFFSET(Races!$G$1,M77,0),E77<=OFFSET(Races!$H$1,M77,0)),TRUE) -> TRUE | AF77: FALSE
B78: 124 | C78: Vendanti Barad | D78: Cedar Valley | F78: JHG | G78: =IF(AND(AE78,Q78>0),IF(ISNA(MATCH(AA78,$AA$1:$AA77,0)),0,1),"") -> 0 | H78: =IF(U78="","",OFFSET(Times!$A$1,Q78,U78)) -> 1549 | I78: 754.5 | J78: 5 | K78: 112 | L78: 83 | M78: =MATCH(F78,Races!$C:$C,0)-1 -> 1 | N78: =OFFSET(Races!$A$1,M78,1) -> JHG | O78: =IF(Bibs,MATCH(N78,Bibs!$1:$1,0),"") ->  | P78: =IF(Bibs,MATCH(A78,OFFSET(Bibs!$A$1,1,O78-1,1500,1),0),"") ->  | Q78: 124 | R78: 10124 | S78: 112 | T78: 0 | U78: =IF(Q78>0,MATCH(N78,Times!$1:$1,0)-1,"") -> 0 | V78: =OFFSET(Races!$F$1,M78,0) -> 2 | W78: 474.5 | X78: =MATCH(D78,Teams!$C:$C,0)-1 -> 9 | Y78: 109 | Z78: =MATCH(OFFSET(Teams!$C$1,X78,-1),Teams!B:B,0)-1 -> 9 | AA78: 1090124 | AB78: 42 | AC78: 37 | AD78: 17 | AE78: =IF(E78>0,AND(E78>=OFFSET(Races!$G$1,M78,0),E78<=OFFSET(Races!$H$1,M78,0)),TRUE) -> TRUE | AF78: TRUE | AG78: 10124 | AH78: 83 | AI78: 0
B79: 204 | C79: Vivian Nguyen | D79: Cedar Valley | F79: JHG | G79: =IF(AND(AE79,Q79>0),IF(ISNA(MATCH(AA79,$AA$1:$AA78,0)),0,1),"") -> 0 | H79: =IF(U79="","",OFFSET(Times!$A$1,Q79,U79)) -> 1845 | I79: 922.5 | J79: 16 | K79: 182 | L79: X | M79: =MATCH(F79,Races!$C:$C,0)-1 -> 1 | N79: =OFFSET(Races!$A$1,M79,1) -> JHG | O79: =IF(Bibs,MATCH(N79,Bibs!$1:$1,0),"") ->  | P79: =IF(Bibs,MATCH(A79,OFFSET(Bibs!$A$1,1,O79-1,1500,1),0),"") ->  | Q79: 204 | R79: 10204 | S79: 182 | T79: 0 | U79: =IF(Q79>0,MATCH(N79,Times!$1:$1,0)-1,"") -> 0 | V79: =OFFSET(Races!$F$1,M79,0) -> 2 | W79: 562.5 | X79: =MATCH(D79,Teams!$C:$C,0)-1 -> 9 | Y79: 109 | Z79: =MATCH(OFFSET(Teams!$C$1,X79,-1),Teams!B:B,0)-1 -> 9 | AA79: 1090204 | AB79: 53 | AC79: 37 | AD79: 17 | AE79: =IF(E79>0,AND(E79>=OFFSET(Races!$G$1,M79,0),E79<=OFFSET(Races!$H$1,M79,0)),TRUE) -> TRUE | AF79: FALSE
B80: 32 | C80: Jordan Edward | D80: Cele Middle School | F80: JHB | G80: =IF(AND(AE80,Q80>0),IF(ISNA(MATCH(AA80,$AA$1:$AA79,0)),0,1),"") -> 0 | H80: =IF(U80="","",OFFSET(Times!$A$1,Q80,U80)) -> 1227 | I80: 613.5 | J80: 1 | K80: 32 | L80: X | M80: =MATCH(F80,Races!$C:$C,0)-1 -> 2 | N80: =OFFSET(Races!$A$1,M80,1) -> JHB | O80: =IF(Bibs,MATCH(N80,Bibs!$1:$1,0),"") ->  | P80: =IF(Bibs,MATCH(A80,OFFSET(Bibs!$A$1,1,O80-1,1500,1),0),"") ->  | Q80: 32 | R80: 20032 | S80: 235 | T80: 203 | U80: =IF(Q80>0,MATCH(N80,Times!$1:$1,0)-1,"") -> 2 | V80: =OFFSET(Races!$F$1,M80,0) -> 2 | W80: 373.5 | X80: =MATCH(D80,Teams!$C:$C,0)-1 -> 6 | Y80: 206 | Z80: =MATCH(OFFSET(Teams!$C$1,X80,-1),Teams!B:B,0)-1 -> 6 | AA80: 2060032 | AB80: 228 | AC80: 227 | AD80: 1 | AE80: =IF(E80>0,AND(E80>=OFFSET(Races!$G$1,M80,0),E80<=OFFSET(Races!$H$1,M80,0)),TRUE) -> TRUE | AF80: FALSE
B81: 98 | C81: Kirsten Albert | D81: Cele Middle School | F81: JHG | G81: =IF(AND(AE81,Q81>0),IF(ISNA(MATCH(AA81,$AA$1:$AA80,0)),0,1),"") -> 0 | H81: =IF(U81="","",OFFSET(Times!$A$1,Q81,U81)) -> 1519 | I81: 739.5 | J81: 1 | K81: 88 | L81: X | M81: =MATCH(F81,Races!$C:$C,0)-1 -> 1 | N81: =OFFSET(Races!$A$1,M81,1) -> JHG | O81: =IF(Bibs,MATCH(N81,Bibs!$1:$1,0),"") ->  | P81: =IF(Bibs,MATCH(A81,OFFSET(Bibs!$A$1,1,O81-1,1500,1),0),"") ->  | Q81: 98 | R81: 10098 | S81: 88 | T81: 0 | U81: =IF(Q81>0,MATCH(N81,Times!$1:$1,0)-1,"") -> 0 | V81: =OFFSET(Races!$F$1,M81,0) -> 2 | W81: 459.5 | X81: =MATCH(D81,Teams!$C:$C,0)-1 -> 6 | Y81: 106 | Z81: =MATCH(OFFSET(Teams!$C$1,X81,-1),Teams!B:B,0)-1 -> 6 | AA81: 1060098 | AB81: 26 | AC81: 25 | AD81: 1 | AE81: =IF(E81>0,AND(E81>=OFFSET(Races!$G$1,M81,0),E81<=OFFSET(Races!$H$1,M81,0)),TRUE) -> TRUE | AF81: FALSE
B82: 150 | C82: Andrew Gavan | D82: Central Texas Christian | F82: JHB | G82: =IF(AND(AE82,Q82>0),IF(ISNA(MATCH(AA82,$AA$1:$AA81,0)),0,1),"") -> 0 | H82: =IF(U82="","",OFFSET(Times!$A$1,Q82,U82)) -> 1450 | I82: 725 | J82: 2 | K82: 145 | L82: 120 | M82: =MATCH(F82,Races!$C:$C,0)-1 -> 2 | N82: =OFFSET(Races!$A$1,M82,1) -> JHB | O82: =IF(Bibs,MATCH(N82,Bibs!$1:$1,0),"") ->  | P82: =IF(Bibs,MATCH(A82,OFFSET(Bibs!$A$1,1,O82-1,1500,1),0),"") ->  | Q82: 150 | R82: 20150 | S82: 348 | T82: 203 | U82: =IF(Q82>0,MATCH(N82,Times!$1:$1,0)-1,"") -> 2 | V82: =OFFSET(Races!$F$1,M82,0) -> 2 | W82: 445 | X82: =MATCH(D82,Teams!$C:$C,0)-1 -> 8 | Y82: 208 | Z82: =MATCH(OFFSET(Teams!$C$1,X82,-1),Teams!B:B,0)-1 -> 8 | AA82: 2080150 | AB82: 237 | AC82: 235 | AD82: 6 | AE82: =IF(E82>0,AND(E82>=OFFSET(Races!$G$1,M82,0),E82<=OFFSET(Races!$H$1,M82,0)),TRUE) -> TRUE | AF82: TRUE | AG82: 20150 | AH82: 236 | AI82: 116
B83: 236 | C83: Gauge Danzel | D83: Central Texas Christian | F83: JHB | G83: =IF(AND(AE83,Q83>0),IF(ISNA(MATCH(AA83,$AA$1:$AA82,0)),0,1),"") -> 0 | H83: =IF(U83="","",OFFSET(Times!$A$1,Q83,U83)) -> 2002 | I83: 1001 | J83: 4 | K83: 223 | L83: 167 | M83: =MATCH(F83,Races!$C:$C,0)-1 -> 2 | N83: =OFFSET(Races!$A$1,M83,1) -> JHB | O83: =IF(Bibs,MATCH(N83,Bibs!$1:$1,0),"") ->  | P83: =IF(Bibs,MATCH(A83,OFFSET(Bibs!$A$1,1,O83-1,1500,1),0),"") ->  | Q83: 236 | R83: 20236 | S83: 426 | T83: 203 | U83: =IF(Q83>0,MATCH(N83,Times!$1:$1,0)-1,"") -> 2 | V83: =OFFSET(Races!$F$1,M83,0) -> 2 | W83: 601 | X83: =MATCH(D83,Teams!$C:$C,0)-1 -> 8 | Y83: 208 | Z83: =MATCH(OFFSET(Teams!$C$1,X83,-1),Teams!B:B,0)-1 -> 8 | AA83: 2080236 | AB83: 239 | AC83: 235 | AD83: 6 | AE83: =IF(E83>0,AND(E83>=OFFSET(Races!$G$1,M83,0),E83<=OFFSET(Races!$H$1,M83,0)),TRUE) -> TRUE | AF83: TRUE | AG83: 20236 | AH83: 283 | AI83: 116
B84: 107 | C84: Luke Elletson | D84: Central Texas Christian | F84: JHB | G84: =IF(AND(AE84,Q84>0),IF(ISNA(MATCH(AA84,$AA$1:$AA83,0)),0,1),"") -> 0 | H84: =IF(U84="","",OFFSET(Times!$A$1,Q84,U84)) -> 1351 | I84: 655.5 | J84: 1 | K84: 103 | L84: 90 | M84: =MATCH(F84,Races!$C:$C,0)-1 -> 2 | N84: =OFFSET(Races!$A$1,M84,1) -> JHB | O84: =IF(Bibs,MATCH(N84,Bibs!$1:$1,0),"") ->  | P84: =IF(Bibs,MATCH(A84,OFFSET(Bibs!$A$1,1,O84-1,1500,1),0),"") ->  | Q84: 107 | R84: 20107 | S84: 306 | T84: 203 | U84: =IF(Q84>0,MATCH(N84,Times!$1:$1,0)-1,"") -> 2 | V84: =OFFSET(Races!$F$1,M84,0) -> 2 | W84: 415.5 | X84: =MATCH(D84,Teams!$C:$C,0)-1 -> 8 | Y84: 208 | Z84: =MATCH(OFFSET(Teams!$C$1,X84,-1),Teams!B:B,0)-1 -> 8 | AA84: 2080107 | AB84: 236 | AC84: 235 | AD84: 6 | AE84: =IF(E84>0,AND(E84>=OFFSET(Races!$G$1,M84,0),E84<=OFFSET(Races!$H$1,M84,0)),TRUE) -> TRUE | AF84: TRUE | AG84: 20107 | AH84: 206 | AI84: 116
B85: 241 | C85: Nathan Evans | D85: Central Texas Christian | F85: JHB | G85: =IF(AND(AE85,Q85>0),IF(ISNA(MATCH(AA85,$AA$1:$AA84,0)),0,1),"") -> 0 | H85: =IF(U85="","",OFFSET(Times!$A$1,Q85,U85)) -> 2114 | I85: 1037 | J85: 5 | K85: 227 | L85: 169 | M85: =MATCH(F85,Races!$C:$C,0)-1 -> 2 | N85: =OFFSET(Races!$A$1,M85,1) -> JHB | O85: =IF(Bibs,MATCH(N85,Bibs!$1:$1,0),"") ->  | P85: =IF(Bibs,MATCH(A85,OFFSET(Bibs!$A$1,1,O85-1,1500,1),0),"") ->  | Q85: 241 | R85: 20241 | S85: 430 | T85: 203 | U85: =IF(Q85>0,MATCH(N85,Times!$1:$1,0)-1,"") -> 2 | V85: =OFFSET(Races!$F$1,M85,0) -> 2 | W85: 637 | X85: =MATCH(D85,Teams!$C:$C,0)-1 -> 8 | Y85: 208 | Z85: =MATCH(OFFSET(Teams!$C$1,X85,-1),Teams!B:B,0)-1 -> 8 | AA85: 2080241 | AB85: 240 | AC85: 235 | AD85: 6 | AE85: =IF(E85>0,AND(E85>=OFFSET(Races!$G$1,M85,0),E85<=OFFSET(Races!$H$1,M85,0)),TRUE) -> TRUE | AF85: TRUE | AG85: 20241 | AH85: 285 | AI85: 116
B86: 172 | C86: Owen Elletown | D86: Central Texas Christian | F86: JHB | G86: =IF(AND(AE86,Q86>0),IF(ISNA(MATCH(AA86,$AA$1:$AA85,0)),0,1),"") -> 0 | H86: =IF(U86="","",OFFSET(Times!$A$1,Q86,U86)) -> 1533 | I86: 746.5 | J86: 3 | K86: 165 | L86: 133 | M86: =MATCH(F86,Races!$C:$C,0)-1 -> 2 | N86: =OFFSET(Races!$A$1,M86,1) -> JHB | O86: =IF(Bibs,MATCH(N86,Bibs!$1:$1,0),"") ->  | P86: =IF(Bibs,MATCH(A86,OFFSET(Bibs!$A$1,1,O86-1,1500,1),0),"") ->  | Q86: 172 | R86: 20172 | S86: 368 | T86: 203 | U86: =IF(Q86>0,MATCH(N86,Times!$1:$1,0)-1,"") -> 2 | V86: =OFFSET(Races!$F$1,M86,0) -> 2 | W86: 466.5 | X86: =MATCH(D86,Teams!$C:$C,0)-1 -> 8 | Y86: 208 | Z86: =MATCH(OFFSET(Teams!$C$1,X86,-1),Teams!B:B,0)-1 -> 8 | AA86: 2080172 | AB86: 238 | AC86: 235 | AD86: 6 | AE86: =IF(E86>0,AND(E86>=OFFSET(Races!$G$1,M86,0),E86<=OFFSET(Races!$H$1,M86,0)),TRUE) -> TRUE | AF86: TRUE | AG86: 20172 | AH86: 249 | AI86: 116
B87: 252 | C87: Tyler Sean | D87: Central Texas Christian | F87: JHB | G87: =IF(AND(AE87,Q87>0),IF(ISNA(MATCH(AA87,$AA$1:$AA86,0)),0,1),"") -> 0 | H87: =IF(U87="","",OFFSET(Times!$A$1,Q87,U87)) -> 2551 | I87: 1255.5 | J87: 6 | K87: 237 | L87: 176 | M87: =MATCH(F87,Races!$C:$C,0)-1 -> 2 | N87: =OFFSET(Races!$A$1,M87,1) -> JHB | O87: =IF(Bibs,MATCH(N87,Bibs!$1:$1,0),"") ->  | P87: =IF(Bibs,MATCH(A87,OFFSET(Bibs!$A$1,1,O87-1,1500,1),0),"") ->  | Q87: 252 | R87: 20252 | S87: 440 | T87: 203 | U87: =IF(Q87>0,MATCH(N87,Times!$1:$1,0)-1,"") -> 2 | V87: =OFFSET(Races!$F$1,M87,0) -> 2 | W87: 775.5 | X87: =MATCH(D87,Teams!$C:$C,0)-1 -> 8 | Y87: 208 | Z87: =MATCH(OFFSET(Teams!$C$1,X87,-1),Teams!B:B,0)-1 -> 8 | AA87: 2080252 | AB87: 241 | AC87: 235 | AD87: 6 | AE87: =IF(E87>0,AND(E87>=OFFSET(Races!$G$1,M87,0),E87<=OFFSET(Races!$H$1,M87,0)),TRUE) -> TRUE | AF87: TRUE | AG87: 20252 | AH87: 292 | AI87: 116
B88: 189 | C88: Catherine Doyle | D88: Central Texas Christian | F88: JHG | G88: =IF(AND(AE88,Q88>0),IF(ISNA(MATCH(AA88,$AA$1:$AA87,0)),0,1),"") -> 0 | H88: =IF(U88="","",OFFSET(Times!$A$1,Q88,U88)) -> 1745 | I88: 852.5 | J88: 3 | K88: 167 | L88: X | M88: =MATCH(F88,Races!$C:$C,0)-1 -> 1 | N88: =OFFSET(Races!$A$1,M88,1) -> JHG | O88: =IF(Bibs,MATCH(N88,Bibs!$1:$1,0),"") ->  | P88: =IF(Bibs,MATCH(A88,OFFSET(Bibs!$A$1,1,O88-1,1500,1),0),"") ->  | Q88: 189 | R88: 10189 | S88: 167 | T88: 0 | U88: =IF(Q88>0,MATCH(N88,Times!$1:$1,0)-1,"") -> 0 | V88: =OFFSET(Races!$F$1,M88,0) -> 2 | W88: 532.5 | X88: =MATCH(D88,Teams!$C:$C,0)-1 -> 8 | Y88: 108 | Z88: =MATCH(OFFSET(Teams!$C$1,X88,-1),Teams!B:B,0)-1 -> 8 | AA88: 1080189 | AB88: 37 | AC88: 34 | AD88: 3 | AE88: =IF(E88>0,AND(E88>=OFFSET(Races!$G$1,M88,0),E88<=OFFSET(Races!$H$1,M88,0)),TRUE) -> TRUE | AF88: FALSE
B89: 185 | C89: Grace Sinclair | D89: Central Texas Christian | F89: JHG | G89: =IF(AND(AE89,Q89>0),IF(ISNA(MATCH(AA89,$AA$1:$AA88,0)),0,1),"") -> 0 | H89: =IF(U89="","",OFFSET(Times!$A$1,Q89,U89)) -> 1735 | I89: 847.5 | J89: 2 | K89: 163 | L89: X | M89: =MATCH(F89,Races!$C:$C,0)-1 -> 1 | N89: =OFFSET(Races!$A$1,M89,1) -> JHG | O89: =IF(Bibs,MATCH(N89,Bibs!$1:$1,0),"") ->  | P89: =IF(Bibs,MATCH(A89,OFFSET(Bibs!$A$1,1,O89-1,1500,1),0),"") ->  | Q89: 185 | R89: 10185 | S89: 163 | T89: 0 | U89: =IF(Q89>0,MATCH(N89,Times!$1:$1,0)-1,"") -> 0 | V89: =OFFSET(Races!$F$1,M89,0) -> 2 | W89: 527.5 | X89: =MATCH(D89,Teams!$C:$C,0)-1 -> 8 | Y89: 108 | Z89: =MATCH(OFFSET(Teams!$C$1,X89,-1),Teams!B:B,0)-1 -> 8 | AA89: 1080185 | AB89: 36 | AC89: 34 | AD89: 3 | AE89: =IF(E89>0,AND(E89>=OFFSET(Races!$G$1,M89,0),E89<=OFFSET(Races!$H$1,M89,0)),TRUE) -> TRUE | AF89: FALSE
B90: 43 | C90: Kirsten Bush | D90: Central Texas Christian | F90: JHG | G90: =IF(AND(AE90,Q90>0),IF(ISNA(MATCH(AA90,$AA$1:$AA89,0)),0,1),"") -> 0 | H90: =IF(U90="","",OFFSET(Times!$A$1,Q90,U90)) -> 1412 | I90: 706 | J90: 1 | K90: 40 | L90: X | M90: =MATCH(F90,Races!$C:$C,0)-1 -> 1 | N90: =OFFSET(Races!$A$1,M90,1) -> JHG | O90: =IF(Bibs,MATCH(N90,Bibs!$1:$1,0),"") ->  | P90: =IF(Bibs,MATCH(A90,OFFSET(Bibs!$A$1,1,O90-1,1500,1),0),"") ->  | Q90: 43 | R90: 10043 | S90: 40 | T90: 0 | U90: =IF(Q90>0,MATCH(N90,Times!$1:$1,0)-1,"") -> 0 | V90: =OFFSET(Races!$F$1,M90,0) -> 2 | W90: 426 | X90: =MATCH(D90,Teams!$C:$C,0)-1 -> 8 | Y90: 108 | Z90: =MATCH(OFFSET(Teams!$C$1,X90,-1),Teams!B:B,0)-1 -> 8 | AA90: 1080043 | AB90: 35 | AC90: 34 | AD90: 3 | AE90: =IF(E90>0,AND(E90>=OFFSET(Races!$G$1,M90,0),E90<=OFFSET(Races!$H$1,M90,0)),TRUE) -> TRUE | AF90: FALSE
B91: 84 | C91: Brett Adcock | D91: Chisholm Trail | F91: JHB | G91: =IF(AND(AE91,Q91>0),IF(ISNA(MATCH(AA91,$AA$1:$AA90,0)),0,1),"") -> 0 | H91: =IF(U91="","",OFFSET(Times!$A$1,Q91,U91)) -> 1323 | I91: 641.5 | J91: 4 | K91: 80 | L91: 69 | M91: =MATCH(F91,Races!$C:$C,0)-1 -> 2 | N91: =OFFSET(Races!$A$1,M91,1) -> JHB | O91: =IF(Bibs,MATCH(N91,Bibs!$1:$1,0),"") ->  | P91: =IF(Bibs,MATCH(A91,OFFSET(Bibs!$A$1,1,O91-1,1500,1),0),"") ->  | Q91: 84 | R91: 20084 | S91: 283 | T91: 203 | U91: =IF(Q91>0,MATCH(N91,Times!$1:$1,0)-1,"") -> 2 | V91: =OFFSET(Races!$F$1,M91,0) -> 2 | W91: 401.5 | X91: =MATCH(D91,Teams!$C:$C,0)-1 -> 7 | Y91: 207 | Z91: =MATCH(OFFSET(Teams!$C$1,X91,-1),Teams!B:B,0)-1 -> 7 | AA91: 2070084 | AB91: 232 | AC91: 228 | AD91: 7 | AE91: =IF(E91>0,AND(E91>=OFFSET(Races!$G$1,M91,0),E91<=OFFSET(Races!$H$1,M91,0)),TRUE) -> TRUE | AF91: TRUE | AG91: 20084 | AH91: 185 | AI91: 116
B92: 248 | C92: Dane Moak | D92: Chisholm Trail | E92: 7 | F92: JHB | G92: =IF(AND(AE92,Q92>0),IF(ISNA(MATCH(AA92,$AA$1:$AA91,0)),0,1),"") -> 0 | H92: =IF(U92="","",OFFSET(Times!$A$1,Q92,U92)) -> 2537 | I92: 1248.5 | J92: 6 | K92: 233 | L92: 172 | M92: =MATCH(F92,Races!$C:$C,0)-1 -> 2 | N92: =OFFSET(Races!$A$1,M92,1) -> JHB | O92: =IF(Bibs,MATCH(N92,Bibs!$1:$1,0),"") ->  | P92: =IF(Bibs,MATCH(A92,OFFSET(Bibs!$A$1,1,O92-1,1500,1),0),"") ->  | Q92: 248 | R92: 20248 | S92: 436 | T92: 203 | U92: =IF(Q92>0,MATCH(N92,Times!$1:$1,0)-1,"") -> 2 | V92: =OFFSET(Races!$F$1,M92,0) -> 2 | W92: 768.5 | X92: =MATCH(D92,Teams!$C:$C,0)-1 -> 7 | Y92: 207 | Z92: =MATCH(OFFSET(Teams!$C$1,X92,-1),Teams!B:B,0)-1 -> 7 | AA92: 2070248 | AB92: 234 | AC92: 228 | AD92: 7 | AE92: =IF(E92>0,AND(E92>=OFFSET(Races!$G$1,M92,0),E92<=OFFSET(Races!$H$1,M92,0)),TRUE) -> TRUE | AF92: TRUE | AG92: 20248 | AH92: 288 | AI92: 116
B93: 28 | C93: Elliot Lee | D93: Chisholm Trail | E93: 7 | F93: JHB | G93: =IF(AND(AE93,Q93>0),IF(ISNA(MATCH(AA93,$AA$1:$AA92,0)),0,1),"") -> 0 | H93: =IF(U93="","",OFFSET(Times!$A$1,Q93,U93)) -> 1223 | I93: 611.5 | J93: 1 | K93: 28 | L93: 25 | M93: =MATCH(F93,Races!$C:$C,0)-1 -> 2 | N93: =OFFSET(Races!$A$1,M93,1) -> JHB | O93: =IF(Bibs,MATCH(N93,Bibs!$1:$1,0),"") ->  | P93: =IF(Bibs,MATCH(A93,OFFSET(Bibs!$A$1,1,O93-1,1500,1),0),"") ->  | Q93: 28 | R93: 20028 | S93: 231 | T93: 203 | U93: =IF(Q93>0,MATCH(N93,Times!$1:$1,0)-1,"") -> 2 | V93: =OFFSET(Races!$F$1,M93,0) -> 2 | W93: 371.5 | X93: =MATCH(D93,Teams!$C:$C,0)-1 -> 7 | Y93: 207 | Z93: =MATCH(OFFSET(Teams!$C$1,X93,-1),Teams!B:B,0)-1 -> 7 | AA93: 2070028 | AB93: 229 | AC93: 228 | AD93: 7 | AE93: =IF(E93>0,AND(E93>=OFFSET(Races!$G$1,M93,0),E93<=OFFSET(Races!$H$1,M93,0)),TRUE) -> TRUE | AF93: TRUE | AG93: 20028 | AH93: 141 | AI93: 116
B94: 63 | C94: Garret Heer | D94: Chisholm Trail | E94: 7 | F94: JHB | G94: =IF(AND(AE94,Q94>0),IF(ISNA(MATCH(AA94,$AA$1:$AA93,0)),0,1),"") -> 0 | H94: =IF(U94="","",OFFSET(Times!$A$1,Q94,U94)) -> 1259 | I94: 629.5 | J94: 3 | K94: 60 | L94: 53 | M94: =MATCH(F94,Races!$C:$C,0)-1 -> 2 | N94: =OFFSET(Races!$A$1,M94,1) -> JHB | O94: =IF(Bibs,MATCH(N94,Bibs!$1:$1,0),"") ->  | P94: =IF(Bibs,MATCH(A94,OFFSET(Bibs!$A$1,1,O94-1,1500,1),0),"") ->  | Q94: 63 | R94: 20063 | S94: 263 | T94: 203 | U94: =IF(Q94>0,MATCH(N94,Times!$1:$1,0)-1,"") -> 2 | V94: =OFFSET(Races!$F$1,M94,0) -> 2 | W94: 389.5 | X94: =MATCH(D94,Teams!$C:$C,0)-1 -> 7 | Y94: 207 | Z94: =MATCH(OFFSET(Teams!$C$1,X94,-1),Teams!B:B,0)-1 -> 7 | AA94: 2070063 | AB94: 231 | AC94: 228 | AD94: 7 | AE94: =IF(E94>0,AND(E94>=OFFSET(Races!$G$1,M94,0),E94<=OFFSET(Races!$H$1,M94,0)),TRUE) -> TRUE | AF94: TRUE | AG94: 20063 | AH94: 169 | AI94: 116
B95: 173 | C95: Hayden Anconetani | D95: Chisholm Trail | E95: 7 | F95: JHB | G95: =IF(AND(AE95,Q95>0),IF(ISNA(MATCH(AA95,$AA$1:$AA94,0)),0,1),"") -> 0 | H95: =IF(U95="","",OFFSET(Times!$A$1,Q95,U95)) -> 1535 | I95: 747.5 | J95: 5 | K95: 166 | L95: 134 | M95: =MATCH(F95,Races!$C:$C,0)-1 -> 2 | N95: =OFFSET(Races!$A$1,M95,1) -> JHB | O95: =IF(Bibs,MATCH(N95,Bibs!$1:$1,0),"") ->  | P95: =IF(Bibs,MATCH(A95,OFFSET(Bibs!$A$1,1,O95-1,1500,1),0),"") ->  | Q95: 173 | R95: 20173 | S95: 369 | T95: 203 | U95: =IF(Q95>0,MATCH(N95,Times!$1:$1,0)-1,"") -> 2 | V95: =OFFSET(Races!$F$1,M95,0) -> 2 | W95: 467.5 | X95: =MATCH(D95,Teams!$C:$C,0)-1 -> 7 | Y95: 207 | Z95: =MATCH(OFFSET(Teams!$C$1,X95,-1),Teams!B:B,0)-1 -> 7 | AA95: 2070173 | AB95: 233 | AC95: 228 | AD95: 7 | AE95: =IF(E95>0,AND(E95>=OFFSET(Races!$G$1,M95,0),E95<=OFFSET(Races!$H$1,M95,0)),TRUE) -> TRUE | AF95: TRUE | AG95: 20173 | AH95: 250 | AI95: 116
B96: 249 | C96: Peter Giannoules | D96: Chisholm Trail | E96: 7 | F96: JHB | G96: =IF(AND(AE96,Q96>0),IF(ISNA(MATCH(AA96,$AA$1:$AA95,0)),0,1),"") -> 0 | H96: =IF(U96="","",OFFSET(Times!$A$1,Q96,U96)) -> 2540 | I96: 1250 | J96: 7 | K96: 234 | L96: 173 | M96: =MATCH(F96,Races!$C:$C,0)-1 -> 2 | N96: =OFFSET(Races!$A$1,M96,1) -> JHB | O96: =IF(Bibs,MATCH(N96,Bibs!$1:$1,0),"") ->  | P96: =IF(Bibs,MATCH(A96,OFFSET(Bibs!$A$1,1,O96-1,1500,1),0),"") ->  | Q96: 249 | R96: 20249 | S96: 437 | T96: 203 | U96: =IF(Q96>0,MATCH(N96,Times!$1:$1,0)-1,"") -> 2 | V96: =OFFSET(Races!$F$1,M96,0) -> 2 | W96: 770 | X96: =MATCH(D96,Teams!$C:$C,0)-1 -> 7 | Y96: 207 | Z96: =MATCH(OFFSET(Teams!$C$1,X96,-1),Teams!B:B,0)-1 -> 7 | AA96: 2070249 | AB96: 235 | AC96: 228 | AD96: 7 | AE96: =IF(E96>0,AND(E96>=OFFSET(Races!$G$1,M96,0),E96<=OFFSET(Races!$H$1,M96,0)),TRUE) -> TRUE | AF96: TRUE | AG96: 20249 | AH96: 289 | AI96: 116
B97: 34 | C97: Sebastian Roman | D97: Chisholm Trail | F97: JHB | G97: =IF(AND(AE97,Q97>0),IF(ISNA(MATCH(AA97,$AA$1:$AA96,0)),0,1),"") -> 0 | H97: =IF(U97="","",OFFSET(Times!$A$1,Q97,U97)) -> 1230 | I97: 615 | J97: 2 | K97: 34 | L97: 30 | M97: =MATCH(F97,Races!$C:$C,0)-1 -> 2 | N97: =OFFSET(Races!$A$1,M97,1) -> JHB | O97: =IF(Bibs,MATCH(N97,Bibs!$1:$1,0),"") ->  | P97: =IF(Bibs,MATCH(A97,OFFSET(Bibs!$A$1,1,O97-1,1500,1),0),"") ->  | Q97: 34 | R97: 20034 | S97: 237 | T97: 203 | U97: =IF(Q97>0,MATCH(N97,Times!$1:$1,0)-1,"") -> 2 | V97: =OFFSET(Races!$F$1,M97,0) -> 2 | W97: 375 | X97: =MATCH(D97,Teams!$C:$C,0)-1 -> 7 | Y97: 207 | Z97: =MATCH(OFFSET(Teams!$C$1,X97,-1),Teams!B:B,0)-1 -> 7 | AA97: 2070034 | AB97: 230 | AC97: 228 | AD97: 7 | AE97: =IF(E97>0,AND(E97>=OFFSET(Races!$G$1,M97,0),E97<=OFFSET(Races!$H$1,M97,0)),TRUE) -> TRUE | AF97: TRUE | AG97: 20034 | AH97: 146 | AI97: 116
B98: 44 | C98: Ardys Nester | D98: Chisholm Trail | F98: JHG | G98: =IF(AND(AE98,Q98>0),IF(ISNA(MATCH(AA98,$AA$1:$AA97,0)),0,1),"") -> 0 | H98: =IF(U98="","",OFFSET(Times!$A$1,Q98,U98)) -> 1413 | I98: 706.5 | J98: 2 | K98: 41 | L98: 32 | M98: =MATCH(F98,Races!$C:$C,0)-1 -> 1 | N98: =OFFSET(Races!$A$1,M98,1) -> JHG | O98: =IF(Bibs,MATCH(N98,Bibs!$1:$1,0),"") ->  | P98: =IF(Bibs,MATCH(A98,OFFSET(Bibs!$A$1,1,O98-1,1500,1),0),"") ->  | Q98: 44 | R98: 10044 | S98: 41 | T98: 0 | U98: =IF(Q98>0,MATCH(N98,Times!$1:$1,0)-1,"") -> 0 | V98: =OFFSET(Races!$F$1,M98,0) -> 2 | W98: 426.5 | X98: =MATCH(D98,Teams!$C:$C,0)-1 -> 7 | Y98: 107 | Z98: =MATCH(OFFSET(Teams!$C$1,X98,-1),Teams!B:B,0)-1 -> 7 | AA98: 1070044 | AB98: 28 | AC98: 26 | AD98: 8 | AE98: =IF(E98>0,AND(E98>=OFFSET(Races!$G$1,M98,0),E98<=OFFSET(Races!$H$1,M98,0)),TRUE) -> TRUE | AF98: TRUE | AG98: 10044 | AH98: 32 | AI98: 0
B99: 22 | C99: Ariel Neal | D99: Chisholm Trail | E99: 8 | F99: JHG | G99: =IF(AND(AE99,Q99>0),IF(ISNA(MATCH(AA99,$AA$1:$AA98,0)),0,1),"") -> 0 | H99: =IF(U99="","",OFFSET(Times!$A$1,Q99,U99)) -> 1346 | I99: 653 | J99: 1 | K99: 19 | L99: 15 | M99: =MATCH(F99,Races!$C:$C,0)-1 -> 1 | N99: =OFFSET(Races!$A$1,M99,1) -> JHG | O99: =IF(Bibs,MATCH(N99,Bibs!$1:$1,0),"") ->  | P99: =IF(Bibs,MATCH(A99,OFFSET(Bibs!$A$1,1,O99-1,1500,1),0),"") ->  | Q99: 22 | R99: 10022 | S99: 19 | T99: 0 | U99: =IF(Q99>0,MATCH(N99,Times!$1:$1,0)-1,"") -> 0 | V99: =OFFSET(Races!$F$1,M99,0) -> 2 | W99: 413 | X99: =MATCH(D99,Teams!$C:$C,0)-1 -> 7 | Y99: 107 | Z99: =MATCH(OFFSET(Teams!$C$1,X99,-1),Teams!B:B,0)-1 -> 7 | AA99: 1070022 | AB99: 27 | AC99: 26 | AD99: 8 | AE99: =IF(E99>0,AND(E99>=OFFSET(Races!$G$1,M99,0),E99<=OFFSET(Races!$H$1,M99,0)),TRUE) -> TRUE | AF99: TRUE | AG99: 10022 | AH99: 15 | AI99: 0
B100: 56 | C100: Ava Horvath | D100: Chisholm Trail | E100: 7 | F100: JHG | G100: =IF(AND(AE100,Q100>0),IF(ISNA(MATCH(AA100,$AA$1:$AA99,0)),0,1),"") -> 0 | H100: =IF(U100="","",OFFSET(Times!$A$1,Q100,U100)) -> 1428 | I100: 714 | J100: 3 | K100: 52 | L100: 39 | M100: =MATCH(F100,Races!$C:$C,0)-1 -> 1 | N100: =OFFSET(Races!$A$1,M100,1) -> JHG | O100: =IF(Bibs,MATCH(N100,Bibs!$1:$1,0),"") ->  | P100: =IF(Bibs,MATCH(A100,OFFSET(Bibs!$A$1,1,O100-1,1500,1),0),"") ->  | Q100: 56 | R100: 10056 | S100: 52 | T100: 0 | U100: =IF(Q100>0,MATCH(N100,Times!$1:$1,0)-1,"") -> 0 | V100: =OFFSET(Races!$F$1,M100,0) -> 2 | W100: 434 | X100: =MATCH(D100,Teams!$C:$C,0)-1 -> 7 | Y100: 107 | Z100: =MATCH(OFFSET(Teams!$C$1,X100,-1),Teams!B:B,0)-1 -> 7 | AA100: 1070056 | AB100: 29 | AC100: 26 | AD100: 8 | AE100: =IF(E100>0,AND(E100>=OFFSET(Races!$G$1,M100,0),E100<=OFFSET(Races!$H$1,M100,0)),TRUE) -> TRUE | AF100: TRUE | AG100: 10056 | AH100: 39 | AI100: 0
B101: 175 | C101: Bethanie Farmer | D101: Chisholm Trail | E101: 8 | F101: JHG | G101: =IF(AND(AE101,Q101>0),IF(ISNA(MATCH(AA101,$AA$1:$AA100,0)),0,1),"") -> 0 | H101: =IF(U101="","",OFFSET(Times!$A$1,Q101,U101)) -> 1709 | I101: 834.5 | J101: 7 | K101: 153 | L101: 107 | M101: =MATCH(F101,Races!$C:$C,0)-1 -> 1 | N101: =OFFSET(Races!$A$1,M101,1) -> JHG | O101: =IF(Bibs,MATCH(N101,Bibs!$1:$1,0),"") ->  | P101: =IF(Bibs,MATCH(A101,OFFSET(Bibs!$A$1,1,O101-1,1500,1),0),"") ->  | Q101: 175 | R101: 10175 | S101: 153 | T101: 0 | U101: =IF(Q101>0,MATCH(N101,Times!$1:$1,0)-1,"") -> 0 | V101: =OFFSET(Races!$F$1,M101,0) -> 2 | W101: 514.5 | X101: =MATCH(D101,Teams!$C:$C,0)-1 -> 7 | Y101: 107 | Z101: =MATCH(OFFSET(Teams!$C$1,X101,-1),Teams!B:B,0)-1 -> 7 | AA101: 1070175 | AB101: 33 | AC101: 26 | AD101: 8 | AE101: =IF(E101>0,AND(E101>=OFFSET(Races!$G$1,M101,0),E101<=OFFSET(Races!$H$1,M101,0)),TRUE) -> TRUE | AF101: TRUE | AG101: 10175 | AH101: 107 | AI101: 0
B102: 168 | C102: Cayman Coleman | D102: Chisholm Trail | E102: 8 | F102: JHG | G102: =IF(AND(AE102,Q102>0),IF(ISNA(MATCH(AA102,$AA$1:$AA101,0)),0,1),"") -> 0 | H102: =IF(U102="","",OFFSET(Times!$A$1,Q102,U102)) -> 1659 | I102: 829.5 | J102: 6 | K102: 148 | L102: 105 | M102: =MATCH(F102,Races!$C:$C,0)-1 -> 1 | N102: =OFFSET(Races!$A$1,M102,1) -> JHG | O102: =IF(Bibs,MATCH(N102,Bibs!$1:$1,0),"") ->  | P102: =IF(Bibs,MATCH(A102,OFFSET(Bibs!$A$1,1,O102-1,1500,1),0),"") ->  | Q102: 168 | R102: 10168 | S102: 148 | T102: 0 | U102: =IF(Q102>0,MATCH(N102,Times!$1:$1,0)-1,"") -> 0 | V102: =OFFSET(Races!$F$1,M102,0) -> 2 | W102: 509.5 | X102: =MATCH(D102,Teams!$C:$C,0)-1 -> 7 | Y102: 107 | Z102: =MATCH(OFFSET(Teams!$C$1,X102,-1),Teams!B:B,0)-1 -> 7 | AA102: 1070168 | AB102: 32 | AC102: 26 | AD102: 8 | AE102: =IF(E102>0,AND(E102>=OFFSET(Races!$G$1,M102,0),E102<=OFFSET(Races!$H$1,M102,0)),TRUE) -> TRUE | AF102: TRUE | AG102: 10168 | AH102: 105 | AI102: 0
B103: 190 | C103: Karly Cook | D103: Chisholm Trail | F103: JHG | G103: =IF(AND(AE103,Q103>0),IF(ISNA(MATCH(AA103,$AA$1:$AA102,0)),0,1),"") -> 0 | H103: =IF(U103="","",OFFSET(Times!$A$1,Q103,U103)) -> 1745 | I103: 852.5 | J103: 8 | K103: 168 | L103: X | M103: =MATCH(F103,Races!$C:$C,0)-1 -> 1 | N103: =OFFSET(Races!$A$1,M103,1) -> JHG | O103: =IF(Bibs,MATCH(N103,Bibs!$1:$1,0),"") ->  | P103: =IF(Bibs,MATCH(A103,OFFSET(Bibs!$A$1,1,O103-1,1500,1),0),"") ->  | Q103: 190 | R103: 10190 | S103: 168 | T103: 0 | U103: =IF(Q103>0,MATCH(N103,Times!$1:$1,0)-1,"") -> 0 | V103: =OFFSET(Races!$F$1,M103,0) -> 2 | W103: 532.5 | X103: =MATCH(D103,Teams!$C:$C,0)-1 -> 7 | Y103: 107 | Z103: =MATCH(OFFSET(Teams!$C$1,X103,-1),Teams!B:B,0)-1 -> 7 | AA103: 1070190 | AB103: 34 | AC103: 26 | AD103: 8 | AE103: =IF(E103>0,AND(E103>=OFFSET(Races!$G$1,M103,0),E103<=OFFSET(Races!$H$1,M103,0)),TRUE) -> TRUE | AF103: FALSE
B104: 63 | C104: Lydie Penjande | D104: Chisholm Trail | F104: JHG | G104: =IF(AND(AE104,Q104>0),IF(ISNA(MATCH(AA104,$AA$1:$AA103,0)),0,1),"") -> 0 | H104: =IF(U104="","",OFFSET(Times!$A$1,Q104,U104)) -> 1435 | I104: 717.5 | J104: 4 | K104: 59 | L104: 45 | M104: =MATCH(F104,Races!$C:$C,0)-1 -> 1 | N104: =OFFSET(Races!$A$1,M104,1) -> JHG | O104: =IF(Bibs,MATCH(N104,Bibs!$1:$1,0),"") ->  | P104: =IF(Bibs,MATCH(A104,OFFSET(Bibs!$A$1,1,O104-1,1500,1),0),"") ->  | Q104: 63 | R104: 10063 | S104: 59 | T104: 0 | U104: =IF(Q104>0,MATCH(N104,Times!$1:$1,0)-1,"") -> 0 | V104: =OFFSET(Races!$F$1,M104,0) -> 2 | W104: 437.5 | X104: =MATCH(D104,Teams!$C:$C,0)-1 -> 7 | Y104: 107 | Z104: =MATCH(OFFSET(Teams!$C$1,X104,-1),Teams!B:B,0)-1 -> 7 | AA104: 1070063 | AB104: 30 | AC104: 26 | AD104: 8 | AE104: =IF(E104>0,AND(E104>=OFFSET(Races!$G$1,M104,0),E104<=OFFSET(Races!$H$1,M104,0)),TRUE) -> TRUE | AF104: TRUE | AG104: 10063 | AH104: 45 | AI104: 0
B105: 93 | C105: Megan Sarrase | D105: Chisholm Trail | F105: JHG | G105: =IF(AND(AE105,Q105>0),IF(ISNA(MATCH(AA105,$AA$1:$AA104,0)),0,1),"") -> 0 | H105: =IF(U105="","",OFFSET(Times!$A$1,Q105,U105)) -> 1517 | I105: 738.5 | J105: 5 | K105: 84 | L105: 63 | M105: =MATCH(F105,Races!$C:$C,0)-1 -> 1 | N105: =OFFSET(Races!$A$1,M105,1) -> JHG | O105: =IF(Bibs,MATCH(N105,Bibs!$1:$1,0),"") ->  | P105: =IF(Bibs,MATCH(A105,OFFSET(Bibs!$A$1,1,O105-1,1500,1),0),"") ->  | Q105: 93 | R105: 10093 | S105: 84 | T105: 0 | U105: =IF(Q105>0,MATCH(N105,Times!$1:$1,0)-1,"") -> 0 | V105: =OFFSET(Races!$F$1,M105,0) -> 2 | W105: 458.5 | X105: =MATCH(D105,Teams!$C:$C,0)-1 -> 7 | Y105: 107 | Z105: =MATCH(OFFSET(Teams!$C$1,X105,-1),Teams!B:B,0)-1 -> 7 | AA105: 1070093 | AB105: 31 | AC105: 26 | AD105: 8 | AE105: =IF(E105>0,AND(E105>=OFFSET(Races!$G$1,M105,0),E105<=OFFSET(Races!$H$1,M105,0)),TRUE) -> TRUE | AF105: TRUE | AG105: 10093 | AH105: 63 | AI105: 0
B106: 65 | C106: Jordyan Bahyak | D106: Deerpark Middle School | E106: 7 | F106: JHG | G106: =IF(AND(AE106,Q106>0),IF(ISNA(MATCH(AA106,$AA$1:$AA105,0)),0,1),"") -> 0 | H106: =IF(U106="","",OFFSET(Times!$A$1,Q106,U106)) -> 1437 | I106: 718.5 | J106: 1 | K106: 61 | L106: X | M106: =MATCH(F106,Races!$C:$C,0)-1 -> 1 | N106: =OFFSET(Races!$A$1,M106,1) -> JHG | O106: =IF(Bibs,MATCH(N106,Bibs!$1:$1,0),"") ->  | P106: =IF(Bibs,MATCH(A106,OFFSET(Bibs!$A$1,1,O106-1,1500,1),0),"") ->  | Q106: 65 | R106: 10065 | S106: 61 | T106: 0 | U106: =IF(Q106>0,MATCH(N106,Times!$1:$1,0)-1,"") -> 0 | V106: =OFFSET(Races!$F$1,M106,0) -> 2 | W106: 438.5 | X106: =MATCH(D106,Teams!$C:$C,0)-1 -> 10 | Y106: 110 | Z106: =MATCH(OFFSET(Teams!$C$1,X106,-1),Teams!B:B,0)-1 -> 10 | AA106: 1100065 | AB106: 55 | AC106: 54 | AD106: 1 | AE106: =IF(E106>0,AND(E106>=OFFSET(Races!$G$1,M106,0),E106<=OFFSET(Races!$H$1,M106,0)),TRUE) -> TRUE | AF106: FALSE
B107: 4 | C107: Dan Arnold | D107: Forbes | F107: JHB | G107: =IF(AND(AE107,Q107>0),IF(ISNA(MATCH(AA107,$AA$1:$AA106,0)),0,1),"") -> 0 | H107: =IF(U107="","",OFFSET(Times!$A$1,Q107,U107)) -> 1101 | I107: 530.5 | J107: 2 | K107: 4 | L107: 3 | M107: =MATCH(F107,Races!$C:$C,0)-1 -> 2 | N107: =OFFSET(Races!$A$1,M107,1) -> JHB | O107: =IF(Bibs,MATCH(N107,Bibs!$1:$1,0),"") ->  | P107: =IF(Bibs,MATCH(A107,OFFSET(Bibs!$A$1,1,O107-1,1500,1),0),"") ->  | Q107: 4 | R107: 20004 | S107: 207 | T107: 203 | U107: =IF(Q107>0,MATCH(N107,Times!$1:$1,0)-1,"") -> 2 | V107: =OFFSET(Races!$F$1,M107,0) -> 2 | W107: 330.5 | X107: =MATCH(D107,Teams!$C:$C,0)-1 -> 12 | Y107: 212 | Z107: =MATCH(OFFSET(Teams!$C$1,X107,-1),Teams!B:B,0)-1 -> 12 | AA107: 2120004 | AB107: 262 | AC107: 260 | AD107: 5 | AE107: =IF(E107>0,AND(E107>=OFFSET(Races!$G$1,M107,0),E107<=OFFSET(Races!$H$1,M107,0)),TRUE) -> TRUE | AF107: TRUE | AG107: 20004 | AH107: 119 | AI107: 116
B108: 2 | C108: Kanja Ignacio | D108: Forbes | F108: JHB | G108: =IF(AND(AE108,Q108>0),IF(ISNA(MATCH(AA108,$AA$1:$AA107,0)),0,1),"") -> 0 | H108: =IF(U108="","",OFFSET(Times!$A$1,Q108,U108)) -> 1052 | I108: 526 | J108: 1 | K108: 2 | L108: 1 | M108: =MATCH(F108,Races!$C:$C,0)-1 -> 2 | N108: =OFFSET(Races!$A$1,M108,1) -> JHB | O108: =IF(Bibs,MATCH(N108,Bibs!$1:$1,0),"") ->  | P108: =IF(Bibs,MATCH(A108,OFFSET(Bibs!$A$1,1,O108-1,1500,1),0),"") ->  | Q108: 2 | R108: 20002 | S108: 205 | T108: 203 | U108: =IF(Q108>0,MATCH(N108,Times!$1:$1,0)-1,"") -> 2 | V108: =OFFSET(Races!$F$1,M108,0) -> 2 | W108: 326 | X108: =MATCH(D108,Teams!$C:$C,0)-1 -> 12 | Y108: 212 | Z108: =MATCH(OFFSET(Teams!$C$1,X108,-1),Teams!B:B,0)-1 -> 12 | AA108: 2120002 | AB108: 261 | AC108: 260 | AD108: 5 | AE108: =IF(E108>0,AND(E108>=OFFSET(Races!$G$1,M108,0),E108<=OFFSET(Races!$H$1,M108,0)),TRUE) -> TRUE | AF108: TRUE | AG108: 20002 | AH108: 117 | AI108: 116
B109: 17 | C109: Logan Sauter | D109: Forbes | F109: JHB | G109: =IF(AND(AE109,Q109>0),IF(ISNA(MATCH(AA109,$AA$1:$AA108,0)),0,1),"") -> 0 | H109: =IF(U109="","",OFFSET(Times!$A$1,Q109,U109)) -> 1201 | I109: 600.5 | J109: 3 | K109: 17 | L109: 15 | M109: =MATCH(F109,Races!$C:$C,0)-1 -> 2 | N109: =OFFSET(Races!$A$1,M109,1) -> JHB | O109: =IF(Bibs,MATCH(N109,Bibs!$1:$1,0),"") ->  | P109: =IF(Bibs,MATCH(A109,OFFSET(Bibs!$A$1,1,O109-1,1500,1),0),"") ->  | Q109: 17 | R109: 20017 | S109: 220 | T109: 203 | U109: =IF(Q109>0,MATCH(N109,Times!$1:$1,0)-1,"") -> 2 | V109: =OFFSET(Races!$F$1,M109,0) -> 2 | W109: 360.5 | X109: =MATCH(D109,Teams!$C:$C,0)-1 -> 12 | Y109: 212 | Z109: =MATCH(OFFSET(Teams!$C$1,X109,-1),Teams!B:B,0)-1 -> 12 | AA109: 2120017 | AB109: 263 | AC109: 260 | AD109: 5 | AE109: =IF(E109>0,AND(E109>=OFFSET(Races!$G$1,M109,0),E109<=OFFSET(Races!$H$1,M109,0)),TRUE) -> TRUE | AF109: TRUE | AG109: 20017 | AH109: 131 | AI109: 116
B110: 94 | C110: Max Parney | D110: Forbes | F110: JHB | G110: =IF(AND(AE110,Q110>0),IF(ISNA(MATCH(AA110,$AA$1:$AA109,0)),0,1),"") -> 0 | H110: =IF(U110="","",OFFSET(Times!$A$1,Q110,U110)) -> 1342 | I110: 651 | J110: 4 | K110: 90 | L110: 79 | M110: =MATCH(F110,Races!$C:$C,0)-1 -> 2 | N110: =OFFSET(Races!$A$1,M110,1) -> JHB | O110: =IF(Bibs,MATCH(N110,Bibs!$1:$1,0),"") ->  | P110: =IF(Bibs,MATCH(A110,OFFSET(Bibs!$A$1,1,O110-1,1500,1),0),"") ->  | Q110: 94 | R110: 20094 | S110: 293 | T110: 203 | U110: =IF(Q110>0,MATCH(N110,Times!$1:$1,0)-1,"") -> 2 | V110: =OFFSET(Races!$F$1,M110,0) -> 2 | W110: 411 | X110: =MATCH(D110,Teams!$C:$C,0)-1 -> 12 | Y110: 212 | Z110: =MATCH(OFFSET(Teams!$C$1,X110,-1),Teams!B:B,0)-1 -> 12 | AA110: 2120094 | AB110: 264 | AC110: 260 | AD110: 5 | AE110: =IF(E110>0,AND(E110>=OFFSET(Races!$G$1,M110,0),E110<=OFFSET(Races!$H$1,M110,0)),TRUE) -> TRUE | AF110: TRUE | AG110: 20094 | AH110: 195 | AI110: 116
B111: 98 | C111: Sam Yannis | D111: Forbes | F111: JHB | G111: =IF(AND(AE111,Q111>0),IF(ISNA(MATCH(AA111,$AA$1:$AA110,0)),0,1),"") -> 0 | H111: =IF(U111="","",OFFSET(Times!$A$1,Q111,U111)) -> 1344 | I111: 652 | J111: 5 | K111: 94 | L111: 83 | M111: =MATCH(F111,Races!$C:$C,0)-1 -> 2 | N111: =OFFSET(Races!$A$1,M111,1) -> JHB | O111: =IF(Bibs,MATCH(N111,Bibs!$1:$1,0),"") ->  | P111: =IF(Bibs,MATCH(A111,OFFSET(Bibs!$A$1,1,O111-1,1500,1),0),"") ->  | Q111: 98 | R111: 20098 | S111: 297 | T111: 203 | U111: =IF(Q111>0,MATCH(N111,Times!$1:$1,0)-1,"") -> 2 | V111: =OFFSET(Races!$F$1,M111,0) -> 2 | W111: 412 | X111: =MATCH(D111,Teams!$C:$C,0)-1 -> 12 | Y111: 212 | Z111: =MATCH(OFFSET(Teams!$C$1,X111,-1),Teams!B:B,0)-1 -> 12 | AA111: 2120098 | AB111: 265 | AC111: 260 | AD111: 5 | AE111: =IF(E111>0,AND(E111>=OFFSET(Races!$G$1,M111,0),E111<=OFFSET(Races!$H$1,M111,0)),TRUE) -> TRUE | AF111: TRUE | AG111: 20098 | AH111: 199 | AI111: 116
B112: 67 | C112: Mary Brown | D112: Forbes | F112: JHG | G112: =IF(AND(AE112,Q112>0),IF(ISNA(MATCH(AA112,$AA$1:$AA111,0)),0,1),"") -> 0 | H112: =IF(U112="","",OFFSET(Times!$A$1,Q112,U112)) -> 1440 | I112: 720 | J112: 3 | K112: 63 | L112: 48 | M112: =MATCH(F112,Races!$C:$C,0)-1 -> 1 | N112: =OFFSET(Races!$A$1,M112,1) -> JHG | O112: =IF(Bibs,MATCH(N112,Bibs!$1:$1,0),"") ->  | P112: =IF(Bibs,MATCH(A112,OFFSET(Bibs!$A$1,1,O112-1,1500,1),0),"") ->  | Q112: 67 | R112: 10067 | S112: 63 | T112: 0 | U112: =IF(Q112>0,MATCH(N112,Times!$1:$1,0)-1,"") -> 0 | V112: =OFFSET(Races!$F$1,M112,0) -> 2 | W112: 440 | X112: =MATCH(D112,Teams!$C:$C,0)-1 -> 12 | Y112: 112 | Z112: =MATCH(OFFSET(Teams!$C$1,X112,-1),Teams!B:B,0)-1 -> 12 | AA112: 1120067 | AB112: 61 | AC112: 58 | AD112: 5 | AE112: =IF(E112>0,AND(E112>=OFFSET(Races!$G$1,M112,0),E112<=OFFSET(Races!$H$1,M112,0)),TRUE) -> TRUE | AF112: TRUE | AG112: 10067 | AH112: 48 | AI112: 0
B113: 122 | C113: Molly Duham | D113: Forbes | F113: JHG | G113: =IF(AND(AE113,Q113>0),IF(ISNA(MATCH(AA113,$AA$1:$AA112,0)),0,1),"") -> 0 | H113: =IF(U113="","",OFFSET(Times!$A$1,Q113,U113)) -> 1548 | I113: 754 | J113: 4 | K113: 110 | L113: 81 | M113: =MATCH(F113,Races!$C:$C,0)-1 -> 1 | N113: =OFFSET(Races!$A$1,M113,1) -> JHG | O113: =IF(Bibs,MATCH(N113,Bibs!$1:$1,0),"") ->  | P113: =IF(Bibs,MATCH(A113,OFFSET(Bibs!$A$1,1,O113-1,1500,1),0),"") ->  | Q113: 122 | R113: 10122 | S113: 110 | T113: 0 | U113: =IF(Q113>0,MATCH(N113,Times!$1:$1,0)-1,"") -> 0 | V113: =OFFSET(Races!$F$1,M113,0) -> 2 | W113: 474 | X113: =MATCH(D113,Teams!$C:$C,0)-1 -> 12 | Y113: 112 | Z113: =MATCH(OFFSET(Teams!$C$1,X113,-1),Teams!B:B,0)-1 -> 12 | AA113: 1120122 | AB113: 62 | AC113: 58 | AD113: 5 | AE113: =IF(E113>0,AND(E113>=OFFSET(Races!$G$1,M113,0),E113<=OFFSET(Races!$H$1,M113,0)),TRUE) -> TRUE | AF113: TRUE | AG113: 10122 | AH113: 81 | AI113: 0
B114: 36 | C114: Ronie Fenton | D114: Forbes | F114: JHG | G114: =IF(AND(AE114,Q114>0),IF(ISNA(MATCH(AA114,$AA$1:$AA113,0)),0,1),"") -> 0 | H114: =IF(U114="","",OFFSET(Times!$A$1,Q114,U114)) -> 1408 | I114: 704 | J114: 2 | K114: 33 | L114: 27 | M114: =MATCH(F114,Races!$C:$C,0)-1 -> 1 | N114: =OFFSET(Races!$A$1,M114,1) -> JHG | O114: =IF(Bibs,MATCH(N114,Bibs!$1:$1,0),"") ->  | P114: =IF(Bibs,MATCH(A114,OFFSET(Bibs!$A$1,1,O114-1,1500,1),0),"") ->  | Q114: 36 | R114: 10036 | S114: 33 | T114: 0 | U114: =IF(Q114>0,MATCH(N114,Times!$1:$1,0)-1,"") -> 0 | V114: =OFFSET(Races!$F$1,M114,0) -> 2 | W114: 424 | X114: =MATCH(D114,Teams!$C:$C,0)-1 -> 12 | Y114: 112 | Z114: =MATCH(OFFSET(Teams!$C$1,X114,-1),Teams!B:B,0)-1 -> 12 | AA114: 1120036 | AB114: 60 | AC114: 58 | AD114: 5 | AE114: =IF(E114>0,AND(E114>=OFFSET(Races!$G$1,M114,0),E114<=OFFSET(Races!$H$1,M114,0)),TRUE) -> TRUE | AF114: TRUE | AG114: 10036 | AH114: 27 | AI114: 0
B115: 28 | C115: Sarah Fischer | D115: Forbes | F115: JHG | G115: =IF(AND(AE115,Q115>0),IF(ISNA(MATCH(AA115,$AA$1:$AA114,0)),0,1),"") -> 0 | H115: =IF(U115="","",OFFSET(Times!$A$1,Q115,U115)) -> 1355 | I115: 657.5 | J115: 1 | K115: 25 | L115: 21 | M115: =MATCH(F115,Races!$C:$C,0)-1 -> 1 | N115: =OFFSET(Races!$A$1,M115,1) -> JHG | O115: =IF(Bibs,MATCH(N115,Bibs!$1:$1,0),"") ->  | P115: =IF(Bibs,MATCH(A115,OFFSET(Bibs!$A$1,1,O115-1,1500,1),0),"") ->  | Q115: 28 | R115: 10028 | S115: 25 | T115: 0 | U115: =IF(Q115>0,MATCH(N115,Times!$1:$1,0)-1,"") -> 0 | V115: =OFFSET(Races!$F$1,M115,0) -> 2 | W115: 417.5 | X115: =MATCH(D115,Teams!$C:$C,0)-1 -> 12 | Y115: 112 | Z115: =MATCH(OFFSET(Teams!$C$1,X115,-1),Teams!B:B,0)-1 -> 12 | AA115: 1120028 | AB115: 59 | AC115: 58 | AD115: 5 | AE115: =IF(E115>0,AND(E115>=OFFSET(Races!$G$1,M115,0),E115<=OFFSET(Races!$H$1,M115,0)),TRUE) -> TRUE | AF115: TRUE | AG115: 10028 | AH115: 21 | AI115: 0
B116: 129 | C116: Tehillan Leupold | D116: Forbes | F116: JHG | G116: =IF(AND(AE116,Q116>0),IF(ISNA(MATCH(AA116,$AA$1:$AA115,0)),0,1),"") -> 0 | H116: =IF(U116="","",OFFSET(Times!$A$1,Q116,U116)) -> 1554 | I116: 757 | J116: 5 | K116: 116 | L116: 87 | M116: =MATCH(F116,Races!$C:$C,0)-1 -> 1 | N116: =OFFSET(Races!$A$1,M116,1) -> JHG | O116: =IF(Bibs,MATCH(N116,Bibs!$1:$1,0),"") ->  | P116: =IF(Bibs,MATCH(A116,OFFSET(Bibs!$A$1,1,O116-1,1500,1),0),"") ->  | Q116: 129 | R116: 10129 | S116: 116 | T116: 0 | U116: =IF(Q116>0,MATCH(N116,Times!$1:$1,0)-1,"") -> 0 | V116: =OFFSET(Races!$F$1,M116,0) -> 2 | W116: 477 | X116: =MATCH(D116,Teams!$C:$C,0)-1 -> 12 | Y116: 112 | Z116: =MATCH(OFFSET(Teams!$C$1,X116,-1),Teams!B:B,0)-1 -> 12 | AA116: 1120129 | AB116: 63 | AC116: 58 | AD116: 5 | AE116: =IF(E116>0,AND(E116>=OFFSET(Races!$G$1,M116,0),E116<=OFFSET(Races!$H$1,M116,0)),TRUE) -> TRUE | AF116: TRUE | AG116: 10129 | AH116: 87 | AI116: 0
B117: 119 | C117: Brayden Watson | D117: Founders Classical | F117: JHB | G117: =IF(AND(AE117,Q117>0),IF(ISNA(MATCH(AA117,$AA$1:$AA116,0)),0,1),"") -> 0 | H117: =IF(U117="","",OFFSET(Times!$A$1,Q117,U117)) -> 1403 | I117: 701.5 | J117: 3 | K117: 115 | L117: 100 | M117: =MATCH(F117,Races!$C:$C,0)-1 -> 2 | N117: =OFFSET(Races!$A$1,M117,1) -> JHB | O117: =IF(Bibs,MATCH(N117,Bibs!$1:$1,0),"") ->  | P117: =IF(Bibs,MATCH(A117,OFFSET(Bibs!$A$1,1,O117-1,1500,1),0),"") ->  | Q117: 119 | R117: 20119 | S117: 318 | T117: 203 | U117: =IF(Q117>0,MATCH(N117,Times!$1:$1,0)-1,"") -> 2 | V117: =OFFSET(Races!$F$1,M117,0) -> 2 | W117: 421.5 | X117: =MATCH(D117,Teams!$C:$C,0)-1 -> 11 | Y117: 211 | Z117: =MATCH(OFFSET(Teams!$C$1,X117,-1),Teams!B:B,0)-1 -> 11 | AA117: 2110119 | AB117: 256 | AC117: 253 | AD117: 7 | AE117: =IF(E117>0,AND(E117>=OFFSET(Races!$G$1,M117,0),E117<=OFFSET(Races!$H$1,M117,0)),TRUE) -> TRUE | AF117: TRUE | AG117: 20119 | AH117: 216 | AI117: 116
B118: 159 | C118: Deven Watson | D118: Founders Classical | F118: JHB | G118: =IF(AND(AE118,Q118>0),IF(ISNA(MATCH(AA118,$AA$1:$AA117,0)),0,1),"") -> 0 | H118: =IF(U118="","",OFFSET(Times!$A$1,Q118,U118)) -> 1513 | I118: 736.5 | J118: 5 | K118: 154 | L118: 127 | M118: =MATCH(F118,Races!$C:$C,0)-1 -> 2 | N118: =OFFSET(Races!$A$1,M118,1) -> JHB | O118: =IF(Bibs,MATCH(N118,Bibs!$1:$1,0),"") ->  | P118: =IF(Bibs,MATCH(A118,OFFSET(Bibs!$A$1,1,O118-1,1500,1),0),"") ->  | Q118: 159 | R118: 20159 | S118: 357 | T118: 203 | U118: =IF(Q118>0,MATCH(N118,Times!$1:$1,0)-1,"") -> 2 | V118: =OFFSET(Races!$F$1,M118,0) -> 2 | W118: 456.5 | X118: =MATCH(D118,Teams!$C:$C,0)-1 -> 11 | Y118: 211 | Z118: =MATCH(OFFSET(Teams!$C$1,X118,-1),Teams!B:B,0)-1 -> 11 | AA118: 2110159 | AB118: 258 | AC118: 253 | AD118: 7 | AE118: =IF(E118>0,AND(E118>=OFFSET(Races!$G$1,M118,0),E118<=OFFSET(Races!$H$1,M118,0)),TRUE) -> TRUE | AF118: TRUE | AG118: 20159 | AH118: 243 | AI118: 116
B119: 160 | C119: Nathan Gallegar | D119: Founders Classical | F119: JHB | G119: =IF(AND(AE119,Q119>0),IF(ISNA(MATCH(AA119,$AA$1:$AA118,0)),0,1),"") -> 0 | H119: =IF(U119="","",OFFSET(Times!$A$1,Q119,U119)) -> 1517 | I119: 738.5 | J119: 6 | K119: 155 | L119: 128 | M119: =MATCH(F119,Races!$C:$C,0)-1 -> 2 | N119: =OFFSET(Races!$A$1,M119,1) -> JHB | O119: =IF(Bibs,MATCH(N119,Bibs!$1:$1,0),"") ->  | P119: =IF(Bibs,MATCH(A119,OFFSET(Bibs!$A$1,1,O119-1,1500,1),0),"") ->  | Q119: 160 | R119: 20160 | S119: 358 | T119: 203 | U119: =IF(Q119>0,MATCH(N119,Times!$1:$1,0)-1,"") -> 2 | V119: =OFFSET(Races!$F$1,M119,0) -> 2 | W119: 458.5 | X119: =MATCH(D119,Teams!$C:$C,0)-1 -> 11 | Y119: 211 | Z119: =MATCH(OFFSET(Teams!$C$1,X119,-1),Teams!B:B,0)-1 -> 11 | AA119: 2110160 | AB119: 259 | AC119: 253 | AD119: 7 | AE119: =IF(E119>0,AND(E119>=OFFSET(Races!$G$1,M119,0),E119<=OFFSET(Races!$H$1,M119,0)),TRUE) -> TRUE | AF119: TRUE | AG119: 20160 | AH119: 244 | AI119: 116
B120: 246 | C120: Owen Wheeless | D120: Founders Classical | F120: JHB | G120: =IF(AND(AE120,Q120>0),IF(ISNA(MATCH(AA120,$AA$1:$AA119,0)),0,1),"") -> 0 | H120: =IF(U120="","",OFFSET(Times!$A$1,Q120,U120)) -> 2510 | I120: 1235 | J120: 7 | K120: 231 | L120: 170 | M120: =MATCH(F120,Races!$C:$C,0)-1 -> 2 | N120: =OFFSET(Races!$A$1,M120,1) -> JHB | O120: =IF(Bibs,MATCH(N120,Bibs!$1:$1,0),"") ->  | P120: =IF(Bibs,MATCH(A120,OFFSET(Bibs!$A$1,1,O120-1,1500,1),0),"") ->  | Q120: 246 | R120: 20246 | S120: 434 | T120: 203 | U120: =IF(Q120>0,MATCH(N120,Times!$1:$1,0)-1,"") -> 2 | V120: =OFFSET(Races!$F$1,M120,0) -> 2 | W120: 755 | X120: =MATCH(D120,Teams!$C:$C,0)-1 -> 11 | Y120: 211 | Z120: =MATCH(OFFSET(Teams!$C$1,X120,-1),Teams!B:B,0)-1 -> 11 | AA120: 2110246 | AB120: 260 | AC120: 253 | AD120: 7 | AE120: =IF(E120>0,AND(E120>=OFFSET(Races!$G$1,M120,0),E120<=OFFSET(Races!$H$1,M120,0)),TRUE) -> TRUE | AF120: TRUE | AG120: 20246 | AH120: 286 | AI120: 116
B121: 104 | C121: Trevor Simmons | D121: Founders Classical | F121: JHB | G121: =IF(AND(AE121,Q121>0),IF(ISNA(MATCH(AA121,$AA$1:$AA120,0)),0,1),"") -> 0 | H121: =IF(U121="","",OFFSET(Times!$A$1,Q121,U121)) -> 1348 | I121: 654 | J121: 2 | K121: 100 | L121: 87 | M121: =MATCH(F121,Races!$C:$C,0)-1 -> 2 | N121: =OFFSET(Races!$A$1,M121,1) -> JHB | O121: =IF(Bibs,MATCH(N121,Bibs!$1:$1,0),"") ->  | P121: =IF(Bibs,MATCH(A121,OFFSET(Bibs!$A$1,1,O121-1,1500,1),0),"") ->  | Q121: 104 | R121: 20104 | S121: 303 | T121: 203 | U121: =IF(Q121>0,MATCH(N121,Times!$1:$1,0)-1,"") -> 2 | V121: =OFFSET(Races!$F$1,M121,0) -> 2 | W121: 414 | X121: =MATCH(D121,Teams!$C:$C,0)-1 -> 11 | Y121: 211 | Z121: =MATCH(OFFSET(Teams!$C$1,X121,-1),Teams!B:B,0)-1 -> 11 | AA121: 2110104 | AB121: 255 | AC121: 253 | AD121: 7 | AE121: =IF(E121>0,AND(E121>=OFFSET(Races!$G$1,M121,0),E121<=OFFSET(Races!$H$1,M121,0)),TRUE) -> TRUE | AF121: TRUE | AG121: 20104 | AH121: 203 | AI121: 116
B122: 139 | C122: Tucker Teddlie | D122: Founders Classical | F122: JHB | G122: =IF(AND(AE122,Q122>0),IF(ISNA(MATCH(AA122,$AA$1:$AA121,0)),0,1),"") -> 0 | H122: =IF(U122="","",OFFSET(Times!$A$1,Q122,U122)) -> 1429 | I122: 714.5 | J122: 4 | K122: 135 | L122: 113 | M122: =MATCH(F122,Races!$C:$C,0)-1 -> 2 | N122: =OFFSET(Races!$A$1,M122,1) -> JHB | O122: =IF(Bibs,MATCH(N122,Bibs!$1:$1,0),"") ->  | P122: =IF(Bibs,MATCH(A122,OFFSET(Bibs!$A$1,1,O122-1,1500,1),0),"") ->  | Q122: 139 | R122: 20139 | S122: 338 | T122: 203 | U122: =IF(Q122>0,MATCH(N122,Times!$1:$1,0)-1,"") -> 2 | V122: =OFFSET(Races!$F$1,M122,0) -> 2 | W122: 434.5 | X122: =MATCH(D122,Teams!$C:$C,0)-1 -> 11 | Y122: 211 | Z122: =MATCH(OFFSET(Teams!$C$1,X122,-1),Teams!B:B,0)-1 -> 11 | AA122: 2110139 | AB122: 257 | AC122: 253 | AD122: 7 | AE122: =IF(E122>0,AND(E122>=OFFSET(Races!$G$1,M122,0),E122<=OFFSET(Races!$H$1,M122,0)),TRUE) -> TRUE | AF122: TRUE | AG122: 20139 | AH122: 229 | AI122: 116
B123: 52 | C123: Zach Uelis | D123: Founders Classical | F123: JHB | G123: =IF(AND(AE123,Q123>0),IF(ISNA(MATCH(AA123,$AA$1:$AA122,0)),0,1),"") -> 0 | H123: =IF(U123="","",OFFSET(Times!$A$1,Q123,U123)) -> 1247 | I123: 623.5 | J123: 1 | K123: 50 | L123: 44 | M123: =MATCH(F123,Races!$C:$C,0)-1 -> 2 | N123: =OFFSET(Races!$A$1,M123,1) -> JHB | O123: =IF(Bibs,MATCH(N123,Bibs!$1:$1,0),"") ->  | P123: =IF(Bibs,MATCH(A123,OFFSET(Bibs!$A$1,1,O123-1,1500,1),0),"") ->  | Q123: 52 | R123: 20052 | S123: 253 | T123: 203 | U123: =IF(Q123>0,MATCH(N123,Times!$1:$1,0)-1,"") -> 2 | V123: =OFFSET(Races!$F$1,M123,0) -> 2 | W123: 383.5 | X123: =MATCH(D123,Teams!$C:$C,0)-1 -> 11 | Y123: 211 | Z123: =MATCH(OFFSET(Teams!$C$1,X123,-1),Teams!B:B,0)-1 -> 11 | AA123: 2110052 | AB123: 254 | AC123: 253 | AD123: 7 | AE123: =IF(E123>0,AND(E123>=OFFSET(Races!$G$1,M123,0),E123<=OFFSET(Races!$H$1,M123,0)),TRUE) -> TRUE | AF123: TRUE | AG123: 20052 | AH123: 160 | AI123: 116
B124: 176 | C124: Molra Ganegos | D124: Founders Classical | F124: JHG | G124: =IF(AND(AE124,Q124>0),IF(ISNA(MATCH(AA124,$AA$1:$AA123,0)),0,1),"") -> 0 | H124: =IF(U124="","",OFFSET(Times!$A$1,Q124,U124)) -> 1711 | I124: 835.5 | J124: 2 | K124: 154 | L124: X | M124: =MATCH(F124,Races!$C:$C,0)-1 -> 1 | N124: =OFFSET(Races!$A$1,M124,1) -> JHG | O124: =IF(Bibs,MATCH(N124,Bibs!$1:$1,0),"") ->  | P124: =IF(Bibs,MATCH(A124,OFFSET(Bibs!$A$1,1,O124-1,1500,1),0),"") ->  | Q124: 176 | R124: 10176 | S124: 154 | T124: 0 | U124: =IF(Q124>0,MATCH(N124,Times!$1:$1,0)-1,"") -> 0 | V124: =OFFSET(Races!$F$1,M124,0) -> 2 | W124: 515.5 | X124: =MATCH(D124,Teams!$C:$C,0)-1 -> 11 | Y124: 111 | Z124: =MATCH(OFFSET(Teams!$C$1,X124,-1),Teams!B:B,0)-1 -> 11 | AA124: 1110176 | AB124: 57 | AC124: 55 | AD124: 3 | AE124: =IF(E124>0,AND(E124>=OFFSET(Races!$G$1,M124,0),E124<=OFFSET(Races!$H$1,M124,0)),TRUE) -> TRUE | AF124: FALSE
B125: 69 | C125: Paige Wohiejemuth | D125: Founders Classical | F125: JHG | G125: =IF(AND(AE125,Q125>0),IF(ISNA(MATCH(AA125,$AA$1:$AA124,0)),0,1),"") -> 0 | H125: =IF(U125="","",OFFSET(Times!$A$1,Q125,U125)) -> 1440 | I125: 720 | J125: 1 | K125: 65 | L125: X | M125: =MATCH(F125,Races!$C:$C,0)-1 -> 1 | N125: =OFFSET(Races!$A$1,M125,1) -> JHG | O125: =IF(Bibs,MATCH(N125,Bibs!$1:$1,0),"") ->  | P125: =IF(Bibs,MATCH(A125,OFFSET(Bibs!$A$1,1,O125-1,1500,1),0),"") ->  | Q125: 69 | R125: 10069 | S125: 65 | T125: 0 | U125: =IF(Q125>0,MATCH(N125,Times!$1:$1,0)-1,"") -> 0 | V125: =OFFSET(Races!$F$1,M125,0) -> 2 | W125: 440 | X125: =MATCH(D125,Teams!$C:$C,0)-1 -> 11 | Y125: 111 | Z125: =MATCH(OFFSET(Teams!$C$1,X125,-1),Teams!B:B,0)-1 -> 11 | AA125: 1110069 | AB125: 56 | AC125: 55 | AD125: 3 | AE125: =IF(E125>0,AND(E125>=OFFSET(Races!$G$1,M125,0),E125<=OFFSET(Races!$H$1,M125,0)),TRUE) -> TRUE | AF125: FALSE
B126: 226 | C126: Sarah Otto | D126: Founders Classical | F126: JHG | G126: =IF(AND(AE126,Q126>0),IF(ISNA(MATCH(AA126,$AA$1:$AA125,0)),0,1),"") -> 0 | H126: =IF(U126="","",OFFSET(Times!$A$1,Q126,U126)) -> 2100 | I126: 1030 | J126: 3 | K126: 198 | L126: X | M126: =MATCH(F126,Races!$C:$C,0)-1 -> 1 | N126: =OFFSET(Races!$A$1,M126,1) -> JHG | O126: =IF(Bibs,MATCH(N126,Bibs!$1:$1,0),"") ->  | P126: =IF(Bibs,MATCH(A126,OFFSET(Bibs!$A$1,1,O126-1,1500,1),0),"") ->  | Q126: 226 | R126: 10226 | S126: 198 | T126: 0 | U126: =IF(Q126>0,MATCH(N126,Times!$1:$1,0)-1,"") -> 0 | V126: =OFFSET(Races!$F$1,M126,0) -> 2 | W126: 630 | X126: =MATCH(D126,Teams!$C:$C,0)-1 -> 11 | Y126: 111 | Z126: =MATCH(OFFSET(Teams!$C$1,X126,-1),Teams!B:B,0)-1 -> 11 | AA126: 1110226 | AB126: 58 | AC126: 55 | AD126: 3 | AE126: =IF(E126>0,AND(E126>=OFFSET(Races!$G$1,M126,0),E126<=OFFSET(Races!$H$1,M126,0)),TRUE) -> TRUE | AF126: FALSE
B127: 30 | C127: Blanton | D127: Gateway College Prep | F127: JHB | G127: =IF(AND(AE127,Q127>0),IF(ISNA(MATCH(AA127,$AA$1:$AA126,0)),0,1),"") -> 0 | H127: =IF(U127="","",OFFSET(Times!$A$1,Q127,U127)) -> 1225 | I127: 612.5 | J127: 4 | K127: 30 | L127: 27 | M127: =MATCH(F127,Races!$C:$C,0)-1 -> 2 | N127: =OFFSET(Races!$A$1,M127,1) -> JHB | O127: =IF(Bibs,MATCH(N127,Bibs!$1:$1,0),"") ->  | P127: =IF(Bibs,MATCH(A127,OFFSET(Bibs!$A$1,1,O127-1,1500,1),0),"") ->  | Q127: 30 | R127: 20030 | S127: 233 | T127: 203 | U127: =IF(Q127>0,MATCH(N127,Times!$1:$1,0)-1,"") -> 2 | V127: =OFFSET(Races!$F$1,M127,0) -> 2 | W127: 372.5 | X127: =MATCH(D127,Teams!$C:$C,0)-1 -> 13 | Y127: 213 | Z127: =MATCH(OFFSET(Teams!$C$1,X127,-1),Teams!B:B,0)-1 -> 13 | AA127: 2130030 | AB127: 269 | AC127: 265 | AD127: 11 | AE127: =IF(E127>0,AND(E127>=OFFSET(Races!$G$1,M127,0),E127<=OFFSET(Races!$H$1,M127,0)),TRUE) -> TRUE | AF127: TRUE | AG127: 20030 | AH127: 143 | AI127: 116
B128: 113 | C128: Carston | D128: Gateway College Prep | F128: JHB | G128: =IF(AND(AE128,Q128>0),IF(ISNA(MATCH(AA128,$AA$1:$AA127,0)),0,1),"") -> 0 | H128: =IF(U128="","",OFFSET(Times!$A$1,Q128,U128)) -> 1355 | I128: 657.5 | J128: 7 | K128: 109 | L128: 95 | M128: =MATCH(F128,Races!$C:$C,0)-1 -> 2 | N128: =OFFSET(Races!$A$1,M128,1) -> JHB | O128: =IF(Bibs,MATCH(N128,Bibs!$1:$1,0),"") ->  | P128: =IF(Bibs,MATCH(A128,OFFSET(Bibs!$A$1,1,O128-1,1500,1),0),"") ->  | Q128: 113 | R128: 20113 | S128: 312 | T128: 203 | U128: =IF(Q128>0,MATCH(N128,Times!$1:$1,0)-1,"") -> 2 | V128: =OFFSET(Races!$F$1,M128,0) -> 2 | W128: 417.5 | X128: =MATCH(D128,Teams!$C:$C,0)-1 -> 13 | Y128: 213 | Z128: =MATCH(OFFSET(Teams!$C$1,X128,-1),Teams!B:B,0)-1 -> 13 | AA128: 2130113 | AB128: 272 | AC128: 265 | AD128: 11 | AE128: =IF(E128>0,AND(E128>=OFFSET(Races!$G$1,M128,0),E128<=OFFSET(Races!$H$1,M128,0)),TRUE) -> TRUE | AF128: TRUE | AG128: 20113 | AH128: 211 | AI128: 116
B129: 175 | C129: Envay | D129: Gateway College Prep | F129: JHB | G129: =IF(AND(AE129,Q129>0),IF(ISNA(MATCH(AA129,$AA$1:$AA128,0)),0,1),"") -> 0 | H129: =IF(U129="","",OFFSET(Times!$A$1,Q129,U129)) -> 1542 | I129: 751 | J129: 10 | K129: 168 | L129: X | M129: =MATCH(F129,Races!$C:$C,0)-1 -> 2 | N129: =OFFSET(Races!$A$1,M129,1) -> JHB | O129: =IF(Bibs,MATCH(N129,Bibs!$1:$1,0),"") ->  | P129: =IF(Bibs,MATCH(A129,OFFSET(Bibs!$A$1,1,O129-1,1500,1),0),"") ->  | Q129: 175 | R129: 20175 | S129: 371 | T129: 203 | U129: =IF(Q129>0,MATCH(N129,Times!$1:$1,0)-1,"") -> 2 | V129: =OFFSET(Races!$F$1,M129,0) -> 2 | W129: 471 | X129: =MATCH(D129,Teams!$C:$C,0)-1 -> 13 | Y129: 213 | Z129: =MATCH(OFFSET(Teams!$C$1,X129,-1),Teams!B:B,0)-1 -> 13 | AA129: 2130175 | AB129: 275 | AC129: 265 | AD129: 11 | AE129: =IF(E129>0,AND(E129>=OFFSET(Races!$G$1,M129,0),E129<=OFFSET(Races!$H$1,M129,0)),TRUE) -> TRUE | AF129: FALSE
B130: 6 | C130: Garza | D130: Gateway College Prep | F130: JHB | G130: =IF(AND(AE130,Q130>0),IF(ISNA(MATCH(AA130,$AA$1:$AA129,0)),0,1),"") -> 0 | H130: =IF(U130="","",OFFSET(Times!$A$1,Q130,U130)) -> 1112 | I130: =IF(W130="","",100*TRUNC(W130/60)+MOD(W130,60)) -> 536 | J130: =IF(AND(AE130,Q130>0),AB130-AC130,"") -> 1 | K130: =IF(Q130>0,S130-T130,"") -> 6 | L130: =IF(AF130,AH130-AI130,IF(Q130>0,"X","")) -> 5 | M130: =MATCH(F130,Races!$C:$C,0)-1 -> 2 | N130: =OFFSET(Races!$A$1,M130,1) -> JHB | O130: =IF(Bibs,MATCH(N130,Bibs!$1:$1,0),"") ->  | P130: =IF(Bibs,MATCH(A130,OFFSET(Bibs!$A$1,1,O130-1,1500,1),0),"") ->  | Q130: 6 | R130: 20006 | S130: 209 | T130: 203 | U130: =IF(Q130>0,MATCH(N130,Times!$1:$1,0)-1,"") -> 2 | V130: =OFFSET(Races!$F$1,M130,0) -> 2 | W130: =IF(AND(NOT(ISNA(U130)),Q130>0),(60*TRUNC(H130/100)+MOD(H130,100))/V130,"") -> 336 | X130: =MATCH(D130,Teams!$C:$C,0)-1 -> 13 | Y130: =IF(AND(AE130,Q130>0),100*M130+X130,"") -> 213 | Z130: =MATCH(OFFSET(Teams!$C$1,X130,-1),Teams!B:B,0)-1 -> 13 | AA130: =IF(AND(Q130>0,AE130),10000*Y130+Q130,"") -> 2130006 | AB130: =IF(AND(AE130,Q130>0),RANK(AA130,AA:AA,1),"") -> 266 | AC130: =COUNTIF(AA:AA,"<"&(10000*Y130)) -> 265 | AD130: =IF(AND(AE130,Q130>0),COUNTIF(Y:Y,"="&Y130),"") -> 11 | AE130: =IF(E130>0,AND(E130>=OFFSET(Races!$G$1,M130,0),E130<=OFFSET(Races!$H$1,M130,0)),TRUE) -> TRUE | AF130: =AND(AE130,AD130>=5,J130<=7) -> TRUE | AG130: =IF(AF130,10000*M130+Q130,"") -> 20006 | AH130: 121 | AI130: =IF(AF130,COUNTIF(AG:AG,"<"&(10000*M130)),"") -> 116
B131: 178 | C131: Gavin | D131: Gateway College Prep | F131: JHB | G131: =IF(AND(AE131,Q131>0),IF(ISNA(MATCH(AA131,$AA$1:$AA130,0)),0,1),"") -> 0 | H131: =IF(U131="","",OFFSET(Times!$A$1,Q131,U131)) -> 1552 | I131: 756 | J131: 11 | K131: 171 | L131: X | M131: =MATCH(F131,Races!$C:$C,0)-1 -> 2 | N131: =OFFSET(Races!$A$1,M131,1) -> JHB | O131: =IF(Bibs,MATCH(N131,Bibs!$1:$1,0),"") ->  | P131: =IF(Bibs,MATCH(A131,OFFSET(Bibs!$A$1,1,O131-1,1500,1),0),"") ->  | Q131: =IF(Bibs,P131,B131) -> 178 | R131: =IF(Q131,10000*M131+Q131,"") -> 20178 | S131: =IF(Q131>0,RANK(R131,R:R,1),"") -> 374 | T131: =IF(Q131>0,COUNTIF(R:R,"<"&(10000*M131)),"") -> 203 | U131: =IF(Q131>0,MATCH(N131,Times!$1:$1,0)-1,"") -> 2 | V131: =OFFSET(Races!$F$1,M131,0) -> 2 | W131: 476 | X131: =MATCH(D131,Teams!$C:$C,0)-1 -> 13 | Y131: 213 | Z131: =MATCH(OFFSET(Teams!$C$1,X131,-1),Teams!B:B,0)-1 -> 13 | AA131: 2130178 | AB131: 276 | AC131: 265 | AD131: 11 | AE131: =IF(E131>0,AND(E131>=OFFSET(Races!$G$1,M131,0),E131<=OFFSET(Races!$H$1,M131,0)),TRUE) -> TRUE | AF131: FALSE | AH131: =IF(AF131,RANK(AG131,AG:AG,1),"") -> 
B132: 115 | C132: LJ | D132: Gateway College Prep | F132: JHB | G132: =IF(AND(AE132,Q132>0),IF(ISNA(MATCH(AA132,$AA$1:$AA131,0)),0,1),"") -> 0 | H132: =IF(U132="","",OFFSET(Times!$A$1,Q132,U132)) -> 1359 | I132: 659.5 | J132: 8 | K132: 111 | L132: X | M132: =MATCH(F132,Races!$C:$C,0)-1 -> 2 | N132: =OFFSET(Races!$A$1,M132,1) -> JHB | O132: =IF(Bibs,MATCH(N132,Bibs!$1:$1,0),"") ->  | P132: =IF(Bibs,MATCH(A132,OFFSET(Bibs!$A$1,1,O132-1,1500,1),0),"") ->  | Q132: 115 | R132: 20115 | S132: 314 | T132: 203 | U132: =IF(Q132>0,MATCH(N132,Times!$1:$1,0)-1,"") -> 2 | V132: =OFFSET(Races!$F$1,M132,0) -> 2 | W132: 419.5 | X132: =MATCH(D132,Teams!$C:$C,0)-1 -> 13 | Y132: 213 | Z132: =MATCH(OFFSET(Teams!$C$1,X132,-1),Teams!B:B,0)-1 -> 13 | AA132: 2130115 | AB132: 273 | AC132: 265 | AD132: 11 | AE132: =IF(E132>0,AND(E132>=OFFSET(Races!$G$1,M132,0),E132<=OFFSET(Races!$H$1,M132,0)),TRUE) -> TRUE | AF132: FALSE
B133: 50 | C133: Mitchell | D133: Gateway College Prep | F133: JHB | G133: =IF(AND(AE133,Q133>0),IF(ISNA(MATCH(AA133,$AA$1:$AA132,0)),0,1),"") -> 0 | H133: =IF(U133="","",OFFSET(Times!$A$1,Q133,U133)) -> 1245 | I133: 622.5 | J133: 5 | K133: 48 | L133: 42 | M133: =MATCH(F133,Races!$C:$C,0)-1 -> 2 | N133: =OFFSET(Races!$A$1,M133,1) -> JHB | O133: =IF(Bibs,MATCH(N133,Bibs!$1:$1,0),"") ->  | P133: =IF(Bibs,MATCH(A133,OFFSET(Bibs!$A$1,1,O133-1,1500,1),0),"") ->  | Q133: 50 | R133: 20050 | S133: 251 | T133: 203 | U133: =IF(Q133>0,MATCH(N133,Times!$1:$1,0)-1,"") -> 2 | V133: =OFFSET(Races!$F$1,M133,0) -> 2 | W133: 382.5 | X133: =MATCH(D133,Teams!$C:$C,0)-1 -> 13 | Y133: 213 | Z133: =MATCH(OFFSET(Teams!$C$1,X133,-1),Teams!B:B,0)-1 -> 13 | AA133: 2130050 | AB133: 270 | AC133: 265 | AD133: 11 | AE133: =IF(E133>0,AND(E133>=OFFSET(Races!$G$1,M133,0),E133<=OFFSET(Races!$H$1,M133,0)),TRUE) -> TRUE | AF133: TRUE | AG133: 20050 | AH133: 158 | AI133: 116
B134: 105 | C134: Phillips | D134: Gateway College Prep | F134: JHB | G134: =IF(AND(AE134,Q134>0),IF(ISNA(MATCH(AA134,$AA$1:$AA133,0)),0,1),"") -> 0 | H134: =IF(U134="","",OFFSET(Times!$A$1,Q134,U134)) -> 1348 | I134: 654 | J134: 6 | K134: 101 | L134: 88 | M134: =MATCH(F134,Races!$C:$C,0)-1 -> 2 | N134: =OFFSET(Races!$A$1,M134,1) -> JHB | O134: =IF(Bibs,MATCH(N134,Bibs!$1:$1,0),"") ->  | P134: =IF(Bibs,MATCH(A134,OFFSET(Bibs!$A$1,1,O134-1,1500,1),0),"") ->  | Q134: 105 | R134: 20105 | S134: 304 | T134: 203 | U134: =IF(Q134>0,MATCH(N134,Times!$1:$1,0)-1,"") -> 2 | V134: =OFFSET(Races!$F$1,M134,0) -> 2 | W134: 414 | X134: =MATCH(D134,Teams!$C:$C,0)-1 -> 13 | Y134: 213 | Z134: =MATCH(OFFSET(Teams!$C$1,X134,-1),Teams!B:B,0)-1 -> 13 | AA134: 2130105 | AB134: 271 | AC134: 265 | AD134: 11 | AE134: =IF(E134>0,AND(E134>=OFFSET(Races!$G$1,M134,0),E134<=OFFSET(Races!$H$1,M134,0)),TRUE) -> TRUE | AF134: TRUE | AG134: 20105 | AH134: 204 | AI134: 116
B135: 155 | C135: Rimmingron | D135: Gateway College Prep | F135: JHB | G135: =IF(AND(AE135,Q135>0),IF(ISNA(MATCH(AA135,$AA$1:$AA134,0)),0,1),"") -> 0 | H135: =IF(U135="","",OFFSET(Times!$A$1,Q135,U135)) -> 1504 | I135: 732 | J135: 9 | K135: 150 | L135: X | M135: =MATCH(F135,Races!$C:$C,0)-1 -> 2 | N135: =OFFSET(Races!$A$1,M135,1) -> JHB | O135: =IF(Bibs,MATCH(N135,Bibs!$1:$1,0),"") ->  | P135: =IF(Bibs,MATCH(A135,OFFSET(Bibs!$A$1,1,O135-1,1500,1),0),"") ->  | Q135: 155 | R135: 20155 | S135: 353 | T135: 203 | U135: =IF(Q135>0,MATCH(N135,Times!$1:$1,0)-1,"") -> 2 | V135: =OFFSET(Races!$F$1,M135,0) -> 2 | W135: 452 | X135: =MATCH(D135,Teams!$C:$C,0)-1 -> 13 | Y135: 213 | Z135: =MATCH(OFFSET(Teams!$C$1,X135,-1),Teams!B:B,0)-1 -> 13 | AA135: 2130155 | AB135: 274 | AC135: 265 | AD135: 11 | AE135: =IF(E135>0,AND(E135>=OFFSET(Races!$G$1,M135,0),E135<=OFFSET(Races!$H$1,M135,0)),TRUE) -> TRUE | AF135: FALSE
B136: 19 | C136: Werhun | D136: Gateway College Prep | F136: JHB | G136: =IF(AND(AE136,Q136>0),IF(ISNA(MATCH(AA136,$AA$1:$AA135,0)),0,1),"") -> 0 | H136: =IF(U136="","",OFFSET(Times!$A$1,Q136,U136)) -> 1206 | I136: 603 | J136: 2 | K136: 19 | L136: 17 | M136: =MATCH(F136,Races!$C:$C,0)-1 -> 2 | N136: =OFFSET(Races!$A$1,M136,1) -> JHB | O136: =IF(Bibs,MATCH(N136,Bibs!$1:$1,0),"") ->  | P136: =IF(Bibs,MATCH(A136,OFFSET(Bibs!$A$1,1,O136-1,1500,1),0),"") ->  | Q136: 19 | R136: 20019 | S136: 222 | T136: 203 | U136: =IF(Q136>0,MATCH(N136,Times!$1:$1,0)-1,"") -> 2 | V136: =OFFSET(Races!$F$1,M136,0) -> 2 | W136: 363 | X136: =MATCH(D136,Teams!$C:$C,0)-1 -> 13 | Y136: 213 | Z136: =MATCH(OFFSET(Teams!$C$1,X136,-1),Teams!B:B,0)-1 -> 13 | AA136: 2130019 | AB136: 267 | AC136: 265 | AD136: 11 | AE136: =IF(E136>0,AND(E136>=OFFSET(Races!$G$1,M136,0),E136<=OFFSET(Races!$H$1,M136,0)),TRUE) -> TRUE | AF136: TRUE | AG136: 20019 | AH136: 133 | AI136: 116
B137: 20 | C137: West | D137: Gateway College Prep | F137: JHB | G137: =IF(AND(AE137,Q137>0),IF(ISNA(MATCH(AA137,$AA$1:$AA136,0)),0,1),"") -> 0 | H137: =IF(U137="","",OFFSET(Times!$A$1,Q137,U137)) -> 1207 | I137: 603.5 | J137: 3 | K137: 20 | L137: 18 | M137: =MATCH(F137,Races!$C:$C,0)-1 -> 2 | N137: =OFFSET(Races!$A$1,M137,1) -> JHB | O137: =IF(Bibs,MATCH(N137,Bibs!$1:$1,0),"") ->  | P137: =IF(Bibs,MATCH(A137,OFFSET(Bibs!$A$1,1,O137-1,1500,1),0),"") ->  | Q137: 20 | R137: 20020 | S137: 223 | T137: 203 | U137: =IF(Q137>0,MATCH(N137,Times!$1:$1,0)-1,"") -> 2 | V137: =OFFSET(Races!$F$1,M137,0) -> 2 | W137: 363.5 | X137: =MATCH(D137,Teams!$C:$C,0)-1 -> 13 | Y137: 213 | Z137: =MATCH(OFFSET(Teams!$C$1,X137,-1),Teams!B:B,0)-1 -> 13 | AA137: 2130020 | AB137: 268 | AC137: 265 | AD137: 11 | AE137: =IF(E137>0,AND(E137>=OFFSET(Races!$G$1,M137,0),E137<=OFFSET(Races!$H$1,M137,0)),TRUE) -> TRUE | AF137: TRUE | AG137: 20020 | AH137: 134 | AI137: 116
B138: 136 | C138: Alex | D138: Gateway College Prep | F138: JHG | G138: =IF(AND(AE138,Q138>0),IF(ISNA(MATCH(AA138,$AA$1:$AA137,0)),0,1),"") -> 0 | H138: =IF(U138="","",OFFSET(Times!$A$1,Q138,U138)) -> 1601 | I138: 800.5 | J138: 3 | K138: 122 | L138: 92 | M138: =MATCH(F138,Races!$C:$C,0)-1 -> 1 | N138: =OFFSET(Races!$A$1,M138,1) -> JHG | O138: =IF(Bibs,MATCH(N138,Bibs!$1:$1,0),"") ->  | P138: =IF(Bibs,MATCH(A138,OFFSET(Bibs!$A$1,1,O138-1,1500,1),0),"") ->  | Q138: 136 | R138: 10136 | S138: 122 | T138: 0 | U138: =IF(Q138>0,MATCH(N138,Times!$1:$1,0)-1,"") -> 0 | V138: =OFFSET(Races!$F$1,M138,0) -> 2 | W138: 480.5 | X138: =MATCH(D138,Teams!$C:$C,0)-1 -> 13 | Y138: 113 | Z138: =MATCH(OFFSET(Teams!$C$1,X138,-1),Teams!B:B,0)-1 -> 13 | AA138: 1130136 | AB138: 66 | AC138: 63 | AD138: 6 | AE138: =IF(E138>0,AND(E138>=OFFSET(Races!$G$1,M138,0),E138<=OFFSET(Races!$H$1,M138,0)),TRUE) -> TRUE | AF138: TRUE | AG138: 10136 | AH138: 92 | AI138: 0
B139: 163 | C139: Christen | D139: Gateway College Prep | F139: JHG | G139: =IF(AND(AE139,Q139>0),IF(ISNA(MATCH(AA139,$AA$1:$AA138,0)),0,1),"") -> 0 | H139: =IF(U139="","",OFFSET(Times!$A$1,Q139,U139)) -> 1643 | I139: 821.5 | J139: 5 | K139: 143 | L139: 103 | M139: =MATCH(F139,Races!$C:$C,0)-1 -> 1 | N139: =OFFSET(Races!$A$1,M139,1) -> JHG | O139: =IF(Bibs,MATCH(N139,Bibs!$1:$1,0),"") ->  | P139: =IF(Bibs,MATCH(A139,OFFSET(Bibs!$A$1,1,O139-1,1500,1),0),"") ->  | Q139: 163 | R139: 10163 | S139: 143 | T139: 0 | U139: =IF(Q139>0,MATCH(N139,Times!$1:$1,0)-1,"") -> 0 | V139: =OFFSET(Races!$F$1,M139,0) -> 2 | W139: 501.5 | X139: =MATCH(D139,Teams!$C:$C,0)-1 -> 13 | Y139: 113 | Z139: =MATCH(OFFSET(Teams!$C$1,X139,-1),Teams!B:B,0)-1 -> 13 | AA139: 1130163 | AB139: 68 | AC139: 63 | AD139: 6 | AE139: =IF(E139>0,AND(E139>=OFFSET(Races!$G$1,M139,0),E139<=OFFSET(Races!$H$1,M139,0)),TRUE) -> TRUE | AF139: TRUE | AG139: 10163 | AH139: 103 | AI139: 0
B140: 161 | C140: Hannah | D140: Gateway College Prep | F140: JHG | G140: =IF(AND(AE140,Q140>0),IF(ISNA(MATCH(AA140,$AA$1:$AA139,0)),0,1),"") -> 0 | H140: =IF(U140="","",OFFSET(Times!$A$1,Q140,U140)) -> 1638 | I140: 819 | J140: 4 | K140: 141 | L140: 102 | M140: =MATCH(F140,Races!$C:$C,0)-1 -> 1 | N140: =OFFSET(Races!$A$1,M140,1) -> JHG | O140: =IF(Bibs,MATCH(N140,Bibs!$1:$1,0),"") ->  | P140: =IF(Bibs,MATCH(A140,OFFSET(Bibs!$A$1,1,O140-1,1500,1),0),"") ->  | Q140: 161 | R140: 10161 | S140: 141 | T140: 0 | U140: =IF(Q140>0,MATCH(N140,Times!$1:$1,0)-1,"") -> 0 | V140: =OFFSET(Races!$F$1,M140,0) -> 2 | W140: 499 | X140: =MATCH(D140,Teams!$C:$C,0)-1 -> 13 | Y140: 113 | Z140: =MATCH(OFFSET(Teams!$C$1,X140,-1),Teams!B:B,0)-1 -> 13 | AA140: 1130161 | AB140: 67 | AC140: 63 | AD140: 6 | AE140: =IF(E140>0,AND(E140>=OFFSET(Races!$G$1,M140,0),E140<=OFFSET(Races!$H$1,M140,0)),TRUE) -> TRUE | AF140: TRUE | AG140: 10161 | AH140: 102 | AI140: 0
B141: 76 | C141: Maddy G | D141: Gateway College Prep | F141: JHG | G141: =IF(AND(AE141,Q141>0),IF(ISNA(MATCH(AA141,$AA$1:$AA140,0)),0,1),"") -> 0 | H141: =IF(U141="","",OFFSET(Times!$A$1,Q141,U141)) -> 1447 | I141: 723.5 | J141: 2 | K141: 71 | L141: 51 | M141: =MATCH(F141,Races!$C:$C,0)-1 -> 1 | N141: =OFFSET(Races!$A$1,M141,1) -> JHG | O141: =IF(Bibs,MATCH(N141,Bibs!$1:$1,0),"") ->  | P141: =IF(Bibs,MATCH(A141,OFFSET(Bibs!$A$1,1,O141-1,1500,1),0),"") ->  | Q141: 76 | R141: 10076 | S141: 71 | T141: 0 | U141: =IF(Q141>0,MATCH(N141,Times!$1:$1,0)-1,"") -> 0 | V141: =OFFSET(Races!$F$1,M141,0) -> 2 | W141: 443.5 | X141: =MATCH(D141,Teams!$C:$C,0)-1 -> 13 | Y141: 113 | Z141: =MATCH(OFFSET(Teams!$C$1,X141,-1),Teams!B:B,0)-1 -> 13 | AA141: 1130076 | AB141: 65 | AC141: 63 | AD141: 6 | AE141: =IF(E141>0,AND(E141>=OFFSET(Races!$G$1,M141,0),E141<=OFFSET(Races!$H$1,M141,0)),TRUE) -> TRUE | AF141: TRUE | AG141: 10076 | AH141: 51 | AI141: 0
B142: 52 | C142: Nichole | D142: Gateway College Prep | F142: JHG | G142: =IF(AND(AE142,Q142>0),IF(ISNA(MATCH(AA142,$AA$1:$AA141,0)),0,1),"") -> 0 | H142: =IF(U142="","",OFFSET(Times!$A$1,Q142,U142)) -> 1421 | I142: 710.5 | J142: 1 | K142: 48 | L142: 36 | M142: =MATCH(F142,Races!$C:$C,0)-1 -> 1 | N142: =OFFSET(Races!$A$1,M142,1) -> JHG | O142: =IF(Bibs,MATCH(N142,Bibs!$1:$1,0),"") ->  | P142: =IF(Bibs,MATCH(A142,OFFSET(Bibs!$A$1,1,O142-1,1500,1),0),"") ->  | Q142: 52 | R142: 10052 | S142: 48 | T142: 0 | U142: =IF(Q142>0,MATCH(N142,Times!$1:$1,0)-1,"") -> 0 | V142: =OFFSET(Races!$F$1,M142,0) -> 2 | W142: 430.5 | X142: =MATCH(D142,Teams!$C:$C,0)-1 -> 13 | Y142: 113 | Z142: =MATCH(OFFSET(Teams!$C$1,X142,-1),Teams!B:B,0)-1 -> 13 | AA142: 1130052 | AB142: 64 | AC142: 63 | AD142: 6 | AE142: =IF(E142>0,AND(E142>=OFFSET(Races!$G$1,M142,0),E142<=OFFSET(Races!$H$1,M142,0)),TRUE) -> TRUE | AF142: TRUE | AG142: 10052 | AH142: 36 | AI142: 0
B143: 218 | C143: Selker | D143: Gateway College Prep | F143: JHG | G143: =IF(AND(AE143,Q143>0),IF(ISNA(MATCH(AA143,$AA$1:$AA142,0)),0,1),"") -> 0 | H143: =IF(U143="","",OFFSET(Times!$A$1,Q143,U143)) -> 2006 | I143: 1003 | J143: 6 | K143: 193 | L143: 115 | M143: =MATCH(F143,Races!$C:$C,0)-1 -> 1 | N143: =OFFSET(Races!$A$1,M143,1) -> JHG | O143: =IF(Bibs,MATCH(N143,Bibs!$1:$1,0),"") ->  | P143: =IF(Bibs,MATCH(A143,OFFSET(Bibs!$A$1,1,O143-1,1500,1),0),"") ->  | Q143: 218 | R143: 10218 | S143: 193 | T143: 0 | U143: =IF(Q143>0,MATCH(N143,Times!$1:$1,0)-1,"") -> 0 | V143: =OFFSET(Races!$F$1,M143,0) -> 2 | W143: 603 | X143: =MATCH(D143,Teams!$C:$C,0)-1 -> 13 | Y143: 113 | Z143: =MATCH(OFFSET(Teams!$C$1,X143,-1),Teams!B:B,0)-1 -> 13 | AA143: 1130218 | AB143: 69 | AC143: 63 | AD143: 6 | AE143: =IF(E143>0,AND(E143>=OFFSET(Races!$G$1,M143,0),E143<=OFFSET(Races!$H$1,M143,0)),TRUE) -> TRUE | AF143: TRUE | AG143: 10218 | AH143: 115 | AI143: 0
B144: 224 | C144: Ben String Felloso | D144: Grace Academy | F144: JHB | G144: =IF(AND(AE144,Q144>0),IF(ISNA(MATCH(AA144,$AA$1:$AA143,0)),0,1),"") -> 0 | H144: =IF(U144="","",OFFSET(Times!$A$1,Q144,U144)) -> 1731 | I144: 845.5 | J144: 2 | K144: 211 | L144: X | M144: =MATCH(F144,Races!$C:$C,0)-1 -> 2 | N144: =OFFSET(Races!$A$1,M144,1) -> JHB | O144: =IF(Bibs,MATCH(N144,Bibs!$1:$1,0),"") ->  | P144: =IF(Bibs,MATCH(A144,OFFSET(Bibs!$A$1,1,O144-1,1500,1),0),"") ->  | Q144: 224 | R144: 20224 | S144: 414 | T144: 203 | U144: =IF(Q144>0,MATCH(N144,Times!$1:$1,0)-1,"") -> 2 | V144: =OFFSET(Races!$F$1,M144,0) -> 2 | W144: 525.5 | X144: =MATCH(D144,Teams!$C:$C,0)-1 -> 14 | Y144: 214 | Z144: =MATCH(OFFSET(Teams!$C$1,X144,-1),Teams!B:B,0)-1 -> 14 | AA144: 2140224 | AB144: 278 | AC144: 276 | AD144: 2 | AE144: =IF(E144>0,AND(E144>=OFFSET(Races!$G$1,M144,0),E144<=OFFSET(Races!$H$1,M144,0)),TRUE) -> TRUE | AF144: FALSE
B145: 135 | C145: Joe Putney | D145: Grace Academy | F145: JHB | G145: =IF(AND(AE145,Q145>0),IF(ISNA(MATCH(AA145,$AA$1:$AA144,0)),0,1),"") -> 0 | H145: =IF(U145="","",OFFSET(Times!$A$1,Q145,U145)) -> 1427 | I145: 713.5 | J145: 1 | K145: 131 | L145: X | M145: =MATCH(F145,Races!$C:$C,0)-1 -> 2 | N145: =OFFSET(Races!$A$1,M145,1) -> JHB | O145: =IF(Bibs,MATCH(N145,Bibs!$1:$1,0),"") ->  | P145: =IF(Bibs,MATCH(A145,OFFSET(Bibs!$A$1,1,O145-1,1500,1),0),"") ->  | Q145: 135 | R145: 20135 | S145: 334 | T145: 203 | U145: =IF(Q145>0,MATCH(N145,Times!$1:$1,0)-1,"") -> 2 | V145: =OFFSET(Races!$F$1,M145,0) -> 2 | W145: 433.5 | X145: =MATCH(D145,Teams!$C:$C,0)-1 -> 14 | Y145: 214 | Z145: =MATCH(OFFSET(Teams!$C$1,X145,-1),Teams!B:B,0)-1 -> 14 | AA145: 2140135 | AB145: 277 | AC145: 276 | AD145: 2 | AE145: =IF(E145>0,AND(E145>=OFFSET(Races!$G$1,M145,0),E145<=OFFSET(Races!$H$1,M145,0)),TRUE) -> TRUE | AF145: FALSE
B146: 185 | C146: Christian Ballott | D146: Hamilton | F146: JHB | G146: =IF(AND(AE146,Q146>0),IF(ISNA(MATCH(AA146,$AA$1:$AA145,0)),0,1),"") -> 0 | H146: =IF(U146="","",OFFSET(Times!$A$1,Q146,U146)) -> 1606 | I146: 803 | J146: 1 | K146: 177 | L146: X | M146: =MATCH(F146,Races!$C:$C,0)-1 -> 2 | N146: =OFFSET(Races!$A$1,M146,1) -> JHB | O146: =IF(Bibs,MATCH(N146,Bibs!$1:$1,0),"") ->  | P146: =IF(Bibs,MATCH(A146,OFFSET(Bibs!$A$1,1,O146-1,1500,1),0),"") ->  | Q146: 185 | R146: 20185 | S146: 380 | T146: 203 | U146: =IF(Q146>0,MATCH(N146,Times!$1:$1,0)-1,"") -> 2 | V146: =OFFSET(Races!$F$1,M146,0) -> 2 | W146: 483 | X146: =MATCH(D146,Teams!$C:$C,0)-1 -> 25 | Y146: 225 | Z146: =MATCH(OFFSET(Teams!$C$1,X146,-1),Teams!B:B,0)-1 -> 25 | AA146: 2250185 | AB146: 334 | AC146: 333 | AD146: 1 | AE146: =IF(E146>0,AND(E146>=OFFSET(Races!$G$1,M146,0),E146<=OFFSET(Races!$H$1,M146,0)),TRUE) -> TRUE | AF146: FALSE
B147: 90 | C147: Abbey Killian | D147: Hamilton | F147: JHG | G147: =IF(AND(AE147,Q147>0),IF(ISNA(MATCH(AA147,$AA$1:$AA146,0)),0,1),"") -> 0 | H147: =IF(U147="","",OFFSET(Times!$A$1,Q147,U147)) -> 1513 | I147: 736.5 | J147: 2 | K147: 82 | L147: 61 | M147: =MATCH(F147,Races!$C:$C,0)-1 -> 1 | N147: =OFFSET(Races!$A$1,M147,1) -> JHG | O147: =IF(Bibs,MATCH(N147,Bibs!$1:$1,0),"") ->  | P147: =IF(Bibs,MATCH(A147,OFFSET(Bibs!$A$1,1,O147-1,1500,1),0),"") ->  | Q147: 90 | R147: 10090 | S147: 82 | T147: 0 | U147: =IF(Q147>0,MATCH(N147,Times!$1:$1,0)-1,"") -> 0 | V147: =OFFSET(Races!$F$1,M147,0) -> 2 | W147: 456.5 | X147: =MATCH(D147,Teams!$C:$C,0)-1 -> 25 | Y147: 125 | Z147: =MATCH(OFFSET(Teams!$C$1,X147,-1),Teams!B:B,0)-1 -> 25 | AA147: 1250090 | AB147: 117 | AC147: 115 | AD147: 6 | AE147: =IF(E147>0,AND(E147>=OFFSET(Races!$G$1,M147,0),E147<=OFFSET(Races!$H$1,M147,0)),TRUE) -> TRUE | AF147: TRUE | AG147: 10090 | AH147: 61 | AI147: 0
B148: 207 | C148: Courtney Alng | D148: Hamilton | F148: JHG | G148: =IF(AND(AE148,Q148>0),IF(ISNA(MATCH(AA148,$AA$1:$AA147,0)),0,1),"") -> 0 | H148: =IF(U148="","",OFFSET(Times!$A$1,Q148,U148)) -> 1901 | I148: 930.5 | J148: 6 | K148: 184 | L148: 112 | M148: =MATCH(F148,Races!$C:$C,0)-1 -> 1 | N148: =OFFSET(Races!$A$1,M148,1) -> JHG | O148: =IF(Bibs,MATCH(N148,Bibs!$1:$1,0),"") ->  | P148: =IF(Bibs,MATCH(A148,OFFSET(Bibs!$A$1,1,O148-1,1500,1),0),"") ->  | Q148: 207 | R148: 10207 | S148: 184 | T148: 0 | U148: =IF(Q148>0,MATCH(N148,Times!$1:$1,0)-1,"") -> 0 | V148: =OFFSET(Races!$F$1,M148,0) -> 2 | W148: 570.5 | X148: =MATCH(D148,Teams!$C:$C,0)-1 -> 25 | Y148: 125 | Z148: =MATCH(OFFSET(Teams!$C$1,X148,-1),Teams!B:B,0)-1 -> 25 | AA148: 1250207 | AB148: 121 | AC148: 115 | AD148: 6 | AE148: =IF(E148>0,AND(E148>=OFFSET(Races!$G$1,M148,0),E148<=OFFSET(Races!$H$1,M148,0)),TRUE) -> TRUE | AF148: TRUE | AG148: 10207 | AH148: 112 | AI148: 0
B149: 8 | C149: Maci Parnish | D149: Hamilton | F149: JHG | G149: =IF(AND(AE149,Q149>0),IF(ISNA(MATCH(AA149,$AA$1:$AA148,0)),0,1),"") -> 0 | H149: =IF(U149="","",OFFSET(Times!$A$1,Q149,U149)) -> 1259 | I149: 629.5 | J149: 1 | K149: 6 | L149: 4 | M149: =MATCH(F149,Races!$C:$C,0)-1 -> 1 | N149: =OFFSET(Races!$A$1,M149,1) -> JHG | O149: =IF(Bibs,MATCH(N149,Bibs!$1:$1,0),"") ->  | P149: =IF(Bibs,MATCH(A149,OFFSET(Bibs!$A$1,1,O149-1,1500,1),0),"") ->  | Q149: 8 | R149: 10008 | S149: 6 | T149: 0 | U149: =IF(Q149>0,MATCH(N149,Times!$1:$1,0)-1,"") -> 0 | V149: =OFFSET(Races!$F$1,M149,0) -> 2 | W149: 389.5 | X149: =MATCH(D149,Teams!$C:$C,0)-1 -> 25 | Y149: 125 | Z149: =MATCH(OFFSET(Teams!$C$1,X149,-1),Teams!B:B,0)-1 -> 25 | AA149: 1250008 | AB149: 116 | AC149: 115 | AD149: 6 | AE149: =IF(E149>0,AND(E149>=OFFSET(Races!$G$1,M149,0),E149<=OFFSET(Races!$H$1,M149,0)),TRUE) -> TRUE | AF149: TRUE | AG149: 10008 | AH149: 4 | AI149: 0
B150: 102 | C150: Morgan Mehatrey | D150: Hamilton | F150: JHG | G150: =IF(AND(AE150,Q150>0),IF(ISNA(MATCH(AA150,$AA$1:$AA149,0)),0,1),"") -> 0 | H150: =IF(U150="","",OFFSET(Times!$A$1,Q150,U150)) -> 1527 | I150: 743.5 | J150: 3 | K150: 92 | L150: 66 | M150: =MATCH(F150,Races!$C:$C,0)-1 -> 1 | N150: =OFFSET(Races!$A$1,M150,1) -> JHG | O150: =IF(Bibs,MATCH(N150,Bibs!$1:$1,0),"") ->  | P150: =IF(Bibs,MATCH(A150,OFFSET(Bibs!$A$1,1,O150-1,1500,1),0),"") ->  | Q150: 102 | R150: 10102 | S150: 92 | T150: 0 | U150: =IF(Q150>0,MATCH(N150,Times!$1:$1,0)-1,"") -> 0 | V150: =OFFSET(Races!$F$1,M150,0) -> 2 | W150: 463.5 | X150: =MATCH(D150,Teams!$C:$C,0)-1 -> 25 | Y150: 125 | Z150: =MATCH(OFFSET(Teams!$C$1,X150,-1),Teams!B:B,0)-1 -> 25 | AA150: 1250102 | AB150: 118 | AC150: 115 | AD150: 6 | AE150: =IF(E150>0,AND(E150>=OFFSET(Races!$G$1,M150,0),E150<=OFFSET(Races!$H$1,M150,0)),TRUE) -> TRUE | AF150: TRUE | AG150: 10102 | AH150: 66 | AI150: 0
B151: 108 | C151: Sawyer Wright | D151: Hamilton | F151: JHG | G151: =IF(AND(AE151,Q151>0),IF(ISNA(MATCH(AA151,$AA$1:$AA150,0)),0,1),"") -> 0 | H151: =IF(U151="","",OFFSET(Times!$A$1,Q151,U151)) -> 1535 | I151: 747.5 | J151: 5 | K151: 97 | L151: 71 | M151: =MATCH(F151,Races!$C:$C,0)-1 -> 1 | N151: =OFFSET(Races!$A$1,M151,1) -> JHG | O151: =IF(Bibs,MATCH(N151,Bibs!$1:$1,0),"") ->  | P151: =IF(Bibs,MATCH(A151,OFFSET(Bibs!$A$1,1,O151-1,1500,1),0),"") ->  | Q151: 108 | R151: 10108 | S151: 97 | T151: 0 | U151: =IF(Q151>0,MATCH(N151,Times!$1:$1,0)-1,"") -> 0 | V151: =OFFSET(Races!$F$1,M151,0) -> 2 | W151: 467.5 | X151: =MATCH(D151,Teams!$C:$C,0)-1 -> 25 | Y151: 125 | Z151: =MATCH(OFFSET(Teams!$C$1,X151,-1),Teams!B:B,0)-1 -> 25 | AA151: 1250108 | AB151: 120 | AC151: 115 | AD151: 6 | AE151: =IF(E151>0,AND(E151>=OFFSET(Races!$G$1,M151,0),E151<=OFFSET(Races!$H$1,M151,0)),TRUE) -> TRUE | AF151: TRUE | AG151: 10108 | AH151: 71 | AI151: 0
B152: 104 | C152: Taylor Collett | D152: Hamilton | F152: JHG | G152: =IF(AND(AE152,Q152>0),IF(ISNA(MATCH(AA152,$AA$1:$AA151,0)),0,1),"") -> 0 | H152: =IF(U152="","",OFFSET(Times!$A$1,Q152,U152)) -> 1531 | I152: 745.5 | J152: 4 | K152: 94 | L152: 68 | M152: =MATCH(F152,Races!$C:$C,0)-1 -> 1 | N152: =OFFSET(Races!$A$1,M152,1) -> JHG | O152: =IF(Bibs,MATCH(N152,Bibs!$1:$1,0),"") ->  | P152: =IF(Bibs,MATCH(A152,OFFSET(Bibs!$A$1,1,O152-1,1500,1),0),"") ->  | Q152: 104 | R152: 10104 | S152: 94 | T152: 0 | U152: =IF(Q152>0,MATCH(N152,Times!$1:$1,0)-1,"") -> 0 | V152: =OFFSET(Races!$F$1,M152,0) -> 2 | W152: 465.5 | X152: =MATCH(D152,Teams!$C:$C,0)-1 -> 25 | Y152: 125 | Z152: =MATCH(OFFSET(Teams!$C$1,X152,-1),Teams!B:B,0)-1 -> 25 | AA152: 1250104 | AB152: 119 | AC152: 115 | AD152: 6 | AE152: =IF(E152>0,AND(E152>=OFFSET(Races!$G$1,M152,0),E152<=OFFSET(Races!$H$1,M152,0)),TRUE) -> TRUE | AF152: TRUE | AG152: 10104 | AH152: 68 | AI152: 0
B153: 254 | C153: Abraham Chavez | D153: Hernandez Middle School | E153: 7 | F153: JHB | G153: =IF(AND(AE153,Q153>0),IF(ISNA(MATCH(AA153,$AA$1:$AA152,0)),0,1),"") -> 0 | H153: =IF(U153="","",OFFSET(Times!$A$1,Q153,U153)) -> 2605 | I153: 1302.5 | J153: 7 | K153: 239 | L153: 178 | M153: =MATCH(F153,Races!$C:$C,0)-1 -> 2 | N153: =OFFSET(Races!$A$1,M153,1) -> JHB | O153: =IF(Bibs,MATCH(N153,Bibs!$1:$1,0),"") ->  | P153: =IF(Bibs,MATCH(A153,OFFSET(Bibs!$A$1,1,O153-1,1500,1),0),"") ->  | Q153: 254 | R153: 20254 | S153: 442 | T153: 203 | U153: =IF(Q153>0,MATCH(N153,Times!$1:$1,0)-1,"") -> 2 | V153: =OFFSET(Races!$F$1,M153,0) -> 2 | W153: 782.5 | X153: =MATCH(D153,Teams!$C:$C,0)-1 -> 16 | Y153: 216 | Z153: =MATCH(OFFSET(Teams!$C$1,X153,-1),Teams!B:B,0)-1 -> 16 | AA153: 2160254 | AB153: 291 | AC153: 284 | AD153: 8 | AE153: =IF(E153>0,AND(E153>=OFFSET(Races!$G$1,M153,0),E153<=OFFSET(Races!$H$1,M153,0)),TRUE) -> TRUE | AF153: TRUE | AG153: 20254 | AH153: 294 | AI153: 116
B154: 255 | C154: Branden Pfertner | D154: Hernandez Middle School | E154: 7 | F154: JHB | G154: =IF(AND(AE154,Q154>0),IF(ISNA(MATCH(AA154,$AA$1:$AA153,0)),0,1),"") -> 0 | H154: =IF(U154="","",OFFSET(Times!$A$1,Q154,U154)) -> 2606 | I154: 1303 | J154: 8 | K154: 240 | L154: X | M154: =MATCH(F154,Races!$C:$C,0)-1 -> 2 | N154: =OFFSET(Races!$A$1,M154,1) -> JHB | O154: =IF(Bibs,MATCH(N154,Bibs!$1:$1,0),"") ->  | P154: =IF(Bibs,MATCH(A154,OFFSET(Bibs!$A$1,1,O154-1,1500,1),0),"") ->  | Q154: 255 | R154: 20255 | S154: 443 | T154: 203 | U154: =IF(Q154>0,MATCH(N154,Times!$1:$1,0)-1,"") -> 2 | V154: =OFFSET(Races!$F$1,M154,0) -> 2 | W154: 783 | X154: =MATCH(D154,Teams!$C:$C,0)-1 -> 16 | Y154: 216 | Z154: =MATCH(OFFSET(Teams!$C$1,X154,-1),Teams!B:B,0)-1 -> 16 | AA154: 2160255 | AB154: 292 | AC154: 284 | AD154: 8 | AE154: =IF(E154>0,AND(E154>=OFFSET(Races!$G$1,M154,0),E154<=OFFSET(Races!$H$1,M154,0)),TRUE) -> TRUE | AF154: FALSE
B155: 195 | C155: Dillon Mathews | D155: Hernandez Middle School | E155: 7 | F155: JHB | G155: =IF(AND(AE155,Q155>0),IF(ISNA(MATCH(AA155,$AA$1:$AA154,0)),0,1),"") -> 0 | H155: =IF(U155="","",OFFSET(Times!$A$1,Q155,U155)) -> 1621 | I155: 810.5 | J155: 3 | K155: 186 | L155: 146 | M155: =MATCH(F155,Races!$C:$C,0)-1 -> 2 | N155: =OFFSET(Races!$A$1,M155,1) -> JHB | O155: =IF(Bibs,MATCH(N155,Bibs!$1:$1,0),"") ->  | P155: =IF(Bibs,MATCH(A155,OFFSET(Bibs!$A$1,1,O155-1,1500,1),0),"") ->  | Q155: 195 | R155: 20195 | S155: 389 | T155: 203 | U155: =IF(Q155>0,MATCH(N155,Times!$1:$1,0)-1,"") -> 2 | V155: =OFFSET(Races!$F$1,M155,0) -> 2 | W155: 490.5 | X155: =MATCH(D155,Teams!$C:$C,0)-1 -> 16 | Y155: 216 | Z155: =MATCH(OFFSET(Teams!$C$1,X155,-1),Teams!B:B,0)-1 -> 16 | AA155: 2160195 | AB155: 287 | AC155: 284 | AD155: 8 | AE155: =IF(E155>0,AND(E155>=OFFSET(Races!$G$1,M155,0),E155<=OFFSET(Races!$H$1,M155,0)),TRUE) -> TRUE | AF155: TRUE | AG155: 20195 | AH155: 262 | AI155: 116
B156: 228 | C156: Eawm Darder | D156: Hernandez Middle School | E156: 7 | F156: JHB | G156: =IF(AND(AE156,Q156>0),IF(ISNA(MATCH(AA156,$AA$1:$AA155,0)),0,1),"") -> 0 | H156: =IF(U156="","",OFFSET(Times!$A$1,Q156,U156)) -> 1819 | I156: 909.5 | J156: 4 | K156: 215 | L156: 161 | M156: =MATCH(F156,Races!$C:$C,0)-1 -> 2 | N156: =OFFSET(Races!$A$1,M156,1) -> JHB | O156: =IF(Bibs,MATCH(N156,Bibs!$1:$1,0),"") ->  | P156: =IF(Bibs,MATCH(A156,OFFSET(Bibs!$A$1,1,O156-1,1500,1),0),"") ->  | Q156: 228 | R156: 20228 | S156: 418 | T156: 203 | U156: =IF(Q156>0,MATCH(N156,Times!$1:$1,0)-1,"") -> 2 | V156: =OFFSET(Races!$F$1,M156,0) -> 2 | W156: 549.5 | X156: =MATCH(D156,Teams!$C:$C,0)-1 -> 16 | Y156: 216 | Z156: =MATCH(OFFSET(Teams!$C$1,X156,-1),Teams!B:B,0)-1 -> 16 | AA156: 2160228 | AB156: 288 | AC156: 284 | AD156: 8 | AE156: =IF(E156>0,AND(E156>=OFFSET(Races!$G$1,M156,0),E156<=OFFSET(Races!$H$1,M156,0)),TRUE) -> TRUE | AF156: TRUE | AG156: 20228 | AH156: 277 | AI156: 116
B157: 253 | C157: Ethan Burt | D157: Hernandez Middle School | E157: 7 | F157: JHB | G157: =IF(AND(AE157,Q157>0),IF(ISNA(MATCH(AA157,$AA$1:$AA156,0)),0,1),"") -> 0 | H157: =IF(U157="","",OFFSET(Times!$A$1,Q157,U157)) -> 2601 | I157: 1300.5 | J157: 6 | K157: 238 | L157: 177 | M157: =MATCH(F157,Races!$C:$C,0)-1 -> 2 | N157: =OFFSET(Races!$A$1,M157,1) -> JHB | O157: =IF(Bibs,MATCH(N157,Bibs!$1:$1,0),"") ->  | P157: =IF(Bibs,MATCH(A157,OFFSET(Bibs!$A$1,1,O157-1,1500,1),0),"") ->  | Q157: 253 | R157: 20253 | S157: 441 | T157: 203 | U157: =IF(Q157>0,MATCH(N157,Times!$1:$1,0)-1,"") -> 2 | V157: =OFFSET(Races!$F$1,M157,0) -> 2 | W157: 780.5 | X157: =MATCH(D157,Teams!$C:$C,0)-1 -> 16 | Y157: 216 | Z157: =MATCH(OFFSET(Teams!$C$1,X157,-1),Teams!B:B,0)-1 -> 16 | AA157: 2160253 | AB157: 290 | AC157: 284 | AD157: 8 | AE157: =IF(E157>0,AND(E157>=OFFSET(Races!$G$1,M157,0),E157<=OFFSET(Races!$H$1,M157,0)),TRUE) -> TRUE | AF157: TRUE | AG157: 20253 | AH157: 293 | AI157: 116
B158: 232 | C158: Leo Rodriguez | D158: Hernandez Middle School | E158: 7 | F158: JHB | G158: =IF(AND(AE158,Q158>0),IF(ISNA(MATCH(AA158,$AA$1:$AA157,0)),0,1),"") -> 0 | H158: =IF(U158="","",OFFSET(Times!$A$1,Q158,U158)) -> 1834 | I158: 917 | J158: 5 | K158: 219 | L158: 164 | M158: =MATCH(F158,Races!$C:$C,0)-1 -> 2 | N158: =OFFSET(Races!$A$1,M158,1) -> JHB | O158: =IF(Bibs,MATCH(N158,Bibs!$1:$1,0),"") ->  | P158: =IF(Bibs,MATCH(A158,OFFSET(Bibs!$A$1,1,O158-1,1500,1),0),"") ->  | Q158: 232 | R158: 20232 | S158: 422 | T158: 203 | U158: =IF(Q158>0,MATCH(N158,Times!$1:$1,0)-1,"") -> 2 | V158: =OFFSET(Races!$F$1,M158,0) -> 2 | W158: 557 | X158: =MATCH(D158,Teams!$C:$C,0)-1 -> 16 | Y158: 216 | Z158: =MATCH(OFFSET(Teams!$C$1,X158,-1),Teams!B:B,0)-1 -> 16 | AA158: 2160232 | AB158: 289 | AC158: 284 | AD158: 8 | AE158: =IF(E158>0,AND(E158>=OFFSET(Races!$G$1,M158,0),E158<=OFFSET(Races!$H$1,M158,0)),TRUE) -> TRUE | AF158: TRUE | AG158: 20232 | AH158: 280 | AI158: 116
B159: 151 | C159: Seth Gonzalez | D159: Hernandez Middle School | E159: 7 | F159: JHB | G159: =IF(AND(AE159,Q159>0),IF(ISNA(MATCH(AA159,$AA$1:$AA158,0)),0,1),"") -> 0 | H159: =IF(U159="","",OFFSET(Times!$A$1,Q159,U159)) -> 1453 | I159: 726.5 | J159: 1 | K159: 146 | L159: 121 | M159: =MATCH(F159,Races!$C:$C,0)-1 -> 2 | N159: =OFFSET(Races!$A$1,M159,1) -> JHB | O159: =IF(Bibs,MATCH(N159,Bibs!$1:$1,0),"") ->  | P159: =IF(Bibs,MATCH(A159,OFFSET(Bibs!$A$1,1,O159-1,1500,1),0),"") ->  | Q159: 151 | R159: 20151 | S159: 349 | T159: 203 | U159: =IF(Q159>0,MATCH(N159,Times!$1:$1,0)-1,"") -> 2 | V159: =OFFSET(Races!$F$1,M159,0) -> 2 | W159: 446.5 | X159: =MATCH(D159,Teams!$C:$C,0)-1 -> 16 | Y159: 216 | Z159: =MATCH(OFFSET(Teams!$C$1,X159,-1),Teams!B:B,0)-1 -> 16 | AA159: 2160151 | AB159: 285 | AC159: 284 | AD159: 8 | AE159: =IF(E159>0,AND(E159>=OFFSET(Races!$G$1,M159,0),E159<=OFFSET(Races!$H$1,M159,0)),TRUE) -> TRUE | AF159: TRUE | AG159: 20151 | AH159: 237 | AI159: 116
B160: 154 | C160: Zach Davis | D160: Hernandez Middle School | E160: 8 | F160: JHB | G160: =IF(AND(AE160,Q160>0),IF(ISNA(MATCH(AA160,$AA$1:$AA159,0)),0,1),"") -> 0 | H160: =IF(U160="","",OFFSET(Times!$A$1,Q160,U160)) -> 1501 | I160: 730.5 | J160: 2 | K160: 149 | L160: 124 | M160: =MATCH(F160,Races!$C:$C,0)-1 -> 2 | N160: =OFFSET(Races!$A$1,M160,1) -> JHB | O160: =IF(Bibs,MATCH(N160,Bibs!$1:$1,0),"") ->  | P160: =IF(Bibs,MATCH(A160,OFFSET(Bibs!$A$1,1,O160-1,1500,1),0),"") ->  | Q160: 154 | R160: 20154 | S160: 352 | T160: 203 | U160: =IF(Q160>0,MATCH(N160,Times!$1:$1,0)-1,"") -> 2 | V160: =OFFSET(Races!$F$1,M160,0) -> 2 | W160: 450.5 | X160: =MATCH(D160,Teams!$C:$C,0)-1 -> 16 | Y160: 216 | Z160: =MATCH(OFFSET(Teams!$C$1,X160,-1),Teams!B:B,0)-1 -> 16 | AA160: 2160154 | AB160: 286 | AC160: 284 | AD160: 8 | AE160: =IF(E160>0,AND(E160>=OFFSET(Races!$G$1,M160,0),E160<=OFFSET(Races!$H$1,M160,0)),TRUE) -> TRUE | AF160: TRUE | AG160: 20154 | AH160: 240 | AI160: 116
B161: 234 | C161: Brenda Esparza | D161: Hernandez Middle School | E161: 7 | F161: JHG | G161: =IF(AND(AE161,Q161>0),IF(ISNA(MATCH(AA161,$AA$1:$AA160,0)),0,1),"") -> 0 | H161: =IF(U161="","",OFFSET(Times!$A$1,Q161,U161)) -> 2314 | I161: 1137 | J161: 9 | K161: 202 | L161: X | M161: =MATCH(F161,Races!$C:$C,0)-1 -> 1 | N161: =OFFSET(Races!$A$1,M161,1) -> JHG | O161: =IF(Bibs,MATCH(N161,Bibs!$1:$1,0),"") ->  | P161: =IF(Bibs,MATCH(A161,OFFSET(Bibs!$A$1,1,O161-1,1500,1),0),"") ->  | Q161: 234 | R161: 10234 | S161: 202 | T161: 0 | U161: =IF(Q161>0,MATCH(N161,Times!$1:$1,0)-1,"") -> 0 | V161: =OFFSET(Races!$F$1,M161,0) -> 2 | W161: 697 | X161: =MATCH(D161,Teams!$C:$C,0)-1 -> 16 | Y161: 116 | Z161: =MATCH(OFFSET(Teams!$C$1,X161,-1),Teams!B:B,0)-1 -> 16 | AA161: 1160234 | AB161: 79 | AC161: 70 | AD161: 9 | AE161: =IF(E161>0,AND(E161>=OFFSET(Races!$G$1,M161,0),E161<=OFFSET(Races!$H$1,M161,0)),TRUE) -> TRUE | AF161: FALSE
B162: 201 | C162: Janah Pereida | D162: Hernandez Middle School | E162: 7 | F162: JHG | G162: =IF(AND(AE162,Q162>0),IF(ISNA(MATCH(AA162,$AA$1:$AA161,0)),0,1),"") -> 0 | H162: =IF(U162="","",OFFSET(Times!$A$1,Q162,U162)) -> 1841 | I162: 920.5 | J162: 5 | K162: 179 | L162: 110 | M162: =MATCH(F162,Races!$C:$C,0)-1 -> 1 | N162: =OFFSET(Races!$A$1,M162,1) -> JHG | O162: =IF(Bibs,MATCH(N162,Bibs!$1:$1,0),"") ->  | P162: =IF(Bibs,MATCH(A162,OFFSET(Bibs!$A$1,1,O162-1,1500,1),0),"") ->  | Q162: 201 | R162: 10201 | S162: 179 | T162: 0 | U162: =IF(Q162>0,MATCH(N162,Times!$1:$1,0)-1,"") -> 0 | V162: =OFFSET(Races!$F$1,M162,0) -> 2 | W162: 560.5 | X162: =MATCH(D162,Teams!$C:$C,0)-1 -> 16 | Y162: 116 | Z162: =MATCH(OFFSET(Teams!$C$1,X162,-1),Teams!B:B,0)-1 -> 16 | AA162: 1160201 | AB162: 75 | AC162: 70 | AD162: 9 | AE162: =IF(E162>0,AND(E162>=OFFSET(Races!$G$1,M162,0),E162<=OFFSET(Races!$H$1,M162,0)),TRUE) -> TRUE | AF162: TRUE | AG162: 10201 | AH162: 110 | AI162: 0
B163: 174 | C163: Jessica Gonzalez | D163: Hernandez Middle School | E163: 7 | F163: JHG | G163: =IF(AND(AE163,Q163>0),IF(ISNA(MATCH(AA163,$AA$1:$AA162,0)),0,1),"") -> 0 | H163: =IF(U163="","",OFFSET(Times!$A$1,Q163,U163)) -> 1709 | I163: 834.5 | J163: 4 | K163: 152 | L163: 106 | M163: =MATCH(F163,Races!$C:$C,0)-1 -> 1 | N163: =OFFSET(Races!$A$1,M163,1) -> JHG | O163: =IF(Bibs,MATCH(N163,Bibs!$1:$1,0),"") ->  | P163: =IF(Bibs,MATCH(A163,OFFSET(Bibs!$A$1,1,O163-1,1500,1),0),"") ->  | Q163: 174 | R163: 10174 | S163: 152 | T163: 0 | U163: =IF(Q163>0,MATCH(N163,Times!$1:$1,0)-1,"") -> 0 | V163: =OFFSET(Races!$F$1,M163,0) -> 2 | W163: 514.5 | X163: =MATCH(D163,Teams!$C:$C,0)-1 -> 16 | Y163: 116 | Z163: =MATCH(OFFSET(Teams!$C$1,X163,-1),Teams!B:B,0)-1 -> 16 | AA163: 1160174 | AB163: 74 | AC163: 70 | AD163: 9 | AE163: =IF(E163>0,AND(E163>=OFFSET(Races!$G$1,M163,0),E163<=OFFSET(Races!$H$1,M163,0)),TRUE) -> TRUE | AF163: TRUE | AG163: 10174 | AH163: 106 | AI163: 0
B164: 229 | C164: Julissa Martinez | D164: Hernandez Middle School | E164: 7 | F164: JHG | G164: =IF(AND(AE164,Q164>0),IF(ISNA(MATCH(AA164,$AA$1:$AA163,0)),0,1),"") -> 0 | H164: =IF(U164="","",OFFSET(Times!$A$1,Q164,U164)) -> 2116 | I164: 1038 | J164: 8 | K164: 200 | L164: X | M164: =MATCH(F164,Races!$C:$C,0)-1 -> 1 | N164: =OFFSET(Races!$A$1,M164,1) -> JHG | O164: =IF(Bibs,MATCH(N164,Bibs!$1:$1,0),"") ->  | P164: =IF(Bibs,MATCH(A164,OFFSET(Bibs!$A$1,1,O164-1,1500,1),0),"") ->  | Q164: 229 | R164: 10229 | S164: 200 | T164: 0 | U164: =IF(Q164>0,MATCH(N164,Times!$1:$1,0)-1,"") -> 0 | V164: =OFFSET(Races!$F$1,M164,0) -> 2 | W164: 638 | X164: =MATCH(D164,Teams!$C:$C,0)-1 -> 16 | Y164: 116 | Z164: =MATCH(OFFSET(Teams!$C$1,X164,-1),Teams!B:B,0)-1 -> 16 | AA164: 1160229 | AB164: 78 | AC164: 70 | AD164: 9 | AE164: =IF(E164>0,AND(E164>=OFFSET(Races!$G$1,M164,0),E164<=OFFSET(Races!$H$1,M164,0)),TRUE) -> TRUE | AF164: FALSE
B165: 112 | C165: Paloma Groves | D165: Hernandez Middle School | E165: 7 | F165: JHG | G165: =IF(AND(AE165,Q165>0),IF(ISNA(MATCH(AA165,$AA$1:$AA164,0)),0,1),"") -> 0 | H165: =IF(U165="","",OFFSET(Times!$A$1,Q165,U165)) -> 1539 | I165: 749.5 | J165: 2 | K165: 101 | L165: 74 | M165: =MATCH(F165,Races!$C:$C,0)-1 -> 1 | N165: =OFFSET(Races!$A$1,M165,1) -> JHG | O165: =IF(Bibs,MATCH(N165,Bibs!$1:$1,0),"") ->  | P165: =IF(Bibs,MATCH(A165,OFFSET(Bibs!$A$1,1,O165-1,1500,1),0),"") ->  | Q165: 112 | R165: 10112 | S165: 101 | T165: 0 | U165: =IF(Q165>0,MATCH(N165,Times!$1:$1,0)-1,"") -> 0 | V165: =OFFSET(Races!$F$1,M165,0) -> 2 | W165: 469.5 | X165: =MATCH(D165,Teams!$C:$C,0)-1 -> 16 | Y165: 116 | Z165: =MATCH(OFFSET(Teams!$C$1,X165,-1),Teams!B:B,0)-1 -> 16 | AA165: 1160112 | AB165: 72 | AC165: 70 | AD165: 9 | AE165: =IF(E165>0,AND(E165>=OFFSET(Races!$G$1,M165,0),E165<=OFFSET(Races!$H$1,M165,0)),TRUE) -> TRUE | AF165: TRUE | AG165: 10112 | AH165: 74 | AI165: 0
B166: 227 | C166: Konny Parada | D166: Hernandez Middle School | E166: 7 | F166: JHG | G166: =IF(AND(AE166,Q166>0),IF(ISNA(MATCH(AA166,$AA$1:$AA165,0)),0,1),"") -> 0 | H166: =IF(U166="","",OFFSET(Times!$A$1,Q166,U166)) -> 2104 | I166: 1032 | J166: 7 | K166: 199 | L166: 116 | M166: =MATCH(F166,Races!$C:$C,0)-1 -> 1 | N166: =OFFSET(Races!$A$1,M166,1) -> JHG | O166: =IF(Bibs,MATCH(N166,Bibs!$1:$1,0),"") ->  | P166: =IF(Bibs,MATCH(A166,OFFSET(Bibs!$A$1,1,O166-1,1500,1),0),"") ->  | Q166: 227 | R166: 10227 | S166: 199 | T166: 0 | U166: =IF(Q166>0,MATCH(N166,Times!$1:$1,0)-1,"") -> 0 | V166: =OFFSET(Races!$F$1,M166,0) -> 2 | W166: 632 | X166: =MATCH(D166,Teams!$C:$C,0)-1 -> 16 | Y166: 116 | Z166: =MATCH(OFFSET(Teams!$C$1,X166,-1),Teams!B:B,0)-1 -> 16 | AA166: 1160227 | AB166: 77 | AC166: 70 | AD166: 9 | AE166: =IF(E166>0,AND(E166>=OFFSET(Races!$G$1,M166,0),E166<=OFFSET(Races!$H$1,M166,0)),TRUE) -> TRUE | AF166: TRUE | AG166: 10227 | AH166: 116 | AI166: 0
B167: 140 | C167: Reina Lawson | D167: Hernandez Middle School | E167: 7 | F167: JHG | G167: =IF(AND(AE167,Q167>0),IF(ISNA(MATCH(AA167,$AA$1:$AA166,0)),0,1),"") -> 0 | H167: =IF(U167="","",OFFSET(Times!$A$1,Q167,U167)) -> 1610 | I167: 805 | J167: 3 | K167: 126 | L167: 95 | M167: =MATCH(F167,Races!$C:$C,0)-1 -> 1 | N167: =OFFSET(Races!$A$1,M167,1) -> JHG | O167: =IF(Bibs,MATCH(N167,Bibs!$1:$1,0),"") ->  | P167: =IF(Bibs,MATCH(A167,OFFSET(Bibs!$A$1,1,O167-1,1500,1),0),"") ->  | Q167: 140 | R167: 10140 | S167: 126 | T167: 0 | U167: =IF(Q167>0,MATCH(N167,Times!$1:$1,0)-1,"") -> 0 | V167: =OFFSET(Races!$F$1,M167,0) -> 2 | W167: 485 | X167: =MATCH(D167,Teams!$C:$C,0)-1 -> 16 | Y167: 116 | Z167: =MATCH(OFFSET(Teams!$C$1,X167,-1),Teams!B:B,0)-1 -> 16 | AA167: 1160140 | AB167: 73 | AC167: 70 | AD167: 9 | AE167: =IF(E167>0,AND(E167>=OFFSET(Races!$G$1,M167,0),E167<=OFFSET(Races!$H$1,M167,0)),TRUE) -> TRUE | AF167: TRUE | AG167: 10140 | AH167: 95 | AI167: 0
B168: 92 | C168: Shayna Atwater | D168: Hernandez Middle School | E168: 7 | F168: JHG | G168: =IF(AND(AE168,Q168>0),IF(ISNA(MATCH(AA168,$AA$1:$AA167,0)),0,1),"") -> 0 | H168: =IF(U168="","",OFFSET(Times!$A$1,Q168,U168)) -> 1515 | I168: 737.5 | J168: 1 | K168: 83 | L168: 62 | M168: =MATCH(F168,Races!$C:$C,0)-1 -> 1 | N168: =OFFSET(Races!$A$1,M168,1) -> JHG | O168: =IF(Bibs,MATCH(N168,Bibs!$1:$1,0),"") ->  | P168: =IF(Bibs,MATCH(A168,OFFSET(Bibs!$A$1,1,O168-1,1500,1),0),"") ->  | Q168: 92 | R168: 10092 | S168: 83 | T168: 0 | U168: =IF(Q168>0,MATCH(N168,Times!$1:$1,0)-1,"") -> 0 | V168: =OFFSET(Races!$F$1,M168,0) -> 2 | W168: 457.5 | X168: =MATCH(D168,Teams!$C:$C,0)-1 -> 16 | Y168: 116 | Z168: =MATCH(OFFSET(Teams!$C$1,X168,-1),Teams!B:B,0)-1 -> 16 | AA168: 1160092 | AB168: 71 | AC168: 70 | AD168: 9 | AE168: =IF(E168>0,AND(E168>=OFFSET(Races!$G$1,M168,0),E168<=OFFSET(Races!$H$1,M168,0)),TRUE) -> TRUE | AF168: TRUE | AG168: 10092 | AH168: 62 | AI168: 0
B169: 202 | C169: Tamera Herrera | D169: Hernandez Middle School | E169: 7 | F169: JHG | G169: =IF(AND(AE169,Q169>0),IF(ISNA(MATCH(AA169,$AA$1:$AA168,0)),0,1),"") -> 0 | H169: =IF(U169="","",OFFSET(Times!$A$1,Q169,U169)) -> 1842 | I169: 921 | J169: 6 | K169: 180 | L169: 111 | M169: =MATCH(F169,Races!$C:$C,0)-1 -> 1 | N169: =OFFSET(Races!$A$1,M169,1) -> JHG | O169: =IF(Bibs,MATCH(N169,Bibs!$1:$1,0),"") ->  | P169: =IF(Bibs,MATCH(A169,OFFSET(Bibs!$A$1,1,O169-1,1500,1),0),"") ->  | Q169: 202 | R169: 10202 | S169: 180 | T169: 0 | U169: =IF(Q169>0,MATCH(N169,Times!$1:$1,0)-1,"") -> 0 | V169: =OFFSET(Races!$F$1,M169,0) -> 2 | W169: 561 | X169: =MATCH(D169,Teams!$C:$C,0)-1 -> 16 | Y169: 116 | Z169: =MATCH(OFFSET(Teams!$C$1,X169,-1),Teams!B:B,0)-1 -> 16 | AA169: 1160202 | AB169: 76 | AC169: 70 | AD169: 9 | AE169: =IF(E169>0,AND(E169>=OFFSET(Races!$G$1,M169,0),E169<=OFFSET(Races!$H$1,M169,0)),TRUE) -> TRUE | AF169: TRUE | AG169: 10202 | AH169: 111 | AI169: 0
B170: 92 | C170: Anthony Harris | D170: Hill Country Christian | F170: JHB | G170: =IF(AND(AE170,Q170>0),IF(ISNA(MATCH(AA170,$AA$1:$AA169,0)),0,1),"") -> 0 | H170: =IF(U170="","",OFFSET(Times!$A$1,Q170,U170)) -> 1339 | I170: 649.5 | J170: 3 | K170: 88 | L170: 77 | M170: =MATCH(F170,Races!$C:$C,0)-1 -> 2 | N170: =OFFSET(Races!$A$1,M170,1) -> JHB | O170: =IF(Bibs,MATCH(N170,Bibs!$1:$1,0),"") ->  | P170: =IF(Bibs,MATCH(A170,OFFSET(Bibs!$A$1,1,O170-1,1500,1),0),"") ->  | Q170: 92 | R170: 20092 | S170: 291 | T170: 203 | U170: =IF(Q170>0,MATCH(N170,Times!$1:$1,0)-1,"") -> 2 | V170: =OFFSET(Races!$F$1,M170,0) -> 2 | W170: 409.5 | X170: =MATCH(D170,Teams!$C:$C,0)-1 -> 15 | Y170: 215 | Z170: =MATCH(OFFSET(Teams!$C$1,X170,-1),Teams!B:B,0)-1 -> 15 | AA170: 2150092 | AB170: 281 | AC170: 278 | AD170: 6 | AE170: =IF(E170>0,AND(E170>=OFFSET(Races!$G$1,M170,0),E170<=OFFSET(Races!$H$1,M170,0)),TRUE) -> TRUE | AF170: TRUE | AG170: 20092 | AH170: 193 | AI170: 116
B171: 126 | C171: Ben Polk | D171: Hill Country Christian | F171: JHB | G171: =IF(AND(AE171,Q171>0),IF(ISNA(MATCH(AA171,$AA$1:$AA170,0)),0,1),"") -> 0 | H171: =IF(U171="","",OFFSET(Times!$A$1,Q171,U171)) -> 1409 | I171: 704.5 | J171: 4 | K171: 122 | L171: 105 | M171: =MATCH(F171,Races!$C:$C,0)-1 -> 2 | N171: =OFFSET(Races!$A$1,M171,1) -> JHB | O171: =IF(Bibs,MATCH(N171,Bibs!$1:$1,0),"") ->  | P171: =IF(Bibs,MATCH(A171,OFFSET(Bibs!$A$1,1,O171-1,1500,1),0),"") ->  | Q171: 126 | R171: 20126 | S171: 325 | T171: 203 | U171: =IF(Q171>0,MATCH(N171,Times!$1:$1,0)-1,"") -> 2 | V171: =OFFSET(Races!$F$1,M171,0) -> 2 | W171: 424.5 | X171: =MATCH(D171,Teams!$C:$C,0)-1 -> 15 | Y171: 215 | Z171: =MATCH(OFFSET(Teams!$C$1,X171,-1),Teams!B:B,0)-1 -> 15 | AA171: 2150126 | AB171: 282 | AC171: 278 | AD171: 6 | AE171: =IF(E171>0,AND(E171>=OFFSET(Races!$G$1,M171,0),E171<=OFFSET(Races!$H$1,M171,0)),TRUE) -> TRUE | AF171: TRUE | AG171: 20126 | AH171: 221 | AI171: 116
B172: 39 | C172: Hunter Masters | D172: Hill Country Christian | F172: JHB | G172: =IF(AND(AE172,Q172>0),IF(ISNA(MATCH(AA172,$AA$1:$AA171,0)),0,1),"") -> 0 | H172: =IF(U172="","",OFFSET(Times!$A$1,Q172,U172)) -> 1233 | I172: 616.5 | J172: 1 | K172: 39 | L172: 35 | M172: =MATCH(F172,Races!$C:$C,0)-1 -> 2 | N172: =OFFSET(Races!$A$1,M172,1) -> JHB | O172: =IF(Bibs,MATCH(N172,Bibs!$1:$1,0),"") ->  | P172: =IF(Bibs,MATCH(A172,OFFSET(Bibs!$A$1,1,O172-1,1500,1),0),"") ->  | Q172: 39 | R172: 20039 | S172: 242 | T172: 203 | U172: =IF(Q172>0,MATCH(N172,Times!$1:$1,0)-1,"") -> 2 | V172: =OFFSET(Races!$F$1,M172,0) -> 2 | W172: 376.5 | X172: =MATCH(D172,Teams!$C:$C,0)-1 -> 15 | Y172: 215 | Z172: =MATCH(OFFSET(Teams!$C$1,X172,-1),Teams!B:B,0)-1 -> 15 | AA172: 2150039 | AB172: 279 | AC172: 278 | AD172: 6 | AE172: =IF(E172>0,AND(E172>=OFFSET(Races!$G$1,M172,0),E172<=OFFSET(Races!$H$1,M172,0)),TRUE) -> TRUE | AF172: TRUE | AG172: 20039 | AH172: 151 | AI172: 116
B173: 208 | C173: Joshua Huang | D173: Hill Country Christian | F173: JHB | G173: =IF(AND(AE173,Q173>0),IF(ISNA(MATCH(AA173,$AA$1:$AA172,0)),0,1),"") -> 0 | H173: =IF(U173="","",OFFSET(Times!$A$1,Q173,U173)) -> 1648 | I173: 824 | J173: 6 | K173: 197 | L173: 153 | M173: =MATCH(F173,Races!$C:$C,0)-1 -> 2 | N173: =OFFSET(Races!$A$1,M173,1) -> JHB | O173: =IF(Bibs,MATCH(N173,Bibs!$1:$1,0),"") ->  | P173: =IF(Bibs,MATCH(A173,OFFSET(Bibs!$A$1,1,O173-1,1500,1),0),"") ->  | Q173: 208 | R173: 20208 | S173: 400 | T173: 203 | U173: =IF(Q173>0,MATCH(N173,Times!$1:$1,0)-1,"") -> 2 | V173: =OFFSET(Races!$F$1,M173,0) -> 2 | W173: 504 | X173: =MATCH(D173,Teams!$C:$C,0)-1 -> 15 | Y173: 215 | Z173: =MATCH(OFFSET(Teams!$C$1,X173,-1),Teams!B:B,0)-1 -> 15 | AA173: 2150208 | AB173: 284 | AC173: 278 | AD173: 6 | AE173: =IF(E173>0,AND(E173>=OFFSET(Races!$G$1,M173,0),E173<=OFFSET(Races!$H$1,M173,0)),TRUE) -> TRUE | AF173: TRUE | AG173: 20208 | AH173: 269 | AI173: 116
B174: 180 | C174: Mark Lucas | D174: Hill Country Christian | F174: JHB | G174: =IF(AND(AE174,Q174>0),IF(ISNA(MATCH(AA174,$AA$1:$AA173,0)),0,1),"") -> 0 | H174: =IF(U174="","",OFFSET(Times!$A$1,Q174,U174)) -> 1554 | I174: 757 | J174: 5 | K174: 173 | L174: 137 | M174: =MATCH(F174,Races!$C:$C,0)-1 -> 2 | N174: =OFFSET(Races!$A$1,M174,1) -> JHB | O174: =IF(Bibs,MATCH(N174,Bibs!$1:$1,0),"") ->  | P174: =IF(Bibs,MATCH(A174,OFFSET(Bibs!$A$1,1,O174-1,1500,1),0),"") ->  | Q174: 180 | R174: 20180 | S174: 376 | T174: 203 | U174: =IF(Q174>0,MATCH(N174,Times!$1:$1,0)-1,"") -> 2 | V174: =OFFSET(Races!$F$1,M174,0) -> 2 | W174: 477 | X174: =MATCH(D174,Teams!$C:$C,0)-1 -> 15 | Y174: 215 | Z174: =MATCH(OFFSET(Teams!$C$1,X174,-1),Teams!B:B,0)-1 -> 15 | AA174: 2150180 | AB174: 283 | AC174: 278 | AD174: 6 | AE174: =IF(E174>0,AND(E174>=OFFSET(Races!$G$1,M174,0),E174<=OFFSET(Races!$H$1,M174,0)),TRUE) -> TRUE | AF174: TRUE | AG174: 20180 | AH174: 253 | AI174: 116
B175: 82 | C175: Steel Kupec | D175: Hill Country Christian | F175: JHB | G175: =IF(AND(AE175,Q175>0),IF(ISNA(MATCH(AA175,$AA$1:$AA174,0)),0,1),"") -> 0 | H175: =IF(U175="","",OFFSET(Times!$A$1,Q175,U175)) -> 1323 | I175: 641.5 | J175: 2 | K175: 78 | L175: 68 | M175: =MATCH(F175,Races!$C:$C,0)-1 -> 2 | N175: =OFFSET(Races!$A$1,M175,1) -> JHB | O175: =IF(Bibs,MATCH(N175,Bibs!$1:$1,0),"") ->  | P175: =IF(Bibs,MATCH(A175,OFFSET(Bibs!$A$1,1,O175-1,1500,1),0),"") ->  | Q175: 82 | R175: 20082 | S175: 281 | T175: 203 | U175: =IF(Q175>0,MATCH(N175,Times!$1:$1,0)-1,"") -> 2 | V175: =OFFSET(Races!$F$1,M175,0) -> 2 | W175: 401.5 | X175: =MATCH(D175,Teams!$C:$C,0)-1 -> 15 | Y175: 215 | Z175: =MATCH(OFFSET(Teams!$C$1,X175,-1),Teams!B:B,0)-1 -> 15 | AA175: 2150082 | AB175: 280 | AC175: 278 | AD175: 6 | AE175: =IF(E175>0,AND(E175>=OFFSET(Races!$G$1,M175,0),E175<=OFFSET(Races!$H$1,M175,0)),TRUE) -> TRUE | AF175: TRUE | AG175: 20082 | AH175: 184 | AI175: 116
B176: 41 | C176: Chelsea O'Donnell | D176: Hill Country Christian | F176: JHG | G176: =IF(AND(AE176,Q176>0),IF(ISNA(MATCH(AA176,$AA$1:$AA175,0)),0,1),"") -> 0 | H176: =IF(U176="","",OFFSET(Times!$A$1,Q176,U176)) -> 1410 | I176: 705 | J176: 1 | K176: 38 | L176: X | M176: =MATCH(F176,Races!$C:$C,0)-1 -> 1 | N176: =OFFSET(Races!$A$1,M176,1) -> JHG | O176: =IF(Bibs,MATCH(N176,Bibs!$1:$1,0),"") ->  | P176: =IF(Bibs,MATCH(A176,OFFSET(Bibs!$A$1,1,O176-1,1500,1),0),"") ->  | Q176: 41 | R176: 10041 | S176: 38 | T176: 0 | U176: =IF(Q176>0,MATCH(N176,Times!$1:$1,0)-1,"") -> 0 | V176: =OFFSET(Races!$F$1,M176,0) -> 2 | W176: 425 | X176: =MATCH(D176,Teams!$C:$C,0)-1 -> 15 | Y176: 115 | Z176: =MATCH(OFFSET(Teams!$C$1,X176,-1),Teams!B:B,0)-1 -> 15 | AA176: 1150041 | AB176: 70 | AC176: 69 | AD176: 1 | AE176: =IF(E176>0,AND(E176>=OFFSET(Races!$G$1,M176,0),E176<=OFFSET(Races!$H$1,M176,0)),TRUE) -> TRUE | AF176: FALSE
B177: 250 | C177: Alejandro Gomez | D177: Holy Family | F177: JHB | G177: =IF(AND(AE177,Q177>0),IF(ISNA(MATCH(AA177,$AA$1:$AA176,0)),0,1),"") -> 0 | H177: =IF(U177="","",OFFSET(Times!$A$1,Q177,U177)) -> 2543 | I177: 1251.5 | J177: 6 | K177: 235 | L177: 174 | M177: =MATCH(F177,Races!$C:$C,0)-1 -> 2 | N177: =OFFSET(Races!$A$1,M177,1) -> JHB | O177: =IF(Bibs,MATCH(N177,Bibs!$1:$1,0),"") ->  | P177: =IF(Bibs,MATCH(A177,OFFSET(Bibs!$A$1,1,O177-1,1500,1),0),"") ->  | Q177: 250 | R177: 20250 | S177: 438 | T177: 203 | U177: =IF(Q177>0,MATCH(N177,Times!$1:$1,0)-1,"") -> 2 | V177: =OFFSET(Races!$F$1,M177,0) -> 2 | W177: 771.5 | X177: =MATCH(D177,Teams!$C:$C,0)-1 -> 17 | Y177: 217 | Z177: =MATCH(OFFSET(Teams!$C$1,X177,-1),Teams!B:B,0)-1 -> 17 | AA177: 2170250 | AB177: 298 | AC177: 292 | AD177: 6 | AE177: =IF(E177>0,AND(E177>=OFFSET(Races!$G$1,M177,0),E177<=OFFSET(Races!$H$1,M177,0)),TRUE) -> TRUE | AF177: TRUE | AG177: 20250 | AH177: 290 | AI177: 116
B178: 216 | C178: David Menkouski | D178: Holy Family | F178: JHB | G178: =IF(AND(AE178,Q178>0),IF(ISNA(MATCH(AA178,$AA$1:$AA177,0)),0,1),"") -> 0 | H178: =IF(U178="","",OFFSET(Times!$A$1,Q178,U178)) -> 1700 | I178: 830 | J178: 4 | K178: 203 | L178: 157 | M178: =MATCH(F178,Races!$C:$C,0)-1 -> 2 | N178: =OFFSET(Races!$A$1,M178,1) -> JHB | O178: =IF(Bibs,MATCH(N178,Bibs!$1:$1,0),"") ->  | P178: =IF(Bibs,MATCH(A178,OFFSET(Bibs!$A$1,1,O178-1,1500,1),0),"") ->  | Q178: 216 | R178: 20216 | S178: 406 | T178: 203 | U178: =IF(Q178>0,MATCH(N178,Times!$1:$1,0)-1,"") -> 2 | V178: =OFFSET(Races!$F$1,M178,0) -> 2 | W178: 510 | X178: =MATCH(D178,Teams!$C:$C,0)-1 -> 17 | Y178: 217 | Z178: =MATCH(OFFSET(Teams!$C$1,X178,-1),Teams!B:B,0)-1 -> 17 | AA178: 2170216 | AB178: 296 | AC178: 292 | AD178: 6 | AE178: =IF(E178>0,AND(E178>=OFFSET(Races!$G$1,M178,0),E178<=OFFSET(Races!$H$1,M178,0)),TRUE) -> TRUE | AF178: TRUE | AG178: 20216 | AH178: 273 | AI178: 116
B179: 72 | C179: Diarmulid Kopnney | D179: Holy Family | F179: JHB | G179: =IF(AND(AE179,Q179>0),IF(ISNA(MATCH(AA179,$AA$1:$AA178,0)),0,1),"") -> 0 | H179: =IF(U179="","",OFFSET(Times!$A$1,Q179,U179)) -> 1316 | I179: 638 | J179: 1 | K179: 69 | L179: 62 | M179: =MATCH(F179,Races!$C:$C,0)-1 -> 2 | N179: =OFFSET(Races!$A$1,M179,1) -> JHB | O179: =IF(Bibs,MATCH(N179,Bibs!$1:$1,0),"") ->  | P179: =IF(Bibs,MATCH(A179,OFFSET(Bibs!$A$1,1,O179-1,1500,1),0),"") ->  | Q179: 72 | R179: 20072 | S179: 272 | T179: 203 | U179: =IF(Q179>0,MATCH(N179,Times!$1:$1,0)-1,"") -> 2 | V179: =OFFSET(Races!$F$1,M179,0) -> 2 | W179: 398 | X179: =MATCH(D179,Teams!$C:$C,0)-1 -> 17 | Y179: 217 | Z179: =MATCH(OFFSET(Teams!$C$1,X179,-1),Teams!B:B,0)-1 -> 17 | AA179: 2170072 | AB179: 293 | AC179: 292 | AD179: 6 | AE179: =IF(E179>0,AND(E179>=OFFSET(Races!$G$1,M179,0),E179<=OFFSET(Races!$H$1,M179,0)),TRUE) -> TRUE | AF179: TRUE | AG179: 20072 | AH179: 178 | AI179: 116
B180: 88 | C180: John Paul Whitaker | D180: Holy Family | F180: JHB | G180: =IF(AND(AE180,Q180>0),IF(ISNA(MATCH(AA180,$AA$1:$AA179,0)),0,1),"") -> 0 | H180: =IF(U180="","",OFFSET(Times!$A$1,Q180,U180)) -> 1327 | I180: 643.5 | J180: 3 | K180: 84 | L180: 73 | M180: =MATCH(F180,Races!$C:$C,0)-1 -> 2 | N180: =OFFSET(Races!$A$1,M180,1) -> JHB | O180: =IF(Bibs,MATCH(N180,Bibs!$1:$1,0),"") ->  | P180: =IF(Bibs,MATCH(A180,OFFSET(Bibs!$A$1,1,O180-1,1500,1),0),"") ->  | Q180: 88 | R180: 20088 | S180: 287 | T180: 203 | U180: =IF(Q180>0,MATCH(N180,Times!$1:$1,0)-1,"") -> 2 | V180: =OFFSET(Races!$F$1,M180,0) -> 2 | W180: 403.5 | X180: =MATCH(D180,Teams!$C:$C,0)-1 -> 17 | Y180: 217 | Z180: =MATCH(OFFSET(Teams!$C$1,X180,-1),Teams!B:B,0)-1 -> 17 | AA180: 2170088 | AB180: 295 | AC180: 292 | AD180: 6 | AE180: =IF(E180>0,AND(E180>=OFFSET(Races!$G$1,M180,0),E180<=OFFSET(Races!$H$1,M180,0)),TRUE) -> TRUE | AF180: TRUE | AG180: 20088 | AH180: 189 | AI180: 116
B181: 233 | C181: Nate Mikosh | D181: Holy Family | F181: JHB | G181: =IF(AND(AE181,Q181>0),IF(ISNA(MATCH(AA181,$AA$1:$AA180,0)),0,1),"") -> 0 | H181: =IF(U181="","",OFFSET(Times!$A$1,Q181,U181)) -> 1901 | I181: 930.5 | J181: 5 | K181: 220 | L181: 165 | M181: =MATCH(F181,Races!$C:$C,0)-1 -> 2 | N181: =OFFSET(Races!$A$1,M181,1) -> JHB | O181: =IF(Bibs,MATCH(N181,Bibs!$1:$1,0),"") ->  | P181: =IF(Bibs,MATCH(A181,OFFSET(Bibs!$A$1,1,O181-1,1500,1),0),"") ->  | Q181: 233 | R181: 20233 | S181: 423 | T181: 203 | U181: =IF(Q181>0,MATCH(N181,Times!$1:$1,0)-1,"") -> 2 | V181: =OFFSET(Races!$F$1,M181,0) -> 2 | W181: 570.5 | X181: =MATCH(D181,Teams!$C:$C,0)-1 -> 17 | Y181: 217 | Z181: =MATCH(OFFSET(Teams!$C$1,X181,-1),Teams!B:B,0)-1 -> 17 | AA181: 2170233 | AB181: 297 | AC181: 292 | AD181: 6 | AE181: =IF(E181>0,AND(E181>=OFFSET(Races!$G$1,M181,0),E181<=OFFSET(Races!$H$1,M181,0)),TRUE) -> TRUE | AF181: TRUE | AG181: 20233 | AH181: 281 | AI181: 116
B182: 81 | C182: Ricardo Sanchez | D182: Holy Family | F182: JHB | G182: =IF(AND(AE182,Q182>0),IF(ISNA(MATCH(AA182,$AA$1:$AA181,0)),0,1),"") -> 0 | H182: =IF(U182="","",OFFSET(Times!$A$1,Q182,U182)) -> 1322 | I182: 641 | J182: 2 | K182: 77 | L182: 67 | M182: =MATCH(F182,Races!$C:$C,0)-1 -> 2 | N182: =OFFSET(Races!$A$1,M182,1) -> JHB | O182: =IF(Bibs,MATCH(N182,Bibs!$1:$1,0),"") ->  | P182: =IF(Bibs,MATCH(A182,OFFSET(Bibs!$A$1,1,O182-1,1500,1),0),"") ->  | Q182: 81 | R182: 20081 | S182: 280 | T182: 203 | U182: =IF(Q182>0,MATCH(N182,Times!$1:$1,0)-1,"") -> 2 | V182: =OFFSET(Races!$F$1,M182,0) -> 2 | W182: 401 | X182: =MATCH(D182,Teams!$C:$C,0)-1 -> 17 | Y182: 217 | Z182: =MATCH(OFFSET(Teams!$C$1,X182,-1),Teams!B:B,0)-1 -> 17 | AA182: 2170081 | AB182: 294 | AC182: 292 | AD182: 6 | AE182: =IF(E182>0,AND(E182>=OFFSET(Races!$G$1,M182,0),E182<=OFFSET(Races!$H$1,M182,0)),TRUE) -> TRUE | AF182: TRUE | AG182: 20081 | AH182: 183 | AI182: 116
B183: 61 | C183: Amy Gallagher | D183: Holy Family | F183: JHG | G183: =IF(AND(AE183,Q183>0),IF(ISNA(MATCH(AA183,$AA$1:$AA182,0)),0,1),"") -> 0 | H183: =IF(U183="","",OFFSET(Times!$A$1,Q183,U183)) -> 1432 | I183: 716 | J183: 2 | K183: 57 | L183: 44 | M183: =MATCH(F183,Races!$C:$C,0)-1 -> 1 | N183: =OFFSET(Races!$A$1,M183,1) -> JHG | O183: =IF(Bibs,MATCH(N183,Bibs!$1:$1,0),"") ->  | P183: =IF(Bibs,MATCH(A183,OFFSET(Bibs!$A$1,1,O183-1,1500,1),0),"") ->  | Q183: 61 | R183: 10061 | S183: 57 | T183: 0 | U183: =IF(Q183>0,MATCH(N183,Times!$1:$1,0)-1,"") -> 0 | V183: =OFFSET(Races!$F$1,M183,0) -> 2 | W183: 436 | X183: =MATCH(D183,Teams!$C:$C,0)-1 -> 17 | Y183: 117 | Z183: =MATCH(OFFSET(Teams!$C$1,X183,-1),Teams!B:B,0)-1 -> 17 | AA183: 1170061 | AB183: 81 | AC183: 79 | AD183: 9 | AE183: =IF(E183>0,AND(E183>=OFFSET(Races!$G$1,M183,0),E183<=OFFSET(Races!$H$1,M183,0)),TRUE) -> TRUE | AF183: TRUE | AG183: 10061 | AH183: 44 | AI183: 0
B184: 109 | C184: Anna-Laura Whitaker | D184: Holy Family | F184: JHG | G184: =IF(AND(AE184,Q184>0),IF(ISNA(MATCH(AA184,$AA$1:$AA183,0)),0,1),"") -> 0 | H184: =IF(U184="","",OFFSET(Times!$A$1,Q184,U184)) -> 1535 | I184: 747.5 | J184: 6 | K184: 98 | L184: 72 | M184: =MATCH(F184,Races!$C:$C,0)-1 -> 1 | N184: =OFFSET(Races!$A$1,M184,1) -> JHG | O184: =IF(Bibs,MATCH(N184,Bibs!$1:$1,0),"") ->  | P184: =IF(Bibs,MATCH(A184,OFFSET(Bibs!$A$1,1,O184-1,1500,1),0),"") ->  | Q184: 109 | R184: 10109 | S184: 98 | T184: 0 | U184: =IF(Q184>0,MATCH(N184,Times!$1:$1,0)-1,"") -> 0 | V184: =OFFSET(Races!$F$1,M184,0) -> 2 | W184: 467.5 | X184: =MATCH(D184,Teams!$C:$C,0)-1 -> 17 | Y184: 117 | Z184: =MATCH(OFFSET(Teams!$C$1,X184,-1),Teams!B:B,0)-1 -> 17 | AA184: 1170109 | AB184: 85 | AC184: 79 | AD184: 9 | AE184: =IF(E184>0,AND(E184>=OFFSET(Races!$G$1,M184,0),E184<=OFFSET(Races!$H$1,M184,0)),TRUE) -> TRUE | AF184: TRUE | AG184: 10109 | AH184: 72 | AI184: 0
B185: 114 | C185: Buangelina McLake | D185: Holy Family | F185: JHG | G185: =IF(AND(AE185,Q185>0),IF(ISNA(MATCH(AA185,$AA$1:$AA184,0)),0,1),"") -> 0 | H185: =IF(U185="","",OFFSET(Times!$A$1,Q185,U185)) -> 1540 | I185: 750 | J185: 7 | K185: 103 | L185: 76 | M185: =MATCH(F185,Races!$C:$C,0)-1 -> 1 | N185: =OFFSET(Races!$A$1,M185,1) -> JHG | O185: =IF(Bibs,MATCH(N185,Bibs!$1:$1,0),"") ->  | P185: =IF(Bibs,MATCH(A185,OFFSET(Bibs!$A$1,1,O185-1,1500,1),0),"") ->  | Q185: 114 | R185: 10114 | S185: 103 | T185: 0 | U185: =IF(Q185>0,MATCH(N185,Times!$1:$1,0)-1,"") -> 0 | V185: =OFFSET(Races!$F$1,M185,0) -> 2 | W185: 470 | X185: =MATCH(D185,Teams!$C:$C,0)-1 -> 17 | Y185: 117 | Z185: =MATCH(OFFSET(Teams!$C$1,X185,-1),Teams!B:B,0)-1 -> 17 | AA185: 1170114 | AB185: 86 | AC185: 79 | AD185: 9 | AE185: =IF(E185>0,AND(E185>=OFFSET(Races!$G$1,M185,0),E185<=OFFSET(Races!$H$1,M185,0)),TRUE) -> TRUE | AF185: TRUE | AG185: 10114 | AH185: 76 | AI185: 0
B186: 82 | C186: Camilia Vera-Tudera | D186: Holy Family | F186: JHG | G186: =IF(AND(AE186,Q186>0),IF(ISNA(MATCH(AA186,$AA$1:$AA185,0)),0,1),"") -> 0 | H186: =IF(U186="","",OFFSET(Times!$A$1,Q186,U186)) -> 1459 | I186: 729.5 | J186: 4 | K186: 77 | L186: 56 | M186: =MATCH(F186,Races!$C:$C,0)-1 -> 1 | N186: =OFFSET(Races!$A$1,M186,1) -> JHG | O186: =IF(Bibs,MATCH(N186,Bibs!$1:$1,0),"") ->  | P186: =IF(Bibs,MATCH(A186,OFFSET(Bibs!$A$1,1,O186-1,1500,1),0),"") ->  | Q186: 82 | R186: 10082 | S186: 77 | T186: 0 | U186: =IF(Q186>0,MATCH(N186,Times!$1:$1,0)-1,"") -> 0 | V186: =OFFSET(Races!$F$1,M186,0) -> 2 | W186: 449.5 | X186: =MATCH(D186,Teams!$C:$C,0)-1 -> 17 | Y186: 117 | Z186: =MATCH(OFFSET(Teams!$C$1,X186,-1),Teams!B:B,0)-1 -> 17 | AA186: 1170082 | AB186: 83 | AC186: 79 | AD186: 9 | AE186: =IF(E186>0,AND(E186>=OFFSET(Races!$G$1,M186,0),E186<=OFFSET(Races!$H$1,M186,0)),TRUE) -> TRUE | AF186: TRUE | AG186: 10082 | AH186: 56 | AI186: 0
B187: 195 | C187: Erin Regan | D187: Holy Family | F187: JHG | G187: =IF(AND(AE187,Q187>0),IF(ISNA(MATCH(AA187,$AA$1:$AA186,0)),0,1),"") -> 0 | H187: =IF(U187="","",OFFSET(Times!$A$1,Q187,U187)) -> 1812 | I187: 906 | J187: 9 | K187: 173 | L187: X | M187: =MATCH(F187,Races!$C:$C,0)-1 -> 1 | N187: =OFFSET(Races!$A$1,M187,1) -> JHG | O187: =IF(Bibs,MATCH(N187,Bibs!$1:$1,0),"") ->  | P187: =IF(Bibs,MATCH(A187,OFFSET(Bibs!$A$1,1,O187-1,1500,1),0),"") ->  | Q187: 195 | R187: 10195 | S187: 173 | T187: 0 | U187: =IF(Q187>0,MATCH(N187,Times!$1:$1,0)-1,"") -> 0 | V187: =OFFSET(Races!$F$1,M187,0) -> 2 | W187: 546 | X187: =MATCH(D187,Teams!$C:$C,0)-1 -> 17 | Y187: 117 | Z187: =MATCH(OFFSET(Teams!$C$1,X187,-1),Teams!B:B,0)-1 -> 17 | AA187: 1170195 | AB187: 88 | AC187: 79 | AD187: 9 | AE187: =IF(E187>0,AND(E187>=OFFSET(Races!$G$1,M187,0),E187<=OFFSET(Races!$H$1,M187,0)),TRUE) -> TRUE | AF187: FALSE
B188: 80 | C188: Hillary Behr | D188: Holy Family | F188: JHG | G188: =IF(AND(AE188,Q188>0),IF(ISNA(MATCH(AA188,$AA$1:$AA187,0)),0,1),"") -> 0 | H188: =IF(U188="","",OFFSET(Times!$A$1,Q188,U188)) -> 1455 | I188: 727.5 | J188: 3 | K188: 75 | L188: 55 | M188: =MATCH(F188,Races!$C:$C,0)-1 -> 1 | N188: =OFFSET(Races!$A$1,M188,1) -> JHG | O188: =IF(Bibs,MATCH(N188,Bibs!$1:$1,0),"") ->  | P188: =IF(Bibs,MATCH(A188,OFFSET(Bibs!$A$1,1,O188-1,1500,1),0),"") ->  | Q188: 80 | R188: 10080 | S188: 75 | T188: 0 | U188: =IF(Q188>0,MATCH(N188,Times!$1:$1,0)-1,"") -> 0 | V188: =OFFSET(Races!$F$1,M188,0) -> 2 | W188: 447.5 | X188: =MATCH(D188,Teams!$C:$C,0)-1 -> 17 | Y188: 117 | Z188: =MATCH(OFFSET(Teams!$C$1,X188,-1),Teams!B:B,0)-1 -> 17 | AA188: 1170080 | AB188: 82 | AC188: 79 | AD188: 9 | AE188: =IF(E188>0,AND(E188>=OFFSET(Races!$G$1,M188,0),E188<=OFFSET(Races!$H$1,M188,0)),TRUE) -> TRUE | AF188: TRUE | AG188: 10080 | AH188: 55 | AI188: 0
B189: 60 | C189: Klera Regan | D189: Holy Family | F189: JHG | G189: =IF(AND(AE189,Q189>0),IF(ISNA(MATCH(AA189,$AA$1:$AA188,0)),0,1),"") -> 0 | H189: =IF(U189="","",OFFSET(Times!$A$1,Q189,U189)) -> 1429 | I189: 714.5 | J189: 1 | K189: 56 | L189: 43 | M189: =MATCH(F189,Races!$C:$C,0)-1 -> 1 | N189: =OFFSET(Races!$A$1,M189,1) -> JHG | O189: =IF(Bibs,MATCH(N189,Bibs!$1:$1,0),"") ->  | P189: =IF(Bibs,MATCH(A189,OFFSET(Bibs!$A$1,1,O189-1,1500,1),0),"") ->  | Q189: 60 | R189: 10060 | S189: 56 | T189: 0 | U189: =IF(Q189>0,MATCH(N189,Times!$1:$1,0)-1,"") -> 0 | V189: =OFFSET(Races!$F$1,M189,0) -> 2 | W189: 434.5 | X189: =MATCH(D189,Teams!$C:$C,0)-1 -> 17 | Y189: 117 | Z189: =MATCH(OFFSET(Teams!$C$1,X189,-1),Teams!B:B,0)-1 -> 17 | AA189: 1170060 | AB189: 80 | AC189: 79 | AD189: 9 | AE189: =IF(E189>0,AND(E189>=OFFSET(Races!$G$1,M189,0),E189<=OFFSET(Races!$H$1,M189,0)),TRUE) -> TRUE | AF189: TRUE | AG189: 10060 | AH189: 43 | AI189: 0
B190: 120 | C190: Lauren Willey | D190: Holy Family | F190: JHG | G190: =IF(AND(AE190,Q190>0),IF(ISNA(MATCH(AA190,$AA$1:$AA189,0)),0,1),"") -> 0 | H190: =IF(U190="","",OFFSET(Times!$A$1,Q190,U190)) -> 1546 | I190: 753 | J190: 8 | K190: 108 | L190: X | M190: =MATCH(F190,Races!$C:$C,0)-1 -> 1 | N190: =OFFSET(Races!$A$1,M190,1) -> JHG | O190: =IF(Bibs,MATCH(N190,Bibs!$1:$1,0),"") ->  | P190: =IF(Bibs,MATCH(A190,OFFSET(Bibs!$A$1,1,O190-1,1500,1),0),"") ->  | Q190: 120 | R190: 10120 | S190: 108 | T190: 0 | U190: =IF(Q190>0,MATCH(N190,Times!$1:$1,0)-1,"") -> 0 | V190: =OFFSET(Races!$F$1,M190,0) -> 2 | W190: 473 | X190: =MATCH(D190,Teams!$C:$C,0)-1 -> 17 | Y190: 117 | Z190: =MATCH(OFFSET(Teams!$C$1,X190,-1),Teams!B:B,0)-1 -> 17 | AA190: 1170120 | AB190: 87 | AC190: 79 | AD190: 9 | AE190: =IF(E190>0,AND(E190>=OFFSET(Races!$G$1,M190,0),E190<=OFFSET(Races!$H$1,M190,0)),TRUE) -> TRUE | AF190: FALSE
B191: 107 | C191: Salma Jimenez | D191: Holy Family | F191: JHG | G191: =IF(AND(AE191,Q191>0),IF(ISNA(MATCH(AA191,$AA$1:$AA190,0)),0,1),"") -> 0 | H191: =IF(U191="","",OFFSET(Times!$A$1,Q191,U191)) -> 1535 | I191: 747.5 | J191: 5 | K191: 96 | L191: 70 | M191: =MATCH(F191,Races!$C:$C,0)-1 -> 1 | N191: =OFFSET(Races!$A$1,M191,1) -> JHG | O191: =IF(Bibs,MATCH(N191,Bibs!$1:$1,0),"") ->  | P191: =IF(Bibs,MATCH(A191,OFFSET(Bibs!$A$1,1,O191-1,1500,1),0),"") ->  | Q191: 107 | R191: 10107 | S191: 96 | T191: 0 | U191: =IF(Q191>0,MATCH(N191,Times!$1:$1,0)-1,"") -> 0 | V191: =OFFSET(Races!$F$1,M191,0) -> 2 | W191: 467.5 | X191: =MATCH(D191,Teams!$C:$C,0)-1 -> 17 | Y191: 117 | Z191: =MATCH(OFFSET(Teams!$C$1,X191,-1),Teams!B:B,0)-1 -> 17 | AA191: 1170107 | AB191: 84 | AC191: 79 | AD191: 9 | AE191: =IF(E191>0,AND(E191>=OFFSET(Races!$G$1,M191,0),E191<=OFFSET(Races!$H$1,M191,0)),TRUE) -> TRUE | AF191: TRUE | AG191: 10107 | AH191: 70 | AI191: 0
B192: 132 | C192: Connor Nicolson | D192: Hopewell | E192: 7 | F192: JHB | G192: =IF(AND(AE192,Q192>0),IF(ISNA(MATCH(AA192,$AA$1:$AA191,0)),0,1),"") -> 0 | H192: =IF(U192="","",OFFSET(Times!$A$1,Q192,U192)) -> 1422 | I192: 711 | J192: 3 | K192: 128 | L192: 108 | M192: =MATCH(F192,Races!$C:$C,0)-1 -> 2 | N192: =OFFSET(Races!$A$1,M192,1) -> JHB | O192: =IF(Bibs,MATCH(N192,Bibs!$1:$1,0),"") ->  | P192: =IF(Bibs,MATCH(A192,OFFSET(Bibs!$A$1,1,O192-1,1500,1),0),"") ->  | Q192: 132 | R192: 20132 | S192: 331 | T192: 203 | U192: =IF(Q192>0,MATCH(N192,Times!$1:$1,0)-1,"") -> 2 | V192: =OFFSET(Races!$F$1,M192,0) -> 2 | W192: 431 | X192: =MATCH(D192,Teams!$C:$C,0)-1 -> 18 | Y192: 218 | Z192: =MATCH(OFFSET(Teams!$C$1,X192,-1),Teams!B:B,0)-1 -> 18 | AA192: 2180132 | AB192: 301 | AC192: 298 | AD192: 5 | AE192: =IF(E192>0,AND(E192>=OFFSET(Races!$G$1,M192,0),E192<=OFFSET(Races!$H$1,M192,0)),TRUE) -> TRUE | AF192: TRUE | AG192: 20132 | AH192: 224 | AI192: 116
B193: 65 | C193: Cooper Zuniga | D193: Hopewell | E193: 8 | F193: JHB | G193: =IF(AND(AE193,Q193>0),IF(ISNA(MATCH(AA193,$AA$1:$AA192,0)),0,1),"") -> 0 | H193: =IF(U193="","",OFFSET(Times!$A$1,Q193,U193)) -> 1304 | I193: 632 | J193: 1 | K193: 62 | L193: 55 | M193: =MATCH(F193,Races!$C:$C,0)-1 -> 2 | N193: =OFFSET(Races!$A$1,M193,1) -> JHB | O193: =IF(Bibs,MATCH(N193,Bibs!$1:$1,0),"") ->  | P193: =IF(Bibs,MATCH(A193,OFFSET(Bibs!$A$1,1,O193-1,1500,1),0),"") ->  | Q193: 65 | R193: 20065 | S193: 265 | T193: 203 | U193: =IF(Q193>0,MATCH(N193,Times!$1:$1,0)-1,"") -> 2 | V193: =OFFSET(Races!$F$1,M193,0) -> 2 | W193: 392 | X193: =MATCH(D193,Teams!$C:$C,0)-1 -> 18 | Y193: 218 | Z193: =MATCH(OFFSET(Teams!$C$1,X193,-1),Teams!B:B,0)-1 -> 18 | AA193: 2180065 | AB193: 299 | AC193: 298 | AD193: 5 | AE193: =IF(E193>0,AND(E193>=OFFSET(Races!$G$1,M193,0),E193<=OFFSET(Races!$H$1,M193,0)),TRUE) -> TRUE | AF193: TRUE | AG193: 20065 | AH193: 171 | AI193: 116
B194: 231 | C194: Diego Durante | D194: Hopewell | E194: 7 | F194: JHB | G194: =IF(AND(AE194,Q194>0),IF(ISNA(MATCH(AA194,$AA$1:$AA193,0)),0,1),"") -> 0 | H194: =IF(U194="","",OFFSET(Times!$A$1,Q194,U194)) -> 1828 | I194: =IF(W194="","",100*TRUNC(W194/60)+MOD(W194,60)) -> 914 | J194: =IF(AND(AE194,Q194>0),AB194-AC194,"") -> 4 | K194: =IF(Q194>0,S194-T194,"") -> 218 | L194: =IF(AF194,AH194-AI194,IF(Q194>0,"X","")) -> 163 | M194: =MATCH(F194,Races!$C:$C,0)-1 -> 2 | N194: =OFFSET(Races!$A$1,M194,1) -> JHB | O194: =IF(Bibs,MATCH(N194,Bibs!$1:$1,0),"") ->  | P194: =IF(Bibs,MATCH(A194,OFFSET(Bibs!$A$1,1,O194-1,1500,1),0),"") ->  | Q194: 231 | R194: 20231 | S194: 421 | T194: 203 | U194: =IF(Q194>0,MATCH(N194,Times!$1:$1,0)-1,"") -> 2 | V194: =OFFSET(Races!$F$1,M194,0) -> 2 | W194: =IF(AND(NOT(ISNA(U194)),Q194>0),(60*TRUNC(H194/100)+MOD(H194,100))/V194,"") -> 554 | X194: =MATCH(D194,Teams!$C:$C,0)-1 -> 18 | Y194: =IF(AND(AE194,Q194>0),100*M194+X194,"") -> 218 | Z194: =MATCH(OFFSET(Teams!$C$1,X194,-1),Teams!B:B,0)-1 -> 18 | AA194: =IF(AND(Q194>0,AE194),10000*Y194+Q194,"") -> 2180231 | AB194: =IF(AND(AE194,Q194>0),RANK(AA194,AA:AA,1),"") -> 302 | AC194: =COUNTIF(AA:AA,"<"&(10000*Y194)) -> 298 | AD194: =IF(AND(AE194,Q194>0),COUNTIF(Y:Y,"="&Y194),"") -> 5 | AE194: =IF(E194>0,AND(E194>=OFFSET(Races!$G$1,M194,0),E194<=OFFSET(Races!$H$1,M194,0)),TRUE) -> TRUE | AF194: =AND(AE194,AD194>=5,J194<=7) -> TRUE | AG194: =IF(AF194,10000*M194+Q194,"") -> 20231 | AH194: 279 | AI194: =IF(AF194,COUNTIF(AG:AG,"<"&(10000*M194)),"") -> 116
B195: 251 | C195: James Faherty | D195: Hopewell | E195: 7 | F195: JHB | G195: =IF(AND(AE195,Q195>0),IF(ISNA(MATCH(AA195,$AA$1:$AA194,0)),0,1),"") -> 0 | H195: =IF(U195="","",OFFSET(Times!$A$1,Q195,U195)) -> 2547 | I195: 1253.5 | J195: 5 | K195: 236 | L195: 175 | M195: =MATCH(F195,Races!$C:$C,0)-1 -> 2 | N195: =OFFSET(Races!$A$1,M195,1) -> JHB | O195: =IF(Bibs,MATCH(N195,Bibs!$1:$1,0),"") ->  | P195: =IF(Bibs,MATCH(A195,OFFSET(Bibs!$A$1,1,O195-1,1500,1),0),"") ->  | Q195: =IF(Bibs,P195,B195) -> 251 | R195: =IF(Q195,10000*M195+Q195,"") -> 20251 | S195: =IF(Q195>0,RANK(R195,R:R,1),"") -> 439 | T195: =IF(Q195>0,COUNTIF(R:R,"<"&(10000*M195)),"") -> 203 | U195: =IF(Q195>0,MATCH(N195,Times!$1:$1,0)-1,"") -> 2 | V195: =OFFSET(Races!$F$1,M195,0) -> 2 | W195: 773.5 | X195: =MATCH(D195,Teams!$C:$C,0)-1 -> 18 | Y195: 218 | Z195: =MATCH(OFFSET(Teams!$C$1,X195,-1),Teams!B:B,0)-1 -> 18 | AA195: 2180251 | AB195: 303 | AC195: 298 | AD195: 5 | AE195: =IF(E195>0,AND(E195>=OFFSET(Races!$G$1,M195,0),E195<=OFFSET(Races!$H$1,M195,0)),TRUE) -> TRUE | AF195: TRUE | AG195: 20251 | AH195: =IF(AF195,RANK(AG195,AG:AG,1),"") -> 291 | AI195: 116
B196: 87 | C196: Jon Torres | D196: Hopewell | E196: 8 | F196: JHB | G196: =IF(AND(AE196,Q196>0),IF(ISNA(MATCH(AA196,$AA$1:$AA195,0)),0,1),"") -> 0 | H196: =IF(U196="","",OFFSET(Times!$A$1,Q196,U196)) -> 1326 | I196: 643 | J196: 2 | K196: 83 | L196: 72 | M196: =MATCH(F196,Races!$C:$C,0)-1 -> 2 | N196: =OFFSET(Races!$A$1,M196,1) -> JHB | O196: =IF(Bibs,MATCH(N196,Bibs!$1:$1,0),"") ->  | P196: =IF(Bibs,MATCH(A196,OFFSET(Bibs!$A$1,1,O196-1,1500,1),0),"") ->  | Q196: 87 | R196: 20087 | S196: 286 | T196: 203 | U196: =IF(Q196>0,MATCH(N196,Times!$1:$1,0)-1,"") -> 2 | V196: =OFFSET(Races!$F$1,M196,0) -> 2 | W196: 403 | X196: =MATCH(D196,Teams!$C:$C,0)-1 -> 18 | Y196: 218 | Z196: =MATCH(OFFSET(Teams!$C$1,X196,-1),Teams!B:B,0)-1 -> 18 | AA196: 2180087 | AB196: 300 | AC196: 298 | AD196: 5 | AE196: =IF(E196>0,AND(E196>=OFFSET(Races!$G$1,M196,0),E196<=OFFSET(Races!$H$1,M196,0)),TRUE) -> TRUE | AF196: TRUE | AG196: 20087 | AH196: 188 | AI196: 116
B197: 37 | C197: Brandy Montgomery | D197: Hopewell | E197: 7 | F197: JHG | G197: =IF(AND(AE197,Q197>0),IF(ISNA(MATCH(AA197,$AA$1:$AA196,0)),0,1),"") -> 0 | H197: =IF(U197="","",OFFSET(Times!$A$1,Q197,U197)) -> 1408 | I197: 704 | J197: 1 | K197: 34 | L197: X | M197: =MATCH(F197,Races!$C:$C,0)-1 -> 1 | N197: =OFFSET(Races!$A$1,M197,1) -> JHG | O197: =IF(Bibs,MATCH(N197,Bibs!$1:$1,0),"") ->  | P197: =IF(Bibs,MATCH(A197,OFFSET(Bibs!$A$1,1,O197-1,1500,1),0),"") ->  | Q197: 37 | R197: 10037 | S197: 34 | T197: 0 | U197: =IF(Q197>0,MATCH(N197,Times!$1:$1,0)-1,"") -> 0 | V197: =OFFSET(Races!$F$1,M197,0) -> 2 | W197: 424 | X197: =MATCH(D197,Teams!$C:$C,0)-1 -> 18 | Y197: 118 | Z197: =MATCH(OFFSET(Teams!$C$1,X197,-1),Teams!B:B,0)-1 -> 18 | AA197: 1180037 | AB197: 89 | AC197: 88 | AD197: 4 | AE197: =IF(E197>0,AND(E197>=OFFSET(Races!$G$1,M197,0),E197<=OFFSET(Races!$H$1,M197,0)),TRUE) -> TRUE | AF197: FALSE
B198: 62 | C198: Kayla Garcia | D198: Hopewell | E198: 8 | F198: JHG | G198: =IF(AND(AE198,Q198>0),IF(ISNA(MATCH(AA198,$AA$1:$AA197,0)),0,1),"") -> 0 | H198: =IF(U198="","",OFFSET(Times!$A$1,Q198,U198)) -> 1433 | I198: 716.5 | J198: 2 | K198: 58 | L198: X | M198: =MATCH(F198,Races!$C:$C,0)-1 -> 1 | N198: =OFFSET(Races!$A$1,M198,1) -> JHG | O198: =IF(Bibs,MATCH(N198,Bibs!$1:$1,0),"") ->  | P198: =IF(Bibs,MATCH(A198,OFFSET(Bibs!$A$1,1,O198-1,1500,1),0),"") ->  | Q198: 62 | R198: 10062 | S198: 58 | T198: 0 | U198: =IF(Q198>0,MATCH(N198,Times!$1:$1,0)-1,"") -> 0 | V198: =OFFSET(Races!$F$1,M198,0) -> 2 | W198: 436.5 | X198: =MATCH(D198,Teams!$C:$C,0)-1 -> 18 | Y198: 118 | Z198: =MATCH(OFFSET(Teams!$C$1,X198,-1),Teams!B:B,0)-1 -> 18 | AA198: 1180062 | AB198: 90 | AC198: 88 | AD198: 4 | AE198: =IF(E198>0,AND(E198>=OFFSET(Races!$G$1,M198,0),E198<=OFFSET(Races!$H$1,M198,0)),TRUE) -> TRUE | AF198: FALSE
B199: 232 | C199: Lori Richardson | D199: Hopewell | E199: 7 | F199: JHG | G199: =IF(AND(AE199,Q199>0),IF(ISNA(MATCH(AA199,$AA$1:$AA198,0)),0,1),"") -> 0 | H199: =IF(U199="","",OFFSET(Times!$A$1,Q199,U199)) -> 2125 | I199: 1042.5 | J199: 4 | K199: 201 | L199: X | M199: =MATCH(F199,Races!$C:$C,0)-1 -> 1 | N199: =OFFSET(Races!$A$1,M199,1) -> JHG | O199: =IF(Bibs,MATCH(N199,Bibs!$1:$1,0),"") ->  | P199: =IF(Bibs,MATCH(A199,OFFSET(Bibs!$A$1,1,O199-1,1500,1),0),"") ->  | Q199: 232 | R199: 10232 | S199: 201 | T199: 0 | U199: =IF(Q199>0,MATCH(N199,Times!$1:$1,0)-1,"") -> 0 | V199: =OFFSET(Races!$F$1,M199,0) -> 2 | W199: 642.5 | X199: =MATCH(D199,Teams!$C:$C,0)-1 -> 18 | Y199: 118 | Z199: =MATCH(OFFSET(Teams!$C$1,X199,-1),Teams!B:B,0)-1 -> 18 | AA199: 1180232 | AB199: 92 | AC199: 88 | AD199: 4 | AE199: =IF(E199>0,AND(E199>=OFFSET(Races!$G$1,M199,0),E199<=OFFSET(Races!$H$1,M199,0)),TRUE) -> TRUE | AF199: FALSE
B200: 173 | C200: Riley Shanahan | D200: Hopewell | E200: 7 | F200: JHG | G200: =IF(AND(AE200,Q200>0),IF(ISNA(MATCH(AA200,$AA$1:$AA199,0)),0,1),"") -> 0 | H200: =IF(U200="","",OFFSET(Times!$A$1,Q200,U200)) -> 1708 | I200: 834 | J200: 3 | K200: 151 | L200: X | M200: =MATCH(F200,Races!$C:$C,0)-1 -> 1 | N200: =OFFSET(Races!$A$1,M200,1) -> JHG | O200: =IF(Bibs,MATCH(N200,Bibs!$1:$1,0),"") ->  | P200: =IF(Bibs,MATCH(A200,OFFSET(Bibs!$A$1,1,O200-1,1500,1),0),"") ->  | Q200: 173 | R200: 10173 | S200: 151 | T200: 0 | U200: =IF(Q200>0,MATCH(N200,Times!$1:$1,0)-1,"") -> 0 | V200: =OFFSET(Races!$F$1,M200,0) -> 2 | W200: 514 | X200: =MATCH(D200,Teams!$C:$C,0)-1 -> 18 | Y200: 118 | Z200: =MATCH(OFFSET(Teams!$C$1,X200,-1),Teams!B:B,0)-1 -> 18 | AA200: 1180173 | AB200: 91 | AC200: 88 | AD200: 4 | AE200: =IF(E200>0,AND(E200>=OFFSET(Races!$G$1,M200,0),E200<=OFFSET(Races!$H$1,M200,0)),TRUE) -> TRUE | AF200: FALSE
... 1302 more rows

Sheet Times
A1: =IF((COLUMN()+1)/2 > NumRaces, 0, VLOOKUP((COLUMN()+1)/2,Races!$A:$H,2,0)) -> JHG | B1: =IF(A1=0,"",SUM(B2:B9999)) -> 0 | C1: =IF((COLUMN()+1)/2 > NumRaces, 0, VLOOKUP((COLUMN()+1)/2,Races!$A:$H,2,0)) -> JHB | D1: =IF(C1=0,"",SUM(D2:D9999)) -> 0 | E1: =IF((COLUMN()+1)/2 > NumRaces, 0, VLOOKUP((COLUMN()+1)/2,Races!$A:$H,2,0)) -> 0 | F1: =IF(E1=0,"",SUM(F2:F9999)) ->  | G1: =IF((COLUMN()+1)/2 > NumRaces, 0, VLOOKUP((COLUMN()+1)/2,Races!$A:$H,2,0)) -> 0 | H1: =IF(G1=0,"",SUM(H2:H9999)) ->  | I1: =IF((COLUMN()+1)/2 > NumRaces, 0, VLOOKUP((COLUMN()+1)/2,Races!$A:$H,2,0)) -> 0 | J1: =IF(I1=0,"",SUM(J2:J9999)) ->  | K1: =IF((COLUMN()+1)/2 > NumRaces, 0, VLOOKUP((COLUMN()+1)/2,Races!$A:$H,2,0)) -> 0 | L1: =IF(K1=0,"",SUM(L2:L9999)) ->  | M1: =IF((COLUMN()+1)/2 > NumRaces, 0, VLOOKUP((COLUMN()+1)/2,Races!$A:$H,2,0)) -> 0 | N1: =IF(M1=0,"",SUM(N2:N9999)) ->  | O1: =IF((COLUMN()+1)/2 > NumRaces, 0, VLOOKUP((COLUMN()+1)/2,Races!$A:$H,2,0)) -> 0 | P1: =IF(O1=0,"",SUM(P2:P9999)) ->  | Q1: =IF((COLUMN()+1)/2 > NumRaces, 0, VLOOKUP((COLUMN()+1)/2,Races!$A:$H,2,0)) -> 0 | R1: =IF(Q1=0,"",SUM(R2:R9999)) ->  | S1: =IF((COLUMN()+1)/2 > NumRaces, 0, VLOOKUP((COLUMN()+1)/2,Races!$A:$H,2,0)) -> 0 | T1: =IF(S1=0,"",SUM(T2:T9999)) ->  | U1: =IF((COLUMN()+1)/2 > NumRaces, 0, VLOOKUP((COLUMN()+1)/2,Races!$A:$H,2,0)) -> 0 | V1: =IF(U1=0,"",SUM(V2:V9999)) ->  | W1: =IF((COLUMN()+1)/2 > NumRaces, 0, VLOOKUP((COLUMN()+1)/2,Races!$A:$H,2,0)) -> 0 | X1: =IF(W1=0,"",SUM(X2:X9999)) ->  | Y1: =IF((COLUMN()+1)/2 > NumRaces, 0, VLOOKUP((COLUMN()+1)/2,Races!$A:$H,2,0)) -> 0 | Z1: =IF(Y1=0,"",SUM(Z2:Z9999)) ->  | AA1: =IF((COLUMN()+1)/2 > NumRaces, 0, VLOOKUP((COLUMN()+1)/2,Races!$A:$H,2,0)) -> 0 | AB1: =IF(AA1=0,"",SUM(AB2:AB9999)) ->  | AC1: =IF((COLUMN()+1)/2 > NumRaces, 0, VLOOKUP((COLUMN()+1)/2,Races!$A:$H,2,0)) -> 0 | AD1: =IF(AC1=0,"",SUM(AD2:AD9999)) -> 
A2: 1125 | B2: =IF(MOD(A2,100)>=60,1,0) -> 0 | C2: 1033 | D2: =IF(MOD(C2,100)>=60,1,0) -> 0 | F2: =IF(MOD(E2,100)>=60,1,0) -> 0 | H2: =IF(MOD(G2,100)>=60,1,0) -> 0 | J2: =IF(MOD(I2,100)>=60,1,0) -> 0 | L2: =IF(MOD(K2,100)>=60,1,0) -> 0 | N2: =IF(MOD(M2,100)>=60,1,0) -> 0 | P2: =IF(MOD(O2,100)>=60,1,0) -> 0 | R2: =IF(MOD(Q2,100)>=60,1,0) -> 0 | T2: =IF(MOD(S2,100)>=60,1,0) -> 0 | V2: =IF(MOD(U2,100)>=60,1,0) -> 0 | X2: =IF(MOD(W2,100)>=60,1,0) -> 0 | Z2: =IF(MOD(Y2,100)>=60,1,0) -> 0 | AB2: =IF(MOD(AA2,100)>=60,1,0) -> 0 | AD2: =IF(MOD(AC2,100)>=60,1,0) -> 0
A3: 1200 | B3: =IF(AND(A3>0,A3<A2),1,IF(MOD(A3,100)>=60,1,0)) -> 0 | C3: 1052 | D3: =IF(AND(C3>0,C3<C2),1,IF(MOD(C3,100)>=60,1,0)) -> 0 | F3: =IF(AND(E3>0,E3<E2),1,IF(MOD(E3,100)>=60,1,0)) -> 0 | H3: =IF(AND(G3>0,G3<G2),1,IF(MOD(G3,100)>=60,1,0)) -> 0 | J3: =IF(AND(I3>0,I3<I2),1,IF(MOD(I3,100)>=60,1,0)) -> 0 | L3: =IF(AND(K3>0,K3<K2),1,IF(MOD(K3,100)>=60,1,0)) -> 0 | N3: =IF(AND(M3>0,M3<M2),1,IF(MOD(M3,100)>=60,1,0)) -> 0 | P3: 0 | R3: 0 | T3: 0 | V3: =IF(AND(U3>0,U3<U2),1,IF(MOD(U3,100)>=60,1,0)) -> 0 | X3: =IF(AND(W3>0,W3<W2),1,IF(MOD(W3,100)>=60,1,0)) -> 0 | Z3: =IF(AND(Y3>0,Y3<Y2),1,IF(MOD(Y3,100)>=60,1,0)) -> 0 | AB3: =IF(AND(AA3>0,AA3<AA2),1,IF(MOD(AA3,100)>=60,1,0)) -> 0 | AD3: =IF(AND(AC3>0,AC3<AC2),1,IF(MOD(AC3,100)>=60,1,0)) -> 0
A4: 1226 | B4: 0 | C4: 1058 | D4: 0 | F4: 0 | H4: 0 | J4: 0 | L4: 0 | N4: 0 | P4: 0 | R4: 0 | T4: 0 | V4: 0 | X4: 0 | Z4: 0 | AB4: 0 | AD4: 0
A5: 1240 | B5: 0 | C5: 1101 | D5: 0 | F5: 0 | H5: 0 | J5: 0 | L5: 0 | N5: 0 | P5: 0 | R5: 0 | T5: 0 | V5: 0 | X5: 0 | Z5: 0 | AB5: 0 | AD5: 0
A6: 1249 | B6: 0 | C6: 1106 | D6: 0 | F6: 0 | H6: 0 | J6: 0 | L6: 0 | N6: 0 | P6: 0 | R6: 0 | T6: 0 | V6: 0 | X6: 0 | Z6: 0 | AB6: 0 | AD6: 0
A7: 1250 | B7: 0 | C7: 1112 | D7: 0 | F7: 0 | H7: 0 | J7: 0 | L7: 0 | N7: 0 | P7: 0 | R7: 0 | T7: 0 | V7: 0 | X7: 0 | Z7: 0 | AB7: 0 | AD7: 0
A8: 1257 | B8: 0 | C8: 1120 | D8: 0 | F8: 0 | H8: 0 | J8: 0 | L8: 0 | N8: 0 | P8: 0 | R8: 0 | T8: 0 | V8: 0 | X8: 0 | Z8: 0 | AB8: 0 | AD8: 0
A9: 1259 | B9: 0 | C9: 1138 | D9: 0 | F9: 0 | H9: 0 | J9: 0 | L9: 0 | N9: 0 | P9: 0 | R9: 0 | T9: 0 | V9: 0 | X9: 0 | Z9: 0 | AB9: 0 | AD9: 0
A10: 1302 | B10: 0 | C10: 1139 | D10: 0 | F10: 0 | H10: 0 | J10: 0 | L10: 0 | N10: 0 | P10: 0 | R10: 0 | T10: 0 | V10: 0 | X10: 0 | Z10: 0 | AB10: 0 | AD10: 0
A11: 1305 | B11: 0 | C11: 1144 | D11: 0 | F11: 0 | H11: 0 | J11: 0 | L11: 0 | N11: 0 | P11: 0 | R11: 0 | T11: 0 | V11: 0 | X11: 0 | Z11: 0 | AB11: 0 | AD11: 0
A12: 1309 | B12: 0 | C12: 1151 | D12: 0 | F12: 0 | H12: 0 | J12: 0 | L12: 0 | N12: 0 | P12: 0 | R12: 0 | T12: 0 | V12: 0 | X12: 0 | Z12: 0 | AB12: 0 | AD12: 0
A13: 1319 | B13: 0 | C13: 1153 | D13: 0 | F13: 0 | H13: 0 | J13: 0 | L13: 0 | N13: 0 | P13: 0 | R13: 0 | T13: 0 | V13: 0 | X13: 0 | Z13: 0 | AB13: 0 | AD13: 0
A14: 1324 | B14: 0 | C14: 1154 | D14: 0 | F14: 0 | H14: 0 | J14: 0 | L14: 0 | N14: 0 | P14: 0 | R14: 0 | T14: 0 | V14: 0 | X14: 0 | Z14: 0 | AB14: 0 | AD14: 0
A15: 1335 | B15: 0 | C15: 1157 | D15: 0 | F15: 0 | H15: 0 | J15: 0 | L15: 0 | N15: 0 | P15: 0 | R15: 0 | T15: 0 | V15: 0 | X15: 0 | Z15: 0 | AB15: 0 | AD15: 0
A16: 1336 | B16: 0 | C16: 1157 | D16: 0 | F16: 0 | H16: 0 | J16: 0 | L16: 0 | N16: 0 | P16: 0 | R16: 0 | T16: 0 | V16: 0 | X16: 0 | Z16: 0 | AB16: 0 | AD16: 0
A17: 1337 | B17: 0 | C17: 1200 | D17: 0 | F17: 0 | H17: 0 | J17: 0 | L17: 0 | N17: 0 | P17: 0 | R17: 0 | T17: 0 | V17: 0 | X17: 0 | Z17: 0 | AB17: 0 | AD17: 0
A18: 1338 | B18: 0 | C18: 1201 | D18: 0 | F18: 0 | H18: 0 | J18: 0 | L18: 0 | N18: 0 | P18: 0 | R18: 0 | T18: 0 | V18: 0 | X18: 0 | Z18: 0 | AB18: 0 | AD18: 0
A19: 1339 | B19: 0 | C19: 1204 | D19: 0 | F19: 0 | H19: 0 | J19: 0 | L19: 0 | N19: 0 | P19: 0 | R19: 0 | T19: 0 | V19: 0 | X19: 0 | Z19: 0 | AB19: 0 | AD19: 0
A20: 1339 | B20: 0 | C20: 1206 | D20: 0 | F20: 0 | H20: 0 | J20: 0 | L20: 0 | N20: 0 | P20: 0 | R20: 0 | T20: 0 | V20: 0 | X20: 0 | Z20: 0 | AB20: 0 | AD20: 0
A21: 1344 | B21: 0 | C21: 1207 | D21: 0 | F21: 0 | H21: 0 | J21: 0 | L21: 0 | N21: 0 | P21: 0 | R21: 0 | T21: 0 | V21: 0 | X21: 0 | Z21: 0 | AB21: 0 | AD21: 0
A22: 1346 | B22: 0 | C22: 1208 | D22: 0 | F22: 0 | H22: 0 | J22: 0 | L22: 0 | N22: 0 | P22: 0 | R22: 0 | T22: 0 | V22: 0 | X22: 0 | Z22: 0 | AB22: 0 | AD22: 0
A23: 1346 | B23: 0 | C23: 1211 | D23: 0 | F23: 0 | H23: 0 | J23: 0 | L23: 0 | N23: 0 | P23: 0 | R23: 0 | T23: 0 | V23: 0 | X23: 0 | Z23: 0 | AB23: 0 | AD23: 0
A24: 1347 | B24: 0 | C24: 1212 | D24: 0 | F24: 0 | H24: 0 | J24: 0 | L24: 0 | N24: 0 | P24: 0 | R24: 0 | T24: 0 | V24: 0 | X24: 0 | Z24: 0 | AB24: 0 | AD24: 0
A25: 1348 | B25: 0 | C25: 1212 | D25: 0 | F25: 0 | H25: 0 | J25: 0 | L25: 0 | N25: 0 | P25: 0 | R25: 0 | T25: 0 | V25: 0 | X25: 0 | Z25: 0 | AB25: 0 | AD25: 0
A26: 1349 | B26: 0 | C26: 1216 | D26: 0 | F26: 0 | H26: 0 | J26: 0 | L26: 0 | N26: 0 | P26: 0 | R26: 0 | T26: 0 | V26: 0 | X26: 0 | Z26: 0 | AB26: 0 | AD26: 0
A27: 1351 | B27: 0 | C27: 1217 | D27: 0 | F27: 0 | H27: 0 | J27: 0 | L27: 0 | N27: 0 | P27: 0 | R27: 0 | T27: 0 | V27: 0 | X27: 0 | Z27: 0 | AB27: 0 | AD27: 0
A28: 1353 | B28: 0 | C28: 1218 | D28: 0 | F28: 0 | H28: 0 | J28: 0 | L28: 0 | N28: 0 | P28: 0 | R28: 0 | T28: 0 | V28: 0 | X28: 0 | Z28: 0 | AB28: 0 | AD28: 0
A29: 1355 | B29: 0 | C29: 1223 | D29: 0 | F29: 0 | H29: 0 | J29: 0 | L29: 0 | N29: 0 | P29: 0 | R29: 0 | T29: 0 | V29: 0 | X29: 0 | Z29: 0 | AB29: 0 | AD29: 0
A30: 1356 | B30: 0 | C30: 1223 | D30: 0 | F30: 0 | H30: 0 | J30: 0 | L30: 0 | N30: 0 | P30: 0 | R30: 0 | T30: 0 | V30: 0 | X30: 0 | Z30: 0 | AB30: 0 | AD30: 0
A31: 1357 | B31: 0 | C31: 1225 | D31: 0 | F31: 0 | H31: 0 | J31: 0 | L31: 0 | N31: 0 | P31: 0 | R31: 0 | T31: 0 | V31: 0 | X31: 0 | Z31: 0 | AB31: 0 | AD31: 0
A32: 1358 | B32: 0 | C32: 1226 | D32: 0 | F32: 0 | H32: 0 | J32: 0 | L32: 0 | N32: 0 | P32: 0 | R32: 0 | T32: 0 | V32: 0 | X32: 0 | Z32: 0 | AB32: 0 | AD32: 0
A33: 1359 | B33: 0 | C33: 1227 | D33: 0 | F33: 0 | H33: 0 | J33: 0 | L33: 0 | N33: 0 | P33: 0 | R33: 0 | T33: 0 | V33: 0 | X33: 0 | Z33: 0 | AB33: 0 | AD33: 0
A34: 1359 | B34: 0 | C34: 1227 | D34: 0 | F34: 0 | H34: 0 | J34: 0 | L34: 0 | N34: 0 | P34: 0 | R34: 0 | T34: 0 | V34: 0 | X34: 0 | Z34: 0 | AB34: 0 | AD34: 0
A35: 1403 | B35: 0 | C35: 1230 | D35: 0 | F35: 0 | H35: 0 | J35: 0 | L35: 0 | N35: 0 | P35: 0 | R35: 0 | T35: 0 | V35: 0 | X35: 0 | Z35: 0 | AB35: 0 | AD35: 0
A36: 1405 | B36: 0 | C36: 1230 | D36: 0 | F36: 0 | H36: 0 | J36: 0 | L36: 0 | N36: 0 | P36: 0 | R36: 0 | T36: 0 | V36: 0 | X36: 0 | Z36: 0 | AB36: 0 | AD36: 0
A37: 1408 | B37: 0 | C37: 1230 | D37: 0 | F37: 0 | H37: 0 | J37: 0 | L37: 0 | N37: 0 | P37: 0 | R37: 0 | T37: 0 | V37: 0 | X37: 0 | Z37: 0 | AB37: 0 | AD37: 0
A38: 1408 | B38: 0 | C38: 1232 | D38: 0 | F38: 0 | H38: 0 | J38: 0 | L38: 0 | N38: 0 | P38: 0 | R38: 0 | T38: 0 | V38: 0 | X38: 0 | Z38: 0 | AB38: 0 | AD38: 0
A39: 1408 | B39: 0 | C39: 1232 | D39: 0 | F39: 0 | H39: 0 | J39: 0 | L39: 0 | N39: 0 | P39: 0 | R39: 0 | T39: 0 | V39: 0 | X39: 0 | Z39: 0 | AB39: 0 | AD39: 0
A40: 1409 | B40: 0 | C40: 1233 | D40: 0 | F40: 0 | H40: 0 | J40: 0 | L40: 0 | N40: 0 | P40: 0 | R40: 0 | T40: 0 | V40: 0 | X40: 0 | Z40: 0 | AB40: 0 | AD40: 0
A41: 1409 | B41: 0 | C41: 1235 | D41: 0 | F41: 0 | H41: 0 | J41: 0 | L41: 0 | N41: 0 | P41: 0 | R41: 0 | T41: 0 | V41: 0 | X41: 0 | Z41: 0 | AB41: 0 | AD41: 0
A42: 1410 | B42: 0 | C42: 1237 | D42: 0 | F42: 0 | H42: 0 | J42: 0 | L42: 0 | N42: 0 | P42: 0 | R42: 0 | T42: 0 | V42: 0 | X42: 0 | Z42: 0 | AB42: 0 | AD42: 0
A43: 1412 | B43: 0 | C43: 1239 | D43: 0 | F43: 0 | H43: 0 | J43: 0 | L43: 0 | N43: 0 | P43: 0 | R43: 0 | T43: 0 | V43: 0 | X43: 0 | Z43: 0 | AB43: 0 | AD43: 0
A44: 1412 | B44: 0 | C44: 1241 | D44: 0 | F44: 0 | H44: 0 | J44: 0 | L44: 0 | N44: 0 | P44: 0 | R44: 0 | T44: 0 | V44: 0 | X44: 0 | Z44: 0 | AB44: 0 | AD44: 0
A45: 1413 | B45: 0 | C45: 1241 | D45: 0 | F45: 0 | H45: 0 | J45: 0 | L45: 0 | N45: 0 | P45: 0 | R45: 0 | T45: 0 | V45: 0 | X45: 0 | Z45: 0 | AB45: 0 | AD45: 0
A46: 1415 | B46: 0 | C46: 1241 | D46: 0 | F46: 0 | H46: 0 | J46: 0 | L46: 0 | N46: 0 | P46: 0 | R46: 0 | T46: 0 | V46: 0 | X46: 0 | Z46: 0 | AB46: 0 | AD46: 0
A47: 1417 | B47: 0 | C47: 1242 | D47: 0 | F47: 0 | H47: 0 | J47: 0 | L47: 0 | N47: 0 | P47: 0 | R47: 0 | T47: 0 | V47: 0 | X47: 0 | Z47: 0 | AB47: 0 | AD47: 0
A48: 1417 | B48: 0 | C48: 1242 | D48: 0 | F48: 0 | H48: 0 | J48: 0 | L48: 0 | N48: 0 | P48: 0 | R48: 0 | T48: 0 | V48: 0 | X48: 0 | Z48: 0 | AB48: 0 | AD48: 0
A49: 1417 | B49: 0 | C49: 1243 | D49: 0 | F49: 0 | H49: 0 | J49: 0 | L49: 0 | N49: 0 | P49: 0 | R49: 0 | T49: 0 | V49: 0 | X49: 0 | Z49: 0 | AB49: 0 | AD49: 0
A50: 1420 | B50: 0 | C50: 1244 | D50: 0 | F50: 0 | H50: 0 | J50: 0 | L50: 0 | N50: 0 | P50: 0 | R50: 0 | T50: 0 | V50: 0 | X50: 0 | Z50: 0 | AB50: 0 | AD50: 0
A51: 1420 | B51: 0 | C51: 1245 | D51: 0 | F51: 0 | H51: 0 | J51: 0 | L51: 0 | N51: 0 | P51: 0 | R51: 0 | T51: 0 | V51: 0 | X51: 0 | Z51: 0 | AB51: 0 | AD51: 0
A52: 1420 | B52: 0 | C52: 1246 | D52: 0 | F52: 0 | H52: 0 | J52: 0 | L52: 0 | N52: 0 | P52: 0 | R52: 0 | T52: 0 | V52: 0 | X52: 0 | Z52: 0 | AB52: 0 | AD52: 0
A53: 1421 | B53: 0 | C53: 1247 | D53: 0 | F53: 0 | H53: 0 | J53: 0 | L53: 0 | N53: 0 | P53: 0 | R53: 0 | T53: 0 | V53: 0 | X53: 0 | Z53: 0 | AB53: 0 | AD53: 0
A54: 1423 | B54: 0 | C54: 1247 | D54: 0 | F54: 0 | H54: 0 | J54: 0 | L54: 0 | N54: 0 | P54: 0 | R54: 0 | T54: 0 | V54: 0 | X54: 0 | Z54: 0 | AB54: 0 | AD54: 0
A55: 1424 | B55: 0 | C55: 1249 | D55: 0 | F55: 0 | H55: 0 | J55: 0 | L55: 0 | N55: 0 | P55: 0 | R55: 0 | T55: 0 | V55: 0 | X55: 0 | Z55: 0 | AB55: 0 | AD55: 0
A56: 1426 | B56: 0 | C56: 1252 | D56: 0 | F56: 0 | H56: 0 | J56: 0 | L56: 0 | N56: 0 | P56: 0 | R56: 0 | T56: 0 | V56: 0 | X56: 0 | Z56: 0 | AB56: 0 | AD56: 0
A57: 1428 | B57: 0 | C57: 1253 | D57: 0 | F57: 0 | H57: 0 | J57: 0 | L57: 0 | N57: 0 | P57: 0 | R57: 0 | T57: 0 | V57: 0 | X57: 0 | Z57: 0 | AB57: 0 | AD57: 0
A58: 1428 | B58: 0 | C58: 1255 | D58: 0 | F58: 0 | H58: 0 | J58: 0 | L58: 0 | N58: 0 | P58: 0 | R58: 0 | T58: 0 | V58: 0 | X58: 0 | Z58: 0 | AB58: 0 | AD58: 0
A59: 1428 | B59: 0 | C59: 1256 | D59: 0 | F59: 0 | H59: 0 | J59: 0 | L59: 0 | N59: 0 | P59: 0 | R59: 0 | T59: 0 | V59: 0 | X59: 0 | Z59: 0 | AB59: 0 | AD59: 0
A60: 1428 | B60: 0 | C60: 1257 | D60: 0 | F60: 0 | H60: 0 | J60: 0 | L60: 0 | N60: 0 | P60: 0 | R60: 0 | T60: 0 | V60: 0 | X60: 0 | Z60: 0 | AB60: 0 | AD60: 0
A61: 1429 | B61: 0 | C61: 1257 | D61: 0 | F61: 0 | H61: 0 | J61: 0 | L61: 0 | N61: 0 | P61: 0 | R61: 0 | T61: 0 | V61: 0 | X61: 0 | Z61: 0 | AB61: 0 | AD61: 0
A62: 1432 | B62: 0 | C62: 1258 | D62: 0 | F62: 0 | H62: 0 | J62: 0 | L62: 0 | N62: 0 | P62: 0 | R62: 0 | T62: 0 | V62: 0 | X62: 0 | Z62: 0 | AB62: 0 | AD62: 0
A63: 1433 | B63: 0 | C63: 1259 | D63: 0 | F63: 0 | H63: 0 | J63: 0 | L63: 0 | N63: 0 | P63: 0 | R63: 0 | T63: 0 | V63: 0 | X63: 0 | Z63: 0 | AB63: 0 | AD63: 0
A64: 1435 | B64: 0 | C64: 1259 | D64: 0 | F64: 0 | H64: 0 | J64: 0 | L64: 0 | N64: 0 | P64: 0 | R64: 0 | T64: 0 | V64: 0 | X64: 0 | Z64: 0 | AB64: 0 | AD64: 0
A65: 1436 | B65: 0 | C65: 1302 | D65: 0 | F65: 0 | H65: 0 | J65: 0 | L65: 0 | N65: 0 | P65: 0 | R65: 0 | T65: 0 | V65: 0 | X65: 0 | Z65: 0 | AB65: 0 | AD65: 0
A66: 1437 | B66: 0 | C66: 1304 | D66: 0 | F66: 0 | H66: 0 | J66: 0 | L66: 0 | N66: =IF(AND(M66>0,M66<M65),1,IF(MOD(M66,100)>=60,1,0)) -> 0 | P66: 0 | R66: 0 | T66: 0 | V66: 0 | X66: 0 | Z66: 0 | AB66: 0 | AD66: 0
A67: 1437 | B67: =IF(AND(A67>0,A67<A66),1,IF(MOD(A67,100)>=60,1,0)) -> 0 | C67: 1310 | D67: =IF(AND(C67>0,C67<C66),1,IF(MOD(C67,100)>=60,1,0)) -> 0 | F67: =IF(AND(E67>0,E67<E66),1,IF(MOD(E67,100)>=60,1,0)) -> 0 | H67: =IF(AND(G67>0,G67<G66),1,IF(MOD(G67,100)>=60,1,0)) -> 0 | J67: =IF(AND(I67>0,I67<I66),1,IF(MOD(I67,100)>=60,1,0)) -> 0 | L67: =IF(AND(K67>0,K67<K66),1,IF(MOD(K67,100)>=60,1,0)) -> 0 | N67: =IF(AND(M67>0,M67<M66),1,IF(MOD(M67,100)>=60,1,0)) -> 0 | P67: 0 | R67: 0 | T67: 0 | V67: =IF(AND(U67>0,U67<U66),1,IF(MOD(U67,100)>=60,1,0)) -> 0 | X67: =IF(AND(W67>0,W67<W66),1,IF(MOD(W67,100)>=60,1,0)) -> 0 | Z67: =IF(AND(Y67>0,Y67<Y66),1,IF(MOD(Y67,100)>=60,1,0)) -> 0 | AB67: =IF(AND(AA67>0,AA67<AA66),1,IF(MOD(AA67,100)>=60,1,0)) -> 0 | AD67: =IF(AND(AC67>0,AC67<AC66),1,IF(MOD(AC67,100)>=60,1,0)) -> 0
A68: 1440 | B68: 0 | C68: 1311 | D68: 0 | F68: 0 | H68: 0 | J68: 0 | L68: 0 | N68: 0 | P68: 0 | R68: 0 | T68: 0 | V68: 0 | X68: 0 | Z68: 0 | AB68: 0 | AD68: 0
A69: 1440 | B69: 0 | C69: 1311 | D69: 0 | F69: 0 | H69: 0 | J69: 0 | L69: 0 | N69: 0 | P69: 0 | R69: 0 | T69: 0 | V69: 0 | X69: 0 | Z69: 0 | AB69: 0 | AD69: 0
A70: 1440 | B70: 0 | C70: 1312 | D70: 0 | F70: 0 | H70: 0 | J70: 0 | L70: 0 | N70: 0 | P70: 0 | R70: 0 | T70: 0 | V70: 0 | X70: 0 | Z70: 0 | AB70: 0 | AD70: 0
A71: 1442 | B71: 0 | C71: 1313 | D71: 0 | F71: 0 | H71: 0 | J71: 0 | L71: 0 | N71: 0 | P71: 0 | R71: 0 | T71: 0 | V71: 0 | X71: 0 | Z71: 0 | AB71: 0 | AD71: 0
A72: 1444 | B72: 0 | C72: 1315 | D72: 0 | F72: 0 | H72: 0 | J72: 0 | L72: 0 | N72: 0 | P72: 0 | R72: 0 | T72: 0 | V72: 0 | X72: 0 | Z72: 0 | AB72: 0 | AD72: 0
A73: 1444 | B73: 0 | C73: 1316 | D73: 0 | F73: 0 | H73: 0 | J73: 0 | L73: 0 | N73: 0 | P73: 0 | R73: 0 | T73: 0 | V73: 0 | X73: 0 | Z73: 0 | AB73: 0 | AD73: 0
A74: 1446 | B74: 0 | C74: 1316 | D74: 0 | F74: 0 | H74: 0 | J74: 0 | L74: 0 | N74: 0 | P74: 0 | R74: 0 | T74: 0 | V74: 0 | X74: 0 | Z74: 0 | AB74: 0 | AD74: 0
A75: 1447 | B75: 0 | C75: 1316 | D75: 0 | F75: 0 | H75: 0 | J75: 0 | L75: 0 | N75: 0 | P75: 0 | R75: 0 | T75: 0 | V75: 0 | X75: 0 | Z75: 0 | AB75: 0 | AD75: 0
A76: 1447 | B76: 0 | C76: 1319 | D76: 0 | F76: 0 | H76: 0 | J76: 0 | L76: 0 | N76: 0 | P76: 0 | R76: 0 | T76: 0 | V76: 0 | X76: 0 | Z76: 0 | AB76: 0 | AD76: 0
A77: 1447 | B77: 0 | C77: 1319 | D77: 0 | F77: 0 | H77: 0 | J77: 0 | L77: 0 | N77: 0 | P77: 0 | R77: 0 | T77: 0 | V77: 0 | X77: 0 | Z77: 0 | AB77: 0 | AD77: 0
A78: 1448 | B78: 0 | C78: 1319 | D78: 0 | F78: 0 | H78: 0 | J78: 0 | L78: 0 | N78: 0 | P78: 0 | R78: 0 | T78: 0 | V78: 0 | X78: 0 | Z78: 0 | AB78: 0 | AD78: 0
A79: 1448 | B79: 0 | C79: 1321 | D79: 0 | F79: 0 | H79: 0 | J79: 0 | L79: 0 | N79: 0 | P79: 0 | R79: 0 | T79: 0 | V79: 0 | X79: 0 | Z79: 0 | AB79: 0 | AD79: 0
A80: 1450 | B80: 0 | C80: 1321 | D80: 0 | F80: 0 | H80: 0 | J80: 0 | L80: 0 | N80: 0 | P80: 0 | R80: 0 | T80: 0 | V80: 0 | X80: 0 | Z80: 0 | AB80: 0 | AD80: 0
A81: 1455 | B81: 0 | C81: 1322 | D81: 0 | F81: 0 | H81: 0 | J81: 0 | L81: 0 | N81: 0 | P81: 0 | R81: 0 | T81: 0 | V81: 0 | X81: 0 | Z81: 0 | AB81: 0 | AD81: 0
A82: 1457 | B82: 0 | C82: 1322 | D82: 0 | F82: 0 | H82: 0 | J82: 0 | L82: 0 | N82: 0 | P82: 0 | R82: 0 | T82: 0 | V82: 0 | X82: 0 | Z82: 0 | AB82: 0 | AD82: 0
A83: 1459 | B83: 0 | C83: 1323 | D83: 0 | F83: 0 | H83: 0 | J83: 0 | L83: 0 | N83: 0 | P83: 0 | R83: 0 | T83: 0 | V83: 0 | X83: 0 | Z83: 0 | AB83: 0 | AD83: 0
A84: 1501 | B84: 0 | C84: 1323 | D84: 0 | F84: 0 | H84: 0 | J84: 0 | L84: 0 | N84: 0 | P84: 0 | R84: 0 | T84: 0 | V84: 0 | X84: 0 | Z84: 0 | AB84: 0 | AD84: 0
A85: 1502 | B85: 0 | C85: 1323 | D85: 0 | F85: 0 | H85: 0 | J85: 0 | L85: 0 | N85: 0 | P85: 0 | R85: 0 | T85: 0 | V85: 0 | X85: 0 | Z85: 0 | AB85: 0 | AD85: 0
A86: 1502 | B86: 0 | C86: 1325 | D86: 0 | F86: 0 | H86: 0 | J86: 0 | L86: 0 | N86: 0 | P86: 0 | R86: 0 | T86: 0 | V86: 0 | X86: 0 | Z86: 0 | AB86: 0 | AD86: 0
A87: 1503 | B87: 0 | C87: 1325 | D87: 0 | F87: 0 | H87: 0 | J87: 0 | L87: 0 | N87: 0 | P87: 0 | R87: 0 | T87: 0 | V87: 0 | X87: 0 | Z87: 0 | AB87: 0 | AD87: 0
A88: 1507 | B88: 0 | C88: 1326 | D88: 0 | F88: 0 | H88: 0 | J88: 0 | L88: 0 | N88: 0 | P88: 0 | R88: 0 | T88: 0 | V88: 0 | X88: 0 | Z88: 0 | AB88: 0 | AD88: 0
A89: 1510 | B89: 0 | C89: 1327 | D89: 0 | F89: 0 | H89: 0 | J89: 0 | L89: 0 | N89: 0 | P89: 0 | R89: 0 | T89: 0 | V89: 0 | X89: 0 | Z89: 0 | AB89: 0 | AD89: 0
A90: 1513 | B90: 0 | C90: 1333 | D90: 0 | F90: 0 | H90: 0 | J90: 0 | L90: 0 | N90: 0 | P90: 0 | R90: 0 | T90: 0 | V90: 0 | X90: 0 | Z90: 0 | AB90: 0 | AD90: 0
A91: 1513 | B91: 0 | C91: 1334 | D91: 0 | F91: 0 | H91: 0 | J91: 0 | L91: 0 | N91: 0 | P91: 0 | R91: 0 | T91: 0 | V91: 0 | X91: 0 | Z91: 0 | AB91: 0 | AD91: 0
A92: 1514 | B92: 0 | C92: 1337 | D92: 0 | F92: 0 | H92: 0 | J92: 0 | L92: 0 | N92: 0 | P92: 0 | R92: 0 | T92: 0 | V92: 0 | X92: 0 | Z92: 0 | AB92: 0 | AD92: 0
A93: 1515 | B93: 0 | C93: 1339 | D93: 0 | F93: 0 | H93: 0 | J93: 0 | L93: 0 | N93: 0 | P93: 0 | R93: 0 | T93: 0 | V93: 0 | X93: 0 | Z93: 0 | AB93: 0 | AD93: 0
A94: 1517 | B94: 0 | C94: 1341 | D94: 0 | F94: 0 | H94: 0 | J94: 0 | L94: 0 | N94: 0 | P94: 0 | R94: 0 | T94: 0 | V94: 0 | X94: 0 | Z94: 0 | AB94: 0 | AD94: 0
A95: 1517 | B95: 0 | C95: 1342 | D95: 0 | F95: 0 | H95: 0 | J95: 0 | L95: 0 | N95: 0 | P95: 0 | R95: 0 | T95: 0 | V95: 0 | X95: 0 | Z95: 0 | AB95: 0 | AD95: 0
A96: 1517 | B96: 0 | C96: 1342 | D96: 0 | F96: 0 | H96: 0 | J96: 0 | L96: 0 | N96: 0 | P96: 0 | R96: 0 | T96: 0 | V96: 0 | X96: 0 | Z96: 0 | AB96: 0 | AD96: 0
A97: 1518 | B97: 0 | C97: 1342 | D97: 0 | F97: 0 | H97: 0 | J97: 0 | L97: 0 | N97: 0 | P97: 0 | R97: 0 | T97: 0 | V97: 0 | X97: 0 | Z97: 0 | AB97: 0 | AD97: 0
A98: 1519 | B98: 0 | C98: 1343 | D98: 0 | F98: 0 | H98: 0 | J98: 0 | L98: 0 | N98: 0 | P98: 0 | R98: 0 | T98: 0 | V98: 0 | X98: 0 | Z98: 0 | AB98: 0 | AD98: 0
A99: 1519 | B99: 0 | C99: 1344 | D99: 0 | F99: 0 | H99: 0 | J99: 0 | L99: 0 | N99: 0 | P99: 0 | R99: 0 | T99: 0 | V99: 0 | X99: 0 | Z99: 0 | AB99: 0 | AD99: 0
A100: 1522 | B100: 0 | C100: 1344 | D100: 0 | F100: 0 | H100: 0 | J100: 0 | L100: 0 | N100: 0 | P100: 0 | R100: 0 | T100: 0 | V100: 0 | X100: 0 | Z100: 0 | AB100: 0 | AD100: 0
A101: 1523 | B101: 0 | C101: 1345 | D101: 0 | F101: 0 | H101: 0 | J101: 0 | L101: 0 | N101: 0 | P101: 0 | R101: 0 | T101: 0 | V101: 0 | X101: 0 | Z101: 0 | AB101: 0 | AD101: 0
A102: 1524 | B102: 0 | C102: 1345 | D102: 0 | F102: 0 | H102: 0 | J102: 0 | L102: 0 | N102: 0 | P102: 0 | R102: 0 | T102: 0 | V102: 0 | X102: 0 | Z102: 0 | AB102: 0 | AD102: 0
A103: 1527 | B103: 0 | C103: 1346 | D103: 0 | F103: 0 | H103: 0 | J103: 0 | L103: 0 | N103: 0 | P103: 0 | R103: 0 | T103: 0 | V103: 0 | X103: 0 | Z103: 0 | AB103: 0 | AD103: 0
A104: 1530 | B104: 0 | C104: 1347 | D104: 0 | F104: 0 | H104: 0 | J104: 0 | L104: 0 | N104: 0 | P104: 0 | R104: 0 | T104: 0 | V104: 0 | X104: 0 | Z104: 0 | AB104: 0 | AD104: 0
A105: 1531 | B105: 0 | C105: 1348 | D105: 0 | F105: 0 | H105: 0 | J105: 0 | L105: 0 | N105: 0 | P105: 0 | R105: 0 | T105: 0 | V105: 0 | X105: 0 | Z105: 0 | AB105: 0 | AD105: 0
A106: 1533 | B106: 0 | C106: 1348 | D106: 0 | F106: 0 | H106: 0 | J106: 0 | L106: 0 | N106: 0 | P106: 0 | R106: 0 | T106: 0 | V106: 0 | X106: 0 | Z106: 0 | AB106: 0 | AD106: 0
A107: 1533 | B107: 0 | C107: 1350 | D107: 0 | F107: 0 | H107: 0 | J107: 0 | L107: 0 | N107: 0 | P107: 0 | R107: 0 | T107: 0 | V107: 0 | X107: 0 | Z107: 0 | AB107: 0 | AD107: 0
A108: 1535 | B108: 0 | C108: 1351 | D108: 0 | F108: 0 | H108: 0 | J108: 0 | L108: 0 | N108: 0 | P108: 0 | R108: 0 | T108: 0 | V108: 0 | X108: 0 | Z108: 0 | AB108: 0 | AD108: 0
A109: 1535 | B109: 0 | C109: 1352 | D109: 0 | F109: 0 | H109: 0 | J109: 0 | L109: 0 | N109: 0 | P109: 0 | R109: 0 | T109: 0 | V109: 0 | X109: 0 | Z109: 0 | AB109: 0 | AD109: 0
A110: 1535 | B110: 0 | C110: 1352 | D110: 0 | F110: 0 | H110: 0 | J110: 0 | L110: 0 | N110: 0 | P110: 0 | R110: 0 | T110: 0 | V110: 0 | X110: 0 | Z110: 0 | AB110: 0 | AD110: 0
A111: 1538 | B111: 0 | C111: 1353 | D111: 0 | F111: 0 | H111: 0 | J111: 0 | L111: 0 | N111: 0 | P111: 0 | R111: 0 | T111: 0 | V111: 0 | X111: 0 | Z111: 0 | AB111: 0 | AD111: 0
A112: 1539 | B112: 0 | C112: 1353 | D112: 0 | F112: 0 | H112: 0 | J112: 0 | L112: 0 | N112: 0 | P112: 0 | R112: 0 | T112: 0 | V112: 0 | X112: 0 | Z112: 0 | AB112: 0 | AD112: 0
A113: 1539 | B113: 0 | C113: 1355 | D113: 0 | F113: 0 | H113: 0 | J113: 0 | L113: 0 | N113: 0 | P113: 0 | R113: 0 | T113: 0 | V113: 0 | X113: 0 | Z113: 0 | AB113: 0 | AD113: 0
A114: 1540 | B114: 0 | C114: 1355 | D114: 0 | F114: 0 | H114: 0 | J114: 0 | L114: 0 | N114: 0 | P114: 0 | R114: 0 | T114: 0 | V114: 0 | X114: 0 | Z114: 0 | AB114: 0 | AD114: 0
A115: 1540 | B115: 0 | C115: 1357 | D115: 0 | F115: 0 | H115: 0 | J115: 0 | L115: 0 | N115: 0 | P115: 0 | R115: 0 | T115: 0 | V115: 0 | X115: 0 | Z115: 0 | AB115: 0 | AD115: 0
A116: 1541 | B116: 0 | C116: 1359 | D116: 0 | F116: 0 | H116: 0 | J116: 0 | L116: 0 | N116: 0 | P116: 0 | R116: 0 | T116: 0 | V116: 0 | X116: 0 | Z116: 0 | AB116: 0 | AD116: 0
A117: 1543 | B117: 0 | C117: 1401 | D117: 0 | F117: 0 | H117: 0 | J117: 0 | L117: 0 | N117: 0 | P117: 0 | R117: 0 | T117: 0 | V117: 0 | X117: 0 | Z117: 0 | AB117: 0 | AD117: 0
A118: 1544 | B118: 0 | C118: 1402 | D118: 0 | F118: 0 | H118: 0 | J118: 0 | L118: 0 | N118: 0 | P118: 0 | R118: 0 | T118: 0 | V118: 0 | X118: 0 | Z118: 0 | AB118: 0 | AD118: 0
A119: 1545 | B119: 0 | C119: 1402 | D119: 0 | F119: 0 | H119: 0 | J119: 0 | L119: 0 | N119: 0 | P119: 0 | R119: 0 | T119: 0 | V119: 0 | X119: 0 | Z119: 0 | AB119: 0 | AD119: 0
A120: 1546 | B120: 0 | C120: 1403 | D120: 0 | F120: 0 | H120: 0 | J120: 0 | L120: 0 | N120: 0 | P120: 0 | R120: 0 | T120: 0 | V120: 0 | X120: 0 | Z120: 0 | AB120: 0 | AD120: 0
A121: 1546 | B121: 0 | C121: 1403 | D121: 0 | F121: 0 | H121: 0 | J121: 0 | L121: 0 | N121: 0 | P121: 0 | R121: 0 | T121: 0 | V121: 0 | X121: 0 | Z121: 0 | AB121: 0 | AD121: 0
A122: 1548 | B122: 0 | C122: 1404 | D122: 0 | F122: 0 | H122: 0 | J122: 0 | L122: 0 | N122: 0 | P122: 0 | R122: 0 | T122: 0 | V122: 0 | X122: 0 | Z122: 0 | AB122: 0 | AD122: 0
A123: 1548 | B123: 0 | C123: 1405 | D123: 0 | F123: 0 | H123: 0 | J123: 0 | L123: 0 | N123: 0 | P123: 0 | R123: 0 | T123: 0 | V123: 0 | X123: 0 | Z123: 0 | AB123: 0 | AD123: 0
A124: 1549 | B124: 0 | C124: 1406 | D124: 0 | F124: 0 | H124: 0 | J124: 0 | L124: 0 | N124: 0 | P124: 0 | R124: 0 | T124: 0 | V124: 0 | X124: 0 | Z124: 0 | AB124: 0 | AD124: 0
A125: 1549 | B125: 0 | C125: 1407 | D125: 0 | F125: 0 | H125: 0 | J125: 0 | L125: 0 | N125: 0 | P125: 0 | R125: 0 | T125: 0 | V125: 0 | X125: 0 | Z125: 0 | AB125: 0 | AD125: 0
A126: 1551 | B126: 0 | C126: 1407 | D126: 0 | F126: 0 | H126: 0 | J126: 0 | L126: 0 | N126: 0 | P126: 0 | R126: 0 | T126: 0 | V126: 0 | X126: 0 | Z126: 0 | AB126: 0 | AD126: 0
A127: 1551 | B127: 0 | C127: 1409 | D127: 0 | F127: 0 | H127: 0 | J127: 0 | L127: 0 | N127: 0 | P127: 0 | R127: 0 | T127: 0 | V127: 0 | X127: 0 | Z127: 0 | AB127: 0 | AD127: 0
A128: 1552 | B128: 0 | C128: 1410 | D128: 0 | F128: 0 | H128: 0 | J128: 0 | L128: 0 | N128: 0 | P128: 0 | R128: 0 | T128: 0 | V128: 0 | X128: 0 | Z128: 0 | AB128: 0 | AD128: 0
A129: 1552 | B129: 0 | C129: 1412 | D129: 0 | F129: 0 | H129: 0 | J129: 0 | L129: 0 | N129: 0 | P129: 0 | R129: 0 | T129: 0 | V129: 0 | X129: 0 | Z129: 0 | AB129: 0 | AD129: 0
A130: 1554 | B130: 0 | C130: 1419 | D130: 0 | F130: 0 | H130: 0 | J130: 0 | L130: 0 | N130: =IF(AND(M130>0,M130<M129),1,IF(MOD(M130,100)>=60,1,0)) -> 0 | P130: 0 | R130: 0 | T130: 0 | V130: 0 | X130: 0 | Z130: 0 | AB130: 0 | AD130: 0
A131: 1555 | B131: =IF(AND(A131>0,A131<A130),1,IF(MOD(A131,100)>=60,1,0)) -> 0 | C131: 1420 | D131: =IF(AND(C131>0,C131<C130),1,IF(MOD(C131,100)>=60,1,0)) -> 0 | F131: =IF(AND(E131>0,E131<E130),1,IF(MOD(E131,100)>=60,1,0)) -> 0 | H131: =IF(AND(G131>0,G131<G130),1,IF(MOD(G131,100)>=60,1,0)) -> 0 | J131: =IF(AND(I131>0,I131<I130),1,IF(MOD(I131,100)>=60,1,0)) -> 0 | L131: =IF(AND(K131>0,K131<K130),1,IF(MOD(K131,100)>=60,1,0)) -> 0 | N131: =IF(AND(M131>0,M131<M130),1,IF(MOD(M131,100)>=60,1,0)) -> 0 | P131: 0 | R131: 0 | T131: 0 | V131: =IF(AND(U131>0,U131<U130),1,IF(MOD(U131,100)>=60,1,0)) -> 0 | X131: =IF(AND(W131>0,W131<W130),1,IF(MOD(W131,100)>=60,1,0)) -> 0 | Z131: =IF(AND(Y131>0,Y131<Y130),1,IF(MOD(Y131,100)>=60,1,0)) -> 0 | AB131: =IF(AND(AA131>0,AA131<AA130),1,IF(MOD(AA131,100)>=60,1,0)) -> 0 | AD131: =IF(AND(AC131>0,AC131<AC130),1,IF(MOD(AC131,100)>=60,1,0)) -> 0
A132: 1556 | B132: 0 | C132: 1421 | D132: 0 | F132: 0 | H132: 0 | J132: 0 | L132: 0 | N132: 0 | P132: 0 | R132: 0 | T132: 0 | V132: 0 | X132: 0 | Z132: 0 | AB132: 0 | AD132: 0
A133: 1556 | B133: 0 | C133: 1422 | D133: 0 | F133: 0 | H133: 0 | J133: 0 | L133: 0 | N133: 0 | P133: 0 | R133: 0 | T133: 0 | V133: 0 | X133: 0 | Z133: 0 | AB133: 0 | AD133: 0
A134: 1557 | B134: 0 | C134: 1423 | D134: 0 | F134: 0 | H134: 0 | J134: 0 | L134: 0 | N134: 0 | P134: 0 | R134: 0 | T134: 0 | V134: 0 | X134: 0 | Z134: 0 | AB134: 0 | AD134: 0
A135: 1557 | B135: 0 | C135: 1425 | D135: 0 | F135: 0 | H135: 0 | J135: 0 | L135: 0 | N135: 0 | P135: 0 | R135: 0 | T135: 0 | V135: 0 | X135: 0 | Z135: 0 | AB135: 0 | AD135: 0
A136: 1558 | B136: 0 | C136: 1427 | D136: 0 | F136: 0 | H136: 0 | J136: 0 | L136: 0 | N136: 0 | P136: 0 | R136: 0 | T136: 0 | V136: 0 | X136: 0 | Z136: 0 | AB136: 0 | AD136: 0
A137: 1601 | B137: 0 | C137: 1427 | D137: 0 | F137: 0 | H137: 0 | J137: 0 | L137: 0 | N137: 0 | P137: 0 | R137: 0 | T137: 0 | V137: 0 | X137: 0 | Z137: 0 | AB137: 0 | AD137: 0
A138: 1602 | B138: 0 | C138: 1428 | D138: 0 | F138: 0 | H138: 0 | J138: 0 | L138: 0 | N138: 0 | P138: 0 | R138: 0 | T138: 0 | V138: 0 | X138: 0 | Z138: 0 | AB138: 0 | AD138: 0
A139: 1605 | B139: 0 | C139: 1429 | D139: 0 | F139: 0 | H139: 0 | J139: 0 | L139: 0 | N139: 0 | P139: 0 | R139: 0 | T139: 0 | V139: 0 | X139: 0 | Z139: 0 | AB139: 0 | AD139: 0
A140: 1608 | B140: 0 | C140: 1429 | D140: 0 | F140: 0 | H140: 0 | J140: 0 | L140: 0 | N140: 0 | P140: 0 | R140: 0 | T140: 0 | V140: 0 | X140: 0 | Z140: 0 | AB140: 0 | AD140: 0
A141: 1610 | B141: 0 | C141: 1430 | D141: 0 | F141: 0 | H141: 0 | J141: 0 | L141: 0 | N141: 0 | P141: 0 | R141: 0 | T141: 0 | V141: 0 | X141: 0 | Z141: 0 | AB141: 0 | AD141: 0
A142: 1611 | B142: 0 | C142: 1430 | D142: 0 | F142: 0 | H142: 0 | J142: 0 | L142: 0 | N142: 0 | P142: 0 | R142: 0 | T142: 0 | V142: 0 | X142: 0 | Z142: 0 | AB142: 0 | AD142: 0
A143: 1613 | B143: 0 | C143: 1432 | D143: 0 | F143: 0 | H143: 0 | J143: 0 | L143: 0 | N143: 0 | P143: 0 | R143: 0 | T143: 0 | V143: 0 | X143: 0 | Z143: 0 | AB143: 0 | AD143: 0
A144: 1613 | B144: 0 | C144: 1433 | D144: 0 | F144: 0 | H144: 0 | J144: 0 | L144: 0 | N144: 0 | P144: 0 | R144: 0 | T144: 0 | V144: 0 | X144: 0 | Z144: 0 | AB144: 0 | AD144: 0
A145: 1619 | B145: 0 | C145: 1434 | D145: 0 | F145: 0 | H145: 0 | J145: 0 | L145: 0 | N145: 0 | P145: 0 | R145: 0 | T145: 0 | V145: 0 | X145: 0 | Z145: 0 | AB145: 0 | AD145: 0
A146: 1622 | B146: 0 | C146: 1437 | D146: 0 | F146: 0 | H146: 0 | J146: 0 | L146: 0 | N146: 0 | P146: 0 | R146: 0 | T146: 0 | V146: 0 | X146: 0 | Z146: 0 | AB146: 0 | AD146: 0
A147: 1624 | B147: 0 | C147: 1439 | D147: 0 | F147: 0 | H147: 0 | J147: 0 | L147: 0 | N147: 0 | P147: 0 | R147: 0 | T147: 0 | V147: 0 | X147: 0 | Z147: 0 | AB147: 0 | AD147: 0
A148: 1624 | B148: 0 | C148: 1441 | D148: 0 | F148: 0 | H148: 0 | J148: 0 | L148: 0 | N148: 0 | P148: 0 | R148: 0 | T148: 0 | V148: 0 | X148: 0 | Z148: 0 | AB148: 0 | AD148: 0
A149: 1626 | B149: 0 | C149: 1443 | D149: 0 | F149: 0 | H149: 0 | J149: 0 | L149: 0 | N149: 0 | P149: 0 | R149: 0 | T149: 0 | V149: 0 | X149: 0 | Z149: 0 | AB149: 0 | AD149: 0
A150: 1628 | B150: 0 | C150: 1445 | D150: 0 | F150: 0 | H150: 0 | J150: 0 | L150: 0 | N150: 0 | P150: 0 | R150: 0 | T150: 0 | V150: 0 | X150: 0 | Z150: 0 | AB150: 0 | AD150: 0
A151: 1628 | B151: 0 | C151: 1450 | D151: 0 | F151: 0 | H151: 0 | J151: 0 | L151: 0 | N151: 0 | P151: 0 | R151: 0 | T151: 0 | V151: 0 | X151: 0 | Z151: 0 | AB151: 0 | AD151: 0
A152: 1629 | B152: 0 | C152: 1453 | D152: 0 | F152: 0 | H152: 0 | J152: 0 | L152: 0 | N152: 0 | P152: 0 | R152: 0 | T152: 0 | V152: 0 | X152: 0 | Z152: 0 | AB152: 0 | AD152: 0
A153: 1630 | B153: 0 | C153: 1456 | D153: 0 | F153: 0 | H153: 0 | J153: 0 | L153: 0 | N153: 0 | P153: 0 | R153: 0 | T153: 0 | V153: 0 | X153: 0 | Z153: 0 | AB153: 0 | AD153: 0
A154: 1632 | B154: 0 | C154: 1458 | D154: 0 | F154: 0 | H154: 0 | J154: 0 | L154: 0 | N154: 0 | P154: 0 | R154: 0 | T154: 0 | V154: 0 | X154: 0 | Z154: 0 | AB154: 0 | AD154: 0
A155: 1634 | B155: 0 | C155: 1501 | D155: 0 | F155: 0 | H155: 0 | J155: 0 | L155: 0 | N155: 0 | P155: 0 | R155: 0 | T155: 0 | V155: 0 | X155: 0 | Z155: 0 | AB155: 0 | AD155: 0
A156: 1634 | B156: 0 | C156: 1504 | D156: 0 | F156: 0 | H156: 0 | J156: 0 | L156: 0 | N156: 0 | P156: 0 | R156: 0 | T156: 0 | V156: 0 | X156: 0 | Z156: 0 | AB156: 0 | AD156: 0
A157: 1634 | B157: 0 | C157: 1504 | D157: 0 | F157: 0 | H157: 0 | J157: 0 | L157: 0 | N157: 0 | P157: 0 | R157: 0 | T157: 0 | V157: 0 | X157: 0 | Z157: 0 | AB157: 0 | AD157: 0
A158: 1635 | B158: 0 | C158: 1509 | D158: 0 | F158: 0 | H158: 0 | J158: 0 | L158: 0 | N158: 0 | P158: 0 | R158: 0 | T158: 0 | V158: 0 | X158: 0 | Z158: 0 | AB158: 0 | AD158: 0
A159: 1636 | B159: 0 | C159: 1509 | D159: 0 | F159: 0 | H159: 0 | J159: 0 | L159: 0 | N159: 0 | P159: 0 | R159: 0 | T159: 0 | V159: 0 | X159: 0 | Z159: 0 | AB159: 0 | AD159: 0
A160: 1636 | B160: 0 | C160: 1513 | D160: 0 | F160: 0 | H160: 0 | J160: 0 | L160: 0 | N160: 0 | P160: 0 | R160: 0 | T160: 0 | V160: 0 | X160: 0 | Z160: 0 | AB160: 0 | AD160: 0
A161: 1637 | B161: 0 | C161: 1517 | D161: 0 | F161: 0 | H161: 0 | J161: 0 | L161: 0 | N161: 0 | P161: 0 | R161: 0 | T161: 0 | V161: 0 | X161: 0 | Z161: 0 | AB161: 0 | AD161: 0
A162: 1638 | B162: 0 | C162: 1518 | D162: 0 | F162: 0 | H162: 0 | J162: 0 | L162: 0 | N162: 0 | P162: 0 | R162: 0 | T162: 0 | V162: 0 | X162: 0 | Z162: 0 | AB162: 0 | AD162: 0
A163: 1640 | B163: 0 | C163: 1519 | D163: 0 | F163: 0 | H163: 0 | J163: 0 | L163: 0 | N163: 0 | P163: 0 | R163: 0 | T163: 0 | V163: 0 | X163: 0 | Z163: 0 | AB163: 0 | AD163: 0
A164: 1643 | B164: 0 | C164: 1519 | D164: 0 | F164: 0 | H164: 0 | J164: 0 | L164: 0 | N164: 0 | P164: 0 | R164: 0 | T164: 0 | V164: 0 | X164: 0 | Z164: 0 | AB164: 0 | AD164: 0
A165: 1647 | B165: 0 | C165: 1520 | D165: 0 | F165: 0 | H165: 0 | J165: 0 | L165: 0 | N165: 0 | P165: 0 | R165: 0 | T165: 0 | V165: 0 | X165: 0 | Z165: 0 | AB165: 0 | AD165: 0
A166: 1650 | B166: 0 | C166: 1520 | D166: 0 | F166: 0 | H166: 0 | J166: 0 | L166: 0 | N166: 0 | P166: 0 | R166: 0 | T166: 0 | V166: 0 | X166: 0 | Z166: 0 | AB166: 0 | AD166: 0
A167: 1651 | B167: 0 | C167: 1525 | D167: 0 | F167: 0 | H167: 0 | J167: 0 | L167: 0 | N167: 0 | P167: 0 | R167: 0 | T167: 0 | V167: 0 | X167: 0 | Z167: 0 | AB167: 0 | AD167: 0
A168: 1658 | B168: 0 | C168: 1526 | D168: 0 | F168: 0 | H168: 0 | J168: 0 | L168: 0 | N168: 0 | P168: 0 | R168: 0 | T168: 0 | V168: 0 | X168: 0 | Z168: 0 | AB168: 0 | AD168: 0
A169: 1659 | B169: 0 | C169: 1527 | D169: 0 | F169: 0 | H169: 0 | J169: 0 | L169: 0 | N169: 0 | P169: 0 | R169: 0 | T169: 0 | V169: 0 | X169: 0 | Z169: 0 | AB169: 0 | AD169: 0
A170: 1700 | B170: 0 | C170: 1529 | D170: 0 | F170: 0 | H170: 0 | J170: 0 | L170: 0 | N170: 0 | P170: 0 | R170: 0 | T170: 0 | V170: 0 | X170: 0 | Z170: 0 | AB170: 0 | AD170: 0
A171: 1701 | B171: 0 | C171: 1531 | D171: 0 | F171: 0 | H171: 0 | J171: 0 | L171: 0 | N171: 0 | P171: 0 | R171: 0 | T171: 0 | V171: 0 | X171: 0 | Z171: 0 | AB171: 0 | AD171: 0
A172: 1705 | B172: 0 | C172: 1532 | D172: 0 | F172: 0 | H172: 0 | J172: 0 | L172: 0 | N172: 0 | P172: 0 | R172: 0 | T172: 0 | V172: 0 | X172: 0 | Z172: 0 | AB172: 0 | AD172: 0
A173: 1707 | B173: 0 | C173: 1533 | D173: 0 | F173: 0 | H173: 0 | J173: 0 | L173: 0 | N173: 0 | P173: 0 | R173: 0 | T173: 0 | V173: 0 | X173: 0 | Z173: 0 | AB173: 0 | AD173: 0
A174: 1708 | B174: 0 | C174: 1535 | D174: 0 | F174: 0 | H174: 0 | J174: 0 | L174: 0 | N174: 0 | P174: 0 | R174: 0 | T174: 0 | V174: 0 | X174: 0 | Z174: 0 | AB174: 0 | AD174: 0
A175: 1709 | B175: 0 | C175: 1541 | D175: 0 | F175: 0 | H175: 0 | J175: 0 | L175: 0 | N175: 0 | P175: 0 | R175: 0 | T175: 0 | V175: 0 | X175: 0 | Z175: 0 | AB175: 0 | AD175: 0
A176: 1709 | B176: 0 | C176: 1542 | D176: 0 | F176: 0 | H176: 0 | J176: 0 | L176: 0 | N176: 0 | P176: 0 | R176: 0 | T176: 0 | V176: 0 | X176: 0 | Z176: 0 | AB176: 0 | AD176: 0
A177: 1711 | B177: 0 | C177: 1543 | D177: 0 | F177: 0 | H177: 0 | J177: 0 | L177: 0 | N177: 0 | P177: 0 | R177: 0 | T177: 0 | V177: 0 | X177: 0 | Z177: 0 | AB177: 0 | AD177: 0
A178: 1717 | B178: 0 | C178: 1551 | D178: 0 | F178: 0 | H178: 0 | J178: 0 | L178: 0 | N178: 0 | P178: 0 | R178: 0 | T178: 0 | V178: 0 | X178: 0 | Z178: 0 | AB178: 0 | AD178: 0
A179: 1719 | B179: 0 | C179: 1552 | D179: 0 | F179: 0 | H179: 0 | J179: 0 | L179: 0 | N179: 0 | P179: 0 | R179: 0 | T179: 0 | V179: 0 | X179: 0 | Z179: 0 | AB179: 0 | AD179: 0
A180: 1722 | B180: 0 | C180: 1553 | D180: 0 | F180: 0 | H180: 0 | J180: 0 | L180: 0 | N180: 0 | P180: 0 | R180: 0 | T180: 0 | V180: 0 | X180: 0 | Z180: 0 | AB180: 0 | AD180: 0
A181: 1723 | B181: 0 | C181: 1554 | D181: 0 | F181: 0 | H181: 0 | J181: 0 | L181: 0 | N181: 0 | P181: 0 | R181: 0 | T181: 0 | V181: 0 | X181: 0 | Z181: 0 | AB181: 0 | AD181: 0
A182: 1729 | B182: 0 | C182: 1554 | D182: 0 | F182: 0 | H182: 0 | J182: 0 | L182: 0 | N182: 0 | P182: 0 | R182: 0 | T182: 0 | V182: 0 | X182: 0 | Z182: 0 | AB182: 0 | AD182: 0
A183: 1731 | B183: 0 | C183: 1557 | D183: 0 | F183: 0 | H183: 0 | J183: 0 | L183: 0 | N183: 0 | P183: 0 | R183: 0 | T183: 0 | V183: 0 | X183: 0 | Z183: 0 | AB183: 0 | AD183: 0
A184: 1732 | B184: 0 | C184: 1558 | D184: 0 | F184: 0 | H184: 0 | J184: 0 | L184: 0 | N184: 0 | P184: 0 | R184: 0 | T184: 0 | V184: 0 | X184: 0 | Z184: 0 | AB184: 0 | AD184: 0
A185: 1733 | B185: 0 | C185: 1603 | D185: 0 | F185: 0 | H185: 0 | J185: 0 | L185: 0 | N185: 0 | P185: 0 | R185: 0 | T185: 0 | V185: 0 | X185: 0 | Z185: 0 | AB185: 0 | AD185: 0
A186: 1735 | B186: 0 | C186: 1606 | D186: 0 | F186: 0 | H186: 0 | J186: 0 | L186: 0 | N186: 0 | P186: 0 | R186: 0 | T186: 0 | V186: 0 | X186: 0 | Z186: 0 | AB186: 0 | AD186: 0
A187: 1738 | B187: 0 | C187: 1607 | D187: 0 | F187: 0 | H187: 0 | J187: 0 | L187: 0 | N187: 0 | P187: 0 | R187: 0 | T187: 0 | V187: 0 | X187: 0 | Z187: 0 | AB187: 0 | AD187: 0
A188: 1739 | B188: 0 | C188: 1610 | D188: 0 | F188: 0 | H188: 0 | J188: 0 | L188: 0 | N188: 0 | P188: 0 | R188: 0 | T188: 0 | V188: 0 | X188: 0 | Z188: 0 | AB188: 0 | AD188: 0
A189: 1741 | B189: 0 | C189: 1611 | D189: 0 | F189: 0 | H189: 0 | J189: 0 | L189: 0 | N189: 0 | P189: 0 | R189: 0 | T189: 0 | V189: 0 | X189: 0 | Z189: 0 | AB189: 0 | AD189: 0
A190: 1745 | B190: 0 | C190: 1611 | D190: 0 | F190: 0 | H190: 0 | J190: 0 | L190: 0 | N190: 0 | P190: 0 | R190: 0 | T190: 0 | V190: 0 | X190: 0 | Z190: 0 | AB190: 0 | AD190: 0
A191: 1745 | B191: 0 | C191: 1612 | D191: 0 | F191: 0 | H191: 0 | J191: 0 | L191: 0 | N191: 0 | P191: 0 | R191: 0 | T191: 0 | V191: 0 | X191: 0 | Z191: 0 | AB191: 0 | AD191: 0
A192: 1747 | B192: 0 | C192: 1613 | D192: 0 | F192: 0 | H192: 0 | J192: 0 | L192: 0 | N192: 0 | P192: 0 | R192: 0 | T192: 0 | V192: 0 | X192: 0 | Z192: 0 | AB192: 0 | AD192: 0
A193: 1758 | B193: 0 | C193: 1615 | D193: 0 | F193: 0 | H193: 0 | J193: 0 | L193: 0 | N193: 0 | P193: 0 | R193: 0 | T193: 0 | V193: 0 | X193: 0 | Z193: 0 | AB193: 0 | AD193: 0
A194: 1802 | B194: 0 | C194: 1618 | D194: 0 | F194: 0 | H194: 0 | J194: 0 | L194: 0 | N194: =IF(AND(M194>0,M194<M193),1,IF(MOD(M194,100)>=60,1,0)) -> 0 | P194: 0 | R194: 0 | T194: 0 | V194: 0 | X194: 0 | Z194: 0 | AB194: 0 | AD194: 0
A195: 1803 | B195: =IF(AND(A195>0,A195<A194),1,IF(MOD(A195,100)>=60,1,0)) -> 0 | C195: 1619 | D195: =IF(AND(C195>0,C195<C194),1,IF(MOD(C195,100)>=60,1,0)) -> 0 | F195: =IF(AND(E195>0,E195<E194),1,IF(MOD(E195,100)>=60,1,0)) -> 0 | H195: =IF(AND(G195>0,G195<G194),1,IF(MOD(G195,100)>=60,1,0)) -> 0 | J195: =IF(AND(I195>0,I195<I194),1,IF(MOD(I195,100)>=60,1,0)) -> 0 | L195: =IF(AND(K195>0,K195<K194),1,IF(MOD(K195,100)>=60,1,0)) -> 0 | N195: =IF(AND(M195>0,M195<M194),1,IF(MOD(M195,100)>=60,1,0)) -> 0 | P195: 0 | R195: 0 | T195: 0 | V195: =IF(AND(U195>0,U195<U194),1,IF(MOD(U195,100)>=60,1,0)) -> 0 | X195: =IF(AND(W195>0,W195<W194),1,IF(MOD(W195,100)>=60,1,0)) -> 0 | Z195: =IF(AND(Y195>0,Y195<Y194),1,IF(MOD(Y195,100)>=60,1,0)) -> 0 | AB195: =IF(AND(AA195>0,AA195<AA194),1,IF(MOD(AA195,100)>=60,1,0)) -> 0 | AD195: =IF(AND(AC195>0,AC195<AC194),1,IF(MOD(AC195,100)>=60,1,0)) -> 0
A196: 1812 | B196: 0 | C196: 1621 | D196: 0 | F196: 0 | H196: 0 | J196: 0 | L196: 0 | N196: 0 | P196: 0 | R196: 0 | T196: 0 | V196: 0 | X196: 0 | Z196: 0 | AB196: 0 | AD196: 0
A197: 1819 | B197: 0 | C197: 1622 | D197: 0 | F197: 0 | H197: 0 | J197: 0 | L197: 0 | N197: 0 | P197: 0 | R197: 0 | T197: 0 | V197: 0 | X197: 0 | Z197: 0 | AB197: 0 | AD197: 0
A198: 1820 | B198: 0 | C198: 1623 | D198: 0 | F198: 0 | H198: 0 | J198: 0 | L198: 0 | N198: 0 | P198: 0 | R198: 0 | T198: 0 | V198: 0 | X198: 0 | Z198: 0 | AB198: 0 | AD198: 0
A199: 1827 | B199: 0 | C199: 1623 | D199: 0 | F199: 0 | H199: 0 | J199: 0 | L199: 0 | N199: 0 | P199: 0 | R199: 0 | T199: 0 | V199: 0 | X199: 0 | Z199: 0 | AB199: 0 | AD199: 0
A200: 1836 | B200: 0 | C200: 1625 | D200: 0 | F200: 0 | H200: 0 | J200: 0 | L200: 0 | N200: 0 | P200: 0 | R200: 0 | T200: 0 | V200: 0 | X200: 0 | Z200: 0 | AB200: 0 | AD200: 0
... 802 more rows

Sheet Bibs
A1: =IF((COLUMN()+1)/2 > NumRaces, 0, VLOOKUP((COLUMN()+1)/2,Races!$A:$H,2,0)) -> JHG | B1: =IF(A1=0,"",SUM(B2:B9999)) -> 0 | C1: =IF((COLUMN()+1)/2 > NumRaces, 0, VLOOKUP((COLUMN()+1)/2,Races!$A:$H,2,0)) -> JHB | D1: =IF(C1=0,"",SUM(D2:D9999)) -> 0 | E1: =IF((COLUMN()+1)/2 > NumRaces, 0, VLOOKUP((COLUMN()+1)/2,Races!$A:$H,2,0)) -> 0 | F1: =IF(E1=0,"",SUM(F2:F9999)) ->  | G1: =IF((COLUMN()+1)/2 > NumRaces, 0, VLOOKUP((COLUMN()+1)/2,Races!$A:$H,2,0)) -> 0 | H1: =IF(G1=0,"",SUM(H2:H9999)) ->  | I1: =IF((COLUMN()+1)/2 > NumRaces, 0, VLOOKUP((COLUMN()+1)/2,Races!$A:$H,2,0)) -> 0 | J1: =IF(I1=0,"",SUM(J2:J9999)) ->  | K1: =IF((COLUMN()+1)/2 > NumRaces, 0, VLOOKUP((COLUMN()+1)/2,Races!$A:$H,2,0)) -> 0 | L1: =IF(K1=0,"",SUM(L2:L9999)) ->  | M1: =IF((COLUMN()+1)/2 > NumRaces, 0, VLOOKUP((COLUMN()+1)/2,Races!$A:$H,2,0)) -> 0 | N1: =IF(M1=0,"",SUM(N2:N9999)) ->  | O1: =IF((COLUMN()+1)/2 > NumRaces, 0, VLOOKUP((COLUMN()+1)/2,Races!$A:$H,2,0)) -> 0 | P1: =IF(O1=0,"",SUM(P2:P9999)) ->  | Q1: =IF((COLUMN()+1)/2 > NumRaces, 0, VLOOKUP((COLUMN()+1)/2,Races!$A:$H,2,0)) -> 0 | R1: =IF(Q1=0,"",SUM(R2:R9999)) ->  | S1: =IF((COLUMN()+1)/2 > NumRaces, 0, VLOOKUP((COLUMN()+1)/2,Races!$A:$H,2,0)) -> 0 | T1: =IF(S1=0,"",SUM(T2:T9999)) ->  | U1: =IF((COLUMN()+1)/2 > NumRaces, 0, VLOOKUP((COLUMN()+1)/2,Races!$A:$H,2,0)) -> 0 | V1: =IF(U1=0,"",SUM(V2:V9999)) ->  | W1: =IF((COLUMN()+1)/2 > NumRaces, 0, VLOOKUP((COLUMN()+1)/2,Races!$A:$H,2,0)) -> 0 | X1: =IF(W1=0,"",SUM(X2:X9999)) ->  | Y1: =IF((COLUMN()+1)/2 > NumRaces, 0, VLOOKUP((COLUMN()+1)/2,Races!$A:$H,2,0)) -> 0 | Z1: =IF(Y1=0,"",SUM(Z2:Z9999)) ->  | AA1: =IF((COLUMN()+1)/2 > NumRaces, 0, VLOOKUP((COLUMN()+1)/2,Races!$A:$H,2,0)) -> 0 | AB1: =IF(AA1=0,"",SUM(AB2:AB9999)) ->  | AC1: =IF((COLUMN()+1)/2 > NumRaces, 0, VLOOKUP((COLUMN()+1)/2,Races!$A:$H,2,0)) -> 0 | AD1: =IF(AC1=0,"",SUM(AD2:AD9999)) -> 
B2: =IF(A2>0,IF(ISNA(MATCH(A2,Roster!$A:$A,0)),1,IF(ISNA(MATCH(A2,A$1:A1,0)),0,1)),0) -> 0 | D2: =IF(C2>0,IF(ISNA(MATCH(C2,Roster!$A:$A,0)),1,IF(ISNA(MATCH(C2,C$1:C1,0)),0,1)),0) -> 0 | F2: =IF(E2>0,IF(ISNA(MATCH(E2,Roster!$A:$A,0)),1,IF(ISNA(MATCH(E2,E$1:E1,0)),0,1)),0) -> 0 | H2: =IF(G2>0,IF(ISNA(MATCH(G2,Roster!$A:$A,0)),1,IF(ISNA(MATCH(G2,G$1:G1,0)),0,1)),0) -> 0 | J2: =IF(I2>0,IF(ISNA(MATCH(I2,Roster!$A:$A,0)),1,IF(ISNA(MATCH(I2,I$1:I1,0)),0,1)),0) -> 0 | L2: =IF(K2>0,IF(ISNA(MATCH(K2,Roster!$A:$A,0)),1,IF(ISNA(MATCH(K2,K$1:K1,0)),0,1)),0) -> 0 | N2: =IF(M2>0,IF(ISNA(MATCH(M2,Roster!$A:$A,0)),1,IF(ISNA(MATCH(M2,M$1:M1,0)),0,1)),0) -> 0 | P2: =IF(O2>0,IF(ISNA(MATCH(O2,Roster!$A:$A,0)),1,IF(ISNA(MATCH(O2,O$1:O1,0)),0,1)),0) -> 0 | R2: =IF(Q2>0,IF(ISNA(MATCH(Q2,Roster!$A:$A,0)),1,IF(ISNA(MATCH(Q2,Q$1:Q1,0)),0,1)),0) -> 0 | T2: =IF(S2>0,IF(ISNA(MATCH(S2,Roster!$A:$A,0)),1,IF(ISNA(MATCH(S2,S$1:S1,0)),0,1)),0) -> 0 | V2: =IF(U2>0,IF(ISNA(MATCH(U2,Roster!$A:$A,0)),1,IF(ISNA(MATCH(U2,U$1:U1,0)),0,1)),0) -> 0 | X2: =IF(W2>0,IF(ISNA(MATCH(W2,Roster!$A:$A,0)),1,IF(ISNA(MATCH(W2,W$1:W1,0)),0,1)),0) -> 0 | Z2: =IF(Y2>0,IF(ISNA(MATCH(Y2,Roster!$A:$A,0)),1,IF(ISNA(MATCH(Y2,Y$1:Y1,0)),0,1)),0) -> 0 | AB2: =IF(AA2>0,IF(ISNA(MATCH(AA2,Roster!$A:$A,0)),1,IF(ISNA(MATCH(AA2,AA$1:AA1,0)),0,1)),0) -> 0 | AD2: =IF(AC2>0,IF(ISNA(MATCH(AC2,Roster!$A:$A,0)),1,IF(ISNA(MATCH(AC2,AC$1:AC1,0)),0,1)),0) -> 0
B3: =IF(A3>0,IF(ISNA(MATCH(A3,Roster!$A:$A,0)),1,IF(ISNA(MATCH(A3,A$1:A2,0)),0,1)),0) -> 0 | D3: =IF(C3>0,IF(ISNA(MATCH(C3,Roster!$A:$A,0)),1,IF(ISNA(MATCH(C3,C$1:C2,0)),0,1)),0) -> 0 | F3: =IF(E3>0,IF(ISNA(MATCH(E3,Roster!$A:$A,0)),1,IF(ISNA(MATCH(E3,E$1:E2,0)),0,1)),0) -> 0 | H3: =IF(G3>0,IF(ISNA(MATCH(G3,Roster!$A:$A,0)),1,IF(ISNA(MATCH(G3,G$1:G2,0)),0,1)),0) -> 0 | J3: =IF(I3>0,IF(ISNA(MATCH(I3,Roster!$A:$A,0)),1,IF(ISNA(MATCH(I3,I$1:I2,0)),0,1)),0) -> 0 | L3: =IF(K3>0,IF(ISNA(MATCH(K3,Roster!$A:$A,0)),1,IF(ISNA(MATCH(K3,K$1:K2,0)),0,1)),0) -> 0 | N3: =IF(M3>0,IF(ISNA(MATCH(M3,Roster!$A:$A,0)),1,IF(ISNA(MATCH(M3,M$1:M2,0)),0,1)),0) -> 0 | P3: =IF(O3>0,IF(ISNA(MATCH(O3,Roster!$A:$A,0)),1,IF(ISNA(MATCH(O3,O$1:O2,0)),0,1)),0) -> 0 | R3: =IF(Q3>0,IF(ISNA(MATCH(Q3,Roster!$A:$A,0)),1,IF(ISNA(MATCH(Q3,Q$1:Q2,0)),0,1)),0) -> 0 | T3: =IF(S3>0,IF(ISNA(MATCH(S3,Roster!$A:$A,0)),1,IF(ISNA(MATCH(S3,S$1:S2,0)),0,1)),0) -> 0 | V3: =IF(U3>0,IF(ISNA(MATCH(U3,Roster!$A:$A,0)),1,IF(ISNA(MATCH(U3,U$1:U2,0)),0,1)),0) -> 0 | X3: =IF(W3>0,IF(ISNA(MATCH(W3,Roster!$A:$A,0)),1,IF(ISNA(MATCH(W3,W$1:W2,0)),0,1)),0) -> 0 | Z3: =IF(Y3>0,IF(ISNA(MATCH(Y3,Roster!$A:$A,0)),1,IF(ISNA(MATCH(Y3,Y$1:Y2,0)),0,1)),0) -> 0 | AB3: =IF(AA3>0,IF(ISNA(MATCH(AA3,Roster!$A:$A,0)),1,IF(ISNA(MATCH(AA3,AA$1:AA2,0)),0,1)),0) -> 0 | AD3: =IF(AC3>0,IF(ISNA(MATCH(AC3,Roster!$A:$A,0)),1,IF(ISNA(MATCH(AC3,AC$1:AC2,0)),0,1)),0) -> 0
B4: =IF(A4>0,IF(ISNA(MATCH(A4,Roster!$A:$A,0)),1,IF(ISNA(MATCH(A4,A$1:A3,0)),0,1)),0) -> 0 | D4: =IF(C4>0,IF(ISNA(MATCH(C4,Roster!$A:$A,0)),1,IF(ISNA(MATCH(C4,C$1:C3,0)),0,1)),0) -> 0 | F4: =IF(E4>0,IF(ISNA(MATCH(E4,Roster!$A:$A,0)),1,IF(ISNA(MATCH(E4,E$1:E3,0)),0,1)),0) -> 0 | H4: =IF(G4>0,IF(ISNA(MATCH(G4,Roster!$A:$A,0)),1,IF(ISNA(MATCH(G4,G$1:G3,0)),0,1)),0) -> 0 | J4: =IF(I4>0,IF(ISNA(MATCH(I4,Roster!$A:$A,0)),1,IF(ISNA(MATCH(I4,I$1:I3,0)),0,1)),0) -> 0 | L4: =IF(K4>0,IF(ISNA(MATCH(K4,Roster!$A:$A,0)),1,IF(ISNA(MATCH(K4,K$1:K3,0)),0,1)),0) -> 0 | N4: =IF(M4>0,IF(ISNA(MATCH(M4,Roster!$A:$A,0)),1,IF(ISNA(MATCH(M4,M$1:M3,0)),0,1)),0) -> 0 | P4: =IF(O4>0,IF(ISNA(MATCH(O4,Roster!$A:$A,0)),1,IF(ISNA(MATCH(O4,O$1:O3,0)),0,1)),0) -> 0 | R4: =IF(Q4>0,IF(ISNA(MATCH(Q4,Roster!$A:$A,0)),1,IF(ISNA(MATCH(Q4,Q$1:Q3,0)),0,1)),0) -> 0 | T4: =IF(S4>0,IF(ISNA(MATCH(S4,Roster!$A:$A,0)),1,IF(ISNA(MATCH(S4,S$1:S3,0)),0,1)),0) -> 0 | V4: =IF(U4>0,IF(ISNA(MATCH(U4,Roster!$A:$A,0)),1,IF(ISNA(MATCH(U4,U$1:U3,0)),0,1)),0) -> 0 | X4: =IF(W4>0,IF(ISNA(MATCH(W4,Roster!$A:$A,0)),1,IF(ISNA(MATCH(W4,W$1:W3,0)),0,1)),0) -> 0 | Z4: =IF(Y4>0,IF(ISNA(MATCH(Y4,Roster!$A:$A,0)),1,IF(ISNA(MATCH(Y4,Y$1:Y3,0)),0,1)),0) -> 0 | AB4: =IF(AA4>0,IF(ISNA(MATCH(AA4,Roster!$A:$A,0)),1,IF(ISNA(MATCH(AA4,AA$1:AA3,0)),0,1)),0) -> 0 | AD4: =IF(AC4>0,IF(ISNA(MATCH(AC4,Roster!$A:$A,0)),1,IF(ISNA(MATCH(AC4,AC$1:AC3,0)),0,1)),0) -> 0
B5: =IF(A5>0,IF(ISNA(MATCH(A5,Roster!$A:$A,0)),1,IF(ISNA(MATCH(A5,A$1:A4,0)),0,1)),0) -> 0 | D5: =IF(C5>0,IF(ISNA(MATCH(C5,Roster!$A:$A,0)),1,IF(ISNA(MATCH(C5,C$1:C4,0)),0,1)),0) -> 0 | F5: =IF(E5>0,IF(ISNA(MATCH(E5,Roster!$A:$A,0)),1,IF(ISNA(MATCH(E5,E$1:E4,0)),0,1)),0) -> 0 | H5: =IF(G5>0,IF(ISNA(MATCH(G5,Roster!$A:$A,0)),1,IF(ISNA(MATCH(G5,G$1:G4,0)),0,1)),0) -> 0 | J5: =IF(I5>0,IF(ISNA(MATCH(I5,Roster!$A:$A,0)),1,IF(ISNA(MATCH(I5,I$1:I4,0)),0,1)),0) -> 0 | L5: =IF(K5>0,IF(ISNA(MATCH(K5,Roster!$A:$A,0)),1,IF(ISNA(MATCH(K5,K$1:K4,0)),0,1)),0) -> 0 | N5: =IF(M5>0,IF(ISNA(MATCH(M5,Roster!$A:$A,0)),1,IF(ISNA(MATCH(M5,M$1:M4,0)),0,1)),0) -> 0 | P5: =IF(O5>0,IF(ISNA(MATCH(O5,Roster!$A:$A,0)),1,IF(ISNA(MATCH(O5,O$1:O4,0)),0,1)),0) -> 0 | R5: =IF(Q5>0,IF(ISNA(MATCH(Q5,Roster!$A:$A,0)),1,IF(ISNA(MATCH(Q5,Q$1:Q4,0)),0,1)),0) -> 0 | T5: =IF(S5>0,IF(ISNA(MATCH(S5,Roster!$A:$A,0)),1,IF(ISNA(MATCH(S5,S$1:S4,0)),0,1)),0) -> 0 | V5: =IF(U5>0,IF(ISNA(MATCH(U5,Roster!$A:$A,0)),1,IF(ISNA(MATCH(U5,U$1:U4,0)),0,1)),0) -> 0 | X5: =IF(W5>0,IF(ISNA(MATCH(W5,Roster!$A:$A,0)),1,IF(ISNA(MATCH(W5,W$1:W4,0)),0,1)),0) -> 0 | Z5: =IF(Y5>0,IF(ISNA(MATCH(Y5,Roster!$A:$A,0)),1,IF(ISNA(MATCH(Y5,Y$1:Y4,0)),0,1)),0) -> 0 | AB5: =IF(AA5>0,IF(ISNA(MATCH(AA5,Roster!$A:$A,0)),1,IF(ISNA(MATCH(AA5,AA$1:AA4,0)),0,1)),0) -> 0 | AD5: =IF(AC5>0,IF(ISNA(MATCH(AC5,Roster!$A:$A,0)),1,IF(ISNA(MATCH(AC5,AC$1:AC4,0)),0,1)),0) -> 0
B6: =IF(A6>0,IF(ISNA(MATCH(A6,Roster!$A:$A,0)),1,IF(ISNA(MATCH(A6,A$1:A5,0)),0,1)),0) -> 0 | D6: =IF(C6>0,IF(ISNA(MATCH(C6,Roster!$A:$A,0)),1,IF(ISNA(MATCH(C6,C$1:C5,0)),0,1)),0) -> 0 | F6: =IF(E6>0,IF(ISNA(MATCH(E6,Roster!$A:$A,0)),1,IF(ISNA(MATCH(E6,E$1:E5,0)),0,1)),0) -> 0 | H6: =IF(G6>0,IF(ISNA(MATCH(G6,Roster!$A:$A,0)),1,IF(ISNA(MATCH(G6,G$1:G5,0)),0,1)),0) -> 0 | J6: =IF(I6>0,IF(ISNA(MATCH(I6,Roster!$A:$A,0)),1,IF(ISNA(MATCH(I6,I$1:I5,0)),0,1)),0) -> 0 | L6: =IF(K6>0,IF(ISNA(MATCH(K6,Roster!$A:$A,0)),1,IF(ISNA(MATCH(K6,K$1:K5,0)),0,1)),0) -> 0 | N6: =IF(M6>0,IF(ISNA(MATCH(M6,Roster!$A:$A,0)),1,IF(ISNA(MATCH(M6,M$1:M5,0)),0,1)),0) -> 0 | P6: =IF(O6>0,IF(ISNA(MATCH(O6,Roster!$A:$A,0)),1,IF(ISNA(MATCH(O6,O$1:O5,0)),0,1)),0) -> 0 | R6: =IF(Q6>0,IF(ISNA(MATCH(Q6,Roster!$A:$A,0)),1,IF(ISNA(MATCH(Q6,Q$1:Q5,0)),0,1)),0) -> 0 | T6: =IF(S6>0,IF(ISNA(MATCH(S6,Roster!$A:$A,0)),1,IF(ISNA(MATCH(S6,S$1:S5,0)),0,1)),0) -> 0 | V6: =IF(U6>0,IF(ISNA(MATCH(U6,Roster!$A:$A,0)),1,IF(ISNA(MATCH(U6,U$1:U5,0)),0,1)),0) -> 0 | X6: =IF(W6>0,IF(ISNA(MATCH(W6,Roster!$A:$A,0)),1,IF(ISNA(MATCH(W6,W$1:W5,0)),0,1)),0) -> 0 | Z6: =IF(Y6>0,IF(ISNA(MATCH(Y6,Roster!$A:$A,0)),1,IF(ISNA(MATCH(Y6,Y$1:Y5,0)),0,1)),0) -> 0 | AB6: =IF(AA6>0,IF(ISNA(MATCH(AA6,Roster!$A:$A,0)),1,IF(ISNA(MATCH(AA6,AA$1:AA5,0)),0,1)),0) -> 0 | AD6: =IF(AC6>0,IF(ISNA(MATCH(AC6,Roster!$A:$A,0)),1,IF(ISNA(MATCH(AC6,AC$1:AC5,0)),0,1)),0) -> 0
B7: =IF(A7>0,IF(ISNA(MATCH(A7,Roster!$A:$A,0)),1,IF(ISNA(MATCH(A7,A$1:A6,0)),0,1)),0) -> 0 | D7: =IF(C7>0,IF(ISNA(MATCH(C7,Roster!$A:$A,0)),1,IF(ISNA(MATCH(C7,C$1:C6,0)),0,1)),0) -> 0 | F7: =IF(E7>0,IF(ISNA(MATCH(E7,Roster!$A:$A,0)),1,IF(ISNA(MATCH(E7,E$1:E6,0)),0,1)),0) -> 0 | H7: =IF(G7>0,IF(ISNA(MATCH(G7,Roster!$A:$A,0)),1,IF(ISNA(MATCH(G7,G$1:G6,0)),0,1)),0) -> 0 | J7: =IF(I7>0,IF(ISNA(MATCH(I7,Roster!$A:$A,0)),1,IF(ISNA(MATCH(I7,I$1:I6,0)),0,1)),0) -> 0 | L7: =IF(K7>0,IF(ISNA(MATCH(K7,Roster!$A:$A,0)),1,IF(ISNA(MATCH(K7,K$1:K6,0)),0,1)),0) -> 0 | N7: =IF(M7>0,IF(ISNA(MATCH(M7,Roster!$A:$A,0)),1,IF(ISNA(MATCH(M7,M$1:M6,0)),0,1)),0) -> 0 | P7: =IF(O7>0,IF(ISNA(MATCH(O7,Roster!$A:$A,0)),1,IF(ISNA(MATCH(O7,O$1:O6,0)),0,1)),0) -> 0 | R7: =IF(Q7>0,IF(ISNA(MATCH(Q7,Roster!$A:$A,0)),1,IF(ISNA(MATCH(Q7,Q$1:Q6,0)),0,1)),0) -> 0 | T7: =IF(S7>0,IF(ISNA(MATCH(S7,Roster!$A:$A,0)),1,IF(ISNA(MATCH(S7,S$1:S6,0)),0,1)),0) -> 0 | V7: =IF(U7>0,IF(ISNA(MATCH(U7,Roster!$A:$A,0)),1,IF(ISNA(MATCH(U7,U$1:U6,0)),0,1)),0) -> 0 | X7: =IF(W7>0,IF(ISNA(MATCH(W7,Roster!$A:$A,0)),1,IF(ISNA(MATCH(W7,W$1:W6,0)),0,1)),0) -> 0 | Z7: =IF(Y7>0,IF(ISNA(MATCH(Y7,Roster!$A:$A,0)),1,IF(ISNA(MATCH(Y7,Y$1:Y6,0)),0,1)),0) -> 0 | AB7: =IF(AA7>0,IF(ISNA(MATCH(AA7,Roster!$A:$A,0)),1,IF(ISNA(MATCH(AA7,AA$1:AA6,0)),0,1)),0) -> 0 | AD7: =IF(AC7>0,IF(ISNA(MATCH(AC7,Roster!$A:$A,0)),1,IF(ISNA(MATCH(AC7,AC$1:AC6,0)),0,1)),0) -> 0
B8: =IF(A8>0,IF(ISNA(MATCH(A8,Roster!$A:$A,0)),1,IF(ISNA(MATCH(A8,A$1:A7,0)),0,1)),0) -> 0 | D8: =IF(C8>0,IF(ISNA(MATCH(C8,Roster!$A:$A,0)),1,IF(ISNA(MATCH(C8,C$1:C7,0)),0,1)),0) -> 0 | F8: =IF(E8>0,IF(ISNA(MATCH(E8,Roster!$A:$A,0)),1,IF(ISNA(MATCH(E8,E$1:E7,0)),0,1)),0) -> 0 | H8: =IF(G8>0,IF(ISNA(MATCH(G8,Roster!$A:$A,0)),1,IF(ISNA(MATCH(G8,G$1:G7,0)),0,1)),0) -> 0 | J8: =IF(I8>0,IF(ISNA(MATCH(I8,Roster!$A:$A,0)),1,IF(ISNA(MATCH(I8,I$1:I7,0)),0,1)),0) -> 0 | L8: =IF(K8>0,IF(ISNA(MATCH(K8,Roster!$A:$A,0)),1,IF(ISNA(MATCH(K8,K$1:K7,0)),0,1)),0) -> 0 | N8: =IF(M8>0,IF(ISNA(MATCH(M8,Roster!$A:$A,0)),1,IF(ISNA(MATCH(M8,M$1:M7,0)),0,1)),0) -> 0 | P8: =IF(O8>0,IF(ISNA(MATCH(O8,Roster!$A:$A,0)),1,IF(ISNA(MATCH(O8,O$1:O7,0)),0,1)),0) -> 0 | R8: =IF(Q8>0,IF(ISNA(MATCH(Q8,Roster!$A:$A,0)),1,IF(ISNA(MATCH(Q8,Q$1:Q7,0)),0,1)),0) -> 0 | T8: =IF(S8>0,IF(ISNA(MATCH(S8,Roster!$A:$A,0)),1,IF(ISNA(MATCH(S8,S$1:S7,0)),0,1)),0) -> 0 | V8: =IF(U8>0,IF(ISNA(MATCH(U8,Roster!$A:$A,0)),1,IF(ISNA(MATCH(U8,U$1:U7,0)),0,1)),0) -> 0 | X8: =IF(W8>0,IF(ISNA(MATCH(W8,Roster!$A:$A,0)),1,IF(ISNA(MATCH(W8,W$1:W7,0)),0,1)),0) -> 0 | Z8: =IF(Y8>0,IF(ISNA(MATCH(Y8,Roster!$A:$A,0)),1,IF(ISNA(MATCH(Y8,Y$1:Y7,0)),0,1)),0) -> 0 | AB8: =IF(AA8>0,IF(ISNA(MATCH(AA8,Roster!$A:$A,0)),1,IF(ISNA(MATCH(AA8,AA$1:AA7,0)),0,1)),0) -> 0 | AD8: =IF(AC8>0,IF(ISNA(MATCH(AC8,Roster!$A:$A,0)),1,IF(ISNA(MATCH(AC8,AC$1:AC7,0)),0,1)),0) -> 0
B9: =IF(A9>0,IF(ISNA(MATCH(A9,Roster!$A:$A,0)),1,IF(ISNA(MATCH(A9,A$1:A8,0)),0,1)),0) -> 0 | D9: =IF(C9>0,IF(ISNA(MATCH(C9,Roster!$A:$A,0)),1,IF(ISNA(MATCH(C9,C$1:C8,0)),0,1)),0) -> 0 | F9: =IF(E9>0,IF(ISNA(MATCH(E9,Roster!$A:$A,0)),1,IF(ISNA(MATCH(E9,E$1:E8,0)),0,1)),0) -> 0 | H9: =IF(G9>0,IF(ISNA(MATCH(G9,Roster!$A:$A,0)),1,IF(ISNA(MATCH(G9,G$1:G8,0)),0,1)),0) -> 0 | J9: =IF(I9>0,IF(ISNA(MATCH(I9,Roster!$A:$A,0)),1,IF(ISNA(MATCH(I9,I$1:I8,0)),0,1)),0) -> 0 | L9: =IF(K9>0,IF(ISNA(MATCH(K9,Roster!$A:$A,0)),1,IF(ISNA(MATCH(K9,K$1:K8,0)),0,1)),0) -> 0 | N9: =IF(M9>0,IF(ISNA(MATCH(M9,Roster!$A:$A,0)),1,IF(ISNA(MATCH(M9,M$1:M8,0)),0,1)),0) -> 0 | P9: =IF(O9>0,IF(ISNA(MATCH(O9,Roster!$A:$A,0)),1,IF(ISNA(MATCH(O9,O$1:O8,0)),0,1)),0) -> 0 | R9: =IF(Q9>0,IF(ISNA(MATCH(Q9,Roster!$A:$A,0)),1,IF(ISNA(MATCH(Q9,Q$1:Q8,0)),0,1)),0) -> 0 | T9: =IF(S9>0,IF(ISNA(MATCH(S9,Roster!$A:$A,0)),1,IF(ISNA(MATCH(S9,S$1:S8,0)),0,1)),0) -> 0 | V9: =IF(U9>0,IF(ISNA(MATCH(U9,Roster!$A:$A,0)),1,IF(ISNA(MATCH(U9,U$1:U8,0)),0,1)),0) -> 0 | X9: =IF(W9>0,IF(ISNA(MATCH(W9,Roster!$A:$A,0)),1,IF(ISNA(MATCH(W9,W$1:W8,0)),0,1)),0) -> 0 | Z9: =IF(Y9>0,IF(ISNA(MATCH(Y9,Roster!$A:$A,0)),1,IF(ISNA(MATCH(Y9,Y$1:Y8,0)),0,1)),0) -> 0 | AB9: =IF(AA9>0,IF(ISNA(MATCH(AA9,Roster!$A:$A,0)),1,IF(ISNA(MATCH(AA9,AA$1:AA8,0)),0,1)),0) -> 0 | AD9: =IF(AC9>0,IF(ISNA(MATCH(AC9,Roster!$A:$A,0)),1,IF(ISNA(MATCH(AC9,AC$1:AC8,0)),0,1)),0) -> 0
B10: =IF(A10>0,IF(ISNA(MATCH(A10,Roster!$A:$A,0)),1,IF(ISNA(MATCH(A10,A$1:A9,0)),0,1)),0) -> 0 | D10: =IF(C10>0,IF(ISNA(MATCH(C10,Roster!$A:$A,0)),1,IF(ISNA(MATCH(C10,C$1:C9,0)),0,1)),0) -> 0 | F10: =IF(E10>0,IF(ISNA(MATCH(E10,Roster!$A:$A,0)),1,IF(ISNA(MATCH(E10,E$1:E9,0)),0,1)),0) -> 0 | H10: =IF(G10>0,IF(ISNA(MATCH(G10,Roster!$A:$A,0)),1,IF(ISNA(MATCH(G10,G$1:G9,0)),0,1)),0) -> 0 | J10: =IF(I10>0,IF(ISNA(MATCH(I10,Roster!$A:$A,0)),1,IF(ISNA(MATCH(I10,I$1:I9,0)),0,1)),0) -> 0 | L10: =IF(K10>0,IF(ISNA(MATCH(K10,Roster!$A:$A,0)),1,IF(ISNA(MATCH(K10,K$1:K9,0)),0,1)),0) -> 0 | N10: =IF(M10>0,IF(ISNA(MATCH(M10,Roster!$A:$A,0)),1,IF(ISNA(MATCH(M10,M$1:M9,0)),0,1)),0) -> 0 | P10: =IF(O10>0,IF(ISNA(MATCH(O10,Roster!$A:$A,0)),1,IF(ISNA(MATCH(O10,O$1:O9,0)),0,1)),0) -> 0 | R10: =IF(Q10>0,IF(ISNA(MATCH(Q10,Roster!$A:$A,0)),1,IF(ISNA(MATCH(Q10,Q$1:Q9,0)),0,1)),0) -> 0 | T10: =IF(S10>0,IF(ISNA(MATCH(S10,Roster!$A:$A,0)),1,IF(ISNA(MATCH(S10,S$1:S9,0)),0,1)),0) -> 0 | V10: =IF(U10>0,IF(ISNA(MATCH(U10,Roster!$A:$A,0)),1,IF(ISNA(MATCH(U10,U$1:U9,0)),0,1)),0) -> 0 | X10: =IF(W10>0,IF(ISNA(MATCH(W10,Roster!$A:$A,0)),1,IF(ISNA(MATCH(W10,W$1:W9,0)),0,1)),0) -> 0 | Z10: =IF(Y10>0,IF(ISNA(MATCH(Y10,Roster!$A:$A,0)),1,IF(ISNA(MATCH(Y10,Y$1:Y9,0)),0,1)),0) -> 0 | AB10: =IF(AA10>0,IF(ISNA(MATCH(AA10,Roster!$A:$A,0)),1,IF(ISNA(MATCH(AA10,AA$1:AA9,0)),0,1)),0) -> 0 | AD10: =IF(AC10>0,IF(ISNA(MATCH(AC10,Roster!$A:$A,0)),1,IF(ISNA(MATCH(AC10,AC$1:AC9,0)),0,1)),0) -> 0
B11: =IF(A11>0,IF(ISNA(MATCH(A11,Roster!$A:$A,0)),1,IF(ISNA(MATCH(A11,A$1:A10,0)),0,1)),0) -> 0 | D11: =IF(C11>0,IF(ISNA(MATCH(C11,Roster!$A:$A,0)),1,IF(ISNA(MATCH(C11,C$1:C10,0)),0,1)),0) -> 0 | F11: =IF(E11>0,IF(ISNA(MATCH(E11,Roster!$A:$A,0)),1,IF(ISNA(MATCH(E11,E$1:E10,0)),0,1)),0) -> 0 | H11: =IF(G11>0,IF(ISNA(MATCH(G11,Roster!$A:$A,0)),1,IF(ISNA(MATCH(G11,G$1:G10,0)),0,1)),0) -> 0 | J11: =IF(I11>0,IF(ISNA(MATCH(I11,Roster!$A:$A,0)),1,IF(ISNA(MATCH(I11,I$1:I10,0)),0,1)),0) -> 0 | L11: =IF(K11>0,IF(ISNA(MATCH(K11,Roster!$A:$A,0)),1,IF(ISNA(MATCH(K11,K$1:K10,0)),0,1)),0) -> 0 | N11: =IF(M11>0,IF(ISNA(MATCH(M11,Roster!$A:$A,0)),1,IF(ISNA(MATCH(M11,M$1:M10,0)),0,1)),0) -> 0 | P11: =IF(O11>0,IF(ISNA(MATCH(O11,Roster!$A:$A,0)),1,IF(ISNA(MATCH(O11,O$1:O10,0)),0,1)),0) -> 0 | R11: =IF(Q11>0,IF(ISNA(MATCH(Q11,Roster!$A:$A,0)),1,IF(ISNA(MATCH(Q11,Q$1:Q10,0)),0,1)),0) -> 0 | T11: =IF(S11>0,IF(ISNA(MATCH(S11,Roster!$A:$A,0)),1,IF(ISNA(MATCH(S11,S$1:S10,0)),0,1)),0) -> 0 | V11: =IF(U11>0,IF(ISNA(MATCH(U11,Roster!$A:$A,0)),1,IF(ISNA(MATCH(U11,U$1:U10,0)),0,1)),0) -> 0 | X11: =IF(W11>0,IF(ISNA(MATCH(W11,Roster!$A:$A,0)),1,IF(ISNA(MATCH(W11,W$1:W10,0)),0,1)),0) -> 0 | Z11: =IF(Y11>0,IF(ISNA(MATCH(Y11,Roster!$A:$A,0)),1,IF(ISNA(MATCH(Y11,Y$1:Y10,0)),0,1)),0) -> 0 | AB11: =IF(AA11>0,IF(ISNA(MATCH(AA11,Roster!$A:$A,0)),1,IF(ISNA(MATCH(AA11,AA$1:AA10,0)),0,1)),0) -> 0 | AD11: =IF(AC11>0,IF(ISNA(MATCH(AC11,Roster!$A:$A,0)),1,IF(ISNA(MATCH(AC11,AC$1:AC10,0)),0,1)),0) -> 0
B12: =IF(A12>0,IF(ISNA(MATCH(A12,Roster!$A:$A,0)),1,IF(ISNA(MATCH(A12,A$1:A11,0)),0,1)),0) -> 0 | D12: =IF(C12>0,IF(ISNA(MATCH(C12,Roster!$A:$A,0)),1,IF(ISNA(MATCH(C12,C$1:C11,0)),0,1)),0) -> 0 | F12: =IF(E12>0,IF(ISNA(MATCH(E12,Roster!$A:$A,0)),1,IF(ISNA(MATCH(E12,E$1:E11,0)),0,1)),0) -> 0 | H12: =IF(G12>0,IF(ISNA(MATCH(G12,Roster!$A:$A,0)),1,IF(ISNA(MATCH(G12,G$1:G11,0)),0,1)),0) -> 0 | J12: =IF(I12>0,IF(ISNA(MATCH(I12,Roster!$A:$A,0)),1,IF(ISNA(MATCH(I12,I$1:I11,0)),0,1)),0) -> 0 | L12: =IF(K12>0,IF(ISNA(MATCH(K12,Roster!$A:$A,0)),1,IF(ISNA(MATCH(K12,K$1:K11,0)),0,1)),0) -> 0 | N12: =IF(M12>0,IF(ISNA(MATCH(M12,Roster!$A:$A,0)),1,IF(ISNA(MATCH(M12,M$1:M11,0)),0,1)),0) -> 0 | P12: =IF(O12>0,IF(ISNA(MATCH(O12,Roster!$A:$A,0)),1,IF(ISNA(MATCH(O12,O$1:O11,0)),0,1)),0) -> 0 | R12: =IF(Q12>0,IF(ISNA(MATCH(Q12,Roster!$A:$A,0)),1,IF(ISNA(MATCH(Q12,Q$1:Q11,0)),0,1)),0) -> 0 | T12: =IF(S12>0,IF(ISNA(MATCH(S12,Roster!$A:$A,0)),1,IF(ISNA(MATCH(S12,S$1:S11,0)),0,1)),0) -> 0 | V12: =IF(U12>0,IF(ISNA(MATCH(U12,Roster!$A:$A,0)),1,IF(ISNA(MATCH(U12,U$1:U11,0)),0,1)),0) -> 0 | X12: =IF(W12>0,IF(ISNA(MATCH(W12,Roster!$A:$A,0)),1,IF(ISNA(MATCH(W12,W$1:W11,0)),0,1)),0) -> 0 | Z12: =IF(Y12>0,IF(ISNA(MATCH(Y12,Roster!$A:$A,0)),1,IF(ISNA(MATCH(Y12,Y$1:Y11,0)),0,1)),0) -> 0 | AB12: =IF(AA12>0,IF(ISNA(MATCH(AA12,Roster!$A:$A,0)),1,IF(ISNA(MATCH(AA12,AA$1:AA11,0)),0,1)),0) -> 0 | AD12: =IF(AC12>0,IF(ISNA(MATCH(AC12,Roster!$A:$A,0)),1,IF(ISNA(MATCH(AC12,AC$1:AC11,0)),0,1)),0) -> 0
B13: =IF(A13>0,IF(ISNA(MATCH(A13,Roster!$A:$A,0)),1,IF(ISNA(MATCH(A13,A$1:A12,0)),0,1)),0) -> 0 | D13: =IF(C13>0,IF(ISNA(MATCH(C13,Roster!$A:$A,0)),1,IF(ISNA(MATCH(C13,C$1:C12,0)),0,1)),0) -> 0 | F13: =IF(E13>0,IF(ISNA(MATCH(E13,Roster!$A:$A,0)),1,IF(ISNA(MATCH(E13,E$1:E12,0)),0,1)),0) -> 0 | H13: =IF(G13>0,IF(ISNA(MATCH(G13,Roster!$A:$A,0)),1,IF(ISNA(MATCH(G13,G$1:G12,0)),0,1)),0) -> 0 | J13: =IF(I13>0,IF(ISNA(MATCH(I13,Roster!$A:$A,0)),1,IF(ISNA(MATCH(I13,I$1:I12,0)),0,1)),0) -> 0 | L13: =IF(K13>0,IF(ISNA(MATCH(K13,Roster!$A:$A,0)),1,IF(ISNA(MATCH(K13,K$1:K12,0)),0,1)),0) -> 0 | N13: =IF(M13>0,IF(ISNA(MATCH(M13,Roster!$A:$A,0)),1,IF(ISNA(MATCH(M13,M$1:M12,0)),0,1)),0) -> 0 | P13: =IF(O13>0,IF(ISNA(MATCH(O13,Roster!$A:$A,0)),1,IF(ISNA(MATCH(O13,O$1:O12,0)),0,1)),0) -> 0 | R13: =IF(Q13>0,IF(ISNA(MATCH(Q13,Roster!$A:$A,0)),1,IF(ISNA(MATCH(Q13,Q$1:Q12,0)),0,1)),0) -> 0 | T13: =IF(S13>0,IF(ISNA(MATCH(S13,Roster!$A:$A,0)),1,IF(ISNA(MATCH(S13,S$1:S12,0)),0,1)),0) -> 0 | V13: =IF(U13>0,IF(ISNA(MATCH(U13,Roster!$A:$A,0)),1,IF(ISNA(MATCH(U13,U$1:U12,0)),0,1)),0) -> 0 | X13: =IF(W13>0,IF(ISNA(MATCH(W13,Roster!$A:$A,0)),1,IF(ISNA(MATCH(W13,W$1:W12,0)),0,1)),0) -> 0 | Z13: =IF(Y13>0,IF(ISNA(MATCH(Y13,Roster!$A:$A,0)),1,IF(ISNA(MATCH(Y13,Y$1:Y12,0)),0,1)),0) -> 0 | AB13: =IF(AA13>0,IF(ISNA(MATCH(AA13,Roster!$A:$A,0)),1,IF(ISNA(MATCH(AA13,AA$1:AA12,0)),0,1)),0) -> 0 | AD13: =IF(AC13>0,IF(ISNA(MATCH(AC13,Roster!$A:$A,0)),1,IF(ISNA(MATCH(AC13,AC$1:AC12,0)),0,1)),0) -> 0
B14: =IF(A14>0,IF(ISNA(MATCH(A14,Roster!$A:$A,0)),1,IF(ISNA(MATCH(A14,A$1:A13,0)),0,1)),0) -> 0 | D14: =IF(C14>0,IF(ISNA(MATCH(C14,Roster!$A:$A,0)),1,IF(ISNA(MATCH(C14,C$1:C13,0)),0,1)),0) -> 0 | F14: =IF(E14>0,IF(ISNA(MATCH(E14,Roster!$A:$A,0)),1,IF(ISNA(MATCH(E14,E$1:E13,0)),0,1)),0) -> 0 | H14: =IF(G14>0,IF(ISNA(MATCH(G14,Roster!$A:$A,0)),1,IF(ISNA(MATCH(G14,G$1:G13,0)),0,1)),0) -> 0 | J14: =IF(I14>0,IF(ISNA(MATCH(I14,Roster!$A:$A,0)),1,IF(ISNA(MATCH(I14,I$1:I13,0)),0,1)),0) -> 0 | L14: =IF(K14>0,IF(ISNA(MATCH(K14,Roster!$A:$A,0)),1,IF(ISNA(MATCH(K14,K$1:K13,0)),0,1)),0) -> 0 | N14: =IF(M14>0,IF(ISNA(MATCH(M14,Roster!$A:$A,0)),1,IF(ISNA(MATCH(M14,M$1:M13,0)),0,1)),0) -> 0 | P14: =IF(O14>0,IF(ISNA(MATCH(O14,Roster!$A:$A,0)),1,IF(ISNA(MATCH(O14,O$1:O13,0)),0,1)),0) -> 0 | R14: =IF(Q14>0,IF(ISNA(MATCH(Q14,Roster!$A:$A,0)),1,IF(ISNA(MATCH(Q14,Q$1:Q13,0)),0,1)),0) -> 0 | T14: =IF(S14>0,IF(ISNA(MATCH(S14,Roster!$A:$A,0)),1,IF(ISNA(MATCH(S14,S$1:S13,0)),0,1)),0) -> 0 | V14: =IF(U14>0,IF(ISNA(MATCH(U14,Roster!$A:$A,0)),1,IF(ISNA(MATCH(U14,U$1:U13,0)),0,1)),0) -> 0 | X14: =IF(W14>0,IF(ISNA(MATCH(W14,Roster!$A:$A,0)),1,IF(ISNA(MATCH(W14,W$1:W13,0)),0,1)),0) -> 0 | Z14: =IF(Y14>0,IF(ISNA(MATCH(Y14,Roster!$A:$A,0)),1,IF(ISNA(MATCH(Y14,Y$1:Y13,0)),0,1)),0) -> 0 | AB14: =IF(AA14>0,IF(ISNA(MATCH(AA14,Roster!$A:$A,0)),1,IF(ISNA(MATCH(AA14,AA$1:AA13,0)),0,1)),0) -> 0 | AD14: =IF(AC14>0,IF(ISNA(MATCH(AC14,Roster!$A:$A,0)),1,IF(ISNA(MATCH(AC14,AC$1:AC13,0)),0,1)),0) -> 0
B15: =IF(A15>0,IF(ISNA(MATCH(A15,Roster!$A:$A,0)),1,IF(ISNA(MATCH(A15,A$1:A14,0)),0,1)),0) -> 0 | D15: =IF(C15>0,IF(ISNA(MATCH(C15,Roster!$A:$A,0)),1,IF(ISNA(MATCH(C15,C$1:C14,0)),0,1)),0) -> 0 | F15: =IF(E15>0,IF(ISNA(MATCH(E15,Roster!$A:$A,0)),1,IF(ISNA(MATCH(E15,E$1:E14,0)),0,1)),0) -> 0 | H15: =IF(G15>0,IF(ISNA(MATCH(G15,Roster!$A:$A,0)),1,IF(ISNA(MATCH(G15,G$1:G14,0)),0,1)),0) -> 0 | J15: =IF(I15>0,IF(ISNA(MATCH(I15,Roster!$A:$A,0)),1,IF(ISNA(MATCH(I15,I$1:I14,0)),0,1)),0) -> 0 | L15: =IF(K15>0,IF(ISNA(MATCH(K15,Roster!$A:$A,0)),1,IF(ISNA(MATCH(K15,K$1:K14,0)),0,1)),0) -> 0 | N15: =IF(M15>0,IF(ISNA(MATCH(M15,Roster!$A:$A,0)),1,IF(ISNA(MATCH(M15,M$1:M14,0)),0,1)),0) -> 0 | P15: =IF(O15>0,IF(ISNA(MATCH(O15,Roster!$A:$A,0)),1,IF(ISNA(MATCH(O15,O$1:O14,0)),0,1)),0) -> 0 | R15: =IF(Q15>0,IF(ISNA(MATCH(Q15,Roster!$A:$A,0)),1,IF(ISNA(MATCH(Q15,Q$1:Q14,0)),0,1)),0) -> 0 | T15: =IF(S15>0,IF(ISNA(MATCH(S15,Roster!$A:$A,0)),1,IF(ISNA(MATCH(S15,S$1:S14,0)),0,1)),0) -> 0 | V15: =IF(U15>0,IF(ISNA(MATCH(U15,Roster!$A:$A,0)),1,IF(ISNA(MATCH(U15,U$1:U14,0)),0,1)),0) -> 0 | X15: =IF(W15>0,IF(ISNA(MATCH(W15,Roster!$A:$A,0)),1,IF(ISNA(MATCH(W15,W$1:W14,0)),0,1)),0) -> 0 | Z15: =IF(Y15>0,IF(ISNA(MATCH(Y15,Roster!$A:$A,0)),1,IF(ISNA(MATCH(Y15,Y$1:Y14,0)),0,1)),0) -> 0 | AB15: =IF(AA15>0,IF(ISNA(MATCH(AA15,Roster!$A:$A,0)),1,IF(ISNA(MATCH(AA15,AA$1:AA14,0)),0,1)),0) -> 0 | AD15: =IF(AC15>0,IF(ISNA(MATCH(AC15,Roster!$A:$A,0)),1,IF(ISNA(MATCH(AC15,AC$1:AC14,0)),0,1)),0) -> 0
B16: =IF(A16>0,IF(ISNA(MATCH(A16,Roster!$A:$A,0)),1,IF(ISNA(MATCH(A16,A$1:A15,0)),0,1)),0) -> 0 | D16: =IF(C16>0,IF(ISNA(MATCH(C16,Roster!$A:$A,0)),1,IF(ISNA(MATCH(C16,C$1:C15,0)),0,1)),0) -> 0 | F16: =IF(E16>0,IF(ISNA(MATCH(E16,Roster!$A:$A,0)),1,IF(ISNA(MATCH(E16,E$1:E15,0)),0,1)),0) -> 0 | H16: =IF(G16>0,IF(ISNA(MATCH(G16,Roster!$A:$A,0)),1,IF(ISNA(MATCH(G16,G$1:G15,0)),0,1)),0) -> 0 | J16: =IF(I16>0,IF(ISNA(MATCH(I16,Roster!$A:$A,0)),1,IF(ISNA(MATCH(I16,I$1:I15,0)),0,1)),0) -> 0 | L16: =IF(K16>0,IF(ISNA(MATCH(K16,Roster!$A:$A,0)),1,IF(ISNA(MATCH(K16,K$1:K15,0)),0,1)),0) -> 0 | N16: =IF(M16>0,IF(ISNA(MATCH(M16,Roster!$A:$A,0)),1,IF(ISNA(MATCH(M16,M$1:M15,0)),0,1)),0) -> 0 | P16: =IF(O16>0,IF(ISNA(MATCH(O16,Roster!$A:$A,0)),1,IF(ISNA(MATCH(O16,O$1:O15,0)),0,1)),0) -> 0 | R16: =IF(Q16>0,IF(ISNA(MATCH(Q16,Roster!$A:$A,0)),1,IF(ISNA(MATCH(Q16,Q$1:Q15,0)),0,1)),0) -> 0 | T16: =IF(S16>0,IF(ISNA(MATCH(S16,Roster!$A:$A,0)),1,IF(ISNA(MATCH(S16,S$1:S15,0)),0,1)),0) -> 0 | V16: =IF(U16>0,IF(ISNA(MATCH(U16,Roster!$A:$A,0)),1,IF(ISNA(MATCH(U16,U$1:U15,0)),0,1)),0) -> 0 | X16: =IF(W16>0,IF(ISNA(MATCH(W16,Roster!$A:$A,0)),1,IF(ISNA(MATCH(W16,W$1:W15,0)),0,1)),0) -> 0 | Z16: =IF(Y16>0,IF(ISNA(MATCH(Y16,Roster!$A:$A,0)),1,IF(ISNA(MATCH(Y16,Y$1:Y15,0)),0,1)),0) -> 0 | AB16: =IF(AA16>0,IF(ISNA(MATCH(AA16,Roster!$A:$A,0)),1,IF(ISNA(MATCH(AA16,AA$1:AA15,0)),0,1)),0) -> 0 | AD16: =IF(AC16>0,IF(ISNA(MATCH(AC16,Roster!$A:$A,0)),1,IF(ISNA(MATCH(AC16,AC$1:AC15,0)),0,1)),0) -> 0
B17: =IF(A17>0,IF(ISNA(MATCH(A17,Roster!$A:$A,0)),1,IF(ISNA(MATCH(A17,A$1:A16,0)),0,1)),0) -> 0 | D17: =IF(C17>0,IF(ISNA(MATCH(C17,Roster!$A:$A,0)),1,IF(ISNA(MATCH(C17,C$1:C16,0)),0,1)),0) -> 0 | F17: =IF(E17>0,IF(ISNA(MATCH(E17,Roster!$A:$A,0)),1,IF(ISNA(MATCH(E17,E$1:E16,0)),0,1)),0) -> 0 | H17: =IF(G17>0,IF(ISNA(MATCH(G17,Roster!$A:$A,0)),1,IF(ISNA(MATCH(G17,G$1:G16,0)),0,1)),0) -> 0 | J17: =IF(I17>0,IF(ISNA(MATCH(I17,Roster!$A:$A,0)),1,IF(ISNA(MATCH(I17,I$1:I16,0)),0,1)),0) -> 0 | L17: =IF(K17>0,IF(ISNA(MATCH(K17,Roster!$A:$A,0)),1,IF(ISNA(MATCH(K17,K$1:K16,0)),0,1)),0) -> 0 | N17: =IF(M17>0,IF(ISNA(MATCH(M17,Roster!$A:$A,0)),1,IF(ISNA(MATCH(M17,M$1:M16,0)),0,1)),0) -> 0 | P17: =IF(O17>0,IF(ISNA(MATCH(O17,Roster!$A:$A,0)),1,IF(ISNA(MATCH(O17,O$1:O16,0)),0,1)),0) -> 0 | R17: =IF(Q17>0,IF(ISNA(MATCH(Q17,Roster!$A:$A,0)),1,IF(ISNA(MATCH(Q17,Q$1:Q16,0)),0,1)),0) -> 0 | T17: =IF(S17>0,IF(ISNA(MATCH(S17,Roster!$A:$A,0)),1,IF(ISNA(MATCH(S17,S$1:S16,0)),0,1)),0) -> 0 | V17: =IF(U17>0,IF(ISNA(MATCH(U17,Roster!$A:$A,0)),1,IF(ISNA(MATCH(U17,U$1:U16,0)),0,1)),0) -> 0 | X17: =IF(W17>0,IF(ISNA(MATCH(W17,Roster!$A:$A,0)),1,IF(ISNA(MATCH(W17,W$1:W16,0)),0,1)),0) -> 0 | Z17: =IF(Y17>0,IF(ISNA(MATCH(Y17,Roster!$A:$A,0)),1,IF(ISNA(MATCH(Y17,Y$1:Y16,0)),0,1)),0) -> 0 | AB17: =IF(AA17>0,IF(ISNA(MATCH(AA17,Roster!$A:$A,0)),1,IF(ISNA(MATCH(AA17,AA$1:AA16,0)),0,1)),0) -> 0 | AD17: =IF(AC17>0,IF(ISNA(MATCH(AC17,Roster!$A:$A,0)),1,IF(ISNA(MATCH(AC17,AC$1:AC16,0)),0,1)),0) -> 0
B18: =IF(A18>0,IF(ISNA(MATCH(A18,Roster!$A:$A,0)),1,IF(ISNA(MATCH(A18,A$1:A17,0)),0,1)),0) -> 0 | D18: =IF(C18>0,IF(ISNA(MATCH(C18,Roster!$A:$A,0)),1,IF(ISNA(MATCH(C18,C$1:C17,0)),0,1)),0) -> 0 | F18: =IF(E18>0,IF(ISNA(MATCH(E18,Roster!$A:$A,0)),1,IF(ISNA(MATCH(E18,E$1:E17,0)),0,1)),0) -> 0 | H18: =IF(G18>0,IF(ISNA(MATCH(G18,Roster!$A:$A,0)),1,IF(ISNA(MATCH(G18,G$1:G17,0)),0,1)),0) -> 0 | J18: =IF(I18>0,IF(ISNA(MATCH(I18,Roster!$A:$A,0)),1,IF(ISNA(MATCH(I18,I$1:I17,0)),0,1)),0) -> 0 | L18: =IF(K18>0,IF(ISNA(MATCH(K18,Roster!$A:$A,0)),1,IF(ISNA(MATCH(K18,K$1:K17,0)),0,1)),0) -> 0 | N18: =IF(M18>0,IF(ISNA(MATCH(M18,Roster!$A:$A,0)),1,IF(ISNA(MATCH(M18,M$1:M17,0)),0,1)),0) -> 0 | P18: =IF(O18>0,IF(ISNA(MATCH(O18,Roster!$A:$A,0)),1,IF(ISNA(MATCH(O18,O$1:O17,0)),0,1)),0) -> 0 | R18: =IF(Q18>0,IF(ISNA(MATCH(Q18,Roster!$A:$A,0)),1,IF(ISNA(MATCH(Q18,Q$1:Q17,0)),0,1)),0) -> 0 | T18: =IF(S18>0,IF(ISNA(MATCH(S18,Roster!$A:$A,0)),1,IF(ISNA(MATCH(S18,S$1:S17,0)),0,1)),0) -> 0 | V18: =IF(U18>0,IF(ISNA(MATCH(U18,Roster!$A:$A,0)),1,IF(ISNA(MATCH(U18,U$1:U17,0)),0,1)),0) -> 0 | X18: =IF(W18>0,IF(ISNA(MATCH(W18,Roster!$A:$A,0)),1,IF(ISNA(MATCH(W18,W$1:W17,0)),0,1)),0) -> 0 | Z18: =IF(Y18>0,IF(ISNA(MATCH(Y18,Roster!$A:$A,0)),1,IF(ISNA(MATCH(Y18,Y$1:Y17,0)),0,1)),0) -> 0 | AB18: =IF(AA18>0,IF(ISNA(MATCH(AA18,Roster!$A:$A,0)),1,IF(ISNA(MATCH(AA18,AA$1:AA17,0)),0,1)),0) -> 0 | AD18: =IF(AC18>0,IF(ISNA(MATCH(AC18,Roster!$A:$A,0)),1,IF(ISNA(MATCH(AC18,AC$1:AC17,0)),0,1)),0) -> 0
B19: =IF(A19>0,IF(ISNA(MATCH(A19,Roster!$A:$A,0)),1,IF(ISNA(MATCH(A19,A$1:A18,0)),0,1)),0) -> 0 | D19: =IF(C19>0,IF(ISNA(MATCH(C19,Roster!$A:$A,0)),1,IF(ISNA(MATCH(C19,C$1:C18,0)),0,1)),0) -> 0 | F19: =IF(E19>0,IF(ISNA(MATCH(E19,Roster!$A:$A,0)),1,IF(ISNA(MATCH(E19,E$1:E18,0)),0,1)),0) -> 0 | H19: =IF(G19>0,IF(ISNA(MATCH(G19,Roster!$A:$A,0)),1,IF(ISNA(MATCH(G19,G$1:G18,0)),0,1)),0) -> 0 | J19: =IF(I19>0,IF(ISNA(MATCH(I19,Roster!$A:$A,0)),1,IF(ISNA(MATCH(I19,I$1:I18,0)),0,1)),0) -> 0 | L19: =IF(K19>0,IF(ISNA(MATCH(K19,Roster!$A:$A,0)),1,IF(ISNA(MATCH(K19,K$1:K18,0)),0,1)),0) -> 0 | N19: =IF(M19>0,IF(ISNA(MATCH(M19,Roster!$A:$A,0)),1,IF(ISNA(MATCH(M19,M$1:M18,0)),0,1)),0) -> 0 | P19: =IF(O19>0,IF(ISNA(MATCH(O19,Roster!$A:$A,0)),1,IF(ISNA(MATCH(O19,O$1:O18,0)),0,1)),0) -> 0 | R19: =IF(Q19>0,IF(ISNA(MATCH(Q19,Roster!$A:$A,0)),1,IF(ISNA(MATCH(Q19,Q$1:Q18,0)),0,1)),0) -> 0 | T19: =IF(S19>0,IF(ISNA(MATCH(S19,Roster!$A:$A,0)),1,IF(ISNA(MATCH(S19,S$1:S18,0)),0,1)),0) -> 0 | V19: =IF(U19>0,IF(ISNA(MATCH(U19,Roster!$A:$A,0)),1,IF(ISNA(MATCH(U19,U$1:U18,0)),0,1)),0) -> 0 | X19: =IF(W19>0,IF(ISNA(MATCH(W19,Roster!$A:$A,0)),1,IF(ISNA(MATCH(W19,W$1:W18,0)),0,1)),0) -> 0 | Z19: =IF(Y19>0,IF(ISNA(MATCH(Y19,Roster!$A:$A,0)),1,IF(ISNA(MATCH(Y19,Y$1:Y18,0)),0,1)),0) -> 0 | AB19: =IF(AA19>0,IF(ISNA(MATCH(AA19,Roster!$A:$A,0)),1,IF(ISNA(MATCH(AA19,AA$1:AA18,0)),0,1)),0) -> 0 | AD19: =IF(AC19>0,IF(ISNA(MATCH(AC19,Roster!$A:$A,0)),1,IF(ISNA(MATCH(AC19,AC$1:AC18,0)),0,1)),0) -> 0
B20: =IF(A20>0,IF(ISNA(MATCH(A20,Roster!$A:$A,0)),1,IF(ISNA(MATCH(A20,A$1:A19,0)),0,1)),0) -> 0 | D20: =IF(C20>0,IF(ISNA(MATCH(C20,Roster!$A:$A,0)),1,IF(ISNA(MATCH(C20,C$1:C19,0)),0,1)),0) -> 0 | F20: =IF(E20>0,IF(ISNA(MATCH(E20,Roster!$A:$A,0)),1,IF(ISNA(MATCH(E20,E$1:E19,0)),0,1)),0) -> 0 | H20: =IF(G20>0,IF(ISNA(MATCH(G20,Roster!$A:$A,0)),1,IF(ISNA(MATCH(G20,G$1:G19,0)),0,1)),0) -> 0 | J20: =IF(I20>0,IF(ISNA(MATCH(I20,Roster!$A:$A,0)),1,IF(ISNA(MATCH(I20,I$1:I19,0)),0,1)),0) -> 0 | L20: =IF(K20>0,IF(ISNA(MATCH(K20,Roster!$A:$A,0)),1,IF(ISNA(MATCH(K20,K$1:K19,0)),0,1)),0) -> 0 | N20: =IF(M20>0,IF(ISNA(MATCH(M20,Roster!$A:$A,0)),1,IF(ISNA(MATCH(M20,M$1:M19,0)),0,1)),0) -> 0 | P20: =IF(O20>0,IF(ISNA(MATCH(O20,Roster!$A:$A,0)),1,IF(ISNA(MATCH(O20,O$1:O19,0)),0,1)),0) -> 0 | R20: =IF(Q20>0,IF(ISNA(MATCH(Q20,Roster!$A:$A,0)),1,IF(ISNA(MATCH(Q20,Q$1:Q19,0)),0,1)),0) -> 0 | T20: =IF(S20>0,IF(ISNA(MATCH(S20,Roster!$A:$A,0)),1,IF(ISNA(MATCH(S20,S$1:S19,0)),0,1)),0) -> 0 | V20: =IF(U20>0,IF(ISNA(MATCH(U20,Roster!$A:$A,0)),1,IF(ISNA(MATCH(U20,U$1:U19,0)),0,1)),0) -> 0 | X20: =IF(W20>0,IF(ISNA(MATCH(W20,Roster!$A:$A,0)),1,IF(ISNA(MATCH(W20,W$1:W19,0)),0,1)),0) -> 0 | Z20: =IF(Y20>0,IF(ISNA(MATCH(Y20,Roster!$A:$A,0)),1,IF(ISNA(MATCH(Y20,Y$1:Y19,0)),0,1)),0) -> 0 | AB20: =IF(AA20>0,IF(ISNA(MATCH(AA20,Roster!$A:$A,0)),1,IF(ISNA(MATCH(AA20,AA$1:AA19,0)),0,1)),0) -> 0 | AD20: =IF(AC20>0,IF(ISNA(MATCH(AC20,Roster!$A:$A,0)),1,IF(ISNA(MATCH(AC20,AC$1:AC19,0)),0,1)),0) -> 0
B21: =IF(A21>0,IF(ISNA(MATCH(A21,Roster!$A:$A,0)),1,IF(ISNA(MATCH(A21,A$1:A20,0)),0,1)),0) -> 0 | D21: =IF(C21>0,IF(ISNA(MATCH(C21,Roster!$A:$A,0)),1,IF(ISNA(MATCH(C21,C$1:C20,0)),0,1)),0) -> 0 | F21: =IF(E21>0,IF(ISNA(MATCH(E21,Roster!$A:$A,0)),1,IF(ISNA(MATCH(E21,E$1:E20,0)),0,1)),0) -> 0 | H21: =IF(G21>0,IF(ISNA(MATCH(G21,Roster!$A:$A,0)),1,IF(ISNA(MATCH(G21,G$1:G20,0)),0,1)),0) -> 0 | J21: =IF(I21>0,IF(ISNA(MATCH(I21,Roster!$A:$A,0)),1,IF(ISNA(MATCH(I21,I$1:I20,0)),0,1)),0) -> 0 | L21: =IF(K21>0,IF(ISNA(MATCH(K21,Roster!$A:$A,0)),1,IF(ISNA(MATCH(K21,K$1:K20,0)),0,1)),0) -> 0 | N21: =IF(M21>0,IF(ISNA(MATCH(M21,Roster!$A:$A,0)),1,IF(ISNA(MATCH(M21,M$1:M20,0)),0,1)),0) -> 0 | P21: =IF(O21>0,IF(ISNA(MATCH(O21,Roster!$A:$A,0)),1,IF(ISNA(MATCH(O21,O$1:O20,0)),0,1)),0) -> 0 | R21: =IF(Q21>0,IF(ISNA(MATCH(Q21,Roster!$A:$A,0)),1,IF(ISNA(MATCH(Q21,Q$1:Q20,0)),0,1)),0) -> 0 | T21: =IF(S21>0,IF(ISNA(MATCH(S21,Roster!$A:$A,0)),1,IF(ISNA(MATCH(S21,S$1:S20,0)),0,1)),0) -> 0 | V21: =IF(U21>0,IF(ISNA(MATCH(U21,Roster!$A:$A,0)),1,IF(ISNA(MATCH(U21,U$1:U20,0)),0,1)),0) -> 0 | X21: =IF(W21>0,IF(ISNA(MATCH(W21,Roster!$A:$A,0)),1,IF(ISNA(MATCH(W21,W$1:W20,0)),0,1)),0) -> 0 | Z21: =IF(Y21>0,IF(ISNA(MATCH(Y21,Roster!$A:$A,0)),1,IF(ISNA(MATCH(Y21,Y$1:Y20,0)),0,1)),0) -> 0 | AB21: =IF(AA21>0,IF(ISNA(MATCH(AA21,Roster!$A:$A,0)),1,IF(ISNA(MATCH(AA21,AA$1:AA20,0)),0,1)),0) -> 0 | AD21: =IF(AC21>0,IF(ISNA(MATCH(AC21,Roster!$A:$A,0)),1,IF(ISNA(MATCH(AC21,AC$1:AC20,0)),0,1)),0) -> 0
B22: =IF(A22>0,IF(ISNA(MATCH(A22,Roster!$A:$A,0)),1,IF(ISNA(MATCH(A22,A$1:A21,0)),0,1)),0) -> 0 | D22: =IF(C22>0,IF(ISNA(MATCH(C22,Roster!$A:$A,0)),1,IF(ISNA(MATCH(C22,C$1:C21,0)),0,1)),0) -> 0 | F22: =IF(E22>0,IF(ISNA(MATCH(E22,Roster!$A:$A,0)),1,IF(ISNA(MATCH(E22,E$1:E21,0)),0,1)),0) -> 0 | H22: =IF(G22>0,IF(ISNA(MATCH(G22,Roster!$A:$A,0)),1,IF(ISNA(MATCH(G22,G$1:G21,0)),0,1)),0) -> 0 | J22: =IF(I22>0,IF(ISNA(MATCH(I22,Roster!$A:$A,0)),1,IF(ISNA(MATCH(I22,I$1:I21,0)),0,1)),0) -> 0 | L22: =IF(K22>0,IF(ISNA(MATCH(K22,Roster!$A:$A,0)),1,IF(ISNA(MATCH(K22,K$1:K21,0)),0,1)),0) -> 0 | N22: =IF(M22>0,IF(ISNA(MATCH(M22,Roster!$A:$A,0)),1,IF(ISNA(MATCH(M22,M$1:M21,0)),0,1)),0) -> 0 | P22: =IF(O22>0,IF(ISNA(MATCH(O22,Roster!$A:$A,0)),1,IF(ISNA(MATCH(O22,O$1:O21,0)),0,1)),0) -> 0 | R22: =IF(Q22>0,IF(ISNA(MATCH(Q22,Roster!$A:$A,0)),1,IF(ISNA(MATCH(Q22,Q$1:Q21,0)),0,1)),0) -> 0 | T22: =IF(S22>0,IF(ISNA(MATCH(S22,Roster!$A:$A,0)),1,IF(ISNA(MATCH(S22,S$1:S21,0)),0,1)),0) -> 0 | V22: =IF(U22>0,IF(ISNA(MATCH(U22,Roster!$A:$A,0)),1,IF(ISNA(MATCH(U22,U$1:U21,0)),0,1)),0) -> 0 | X22: =IF(W22>0,IF(ISNA(MATCH(W22,Roster!$A:$A,0)),1,IF(ISNA(MATCH(W22,W$1:W21,0)),0,1)),0) -> 0 | Z22: =IF(Y22>0,IF(ISNA(MATCH(Y22,Roster!$A:$A,0)),1,IF(ISNA(MATCH(Y22,Y$1:Y21,0)),0,1)),0) -> 0 | AB22: =IF(AA22>0,IF(ISNA(MATCH(AA22,Roster!$A:$A,0)),1,IF(ISNA(MATCH(AA22,AA$1:AA21,0)),0,1)),0) -> 0 | AD22: =IF(AC22>0,IF(ISNA(MATCH(AC22,Roster!$A:$A,0)),1,IF(ISNA(MATCH(AC22,AC$1:AC21,0)),0,1)),0) -> 0
B23: =IF(A23>0,IF(ISNA(MATCH(A23,Roster!$A:$A,0)),1,IF(ISNA(MATCH(A23,A$1:A22,0)),0,1)),0) -> 0 | D23: =IF(C23>0,IF(ISNA(MATCH(C23,Roster!$A:$A,0)),1,IF(ISNA(MATCH(C23,C$1:C22,0)),0,1)),0) -> 0 | F23: =IF(E23>0,IF(ISNA(MATCH(E23,Roster!$A:$A,0)),1,IF(ISNA(MATCH(E23,E$1:E22,0)),0,1)),0) -> 0 | H23: =IF(G23>0,IF(ISNA(MATCH(G23,Roster!$A:$A,0)),1,IF(ISNA(MATCH(G23,G$1:G22,0)),0,1)),0) -> 0 | J23: =IF(I23>0,IF(ISNA(MATCH(I23,Roster!$A:$A,0)),1,IF(ISNA(MATCH(I23,I$1:I22,0)),0,1)),0) -> 0 | L23: =IF(K23>0,IF(ISNA(MATCH(K23,Roster!$A:$A,0)),1,IF(ISNA(MATCH(K23,K$1:K22,0)),0,1)),0) -> 0 | N23: =IF(M23>0,IF(ISNA(MATCH(M23,Roster!$A:$A,0)),1,IF(ISNA(MATCH(M23,M$1:M22,0)),0,1)),0) -> 0 | P23: =IF(O23>0,IF(ISNA(MATCH(O23,Roster!$A:$A,0)),1,IF(ISNA(MATCH(O23,O$1:O22,0)),0,1)),0) -> 0 | R23: =IF(Q23>0,IF(ISNA(MATCH(Q23,Roster!$A:$A,0)),1,IF(ISNA(MATCH(Q23,Q$1:Q22,0)),0,1)),0) -> 0 | T23: =IF(S23>0,IF(ISNA(MATCH(S23,Roster!$A:$A,0)),1,IF(ISNA(MATCH(S23,S$1:S22,0)),0,1)),0) -> 0 | V23: =IF(U23>0,IF(ISNA(MATCH(U23,Roster!$A:$A,0)),1,IF(ISNA(MATCH(U23,U$1:U22,0)),0,1)),0) -> 0 | X23: =IF(W23>0,IF(ISNA(MATCH(W23,Roster!$A:$A,0)),1,IF(ISNA(MATCH(W23,W$1:W22,0)),0,1)),0) -> 0 | Z23: =IF(Y23>0,IF(ISNA(MATCH(Y23,Roster!$A:$A,0)),1,IF(ISNA(MATCH(Y23,Y$1:Y22,0)),0,1)),0) -> 0 | AB23: =IF(AA23>0,IF(ISNA(MATCH(AA23,Roster!$A:$A,0)),1,IF(ISNA(MATCH(AA23,AA$1:AA22,0)),0,1)),0) -> 0 | AD23: =IF(AC23>0,IF(ISNA(MATCH(AC23,Roster!$A:$A,0)),1,IF(ISNA(MATCH(AC23,AC$1:AC22,0)),0,1)),0) -> 0
B24: =IF(A24>0,IF(ISNA(MATCH(A24,Roster!$A:$A,0)),1,IF(ISNA(MATCH(A24,A$1:A23,0)),0,1)),0) -> 0 | D24: =IF(C24>0,IF(ISNA(MATCH(C24,Roster!$A:$A,0)),1,IF(ISNA(MATCH(C24,C$1:C23,0)),0,1)),0) -> 0 | F24: =IF(E24>0,IF(ISNA(MATCH(E24,Roster!$A:$A,0)),1,IF(ISNA(MATCH(E24,E$1:E23,0)),0,1)),0) -> 0 | H24: =IF(G24>0,IF(ISNA(MATCH(G24,Roster!$A:$A,0)),1,IF(ISNA(MATCH(G24,G$1:G23,0)),0,1)),0) -> 0 | J24: =IF(I24>0,IF(ISNA(MATCH(I24,Roster!$A:$A,0)),1,IF(ISNA(MATCH(I24,I$1:I23,0)),0,1)),0) -> 0 | L24: =IF(K24>0,IF(ISNA(MATCH(K24,Roster!$A:$A,0)),1,IF(ISNA(MATCH(K24,K$1:K23,0)),0,1)),0) -> 0 | N24: =IF(M24>0,IF(ISNA(MATCH(M24,Roster!$A:$A,0)),1,IF(ISNA(MATCH(M24,M$1:M23,0)),0,1)),0) -> 0 | P24: =IF(O24>0,IF(ISNA(MATCH(O24,Roster!$A:$A,0)),1,IF(ISNA(MATCH(O24,O$1:O23,0)),0,1)),0) -> 0 | R24: =IF(Q24>0,IF(ISNA(MATCH(Q24,Roster!$A:$A,0)),1,IF(ISNA(MATCH(Q24,Q$1:Q23,0)),0,1)),0) -> 0 | T24: =IF(S24>0,IF(ISNA(MATCH(S24,Roster!$A:$A,0)),1,IF(ISNA(MATCH(S24,S$1:S23,0)),0,1)),0) -> 0 | V24: =IF(U24>0,IF(ISNA(MATCH(U24,Roster!$A:$A,0)),1,IF(ISNA(MATCH(U24,U$1:U23,0)),0,1)),0) -> 0 | X24: =IF(W24>0,IF(ISNA(MATCH(W24,Roster!$A:$A,0)),1,IF(ISNA(MATCH(W24,W$1:W23,0)),0,1)),0) -> 0 | Z24: =IF(Y24>0,IF(ISNA(MATCH(Y24,Roster!$A:$A,0)),1,IF(ISNA(MATCH(Y24,Y$1:Y23,0)),0,1)),0) -> 0 | AB24: =IF(AA24>0,IF(ISNA(MATCH(AA24,Roster!$A:$A,0)),1,IF(ISNA(MATCH(AA24,AA$1:AA23,0)),0,1)),0) -> 0 | AD24: =IF(AC24>0,IF(ISNA(MATCH(AC24,Roster!$A:$A,0)),1,IF(ISNA(MATCH(AC24,AC$1:AC23,0)),0,1)),0) -> 0
B25: =IF(A25>0,IF(ISNA(MATCH(A25,Roster!$A:$A,0)),1,IF(ISNA(MATCH(A25,A$1:A24,0)),0,1)),0) -> 0 | D25: =IF(C25>0,IF(ISNA(MATCH(C25,Roster!$A:$A,0)),1,IF(ISNA(MATCH(C25,C$1:C24,0)),0,1)),0) -> 0 | F25: =IF(E25>0,IF(ISNA(MATCH(E25,Roster!$A:$A,0)),1,IF(ISNA(MATCH(E25,E$1:E24,0)),0,1)),0) -> 0 | H25: =IF(G25>0,IF(ISNA(MATCH(G25,Roster!$A:$A,0)),1,IF(ISNA(MATCH(G25,G$1:G24,0)),0,1)),0) -> 0 | J25: =IF(I25>0,IF(ISNA(MATCH(I25,Roster!$A:$A,0)),1,IF(ISNA(MATCH(I25,I$1:I24,0)),0,1)),0) -> 0 | L25: =IF(K25>0,IF(ISNA(MATCH(K25,Roster!$A:$A,0)),1,IF(ISNA(MATCH(K25,K$1:K24,0)),0,1)),0) -> 0 | N25: =IF(M25>0,IF(ISNA(MATCH(M25,Roster!$A:$A,0)),1,IF(ISNA(MATCH(M25,M$1:M24,0)),0,1)),0) -> 0 | P25: =IF(O25>0,IF(ISNA(MATCH(O25,Roster!$A:$A,0)),1,IF(ISNA(MATCH(O25,O$1:O24,0)),0,1)),0) -> 0 | R25: =IF(Q25>0,IF(ISNA(MATCH(Q25,Roster!$A:$A,0)),1,IF(ISNA(MATCH(Q25,Q$1:Q24,0)),0,1)),0) -> 0 | T25: =IF(S25>0,IF(ISNA(MATCH(S25,Roster!$A:$A,0)),1,IF(ISNA(MATCH(S25,S$1:S24,0)),0,1)),0) -> 0 | V25: =IF(U25>0,IF(ISNA(MATCH(U25,Roster!$A:$A,0)),1,IF(ISNA(MATCH(U25,U$1:U24,0)),0,1)),0) -> 0 | X25: =IF(W25>0,IF(ISNA(MATCH(W25,Roster!$A:$A,0)),1,IF(ISNA(MATCH(W25,W$1:W24,0)),0,1)),0) -> 0 | Z25: =IF(Y25>0,IF(ISNA(MATCH(Y25,Roster!$A:$A,0)),1,IF(ISNA(MATCH(Y25,Y$1:Y24,0)),0,1)),0) -> 0 | AB25: =IF(AA25>0,IF(ISNA(MATCH(AA25,Roster!$A:$A,0)),1,IF(ISNA(MATCH(AA25,AA$1:AA24,0)),0,1)),0) -> 0 | AD25: =IF(AC25>0,IF(ISNA(MATCH(AC25,Roster!$A:$A,0)),1,IF(ISNA(MATCH(AC25,AC$1:AC24,0)),0,1)),0) -> 0
B26: =IF(A26>0,IF(ISNA(MATCH(A26,Roster!$A:$A,0)),1,IF(ISNA(MATCH(A26,A$1:A25,0)),0,1)),0) -> 0 | D26: =IF(C26>0,IF(ISNA(MATCH(C26,Roster!$A:$A,0)),1,IF(ISNA(MATCH(C26,C$1:C25,0)),0,1)),0) -> 0 | F26: =IF(E26>0,IF(ISNA(MATCH(E26,Roster!$A:$A,0)),1,IF(ISNA(MATCH(E26,E$1:E25,0)),0,1)),0) -> 0 | H26: =IF(G26>0,IF(ISNA(MATCH(G26,Roster!$A:$A,0)),1,IF(ISNA(MATCH(G26,G$1:G25,0)),0,1)),0) -> 0 | J26: =IF(I26>0,IF(ISNA(MATCH(I26,Roster!$A:$A,0)),1,IF(ISNA(MATCH(I26,I$1:I25,0)),0,1)),0) -> 0 | L26: =IF(K26>0,IF(ISNA(MATCH(K26,Roster!$A:$A,0)),1,IF(ISNA(MATCH(K26,K$1:K25,0)),0,1)),0) -> 0 | N26: =IF(M26>0,IF(ISNA(MATCH(M26,Roster!$A:$A,0)),1,IF(ISNA(MATCH(M26,M$1:M25,0)),0,1)),0) -> 0 | P26: =IF(O26>0,IF(ISNA(MATCH(O26,Roster!$A:$A,0)),1,IF(ISNA(MATCH(O26,O$1:O25,0)),0,1)),0) -> 0 | R26: =IF(Q26>0,IF(ISNA(MATCH(Q26,Roster!$A:$A,0)),1,IF(ISNA(MATCH(Q26,Q$1:Q25,0)),0,1)),0) -> 0 | T26: =IF(S26>0,IF(ISNA(MATCH(S26,Roster!$A:$A,0)),1,IF(ISNA(MATCH(S26,S$1:S25,0)),0,1)),0) -> 0 | V26: =IF(U26>0,IF(ISNA(MATCH(U26,Roster!$A:$A,0)),1,IF(ISNA(MATCH(U26,U$1:U25,0)),0,1)),0) -> 0 | X26: =IF(W26>0,IF(ISNA(MATCH(W26,Roster!$A:$A,0)),1,IF(ISNA(MATCH(W26,W$1:W25,0)),0,1)),0) -> 0 | Z26: =IF(Y26>0,IF(ISNA(MATCH(Y26,Roster!$A:$A,0)),1,IF(ISNA(MATCH(Y26,Y$1:Y25,0)),0,1)),0) -> 0 | AB26: =IF(AA26>0,IF(ISNA(MATCH(AA26,Roster!$A:$A,0)),1,IF(ISNA(MATCH(AA26,AA$1:AA25,0)),0,1)),0) -> 0 | AD26: =IF(AC26>0,IF(ISNA(MATCH(AC26,Roster!$A:$A,0)),1,IF(ISNA(MATCH(AC26,AC$1:AC25,0)),0,1)),0) -> 0
B27: =IF(A27>0,IF(ISNA(MATCH(A27,Roster!$A:$A,0)),1,IF(ISNA(MATCH(A27,A$1:A26,0)),0,1)),0) -> 0 | D27: =IF(C27>0,IF(ISNA(MATCH(C27,Roster!$A:$A,0)),1,IF(ISNA(MATCH(C27,C$1:C26,0)),0,1)),0) -> 0 | F27: =IF(E27>0,IF(ISNA(MATCH(E27,Roster!$A:$A,0)),1,IF(ISNA(MATCH(E27,E$1:E26,0)),0,1)),0) -> 0 | H27: =IF(G27>0,IF(ISNA(MATCH(G27,Roster!$A:$A,0)),1,IF(ISNA(MATCH(G27,G$1:G26,0)),0,1)),0) -> 0 | J27: =IF(I27>0,IF(ISNA(MATCH(I27,Roster!$A:$A,0)),1,IF(ISNA(MATCH(I27,I$1:I26,0)),0,1)),0) -> 0 | L27: =IF(K27>0,IF(ISNA(MATCH(K27,Roster!$A:$A,0)),1,IF(ISNA(MATCH(K27,K$1:K26,0)),0,1)),0) -> 0 | N27: =IF(M27>0,IF(ISNA(MATCH(M27,Roster!$A:$A,0)),1,IF(ISNA(MATCH(M27,M$1:M26,0)),0,1)),0) -> 0 | P27: =IF(O27>0,IF(ISNA(MATCH(O27,Roster!$A:$A,0)),1,IF(ISNA(MATCH(O27,O$1:O26,0)),0,1)),0) -> 0 | R27: =IF(Q27>0,IF(ISNA(MATCH(Q27,Roster!$A:$A,0)),1,IF(ISNA(MATCH(Q27,Q$1:Q26,0)),0,1)),0) -> 0 | T27: =IF(S27>0,IF(ISNA(MATCH(S27,Roster!$A:$A,0)),1,IF(ISNA(MATCH(S27,S$1:S26,0)),0,1)),0) -> 0 | V27: =IF(U27>0,IF(ISNA(MATCH(U27,Roster!$A:$A,0)),1,IF(ISNA(MATCH(U27,U$1:U26,0)),0,1)),0) -> 0 | X27: =IF(W27>0,IF(ISNA(MATCH(W27,Roster!$A:$A,0)),1,IF(ISNA(MATCH(W27,W$1:W26,0)),0,1)),0) -> 0 | Z27: =IF(Y27>0,IF(ISNA(MATCH(Y27,Roster!$A:$A,0)),1,IF(ISNA(MATCH(Y27,Y$1:Y26,0)),0,1)),0) -> 0 | AB27: =IF(AA27>0,IF(ISNA(MATCH(AA27,Roster!$A:$A,0)),1,IF(ISNA(MATCH(AA27,AA$1:AA26,0)),0,1)),0) -> 0 | AD27: =IF(AC27>0,IF(ISNA(MATCH(AC27,Roster!$A:$A,0)),1,IF(ISNA(MATCH(AC27,AC$1:AC26,0)),0,1)),0) -> 0
B28: =IF(A28>0,IF(ISNA(MATCH(A28,Roster!$A:$A,0)),1,IF(ISNA(MATCH(A28,A$1:A27,0)),0,1)),0) -> 0 | D28: =IF(C28>0,IF(ISNA(MATCH(C28,Roster!$A:$A,0)),1,IF(ISNA(MATCH(C28,C$1:C27,0)),0,1)),0) -> 0 | F28: =IF(E28>0,IF(ISNA(MATCH(E28,Roster!$A:$A,0)),1,IF(ISNA(MATCH(E28,E$1:E27,0)),0,1)),0) -> 0 | H28: =IF(G28>0,IF(ISNA(MATCH(G28,Roster!$A:$A,0)),1,IF(ISNA(MATCH(G28,G$1:G27,0)),0,1)),0) -> 0 | J28: =IF(I28>0,IF(ISNA(MATCH(I28,Roster!$A:$A,0)),1,IF(ISNA(MATCH(I28,I$1:I27,0)),0,1)),0) -> 0 | L28: =IF(K28>0,IF(ISNA(MATCH(K28,Roster!$A:$A,0)),1,IF(ISNA(MATCH(K28,K$1:K27,0)),0,1)),0) -> 0 | N28: =IF(M28>0,IF(ISNA(MATCH(M28,Roster!$A:$A,0)),1,IF(ISNA(MATCH(M28,M$1:M27,0)),0,1)),0) -> 0 | P28: =IF(O28>0,IF(ISNA(MATCH(O28,Roster!$A:$A,0)),1,IF(ISNA(MATCH(O28,O$1:O27,0)),0,1)),0) -> 0 | R28: =IF(Q28>0,IF(ISNA(MATCH(Q28,Roster!$A:$A,0)),1,IF(ISNA(MATCH(Q28,Q$1:Q27,0)),0,1)),0) -> 0 | T28: =IF(S28>0,IF(ISNA(MATCH(S28,Roster!$A:$A,0)),1,IF(ISNA(MATCH(S28,S$1:S27,0)),0,1)),0) -> 0 | V28: =IF(U28>0,IF(ISNA(MATCH(U28,Roster!$A:$A,0)),1,IF(ISNA(MATCH(U28,U$1:U27,0)),0,1)),0) -> 0 | X28: =IF(W28>0,IF(ISNA(MATCH(W28,Roster!$A:$A,0)),1,IF(ISNA(MATCH(W28,W$1:W27,0)),0,1)),0) -> 0 | Z28: =IF(Y28>0,IF(ISNA(MATCH(Y28,Roster!$A:$A,0)),1,IF(ISNA(MATCH(Y28,Y$1:Y27,0)),0,1)),0) -> 0 | AB28: =IF(AA28>0,IF(ISNA(MATCH(AA28,Roster!$A:$A,0)),1,IF(ISNA(MATCH(AA28,AA$1:AA27,0)),0,1)),0) -> 0 | AD28: =IF(AC28>0,IF(ISNA(MATCH(AC28,Roster!$A:$A,0)),1,IF(ISNA(MATCH(AC28,AC$1:AC27,0)),0,1)),0) -> 0
B29: =IF(A29>0,IF(ISNA(MATCH(A29,Roster!$A:$A,0)),1,IF(ISNA(MATCH(A29,A$1:A28,0)),0,1)),0) -> 0 | D29: =IF(C29>0,IF(ISNA(MATCH(C29,Roster!$A:$A,0)),1,IF(ISNA(MATCH(C29,C$1:C28,0)),0,1)),0) -> 0 | F29: =IF(E29>0,IF(ISNA(MATCH(E29,Roster!$A:$A,0)),1,IF(ISNA(MATCH(E29,E$1:E28,0)),0,1)),0) -> 0 | H29: =IF(G29>0,IF(ISNA(MATCH(G29,Roster!$A:$A,0)),1,IF(ISNA(MATCH(G29,G$1:G28,0)),0,1)),0) -> 0 | J29: =IF(I29>0,IF(ISNA(MATCH(I29,Roster!$A:$A,0)),1,IF(ISNA(MATCH(I29,I$1:I28,0)),0,1)),0) -> 0 | L29: =IF(K29>0,IF(ISNA(MATCH(K29,Roster!$A:$A,0)),1,IF(ISNA(MATCH(K29,K$1:K28,0)),0,1)),0) -> 0 | N29: =IF(M29>0,IF(ISNA(MATCH(M29,Roster!$A:$A,0)),1,IF(ISNA(MATCH(M29,M$1:M28,0)),0,1)),0) -> 0 | P29: =IF(O29>0,IF(ISNA(MATCH(O29,Roster!$A:$A,0)),1,IF(ISNA(MATCH(O29,O$1:O28,0)),0,1)),0) -> 0 | R29: =IF(Q29>0,IF(ISNA(MATCH(Q29,Roster!$A:$A,0)),1,IF(ISNA(MATCH(Q29,Q$1:Q28,0)),0,1)),0) -> 0 | T29: =IF(S29>0,IF(ISNA(MATCH(S29,Roster!$A:$A,0)),1,IF(ISNA(MATCH(S29,S$1:S28,0)),0,1)),0) -> 0 | V29: =IF(U29>0,IF(ISNA(MATCH(U29,Roster!$A:$A,0)),1,IF(ISNA(MATCH(U29,U$1:U28,0)),0,1)),0) -> 0 | X29: =IF(W29>0,IF(ISNA(MATCH(W29,Roster!$A:$A,0)),1,IF(ISNA(MATCH(W29,W$1:W28,0)),0,1)),0) -> 0 | Z29: =IF(Y29>0,IF(ISNA(MATCH(Y29,Roster!$A:$A,0)),1,IF(ISNA(MATCH(Y29,Y$1:Y28,0)),0,1)),0) -> 0 | AB29: =IF(AA29>0,IF(ISNA(MATCH(AA29,Roster!$A:$A,0)),1,IF(ISNA(MATCH(AA29,AA$1:AA28,0)),0,1)),0) -> 0 | AD29: =IF(AC29>0,IF(ISNA(MATCH(AC29,Roster!$A:$A,0)),1,IF(ISNA(MATCH(AC29,AC$1:AC28,0)),0,1)),0) -> 0
B30: =IF(A30>0,IF(ISNA(MATCH(A30,Roster!$A:$A,0)),1,IF(ISNA(MATCH(A30,A$1:A29,0)),0,1)),0) -> 0 | D30: =IF(C30>0,IF(ISNA(MATCH(C30,Roster!$A:$A,0)),1,IF(ISNA(MATCH(C30,C$1:C29,0)),0,1)),0) -> 0 | F30: =IF(E30>0,IF(ISNA(MATCH(E30,Roster!$A:$A,0)),1,IF(ISNA(MATCH(E30,E$1:E29,0)),0,1)),0) -> 0 | H30: =IF(G30>0,IF(ISNA(MATCH(G30,Roster!$A:$A,0)),1,IF(ISNA(MATCH(G30,G$1:G29,0)),0,1)),0) -> 0 | J30: =IF(I30>0,IF(ISNA(MATCH(I30,Roster!$A:$A,0)),1,IF(ISNA(MATCH(I30,I$1:I29,0)),0,1)),0) -> 0 | L30: =IF(K30>0,IF(ISNA(MATCH(K30,Roster!$A:$A,0)),1,IF(ISNA(MATCH(K30,K$1:K29,0)),0,1)),0) -> 0 | N30: =IF(M30>0,IF(ISNA(MATCH(M30,Roster!$A:$A,0)),1,IF(ISNA(MATCH(M30,M$1:M29,0)),0,1)),0) -> 0 | P30: =IF(O30>0,IF(ISNA(MATCH(O30,Roster!$A:$A,0)),1,IF(ISNA(MATCH(O30,O$1:O29,0)),0,1)),0) -> 0 | R30: =IF(Q30>0,IF(ISNA(MATCH(Q30,Roster!$A:$A,0)),1,IF(ISNA(MATCH(Q30,Q$1:Q29,0)),0,1)),0) -> 0 | T30: =IF(S30>0,IF(ISNA(MATCH(S30,Roster!$A:$A,0)),1,IF(ISNA(MATCH(S30,S$1:S29,0)),0,1)),0) -> 0 | V30: =IF(U30>0,IF(ISNA(MATCH(U30,Roster!$A:$A,0)),1,IF(ISNA(MATCH(U30,U$1:U29,0)),0,1)),0) -> 0 | X30: =IF(W30>0,IF(ISNA(MATCH(W30,Roster!$A:$A,0)),1,IF(ISNA(MATCH(W30,W$1:W29,0)),0,1)),0) -> 0 | Z30: =IF(Y30>0,IF(ISNA(MATCH(Y30,Roster!$A:$A,0)),1,IF(ISNA(MATCH(Y30,Y$1:Y29,0)),0,1)),0) -> 0 | AB30: =IF(AA30>0,IF(ISNA(MATCH(AA30,Roster!$A:$A,0)),1,IF(ISNA(MATCH(AA30,AA$1:AA29,0)),0,1)),0) -> 0 | AD30: =IF(AC30>0,IF(ISNA(MATCH(AC30,Roster!$A:$A,0)),1,IF(ISNA(MATCH(AC30,AC$1:AC29,0)),0,1)),0) -> 0
B31: =IF(A31>0,IF(ISNA(MATCH(A31,Roster!$A:$A,0)),1,IF(ISNA(MATCH(A31,A$1:A30,0)),0,1)),0) -> 0 | D31: =IF(C31>0,IF(ISNA(MATCH(C31,Roster!$A:$A,0)),1,IF(ISNA(MATCH(C31,C$1:C30,0)),0,1)),0) -> 0 | F31: =IF(E31>0,IF(ISNA(MATCH(E31,Roster!$A:$A,0)),1,IF(ISNA(MATCH(E31,E$1:E30,0)),0,1)),0) -> 0 | H31: =IF(G31>0,IF(ISNA(MATCH(G31,Roster!$A:$A,0)),1,IF(ISNA(MATCH(G31,G$1:G30,0)),0,1)),0) -> 0 | J31: =IF(I31>0,IF(ISNA(MATCH(I31,Roster!$A:$A,0)),1,IF(ISNA(MATCH(I31,I$1:I30,0)),0,1)),0) -> 0 | L31: =IF(K31>0,IF(ISNA(MATCH(K31,Roster!$A:$A,0)),1,IF(ISNA(MATCH(K31,K$1:K30,0)),0,1)),0) -> 0 | N31: =IF(M31>0,IF(ISNA(MATCH(M31,Roster!$A:$A,0)),1,IF(ISNA(MATCH(M31,M$1:M30,0)),0,1)),0) -> 0 | P31: =IF(O31>0,IF(ISNA(MATCH(O31,Roster!$A:$A,0)),1,IF(ISNA(MATCH(O31,O$1:O30,0)),0,1)),0) -> 0 | R31: =IF(Q31>0,IF(ISNA(MATCH(Q31,Roster!$A:$A,0)),1,IF(ISNA(MATCH(Q31,Q$1:Q30,0)),0,1)),0) -> 0 | T31: =IF(S31>0,IF(ISNA(MATCH(S31,Roster!$A:$A,0)),1,IF(ISNA(MATCH(S31,S$1:S30,0)),0,1)),0) -> 0 | V31: =IF(U31>0,IF(ISNA(MATCH(U31,Roster!$A:$A,0)),1,IF(ISNA(MATCH(U31,U$1:U30,0)),0,1)),0) -> 0 | X31: =IF(W31>0,IF(ISNA(MATCH(W31,Roster!$A:$A,0)),1,IF(ISNA(MATCH(W31,W$1:W30,0)),0,1)),0) -> 0 | Z31: =IF(Y31>0,IF(ISNA(MATCH(Y31,Roster!$A:$A,0)),1,IF(ISNA(MATCH(Y31,Y$1:Y30,0)),0,1)),0) -> 0 | AB31: =IF(AA31>0,IF(ISNA(MATCH(AA31,Roster!$A:$A,0)),1,IF(ISNA(MATCH(AA31,AA$1:AA30,0)),0,1)),0) -> 0 | AD31: =IF(AC31>0,IF(ISNA(MATCH(AC31,Roster!$A:$A,0)),1,IF(ISNA(MATCH(AC31,AC$1:AC30,0)),0,1)),0) -> 0
B32: =IF(A32>0,IF(ISNA(MATCH(A32,Roster!$A:$A,0)),1,IF(ISNA(MATCH(A32,A$1:A31,0)),0,1)),0) -> 0 | D32: =IF(C32>0,IF(ISNA(MATCH(C32,Roster!$A:$A,0)),1,IF(ISNA(MATCH(C32,C$1:C31,0)),0,1)),0) -> 0 | F32: =IF(E32>0,IF(ISNA(MATCH(E32,Roster!$A:$A,0)),1,IF(ISNA(MATCH(E32,E$1:E31,0)),0,1)),0) -> 0 | H32: =IF(G32>0,IF(ISNA(MATCH(G32,Roster!$A:$A,0)),1,IF(ISNA(MATCH(G32,G$1:G31,0)),0,1)),0) -> 0 | J32: =IF(I32>0,IF(ISNA(MATCH(I32,Roster!$A:$A,0)),1,IF(ISNA(MATCH(I32,I$1:I31,0)),0,1)),0) -> 0 | L32: =IF(K32>0,IF(ISNA(MATCH(K32,Roster!$A:$A,0)),1,IF(ISNA(MATCH(K32,K$1:K31,0)),0,1)),0) -> 0 | N32: =IF(M32>0,IF(ISNA(MATCH(M32,Roster!$A:$A,0)),1,IF(ISNA(MATCH(M32,M$1:M31,0)),0,1)),0) -> 0 | P32: =IF(O32>0,IF(ISNA(MATCH(O32,Roster!$A:$A,0)),1,IF(ISNA(MATCH(O32,O$1:O31,0)),0,1)),0) -> 0 | R32: =IF(Q32>0,IF(ISNA(MATCH(Q32,Roster!$A:$A,0)),1,IF(ISNA(MATCH(Q32,Q$1:Q31,0)),0,1)),0) -> 0 | T32: =IF(S32>0,IF(ISNA(MATCH(S32,Roster!$A:$A,0)),1,IF(ISNA(MATCH(S32,S$1:S31,0)),0,1)),0) -> 0 | V32: =IF(U32>0,IF(ISNA(MATCH(U32,Roster!$A:$A,0)),1,IF(ISNA(MATCH(U32,U$1:U31,0)),0,1)),0) -> 0 | X32: =IF(W32>0,IF(ISNA(MATCH(W32,Roster!$A:$A,0)),1,IF(ISNA(MATCH(W32,W$1:W31,0)),0,1)),0) -> 0 | Z32: =IF(Y32>0,IF(ISNA(MATCH(Y32,Roster!$A:$A,0)),1,IF(ISNA(MATCH(Y32,Y$1:Y31,0)),0,1)),0) -> 0 | AB32: =IF(AA32>0,IF(ISNA(MATCH(AA32,Roster!$A:$A,0)),1,IF(ISNA(MATCH(AA32,AA$1:AA31,0)),0,1)),0) -> 0 | AD32: =IF(AC32>0,IF(ISNA(MATCH(AC32,Roster!$A:$A,0)),1,IF(ISNA(MATCH(AC32,AC$1:AC31,0)),0,1)),0) -> 0
B33: =IF(A33>0,IF(ISNA(MATCH(A33,Roster!$A:$A,0)),1,IF(ISNA(MATCH(A33,A$1:A32,0)),0,1)),0) -> 0 | D33: =IF(C33>0,IF(ISNA(MATCH(C33,Roster!$A:$A,0)),1,IF(ISNA(MATCH(C33,C$1:C32,0)),0,1)),0) -> 0 | F33: =IF(E33>0,IF(ISNA(MATCH(E33,Roster!$A:$A,0)),1,IF(ISNA(MATCH(E33,E$1:E32,0)),0,1)),0) -> 0 | H33: =IF(G33>0,IF(ISNA(MATCH(G33,Roster!$A:$A,0)),1,IF(ISNA(MATCH(G33,G$1:G32,0)),0,1)),0) -> 0 | J33: =IF(I33>0,IF(ISNA(MATCH(I33,Roster!$A:$A,0)),1,IF(ISNA(MATCH(I33,I$1:I32,0)),0,1)),0) -> 0 | L33: =IF(K33>0,IF(ISNA(MATCH(K33,Roster!$A:$A,0)),1,IF(ISNA(MATCH(K33,K$1:K32,0)),0,1)),0) -> 0 | N33: =IF(M33>0,IF(ISNA(MATCH(M33,Roster!$A:$A,0)),1,IF(ISNA(MATCH(M33,M$1:M32,0)),0,1)),0) -> 0 | P33: =IF(O33>0,IF(ISNA(MATCH(O33,Roster!$A:$A,0)),1,IF(ISNA(MATCH(O33,O$1:O32,0)),0,1)),0) -> 0 | R33: =IF(Q33>0,IF(ISNA(MATCH(Q33,Roster!$A:$A,0)),1,IF(ISNA(MATCH(Q33,Q$1:Q32,0)),0,1)),0) -> 0 | T33: =IF(S33>0,IF(ISNA(MATCH(S33,Roster!$A:$A,0)),1,IF(ISNA(MATCH(S33,S$1:S32,0)),0,1)),0) -> 0 | V33: =IF(U33>0,IF(ISNA(MATCH(U33,Roster!$A:$A,0)),1,IF(ISNA(MATCH(U33,U$1:U32,0)),0,1)),0) -> 0 | X33: =IF(W33>0,IF(ISNA(MATCH(W33,Roster!$A:$A,0)),1,IF(ISNA(MATCH(W33,W$1:W32,0)),0,1)),0) -> 0 | Z33: =IF(Y33>0,IF(ISNA(MATCH(Y33,Roster!$A:$A,0)),1,IF(ISNA(MATCH(Y33,Y$1:Y32,0)),0,1)),0) -> 0 | AB33: =IF(AA33>0,IF(ISNA(MATCH(AA33,Roster!$A:$A,0)),1,IF(ISNA(MATCH(AA33,AA$1:AA32,0)),0,1)),0) -> 0 | AD33: =IF(AC33>0,IF(ISNA(MATCH(AC33,Roster!$A:$A,0)),1,IF(ISNA(MATCH(AC33,AC$1:AC32,0)),0,1)),0) -> 0
B34: =IF(A34>0,IF(ISNA(MATCH(A34,Roster!$A:$A,0)),1,IF(ISNA(MATCH(A34,A$1:A33,0)),0,1)),0) -> 0 | D34: =IF(C34>0,IF(ISNA(MATCH(C34,Roster!$A:$A,0)),1,IF(ISNA(MATCH(C34,C$1:C33,0)),0,1)),0) -> 0 | F34: =IF(E34>0,IF(ISNA(MATCH(E34,Roster!$A:$A,0)),1,IF(ISNA(MATCH(E34,E$1:E33,0)),0,1)),0) -> 0 | H34: =IF(G34>0,IF(ISNA(MATCH(G34,Roster!$A:$A,0)),1,IF(ISNA(MATCH(G34,G$1:G33,0)),0,1)),0) -> 0 | J34: =IF(I34>0,IF(ISNA(MATCH(I34,Roster!$A:$A,0)),1,IF(ISNA(MATCH(I34,I$1:I33,0)),0,1)),0) -> 0 | L34: =IF(K34>0,IF(ISNA(MATCH(K34,Roster!$A:$A,0)),1,IF(ISNA(MATCH(K34,K$1:K33,0)),0,1)),0) -> 0 | N34: =IF(M34>0,IF(ISNA(MATCH(M34,Roster!$A:$A,0)),1,IF(ISNA(MATCH(M34,M$1:M33,0)),0,1)),0) -> 0 | P34: =IF(O34>0,IF(ISNA(MATCH(O34,Roster!$A:$A,0)),1,IF(ISNA(MATCH(O34,O$1:O33,0)),0,1)),0) -> 0 | R34: =IF(Q34>0,IF(ISNA(MATCH(Q34,Roster!$A:$A,0)),1,IF(ISNA(MATCH(Q34,Q$1:Q33,0)),0,1)),0) -> 0 | T34: =IF(S34>0,IF(ISNA(MATCH(S34,Roster!$A:$A,0)),1,IF(ISNA(MATCH(S34,S$1:S33,0)),0,1)),0) -> 0 | V34: =IF(U34>0,IF(ISNA(MATCH(U34,Roster!$A:$A,0)),1,IF(ISNA(MATCH(U34,U$1:U33,0)),0,1)),0) -> 0 | X34: =IF(W34>0,IF(ISNA(MATCH(W34,Roster!$A:$A,0)),1,IF(ISNA(MATCH(W34,W$1:W33,0)),0,1)),0) -> 0 | Z34: =IF(Y34>0,IF(ISNA(MATCH(Y34,Roster!$A:$A,0)),1,IF(ISNA(MATCH(Y34,Y$1:Y33,0)),0,1)),0) -> 0 | AB34: =IF(AA34>0,IF(ISNA(MATCH(AA34,Roster!$A:$A,0)),1,IF(ISNA(MATCH(AA34,AA$1:AA33,0)),0,1)),0) -> 0 | AD34: =IF(AC34>0,IF(ISNA(MATCH(AC34,Roster!$A:$A,0)),1,IF(ISNA(MATCH(AC34,AC$1:AC33,0)),0,1)),0) -> 0
B35: =IF(A35>0,IF(ISNA(MATCH(A35,Roster!$A:$A,0)),1,IF(ISNA(MATCH(A35,A$1:A34,0)),0,1)),0) -> 0 | D35: =IF(C35>0,IF(ISNA(MATCH(C35,Roster!$A:$A,0)),1,IF(ISNA(MATCH(C35,C$1:C34,0)),0,1)),0) -> 0 | F35: =IF(E35>0,IF(ISNA(MATCH(E35,Roster!$A:$A,0)),1,IF(ISNA(MATCH(E35,E$1:E34,0)),0,1)),0) -> 0 | H35: =IF(G35>0,IF(ISNA(MATCH(G35,Roster!$A:$A,0)),1,IF(ISNA(MATCH(G35,G$1:G34,0)),0,1)),0) -> 0 | J35: =IF(I35>0,IF(ISNA(MATCH(I35,Roster!$A:$A,0)),1,IF(ISNA(MATCH(I35,I$1:I34,0)),0,1)),0) -> 0 | L35: =IF(K35>0,IF(ISNA(MATCH(K35,Roster!$A:$A,0)),1,IF(ISNA(MATCH(K35,K$1:K34,0)),0,1)),0) -> 0 | N35: =IF(M35>0,IF(ISNA(MATCH(M35,Roster!$A:$A,0)),1,IF(ISNA(MATCH(M35,M$1:M34,0)),0,1)),0) -> 0 | P35: =IF(O35>0,IF(ISNA(MATCH(O35,Roster!$A:$A,0)),1,IF(ISNA(MATCH(O35,O$1:O34,0)),0,1)),0) -> 0 | R35: =IF(Q35>0,IF(ISNA(MATCH(Q35,Roster!$A:$A,0)),1,IF(ISNA(MATCH(Q35,Q$1:Q34,0)),0,1)),0) -> 0 | T35: =IF(S35>0,IF(ISNA(MATCH(S35,Roster!$A:$A,0)),1,IF(ISNA(MATCH(S35,S$1:S34,0)),0,1)),0) -> 0 | V35: =IF(U35>0,IF(ISNA(MATCH(U35,Roster!$A:$A,0)),1,IF(ISNA(MATCH(U35,U$1:U34,0)),0,1)),0) -> 0 | X35: =IF(W35>0,IF(ISNA(MATCH(W35,Roster!$A:$A,0)),1,IF(ISNA(MATCH(W35,W$1:W34,0)),0,1)),0) -> 0 | Z35: =IF(Y35>0,IF(ISNA(MATCH(Y35,Roster!$A:$A,0)),1,IF(ISNA(MATCH(Y35,Y$1:Y34,0)),0,1)),0) -> 0 | AB35: =IF(AA35>0,IF(ISNA(MATCH(AA35,Roster!$A:$A,0)),1,IF(ISNA(MATCH(AA35,AA$1:AA34,0)),0,1)),0) -> 0 | AD35: =IF(AC35>0,IF(ISNA(MATCH(AC35,Roster!$A:$A,0)),1,IF(ISNA(MATCH(AC35,AC$1:AC34,0)),0,1)),0) -> 0
B36: =IF(A36>0,IF(ISNA(MATCH(A36,Roster!$A:$A,0)),1,IF(ISNA(MATCH(A36,A$1:A35,0)),0,1)),0) -> 0 | D36: =IF(C36>0,IF(ISNA(MATCH(C36,Roster!$A:$A,0)),1,IF(ISNA(MATCH(C36,C$1:C35,0)),0,1)),0) -> 0 | F36: =IF(E36>0,IF(ISNA(MATCH(E36,Roster!$A:$A,0)),1,IF(ISNA(MATCH(E36,E$1:E35,0)),0,1)),0) -> 0 | H36: =IF(G36>0,IF(ISNA(MATCH(G36,Roster!$A:$A,0)),1,IF(ISNA(MATCH(G36,G$1:G35,0)),0,1)),0) -> 0 | J36: =IF(I36>0,IF(ISNA(MATCH(I36,Roster!$A:$A,0)),1,IF(ISNA(MATCH(I36,I$1:I35,0)),0,1)),0) -> 0 | L36: =IF(K36>0,IF(ISNA(MATCH(K36,Roster!$A:$A,0)),1,IF(ISNA(MATCH(K36,K$1:K35,0)),0,1)),0) -> 0 | N36: =IF(M36>0,IF(ISNA(MATCH(M36,Roster!$A:$A,0)),1,IF(ISNA(MATCH(M36,M$1:M35,0)),0,1)),0) -> 0 | P36: =IF(O36>0,IF(ISNA(MATCH(O36,Roster!$A:$A,0)),1,IF(ISNA(MATCH(O36,O$1:O35,0)),0,1)),0) -> 0 | R36: =IF(Q36>0,IF(ISNA(MATCH(Q36,Roster!$A:$A,0)),1,IF(ISNA(MATCH(Q36,Q$1:Q35,0)),0,1)),0) -> 0 | T36: =IF(S36>0,IF(ISNA(MATCH(S36,Roster!$A:$A,0)),1,IF(ISNA(MATCH(S36,S$1:S35,0)),0,1)),0) -> 0 | V36: =IF(U36>0,IF(ISNA(MATCH(U36,Roster!$A:$A,0)),1,IF(ISNA(MATCH(U36,U$1:U35,0)),0,1)),0) -> 0 | X36: =IF(W36>0,IF(ISNA(MATCH(W36,Roster!$A:$A,0)),1,IF(ISNA(MATCH(W36,W$1:W35,0)),0,1)),0) -> 0 | Z36: =IF(Y36>0,IF(ISNA(MATCH(Y36,Roster!$A:$A,0)),1,IF(ISNA(MATCH(Y36,Y$1:Y35,0)),0,1)),0) -> 0 | AB36: =IF(AA36>0,IF(ISNA(MATCH(AA36,Roster!$A:$A,0)),1,IF(ISNA(MATCH(AA36,AA$1:AA35,0)),0,1)),0) -> 0 | AD36: =IF(AC36>0,IF(ISNA(MATCH(AC36,Roster!$A:$A,0)),1,IF(ISNA(MATCH(AC36,AC$1:AC35,0)),0,1)),0) -> 0
B37: =IF(A37>0,IF(ISNA(MATCH(A37,Roster!$A:$A,0)),1,IF(ISNA(MATCH(A37,A$1:A36,0)),0,1)),0) -> 0 | D37: =IF(C37>0,IF(ISNA(MATCH(C37,Roster!$A:$A,0)),1,IF(ISNA(MATCH(C37,C$1:C36,0)),0,1)),0) -> 0 | F37: =IF(E37>0,IF(ISNA(MATCH(E37,Roster!$A:$A,0)),1,IF(ISNA(MATCH(E37,E$1:E36,0)),0,1)),0) -> 0 | H37: =IF(G37>0,IF(ISNA(MATCH(G37,Roster!$A:$A,0)),1,IF(ISNA(MATCH(G37,G$1:G36,0)),0,1)),0) -> 0 | J37: =IF(I37>0,IF(ISNA(MATCH(I37,Roster!$A:$A,0)),1,IF(ISNA(MATCH(I37,I$1:I36,0)),0,1)),0) -> 0 | L37: =IF(K37>0,IF(ISNA(MATCH(K37,Roster!$A:$A,0)),1,IF(ISNA(MATCH(K37,K$1:K36,0)),0,1)),0) -> 0 | N37: =IF(M37>0,IF(ISNA(MATCH(M37,Roster!$A:$A,0)),1,IF(ISNA(MATCH(M37,M$1:M36,0)),0,1)),0) -> 0 | P37: =IF(O37>0,IF(ISNA(MATCH(O37,Roster!$A:$A,0)),1,IF(ISNA(MATCH(O37,O$1:O36,0)),0,1)),0) -> 0 | R37: =IF(Q37>0,IF(ISNA(MATCH(Q37,Roster!$A:$A,0)),1,IF(ISNA(MATCH(Q37,Q$1:Q36,0)),0,1)),0) -> 0 | T37: =IF(S37>0,IF(ISNA(MATCH(S37,Roster!$A:$A,0)),1,IF(ISNA(MATCH(S37,S$1:S36,0)),0,1)),0) -> 0 | V37: =IF(U37>0,IF(ISNA(MATCH(U37,Roster!$A:$A,0)),1,IF(ISNA(MATCH(U37,U$1:U36,0)),0,1)),0) -> 0 | X37: =IF(W37>0,IF(ISNA(MATCH(W37,Roster!$A:$A,0)),1,IF(ISNA(MATCH(W37,W$1:W36,0)),0,1)),0) -> 0 | Z37: =IF(Y37>0,IF(ISNA(MATCH(Y37,Roster!$A:$A,0)),1,IF(ISNA(MATCH(Y37,Y$1:Y36,0)),0,1)),0) -> 0 | AB37: =IF(AA37>0,IF(ISNA(MATCH(AA37,Roster!$A:$A,0)),1,IF(ISNA(MATCH(AA37,AA$1:AA36,0)),0,1)),0) -> 0 | AD37: =IF(AC37>0,IF(ISNA(MATCH(AC37,Roster!$A:$A,0)),1,IF(ISNA(MATCH(AC37,AC$1:AC36,0)),0,1)),0) -> 0
B38: =IF(A38>0,IF(ISNA(MATCH(A38,Roster!$A:$A,0)),1,IF(ISNA(MATCH(A38,A$1:A37,0)),0,1)),0) -> 0 | D38: =IF(C38>0,IF(ISNA(MATCH(C38,Roster!$A:$A,0)),1,IF(ISNA(MATCH(C38,C$1:C37,0)),0,1)),0) -> 0 | F38: =IF(E38>0,IF(ISNA(MATCH(E38,Roster!$A:$A,0)),1,IF(ISNA(MATCH(E38,E$1:E37,0)),0,1)),0) -> 0 | H38: =IF(G38>0,IF(ISNA(MATCH(G38,Roster!$A:$A,0)),1,IF(ISNA(MATCH(G38,G$1:G37,0)),0,1)),0) -> 0 | J38: =IF(I38>0,IF(ISNA(MATCH(I38,Roster!$A:$A,0)),1,IF(ISNA(MATCH(I38,I$1:I37,0)),0,1)),0) -> 0 | L38: =IF(K38>0,IF(ISNA(MATCH(K38,Roster!$A:$A,0)),1,IF(ISNA(MATCH(K38,K$1:K37,0)),0,1)),0) -> 0 | N38: =IF(M38>0,IF(ISNA(MATCH(M38,Roster!$A:$A,0)),1,IF(ISNA(MATCH(M38,M$1:M37,0)),0,1)),0) -> 0 | P38: =IF(O38>0,IF(ISNA(MATCH(O38,Roster!$A:$A,0)),1,IF(ISNA(MATCH(O38,O$1:O37,0)),0,1)),0) -> 0 | R38: =IF(Q38>0,IF(ISNA(MATCH(Q38,Roster!$A:$A,0)),1,IF(ISNA(MATCH(Q38,Q$1:Q37,0)),0,1)),0) -> 0 | T38: =IF(S38>0,IF(ISNA(MATCH(S38,Roster!$A:$A,0)),1,IF(ISNA(MATCH(S38,S$1:S37,0)),0,1)),0) -> 0 | V38: =IF(U38>0,IF(ISNA(MATCH(U38,Roster!$A:$A,0)),1,IF(ISNA(MATCH(U38,U$1:U37,0)),0,1)),0) -> 0 | X38: =IF(W38>0,IF(ISNA(MATCH(W38,Roster!$A:$A,0)),1,IF(ISNA(MATCH(W38,W$1:W37,0)),0,1)),0) -> 0 | Z38: =IF(Y38>0,IF(ISNA(MATCH(Y38,Roster!$A:$A,0)),1,IF(ISNA(MATCH(Y38,Y$1:Y37,0)),0,1)),0) -> 0 | AB38: =IF(AA38>0,IF(ISNA(MATCH(AA38,Roster!$A:$A,0)),1,IF(ISNA(MATCH(AA38,AA$1:AA37,0)),0,1)),0) -> 0 | AD38: =IF(AC38>0,IF(ISNA(MATCH(AC38,Roster!$A:$A,0)),1,IF(ISNA(MATCH(AC38,AC$1:AC37,0)),0,1)),0) -> 0
B39: =IF(A39>0,IF(ISNA(MATCH(A39,Roster!$A:$A,0)),1,IF(ISNA(MATCH(A39,A$1:A38,0)),0,1)),0) -> 0 | D39: =IF(C39>0,IF(ISNA(MATCH(C39,Roster!$A:$A,0)),1,IF(ISNA(MATCH(C39,C$1:C38,0)),0,1)),0) -> 0 | F39: =IF(E39>0,IF(ISNA(MATCH(E39,Roster!$A:$A,0)),1,IF(ISNA(MATCH(E39,E$1:E38,0)),0,1)),0) -> 0 | H39: =IF(G39>0,IF(ISNA(MATCH(G39,Roster!$A:$A,0)),1,IF(ISNA(MATCH(G39,G$1:G38,0)),0,1)),0) -> 0 | J39: =IF(I39>0,IF(ISNA(MATCH(I39,Roster!$A:$A,0)),1,IF(ISNA(MATCH(I39,I$1:I38,0)),0,1)),0) -> 0 | L39: =IF(K39>0,IF(ISNA(MATCH(K39,Roster!$A:$A,0)),1,IF(ISNA(MATCH(K39,K$1:K38,0)),0,1)),0) -> 0 | N39: =IF(M39>0,IF(ISNA(MATCH(M39,Roster!$A:$A,0)),1,IF(ISNA(MATCH(M39,M$1:M38,0)),0,1)),0) -> 0 | P39: =IF(O39>0,IF(ISNA(MATCH(O39,Roster!$A:$A,0)),1,IF(ISNA(MATCH(O39,O$1:O38,0)),0,1)),0) -> 0 | R39: =IF(Q39>0,IF(ISNA(MATCH(Q39,Roster!$A:$A,0)),1,IF(ISNA(MATCH(Q39,Q$1:Q38,0)),0,1)),0) -> 0 | T39: =IF(S39>0,IF(ISNA(MATCH(S39,Roster!$A:$A,0)),1,IF(ISNA(MATCH(S39,S$1:S38,0)),0,1)),0) -> 0 | V39: =IF(U39>0,IF(ISNA(MATCH(U39,Roster!$A:$A,0)),1,IF(ISNA(MATCH(U39,U$1:U38,0)),0,1)),0) -> 0 | X39: =IF(W39>0,IF(ISNA(MATCH(W39,Roster!$A:$A,0)),1,IF(ISNA(MATCH(W39,W$1:W38,0)),0,1)),0) -> 0 | Z39: =IF(Y39>0,IF(ISNA(MATCH(Y39,Roster!$A:$A,0)),1,IF(ISNA(MATCH(Y39,Y$1:Y38,0)),0,1)),0) -> 0 | AB39: =IF(AA39>0,IF(ISNA(MATCH(AA39,Roster!$A:$A,0)),1,IF(ISNA(MATCH(AA39,AA$1:AA38,0)),0,1)),0) -> 0 | AD39: =IF(AC39>0,IF(ISNA(MATCH(AC39,Roster!$A:$A,0)),1,IF(ISNA(MATCH(AC39,AC$1:AC38,0)),0,1)),0) -> 0
B40: =IF(A40>0,IF(ISNA(MATCH(A40,Roster!$A:$A,0)),1,IF(ISNA(MATCH(A40,A$1:A39,0)),0,1)),0) -> 0 | D40: =IF(C40>0,IF(ISNA(MATCH(C40,Roster!$A:$A,0)),1,IF(ISNA(MATCH(C40,C$1:C39,0)),0,1)),0) -> 0 | F40: =IF(E40>0,IF(ISNA(MATCH(E40,Roster!$A:$A,0)),1,IF(ISNA(MATCH(E40,E$1:E39,0)),0,1)),0) -> 0 | H40: =IF(G40>0,IF(ISNA(MATCH(G40,Roster!$A:$A,0)),1,IF(ISNA(MATCH(G40,G$1:G39,0)),0,1)),0) -> 0 | J40: =IF(I40>0,IF(ISNA(MATCH(I40,Roster!$A:$A,0)),1,IF(ISNA(MATCH(I40,I$1:I39,0)),0,1)),0) -> 0 | L40: =IF(K40>0,IF(ISNA(MATCH(K40,Roster!$A:$A,0)),1,IF(ISNA(MATCH(K40,K$1:K39,0)),0,1)),0) -> 0 | N40: =IF(M40>0,IF(ISNA(MATCH(M40,Roster!$A:$A,0)),1,IF(ISNA(MATCH(M40,M$1:M39,0)),0,1)),0) -> 0 | P40: =IF(O40>0,IF(ISNA(MATCH(O40,Roster!$A:$A,0)),1,IF(ISNA(MATCH(O40,O$1:O39,0)),0,1)),0) -> 0 | R40: =IF(Q40>0,IF(ISNA(MATCH(Q40,Roster!$A:$A,0)),1,IF(ISNA(MATCH(Q40,Q$1:Q39,0)),0,1)),0) -> 0 | T40: =IF(S40>0,IF(ISNA(MATCH(S40,Roster!$A:$A,0)),1,IF(ISNA(MATCH(S40,S$1:S39,0)),0,1)),0) -> 0 | V40: =IF(U40>0,IF(ISNA(MATCH(U40,Roster!$A:$A,0)),1,IF(ISNA(MATCH(U40,U$1:U39,0)),0,1)),0) -> 0 | X40: =IF(W40>0,IF(ISNA(MATCH(W40,Roster!$A:$A,0)),1,IF(ISNA(MATCH(W40,W$1:W39,0)),0,1)),0) -> 0 | Z40: =IF(Y40>0,IF(ISNA(MATCH(Y40,Roster!$A:$A,0)),1,IF(ISNA(MATCH(Y40,Y$1:Y39,0)),0,1)),0) -> 0 | AB40: =IF(AA40>0,IF(ISNA(MATCH(AA40,Roster!$A:$A,0)),1,IF(ISNA(MATCH(AA40,AA$1:AA39,0)),0,1)),0) -> 0 | AD40: =IF(AC40>0,IF(ISNA(MATCH(AC40,Roster!$A:$A,0)),1,IF(ISNA(MATCH(AC40,AC$1:AC39,0)),0,1)),0) -> 0
B41: =IF(A41>0,IF(ISNA(MATCH(A41,Roster!$A:$A,0)),1,IF(ISNA(MATCH(A41,A$1:A40,0)),0,1)),0) -> 0 | D41: =IF(C41>0,IF(ISNA(MATCH(C41,Roster!$A:$A,0)),1,IF(ISNA(MATCH(C41,C$1:C40,0)),0,1)),0) -> 0 | F41: =IF(E41>0,IF(ISNA(MATCH(E41,Roster!$A:$A,0)),1,IF(ISNA(MATCH(E41,E$1:E40,0)),0,1)),0) -> 0 | H41: =IF(G41>0,IF(ISNA(MATCH(G41,Roster!$A:$A,0)),1,IF(ISNA(MATCH(G41,G$1:G40,0)),0,1)),0) -> 0 | J41: =IF(I41>0,IF(ISNA(MATCH(I41,Roster!$A:$A,0)),1,IF(ISNA(MATCH(I41,I$1:I40,0)),0,1)),0) -> 0 | L41: =IF(K41>0,IF(ISNA(MATCH(K41,Roster!$A:$A,0)),1,IF(ISNA(MATCH(K41,K$1:K40,0)),0,1)),0) -> 0 | N41: =IF(M41>0,IF(ISNA(MATCH(M41,Roster!$A:$A,0)),1,IF(ISNA(MATCH(M41,M$1:M40,0)),0,1)),0) -> 0 | P41: =IF(O41>0,IF(ISNA(MATCH(O41,Roster!$A:$A,0)),1,IF(ISNA(MATCH(O41,O$1:O40,0)),0,1)),0) -> 0 | R41: =IF(Q41>0,IF(ISNA(MATCH(Q41,Roster!$A:$A,0)),1,IF(ISNA(MATCH(Q41,Q$1:Q40,0)),0,1)),0) -> 0 | T41: =IF(S41>0,IF(ISNA(MATCH(S41,Roster!$A:$A,0)),1,IF(ISNA(MATCH(S41,S$1:S40,0)),0,1)),0) -> 0 | V41: =IF(U41>0,IF(ISNA(MATCH(U41,Roster!$A:$A,0)),1,IF(ISNA(MATCH(U41,U$1:U40,0)),0,1)),0) -> 0 | X41: =IF(W41>0,IF(ISNA(MATCH(W41,Roster!$A:$A,0)),1,IF(ISNA(MATCH(W41,W$1:W40,0)),0,1)),0) -> 0 | Z41: =IF(Y41>0,IF(ISNA(MATCH(Y41,Roster!$A:$A,0)),1,IF(ISNA(MATCH(Y41,Y$1:Y40,0)),0,1)),0) -> 0 | AB41: =IF(AA41>0,IF(ISNA(MATCH(AA41,Roster!$A:$A,0)),1,IF(ISNA(MATCH(AA41,AA$1:AA40,0)),0,1)),0) -> 0 | AD41: =IF(AC41>0,IF(ISNA(MATCH(AC41,Roster!$A:$A,0)),1,IF(ISNA(MATCH(AC41,AC$1:AC40,0)),0,1)),0) -> 0
B42: =IF(A42>0,IF(ISNA(MATCH(A42,Roster!$A:$A,0)),1,IF(ISNA(MATCH(A42,A$1:A41,0)),0,1)),0) -> 0 | D42: =IF(C42>0,IF(ISNA(MATCH(C42,Roster!$A:$A,0)),1,IF(ISNA(MATCH(C42,C$1:C41,0)),0,1)),0) -> 0 | F42: =IF(E42>0,IF(ISNA(MATCH(E42,Roster!$A:$A,0)),1,IF(ISNA(MATCH(E42,E$1:E41,0)),0,1)),0) -> 0 | H42: =IF(G42>0,IF(ISNA(MATCH(G42,Roster!$A:$A,0)),1,IF(ISNA(MATCH(G42,G$1:G41,0)),0,1)),0) -> 0 | J42: =IF(I42>0,IF(ISNA(MATCH(I42,Roster!$A:$A,0)),1,IF(ISNA(MATCH(I42,I$1:I41,0)),0,1)),0) -> 0 | L42: =IF(K42>0,IF(ISNA(MATCH(K42,Roster!$A:$A,0)),1,IF(ISNA(MATCH(K42,K$1:K41,0)),0,1)),0) -> 0 | N42: =IF(M42>0,IF(ISNA(MATCH(M42,Roster!$A:$A,0)),1,IF(ISNA(MATCH(M42,M$1:M41,0)),0,1)),0) -> 0 | P42: =IF(O42>0,IF(ISNA(MATCH(O42,Roster!$A:$A,0)),1,IF(ISNA(MATCH(O42,O$1:O41,0)),0,1)),0) -> 0 | R42: =IF(Q42>0,IF(ISNA(MATCH(Q42,Roster!$A:$A,0)),1,IF(ISNA(MATCH(Q42,Q$1:Q41,0)),0,1)),0) -> 0 | T42: =IF(S42>0,IF(ISNA(MATCH(S42,Roster!$A:$A,0)),1,IF(ISNA(MATCH(S42,S$1:S41,0)),0,1)),0) -> 0 | V42: =IF(U42>0,IF(ISNA(MATCH(U42,Roster!$A:$A,0)),1,IF(ISNA(MATCH(U42,U$1:U41,0)),0,1)),0) -> 0 | X42: =IF(W42>0,IF(ISNA(MATCH(W42,Roster!$A:$A,0)),1,IF(ISNA(MATCH(W42,W$1:W41,0)),0,1)),0) -> 0 | Z42: =IF(Y42>0,IF(ISNA(MATCH(Y42,Roster!$A:$A,0)),1,IF(ISNA(MATCH(Y42,Y$1:Y41,0)),0,1)),0) -> 0 | AB42: =IF(AA42>0,IF(ISNA(MATCH(AA42,Roster!$A:$A,0)),1,IF(ISNA(MATCH(AA42,AA$1:AA41,0)),0,1)),0) -> 0 | AD42: =IF(AC42>0,IF(ISNA(MATCH(AC42,Roster!$A:$A,0)),1,IF(ISNA(MATCH(AC42,AC$1:AC41,0)),0,1)),0) -> 0
B43: =IF(A43>0,IF(ISNA(MATCH(A43,Roster!$A:$A,0)),1,IF(ISNA(MATCH(A43,A$1:A42,0)),0,1)),0) -> 0 | D43: =IF(C43>0,IF(ISNA(MATCH(C43,Roster!$A:$A,0)),1,IF(ISNA(MATCH(C43,C$1:C42,0)),0,1)),0) -> 0 | F43: =IF(E43>0,IF(ISNA(MATCH(E43,Roster!$A:$A,0)),1,IF(ISNA(MATCH(E43,E$1:E42,0)),0,1)),0) -> 0 | H43: =IF(G43>0,IF(ISNA(MATCH(G43,Roster!$A:$A,0)),1,IF(ISNA(MATCH(G43,G$1:G42,0)),0,1)),0) -> 0 | J43: =IF(I43>0,IF(ISNA(MATCH(I43,Roster!$A:$A,0)),1,IF(ISNA(MATCH(I43,I$1:I42,0)),0,1)),0) -> 0 | L43: =IF(K43>0,IF(ISNA(MATCH(K43,Roster!$A:$A,0)),1,IF(ISNA(MATCH(K43,K$1:K42,0)),0,1)),0) -> 0 | N43: =IF(M43>0,IF(ISNA(MATCH(M43,Roster!$A:$A,0)),1,IF(ISNA(MATCH(M43,M$1:M42,0)),0,1)),0) -> 0 | P43: =IF(O43>0,IF(ISNA(MATCH(O43,Roster!$A:$A,0)),1,IF(ISNA(MATCH(O43,O$1:O42,0)),0,1)),0) -> 0 | R43: =IF(Q43>0,IF(ISNA(MATCH(Q43,Roster!$A:$A,0)),1,IF(ISNA(MATCH(Q43,Q$1:Q42,0)),0,1)),0) -> 0 | T43: =IF(S43>0,IF(ISNA(MATCH(S43,Roster!$A:$A,0)),1,IF(ISNA(MATCH(S43,S$1:S42,0)),0,1)),0) -> 0 | V43: =IF(U43>0,IF(ISNA(MATCH(U43,Roster!$A:$A,0)),1,IF(ISNA(MATCH(U43,U$1:U42,0)),0,1)),0) -> 0 | X43: =IF(W43>0,IF(ISNA(MATCH(W43,Roster!$A:$A,0)),1,IF(ISNA(MATCH(W43,W$1:W42,0)),0,1)),0) -> 0 | Z43: =IF(Y43>0,IF(ISNA(MATCH(Y43,Roster!$A:$A,0)),1,IF(ISNA(MATCH(Y43,Y$1:Y42,0)),0,1)),0) -> 0 | AB43: =IF(AA43>0,IF(ISNA(MATCH(AA43,Roster!$A:$A,0)),1,IF(ISNA(MATCH(AA43,AA$1:AA42,0)),0,1)),0) -> 0 | AD43: =IF(AC43>0,IF(ISNA(MATCH(AC43,Roster!$A:$A,0)),1,IF(ISNA(MATCH(AC43,AC$1:AC42,0)),0,1)),0) -> 0
B44: =IF(A44>0,IF(ISNA(MATCH(A44,Roster!$A:$A,0)),1,IF(ISNA(MATCH(A44,A$1:A43,0)),0,1)),0) -> 0 | D44: =IF(C44>0,IF(ISNA(MATCH(C44,Roster!$A:$A,0)),1,IF(ISNA(MATCH(C44,C$1:C43,0)),0,1)),0) -> 0 | F44: =IF(E44>0,IF(ISNA(MATCH(E44,Roster!$A:$A,0)),1,IF(ISNA(MATCH(E44,E$1:E43,0)),0,1)),0) -> 0 | H44: =IF(G44>0,IF(ISNA(MATCH(G44,Roster!$A:$A,0)),1,IF(ISNA(MATCH(G44,G$1:G43,0)),0,1)),0) -> 0 | J44: =IF(I44>0,IF(ISNA(MATCH(I44,Roster!$A:$A,0)),1,IF(ISNA(MATCH(I44,I$1:I43,0)),0,1)),0) -> 0 | L44: =IF(K44>0,IF(ISNA(MATCH(K44,Roster!$A:$A,0)),1,IF(ISNA(MATCH(K44,K$1:K43,0)),0,1)),0) -> 0 | N44: =IF(M44>0,IF(ISNA(MATCH(M44,Roster!$A:$A,0)),1,IF(ISNA(MATCH(M44,M$1:M43,0)),0,1)),0) -> 0 | P44: =IF(O44>0,IF(ISNA(MATCH(O44,Roster!$A:$A,0)),1,IF(ISNA(MATCH(O44,O$1:O43,0)),0,1)),0) -> 0 | R44: =IF(Q44>0,IF(ISNA(MATCH(Q44,Roster!$A:$A,0)),1,IF(ISNA(MATCH(Q44,Q$1:Q43,0)),0,1)),0) -> 0 | T44: =IF(S44>0,IF(ISNA(MATCH(S44,Roster!$A:$A,0)),1,IF(ISNA(MATCH(S44,S$1:S43,0)),0,1)),0) -> 0 | V44: =IF(U44>0,IF(ISNA(MATCH(U44,Roster!$A:$A,0)),1,IF(ISNA(MATCH(U44,U$1:U43,0)),0,1)),0) -> 0 | X44: =IF(W44>0,IF(ISNA(MATCH(W44,Roster!$A:$A,0)),1,IF(ISNA(MATCH(W44,W$1:W43,0)),0,1)),0) -> 0 | Z44: =IF(Y44>0,IF(ISNA(MATCH(Y44,Roster!$A:$A,0)),1,IF(ISNA(MATCH(Y44,Y$1:Y43,0)),0,1)),0) -> 0 | AB44: =IF(AA44>0,IF(ISNA(MATCH(AA44,Roster!$A:$A,0)),1,IF(ISNA(MATCH(AA44,AA$1:AA43,0)),0,1)),0) -> 0 | AD44: =IF(AC44>0,IF(ISNA(MATCH(AC44,Roster!$A:$A,0)),1,IF(ISNA(MATCH(AC44,AC$1:AC43,0)),0,1)),0) -> 0
